Workbook

Sheet Deltagandeskatter
A1: Prisbasbelopp | B1: 44800
A2: Kommunalskatt | B2: 32.12%
A3: Arbetsgivaravgift | B3: 31.42%
A4: Konsumtionsskatt | B4: 19%
A5: Lägsta a-kassa | B5: 96000 | C5: =365*22*12 -> 96360
A6: Högsta a-kassa | B6: 240000 | C6: =910*22*12 -> 240240
A7: Golv för sjukpenning | B7: =0.24*B1 -> 10752
A8: Tak för sjukpenning och -ersättning | B8: =7.5*B1 -> 336000
A9: Garantisjukersättning | B9: =2.45*B1 -> 109760
A10: Försörjningsstöd | B10: =(4000+2980+950)*12 -> 95160
A11: Nedre brytpunkt | B11: 452100
A12: Övre brytpunkt | B12: 651700
A14: Pensionsavsättning | B14: 17.21%
A15: Tak för pensionsgrundande inkomst | B15: =8.07*61500 -> 496305
A17: Försörjningsstöd två barn | B17: =(7000+3120*2+2980+1330)*12 -> 210600
A18: Maximalt bostadsbidrag | B18: =(2000+(5900-1400)*0.5)*12 -> 51000
A19: Barnbidrag två barn | B19: =(1050+1050+150)*12 -> 27000
AB21: ENSAMSTÅENDE UTAN BARN | AT21: ENSAMSTÅENDE, TVÅ BARN
H22: Ersättning före skatt | L22: Ersättning efter skatt | Q22: Disponibel inkomst per månad | W22: Ökning av pensionsrätt (efter inkomstskatt) vid arbete | AB22: Bostadstillägg | AC22: Disponibel inkomst | AE22: Deltagandeskatt (endast inkomstskatt) vid | AJ22: Deltagandeskatt vid | AO22: Ökning av disponibel inkomst per timme | AT22: Disponibel inkomst per år | AZ22: Bostadsbidrag | BA22: Bostadstillägg | BC22: Disponibel inkomst per månad | BI22: Deltagandeskatt (endast inkomstskatt) vid | BN22: Deltagandeskatt vid | BS22: Ökning av disponibel inkomst per timme
A23: Månadslön | B23: Årslön | C23: Grundavdrag | D23: JSA | E23: Inkomstskatt | F23: Lön efter skatt | H23: A-kassa | I23: Sjukpenning | J23: Sjukersättning | L23: A-kassa | M23: Sjukpenning | N23: Sjukersättning | O23: Försörjningsstöd | Q23: Lön | R23: A-kassa | S23: Sjukpenning | T23: Sjukersättning | U23: Försörjningsstöd | W23: A-kassa | X23: Sjukpenning | Y23: Sjukersättning | Z23: Försörjningsstöd | AB23: Sjukersättning | AC23: Sjukersättning | AE23: A-kassa | AF23: Sjukpenning | AG23: Sjukersättning | AH23: Försörjningsstöd | AJ23: A-kassa | AK23: Sjukpenning | AL23: Sjukersättning | AM23: Försörjningsstöd | AO23: A-kassa | AP23: Sjukpenning | AQ23: Sjukersättning | AR23: Försörjningsstöd | AT23: Lön | AU23: A-kassa | AV23: Sjukpenning | AW23: Sjukersättning | AX23: Försörjningsstöd | AZ23: Sjukersättning | BA23: Sjukersättning | BC23: Lön | BD23: A-kassa | BE23: Sjukpenning | BF23: Sjukersättning | BG23: Försörjningsstöd | BI23: A-kassa | BJ23: Sjukpenning | BK23: Sjukersättning | BL23: Försörjningsstöd | BN23: A-kassa | BO23: Sjukpenning | BP23: Sjukersättning | BQ23: Försörjningsstöd | BS23: A-kassa | BT23: Sjukpenning | BU23: Sjukersättning | BV23: Försörjningsstöd
AJ24: Unemployment benefit | AK24: Sickness benefit | AL24: Disability benefit | AM24: Social assistance
A25: 0 | B25: =A25*12 -> 0 | C25: =GRUNDAVDRAG(B25) -> 0 | D25: =JSA(B25, C25,$B$2) -> 0 | E25: =(B25-C25)*$B$2-D25+MAX(0,0.2*(B25-$B$11))+MAX(0,0.05*(B25-$B$12)) -> 0 | F25: =B25-E25 -> 0 | H25: =MAX($B$5, MIN($B$6, B25*0.8)) -> 96000 | I25: =IF(B25>$B$7, 0.8*0.97*MIN(B25, $B$8), 0) -> 0 | J25: =MAX($B$9, 0.647*MIN(B25, $B$8)) -> 109760 | L25: =H25-$B$2*(H25-GRUNDAVDRAG(H25)) -> 74576 | M25: =I25-$B$2*(I25-GRUNDAVDRAG(I25)) -> 0 | N25: 84816 | O25: =$B$10 -> 95160 | Q25: =F25/12 -> 0 | R25: =L25/12 -> 6215 | S25: =M25/12 -> 0 | T25: =AC25/12 -> 10220 | U25: =$B$10/12 -> 7930 | W25: =(MIN($B25,$B$15)-H25)*0.1721*(1-$B$2) -> -11215 | X25: =(MIN($B25,$B$15)-I25)*0.1721*(1-$B$2) -> 0 | Y25: 0 | Z25: =MIN($B25,$B$15)*0.1721*(1-$B$2) -> 0 | AB25: =BOSTADSTILLAGG(J25, 4000 * 12) -> 37823 | AC25: =N25+AB25 -> 122638 | AT25: =F25+$B$19+MAX(0, $B$18-0.2*MAX(0,(B25-117000))) -> 78000 | AU25: =L25+$B$19+MAX(0, $B$18-0.2*MAX(0,(H25-117000))) -> 152576 | AV25: =M25+$B$19+MAX(0, $B$18-0.2*MAX(0,(I25-117000))) -> 78000 | AW25: =N25+$B$19+AZ25+BA25 -> 186388 | AX25: =$B$17 -> 210600 | AZ25: =MAX(0, $B$18-0.2*MAX(0,(J25-117000))) -> 51000 | BA25: =BOSTADSTILLAGG(J25, 7000 * 12 - AZ25) -> 23573 | BC25: =AT25/12 -> 6500 | BD25: =AU25/12 -> 12715 | BE25: 6500 | BF25: 15532 | BG25: 17550
A26: 1000 | B26: =A26*12 -> 12000 | C26: 12000 | D26: 0 | E26: 0 | F26: =B26-E26 -> 12000 | H26: =MAX($B$5, MIN($B$6, B26*0.8)) -> 96000 | I26: =IF(B26>$B$7, 0.8*0.97*MIN(B26, $B$8), 0) -> 9312 | J26: =MAX($B$9, 0.647*MIN(B26, $B$8)) -> 109760 | L26: =H26-$B$2*(H26-GRUNDAVDRAG(H26)) -> 74576 | M26: =I26-$B$2*(I26-GRUNDAVDRAG(I26)) -> 9340 | N26: =J26-$B$2*(J26-GRUNDAVDRAG(J26)) -> 84816 | O26: =$B$10 -> 95160 | Q26: =F26/12 -> 1000 | R26: 6215 | S26: 778 | T26: =AC26/12 -> 10220 | U26: =$B$10/12 -> 7930 | W26: =(MIN($B26,$B$15)-H26)*0.1721*(1-$B$2) -> -9813 | X26: =(MIN($B26,$B$15)-I26)*0.1721*(1-$B$2) -> 314 | Y26: 0 | Z26: =MIN($B26,$B$15)*0.1721*(1-$B$2) -> 1402 | AB26: =BOSTADSTILLAGG(J26, 4000 * 12) -> 37823 | AC26: =N26+AB26 -> 122638 | AE26: =1-($F26-L26)/$B26 -> 621% | AF26: =1-($F26-M26)/$B26 -> 78% | AG26: =1-($F26-AC26)/$B26 -> 1022% | AH26: =1-($F26-$B$10)/$B26 -> 793% | AJ26: =1-(1-$B$4)*($F26-L26+W26)/((1+$B$3)*$B26) -> 472% | AK26: =1-(1-$B$4)*($F26-M26+X26)/((1+$B$3)*$B26) -> 85% | AL26: =1-(1-$B$4)*($F26-AC26+Y26)/((1+$B$3)*$B26) -> 668% | AM26: =1-(1-$B$4)*($F26-O26+Z26)/((1+$B$3)*$B26) -> 520% | AO26: =($Q26-R26)/160 -> -33 | AP26: =($Q26-S26)/160 -> 1 | AQ26: =($Q26-T26)/160 -> -58 | AR26: =($Q26-U26)/160 -> -43 | AT26: 90000 | AU26: 152576 | AV26: 87340 | AW26: =N26+$B$19+AZ26+BA26 -> 186388 | AX26: =$B$17 -> 210600 | AZ26: 51000 | BA26: 23573 | BC26: =AT26/12 -> 7500 | BD26: =AU26/12 -> 12715 | BE26: =AV26/12 -> 7278 | BF26: =AW26/12 -> 15532 | BG26: =AX26/12 -> 17550 | BI26: =1-($AT26-AU26)/$B26 -> 621% | BJ26: =1-($AT26-AV26)/$B26 -> 78% | BK26: =1-($AT26-AW26)/$B26 -> 903% | BL26: =1-($AT26-AX26)/$B26 -> 1105% | BN26: =1-(1-$B$4)*($AT26-AU26+W26)/((1+$B$3)*$B26) -> 472% | BO26: =1-(1-$B$4)*($AT26-AV26+X26)/((1+$B$3)*$B26) -> 85% | BP26: =1-(1-$B$4)*($AT26-AW26+Y26)/((1+$B$3)*$B26) -> 595% | BQ26: =1-(1-$B$4)*($AT26-AX26+Z26)/((1+$B$3)*$B26) -> 712% | BS26: =($BC26-BD26)/160 -> -33 | BT26: =($BC26-BE26)/160 -> 1 | BU26: -50 | BV26: -63
A27: 2000 | B27: 24000 | C27: 19000 | D27: 1606 | E27: 0 | F27: 24000 | H27: 96000 | I27: 18624 | J27: 109760 | L27: 74576 | M27: 18648 | N27: 84816 | O27: 95160 | Q27: 2000 | R27: 6215 | S27: 1554 | T27: 10220 | U27: 7930 | W27: -8411 | X27: 628 | Y27: 0 | Z27: 2804 | AB27: 37823 | AC27: 122638 | AE27: 311% | AF27: 78% | AG27: =1-($F27-AC27)/$B27 -> 511% | AH27: =1-($F27-$B$10)/$B27 -> 397% | AJ27: 251% | AK27: 85% | AL27: =1-(1-$B$4)*($F27-AC27+Y27)/((1+$B$3)*$B27) -> 353% | AM27: 276% | AO27: -26 | AP27: 3 | AQ27: -51 | AR27: -37 | AT27: 102000 | AU27: 152576 | AV27: 96648 | AW27: 186388 | AX27: 210600 | AZ27: 51000 | BA27: 23573 | BC27: 8500 | BD27: 12715 | BE27: 8054 | BF27: 15532 | BG27: 17550 | BI27: 311% | BJ27: 78% | BK27: 452% | BL27: 553% | BN27: 251% | BO27: 85% | BP27: 317% | BQ27: 372% | BS27: =($BC27-BD27)/160 -> -26 | BT27: =($BC27-BE27)/160 -> 3 | BU27: =($BC27-BF27)/160 -> -44 | BV27: =($BC27-BG27)/160 -> -57
A28: 3000 | B28: 36000 | C28: 19000 | D28: 5460 | E28: 0 | F28: 36000 | H28: 96000 | I28: 27936 | J28: 109760 | L28: 74576 | M28: 25066 | N28: 84816 | O28: 95160 | Q28: 3000 | R28: 6215 | S28: 2089 | T28: 10220 | U28: 7930 | W28: -7009 | X28: 942 | Y28: 0 | Z28: 4206 | AB28: 37823 | AC28: 122638 | AE28: 207% | AF28: 70% | AG28: 341% | AH28: 264% | AJ28: 178% | AK28: 80% | AL28: 248% | AM28: 194% | AO28: -20 | AP28: 6 | AQ28: -45 | AR28: -31 | AT28: 114000 | AU28: 152576 | AV28: 103066 | AW28: 186388 | AX28: 210600 | AZ28: 51000 | BA28: 23573 | BC28: 9500 | BD28: 12715 | BE28: 8589 | BF28: 15532 | BG28: 17550 | BI28: 207% | BJ28: 70% | BK28: 301% | BL28: 368% | BN28: 178% | BO28: 80% | BP28: 224% | BQ28: 258% | BS28: -20 | BT28: 6 | BU28: -38 | BV28: -50
A29: 4000 | B29: 48000 | C29: 19700 | D29: 7538 | E29: 1552 | F29: 46448 | H29: 96000 | I29: 37248 | J29: 109760 | L29: 74576 | M29: 31387 | N29: 84816 | O29: 95160 | Q29: 3871 | R29: 6215 | S29: 2616 | T29: 10220 | U29: 7930 | W29: -5607 | X29: 1256 | Y29: 0 | Z29: 5607 | AB29: 37823 | AC29: 122638 | AE29: 159% | AF29: 69% | AG29: 259% | AH29: 201% | AJ29: 143% | AK29: 79% | AL29: 198% | AM29: 155% | AO29: -15 | AP29: 8 | AQ29: -40 | AR29: -25 | AT29: 124448 | AU29: 152576 | AV29: 109387 | AW29: 186388 | AX29: 210600 | AZ29: 51000 | BA29: 23573 | BC29: 10371 | BD29: 12715 | BE29: 9116 | BF29: 15532 | BG29: 17550 | BI29: 159% | BJ29: 69% | BK29: 229% | BL29: 279% | BN29: 143% | BO29: 79% | BP29: 180% | BQ29: 203% | BS29: -15 | BT29: 8 | BU29: -32 | BV29: -45
A30: 5000 | B30: 60000 | C30: 22100 | D30: 8047 | E30: 4126 | F30: 55874 | H30: 96000 | I30: 46560 | J30: 109760 | L30: 74576 | M30: 37836 | N30: 84816 | O30: 95160 | Q30: 4656 | R30: 6215 | S30: 3153 | T30: 10220 | U30: 7930 | W30: -4206 | X30: 1570 | Y30: 0 | Z30: 7009 | AB30: 37823 | AC30: 122638 | AE30: 131% | AF30: 70% | AG30: 211% | AH30: 165% | AJ30: 124% | AK30: 80% | AL30: 169% | AM30: 133% | AO30: -10 | AP30: 9 | AQ30: -35 | AR30: -20 | AT30: 133874 | AU30: 152576 | AV30: 115836 | AW30: 186388 | AX30: 210600 | AZ30: 51000 | BA30: 23573 | BC30: 11156 | BD30: 12715 | BE30: 9653 | BF30: 15532 | BG30: 17550 | BI30: 131% | BJ30: 70% | BK30: 188% | BL30: 228% | BN30: 124% | BO30: 80% | BP30: 154% | BQ30: 172% | BS30: -10 | BT30: 9 | BU30: -27 | BV30: -40
A31: 6000 | B31: 72000 | C31: 24500 | D31: 8556 | E31: 6701 | F31: 65299 | H31: 96000 | I31: 55872 | J31: 109760 | L31: 74576 | M31: 44767 | N31: 84816 | O31: 95160 | Q31: 5442 | R31: 6215 | S31: 3731 | T31: 10220 | U31: 7930 | W31: -2804 | X31: 1884 | Y31: 0 | Z31: 8411 | AB31: 37823 | AC31: 122638 | AE31: 113% | AF31: 71% | AG31: 180% | AH31: 141% | AJ31: 110% | AK31: 81% | AL31: 149% | AM31: 118% | AO31: -5 | AP31: 11 | AQ31: -30 | AR31: -16 | AT31: 143299 | AU31: 152576 | AV31: 122767 | AW31: 186388 | AX31: 210600 | AZ31: 51000 | BA31: 23573 | BC31: 11942 | BD31: 12715 | BE31: 10231 | BF31: 15532 | BG31: 17550 | BI31: 113% | BJ31: 71% | BK31: 160% | BL31: 193% | BN31: 110% | BO31: 81% | BP31: 137% | BQ31: 150% | BS31: -5 | BT31: 11 | BU31: -22 | BV31: -35
A32: 7000 | B32: 84000 | C32: 26900 | D32: 9065 | E32: 9276 | F32: 74724 | H32: 96000 | I32: 65184 | J32: 109760 | L32: 74576 | M32: 51699 | N32: 84816 | O32: 95160 | Q32: 6227 | R32: 6215 | S32: 4308 | T32: 10220 | U32: 7930 | W32: -1402 | X32: 2198 | Y32: 0 | Z32: 9813 | AB32: 37823 | AC32: 122638 | AE32: 100% | AF32: 73% | AG32: 157% | AH32: 124% | AJ32: 101% | AK32: 81% | AL32: 135% | AM32: 108% | AO32: 0 | AP32: 12 | AQ32: -25 | AR32: -11 | AT32: 152724 | AU32: 152576 | AV32: 129699 | AW32: 186388 | AX32: 210600 | AZ32: 51000 | BA32: 23573 | BC32: 12727 | BD32: 12715 | BE32: 10808 | BF32: 15532 | BG32: 17550 | BI32: 100% | BJ32: 73% | BK32: 140% | BL32: 169% | BN32: 101% | BO32: 81% | BP32: 125% | BQ32: 135% | BS32: 0 | BT32: 12 | BU32: -18 | BV32: -30
A33: 8000 | B33: 96000 | C33: 29300 | D33: 9573 | E33: 11851 | F33: 84149 | H33: 96000 | I33: 74496 | J33: 109760 | L33: 74576 | M33: 58598 | N33: 84816 | O33: 95160 | Q33: 7012 | R33: 6215 | S33: 4883 | T33: 10220 | U33: 7930 | W33: 0 | X33: 2512 | Y33: 0 | Z33: 11215 | AB33: 37823 | AC33: 122638 | AE33: 90% | AF33: 73% | AG33: 140% | AH33: 111% | AJ33: 94% | AK33: 82% | AL33: 125% | AM33: 100% | AO33: 5 | AP33: 13 | AQ33: -20 | AR33: -6 | AT33: 162149 | AU33: 152576 | AV33: 136598 | AW33: 186388 | AX33: 210600 | AZ33: 51000 | BA33: 23573 | BC33: 13512 | BD33: 12715 | BE33: 11383 | BF33: 15532 | BG33: 17550 | BI33: 90% | BJ33: 73% | BK33: 125% | BL33: 150% | BN33: 94% | BO33: 82% | BP33: 116% | BQ33: 124% | BS33: 5 | BT33: 13 | BU33: -13 | BV33: -25
A34: 9000 | B34: 108000 | C34: 31700 | D34: 10082 | E34: 14426 | F34: 93574 | H34: 96000 | I34: 83808 | J34: 109760 | L34: 74576 | M34: 65529 | N34: 84816 | O34: 95160 | Q34: 7798 | R34: 6215 | S34: 5461 | T34: 10220 | U34: 7930 | W34: 1402 | X34: 2826 | Y34: 0 | Z34: 12617 | AB34: 37823 | AC34: 122638 | AE34: 82% | AF34: 74% | AG34: 127% | AH34: 101% | AJ34: 88% | AK34: 82% | AL34: 117% | AM34: 94% | AO34: 10 | AP34: 15 | AQ34: -15 | AR34: -1 | AT34: 171574 | AU34: 152576 | AV34: 143529 | AW34: 186388 | AX34: 210600 | AZ34: 51000 | BA34: 23573 | BC34: 14298 | BD34: 12715 | BE34: 11961 | BF34: 15532 | BG34: 17550 | BI34: 82% | BJ34: 74% | BK34: 114% | BL34: 136% | BN34: 88% | BO34: 82% | BP34: 108% | BQ34: 115% | BS34: 10 | BT34: 15 | BU34: -8 | BV34: -20
A35: 10000 | B35: 120000 | C35: 34100 | D35: 10591 | E35: 17000 | F35: 103000 | H35: 96000 | I35: 93120 | J35: 109760 | L35: 74576 | M35: 72460 | N35: 84816 | O35: 95160 | Q35: 8583 | R35: 6215 | S35: 6038 | T35: 10220 | U35: 7930 | W35: 2804 | X35: 3140 | Y35: 0 | Z35: 14019 | AB35: 37823 | AC35: 122638 | AE35: 76% | AF35: 75% | AG35: 116% | AH35: 93% | AJ35: 84% | AK35: 83% | AL35: 110% | AM35: 89% | AO35: 15 | AP35: 16 | AQ35: -10 | AR35: 4 | AT35: 180400 | AU35: 152576 | AV35: 150460 | AW35: 186388 | AX35: 210600 | AZ35: 51000 | BA35: 23573 | BC35: 15033 | BD35: 12715 | BE35: 12538 | BF35: 15532 | BG35: 17550 | BI35: 77% | BJ35: 75% | BK35: 105% | BL35: 125% | BN35: 84% | BO35: 83% | BP35: 103% | BQ35: 108% | BS35: 14 | BT35: 16 | BU35: -3 | BV35: -16
A36: 11000 | B36: 132000 | C36: 34500 | D36: 11722 | E36: 19595 | F36: 112405 | H36: 105600 | I36: 102432 | J36: 109760 | L36: 81703 | M36: 79360 | N36: 84816 | O36: 95160 | Q36: 9367 | R36: 6809 | S36: 6613 | T36: 10220 | U36: 7930 | W36: 3084 | X36: 3454 | Y36: 0 | Z36: 15420 | AB36: 37823 | AC36: 122638 | AE36: 77% | AF36: 75% | AG36: 108% | AH36: 87% | AJ36: 84% | AK36: 83% | AL36: 105% | AM36: 85% | AO36: 16 | AP36: 17 | AQ36: -5 | AR36: 9 | AT36: 187405 | AU36: 159703 | AV36: 157360 | AW36: 186388 | AX36: 210600 | AZ36: 51000 | BA36: 23573 | BC36: 15617 | BD36: 13309 | BE36: 13113 | BF36: 15532 | BG36: 17550 | BI36: 79% | BJ36: 77% | BK36: 99% | BL36: 118% | BN36: 86% | BO36: 84% | BP36: 100% | BQ36: 104% | BS36: 14 | BT36: 16 | BU36: 1 | BV36: -12
A37: 12000 | B37: 144000 | C37: 34100 | D37: 12279 | E37: 23021 | F37: 120979 | H37: 115200 | I37: 111744 | J37: 109760 | L37: 88862 | M37: 86291 | N37: 84816 | O37: 95160 | Q37: 10082 | R37: 7405 | S37: 7191 | T37: 10220 | U37: 7930 | W37: 3364 | X37: 3768 | Y37: 0 | Z37: 16822 | AB37: 37823 | AC37: 122638 | AE37: 78% | AF37: 76% | AG37: 101% | AH37: 82% | AJ37: 85% | AK37: 84% | AL37: 101% | AM37: 82% | AO37: 17 | AP37: 18 | AQ37: -1 | AR37: 13 | AT37: 193579 | AU37: 166862 | AV37: 164291 | AW37: 186388 | AX37: 210600 | AZ37: 51000 | BA37: 23573 | BC37: 16132 | BD37: 13905 | BE37: 13691 | BF37: 15532 | BG37: 17550 | BI37: 81% | BJ37: 80% | BK37: 95% | BL37: 112% | BN37: 87% | BO37: 86% | BP37: 97% | BQ37: 100% | BS37: 14 | BT37: 15 | BU37: 4 | BV37: -9
A38: 13000 | B38: 156000 | C38: 32900 | D38: 13092 | E38: 26448 | F38: 129552 | H38: 124800 | I38: 121056 | J38: 109760 | L38: 95796 | M38: 93190 | N38: 84816 | O38: 95160 | Q38: 10796 | R38: 7983 | S38: 7766 | T38: 10220 | U38: 7930 | W38: 3645 | X38: 4082 | Y38: 0 | Z38: 18224 | AB38: 37823 | AC38: 122638 | AE38: 78% | AF38: 77% | AG38: 96% | AH38: 78% | AJ38: 85% | AK38: 84% | AL38: 97% | AM38: 79% | AO38: 18 | AP38: 19 | AQ38: 4 | AR38: 18 | AT38: 199752 | AU38: 172236 | AV38: 170379 | AW38: 186388 | AX38: 210600 | AZ38: 51000 | BA38: 23573 | BC38: 16646 | BD38: 14353 | BE38: 14198 | BF38: 15532 | BG38: 17550 | BI38: 82% | BJ38: 81% | BK38: 91% | BL38: 107% | BN38: 88% | BO38: 87% | BP38: 95% | BQ38: 97% | BS38: 14 | BT38: 15 | BU38: 7 | BV38: -6
A39: 14000 | B39: 168000 | C39: 31700 | D39: 13905 | E39: 29875 | F39: 138125 | H39: 134400 | I39: 130368 | J39: 109760 | L39: 102312 | M39: 99575 | N39: 84816 | O39: 95160 | Q39: 11510 | R39: 8526 | S39: 8298 | T39: 10220 | U39: 7930 | W39: 3925 | X39: 4396 | Y39: 0 | Z39: 19626 | AB39: 37823 | AC39: 122638 | AE39: 79% | AF39: 77% | AG39: 91% | AH39: 74% | AJ39: 85% | AK39: 84% | AL39: 94% | AM39: 77% | AO39: 19 | AP39: 20 | AQ39: 8 | AR39: 22 | AT39: 205925 | AU39: 176832 | AV39: 174902 | AW39: 186388 | AX39: 210600 | AZ39: 51000 | BA39: 23573 | BC39: 17160 | BD39: 14736 | BE39: 14575 | BF39: 15532 | BG39: 17550 | BI39: 83% | BJ39: 82% | BK39: 88% | BL39: 103% | BN39: 88% | BO39: 87% | BP39: 93% | BQ39: 95% | BS39: 15 | BT39: 16 | BU39: 10 | BV39: -2
A40: 15000 | B40: 180000 | C40: 30500 | D40: 14718 | E40: 33301 | F40: 146699 | H40: 144000 | I40: 139680 | J40: 116460 | L40: 108700 | M40: 105896 | N40: 89781 | O40: 95160 | Q40: 12225 | R40: 9058 | S40: 8825 | T40: 10287 | U40: 7930 | W40: 4206 | X40: 4710 | Y40: 0 | Z40: 21028 | AB40: 33669 | AC40: 123450 | AE40: 79% | AF40: 77% | AG40: 87% | AH40: 71% | AJ40: 86% | AK40: 84% | AL40: 92% | AM40: 75% | AO40: 20 | AP40: 21 | AQ40: 12 | AR40: 27 | AT40: 212099 | AU40: 181300 | AV40: 179360 | AW40: 187200 | AX40: 210600 | AZ40: 51000 | BA40: 19419 | BC40: 17675 | BD40: 15108 | BE40: 14947 | BF40: 15600 | BG40: 17550 | BI40: 83% | BJ40: 82% | BK40: 86% | BL40: 99% | BN40: 88% | BO40: 87% | BP40: 91% | BQ40: 92% | BS40: 16 | BT40: 17 | BU40: 13 | BV40: 1
A41: 16000 | B41: 192000 | C41: 29300 | D41: 15532 | E41: 36727 | F41: 155273 | H41: 153600 | I41: 148992 | J41: 124224 | L41: 114895 | M41: 111928 | N41: 95405 | O41: 95160 | Q41: 12939 | R41: 9575 | S41: 9327 | T41: 10355 | U41: 7930 | W41: 4486 | X41: 5024 | Y41: 0 | Z41: 22430 | AB41: 28855 | AC41: 124260 | AE41: 79% | AF41: 77% | AG41: 84% | AH41: 69% | AJ41: 86% | AK41: 84% | AL41: 90% | AM41: 74% | AO41: 21 | AP41: 23 | AQ41: 16 | AR41: 31 | AT41: 218273 | AU41: 185575 | AV41: 183530 | AW41: 187937 | AX41: 210600 | AZ41: 49555 | BA41: 15978 | BC41: 18189 | BD41: 15465 | BE41: 15294 | BF41: 15661 | BG41: 17550 | BI41: 83% | BJ41: 82% | BK41: 84% | BL41: 96% | BN41: 88% | BO41: 87% | BP41: 90% | BQ41: 90% | BS41: 17 | BT41: 18 | BU41: 16 | BV41: 4
A42: 17000 | B42: 204000 | C42: 28100 | D42: 16345 | E42: 40154 | F42: 163846 | H42: 163200 | I42: 158304 | J42: 131988 | L42: 121123 | M42: 117928 | N42: 100675 | O42: 95160 | Q42: 13654 | R42: 10094 | S42: 9827 | T42: 10393 | U42: 7930 | W42: 4766 | X42: 5338 | Y42: 0 | Z42: 23832 | AB42: 24041 | AC42: 124716 | AE42: 79% | AF42: 77% | AG42: 81% | AH42: 66% | AJ42: 86% | AK42: 85% | AL42: 88% | AM42: 72% | AO42: 22 | AP42: 24 | AQ42: 20 | AR42: 36 | AT42: 224446 | AU42: 189883 | AV42: 187667 | AW42: 188316 | AX42: 210600 | AZ42: 48002 | BA42: 12639 | BC42: 18704 | BD42: 15824 | BE42: 15639 | BF42: 15693 | BG42: 17550 | BI42: 83% | BJ42: 82% | BK42: 82% | BL42: 93% | BN42: 88% | BO42: 87% | BP42: 89% | BQ42: 89% | BS42: 18 | BT42: 19 | BU42: 19 | BV42: 7
A43: 18000 | B43: 216000 | C43: 26900 | D43: 17158 | E43: 43581 | F43: 172419 | H43: 172800 | I43: 167616 | J43: 139752 | L43: 127318 | M43: 123960 | N43: 105945 | O43: 95160 | Q43: 14368 | R43: 10610 | S43: 10330 | T43: 10431 | U43: 7930 | W43: 5047 | X43: 5652 | Y43: 0 | Z43: 25233 | AB43: 19228 | AC43: 125173 | AE43: 79% | AF43: 78% | AG43: 78% | AH43: 64% | AJ43: 86% | AK43: 85% | AL43: 87% | AM43: 71% | AO43: 23 | AP43: 25 | AQ43: 25 | AR43: 40 | AT43: 230619 | AU43: 194158 | AV43: 191837 | AW43: 188695 | AX43: 210600 | AZ43: 46450 | BA43: 9301 | BC43: 19218 | BD43: 16180 | BE43: 15986 | BF43: 15725 | BG43: 17550 | BI43: 83% | BJ43: 82% | BK43: 81% | BL43: 91% | BN43: 88% | BO43: 87% | BP43: 88% | BQ43: 87% | BS43: 19 | BT43: 20 | BU43: 22 | BV43: 10
A44: 19000 | B44: 228000 | C44: 25700 | D44: 17972 | E44: 47007 | F44: 180993 | H44: 182400 | I44: 176928 | J44: 147516 | L44: 133513 | M44: 129992 | N44: 110958 | O44: 95160 | Q44: 15083 | R44: 11126 | S44: 10833 | T44: 10503 | U44: 7930 | W44: 5327 | X44: 5966 | Y44: 0 | Z44: 26635 | AB44: 15074 | AC44: 126032 | AE44: 79% | AF44: 78% | AG44: 76% | AH44: 62% | AJ44: 86% | AK44: 85% | AL44: 85% | AM44: 70% | AO44: 25 | AP44: 27 | AQ44: 29 | AR44: 45 | AT44: 236793 | AU44: 198433 | AV44: 196006 | AW44: 189477 | AX44: 210600 | AZ44: 44897 | BA44: 6622 | BC44: 19733 | BD44: 16536 | BE44: 16334 | BF44: 15790 | BG44: 17550 | BI44: 83% | BJ44: 82% | BK44: 79% | BL44: 89% | BN44: 88% | BO44: 87% | BP44: 87% | BQ44: 86% | BS44: 20 | BT44: 21 | BU44: 25 | BV44: 14
A45: 20000 | B45: 240000 | C45: 24500 | D45: 18785 | E45: 50434 | F45: 189566 | H45: 192000 | I45: 186240 | J45: 155280 | L45: 139741 | M45: 136024 | N45: 116004 | O45: 95160 | Q45: 15797 | R45: 11645 | S45: 11335 | T45: 10600 | U45: 7930 | W45: 5607 | X45: 6280 | Y45: 0 | Z45: 28037 | AB45: 11192 | AC45: 127196 | AE45: 79% | AF45: 78% | AG45: 74% | AH45: 61% | AJ45: 86% | AK45: 85% | AL45: 84% | AM45: 69% | AO45: 26 | AP45: 28 | AQ45: 32 | AR45: 49 | AT45: 242966 | AU45: 202741 | AV45: 200176 | AW45: 190563 | AX45: 210600 | AZ45: 43344 | BA45: 4215 | BC45: 20247 | BD45: 16895 | BE45: 16681 | BF45: 15880 | BG45: 17550 | BI45: 83% | BJ45: 82% | BK45: 78% | BL45: 87% | BN45: 88% | BO45: 87% | BP45: 87% | BQ45: 84% | BS45: 21 | BT45: 22 | BU45: 27 | BV45: 17
A46: 21000 | B46: 252000 | C46: 23300 | D46: 19598 | E46: 53860 | F46: 198140 | H46: 201600 | I46: 195552 | J46: 163044 | L46: 145936 | M46: 142023 | N46: 121017 | O46: 95160 | Q46: 16512 | R46: 12161 | S46: 11835 | T46: 10694 | U46: 7930 | W46: 5888 | X46: 6594 | Y46: 0 | Z46: 29439 | AB46: 7310 | AC46: 128327 | AE46: 79% | AF46: 78% | AG46: 72% | AH46: 59% | AJ46: 86% | AK46: 85% | AL46: 83% | AM46: 68% | AO46: 27 | AP46: 29 | AQ46: 36 | AR46: 54 | AT46: 249140 | AU46: 207016 | AV46: 204313 | AW46: 191616 | AX46: 210600 | AZ46: 41791 | BA46: 1808 | BC46: 20762 | BD46: 17251 | BE46: 17026 | BF46: 15968 | BG46: 17550 | BI46: 83% | BJ46: 82% | BK46: 77% | BL46: 85% | BN46: 88% | BO46: 87% | BP46: 86% | BQ46: 83% | BS46: 22 | BT46: 23 | BU46: 30 | BV46: 20
A47: 22000 | B47: 264000 | C47: 22100 | D47: 20411 | E47: 57287 | F47: 206713 | H47: 211200 | I47: 204864 | J47: 170808 | L47: 152163 | M47: 148055 | N47: 126030 | O47: 95160 | Q47: 17226 | R47: 12680 | S47: 12338 | T47: 10788 | U47: 7930 | W47: 6168 | X47: 6908 | Y47: 0 | Z47: 30841 | AB47: 3428 | AC47: 129458 | AE47: 79% | AF47: 78% | AG47: 71% | AH47: 58% | AJ47: 86% | AK47: 85% | AL47: 82% | AM47: 67% | AO47: 28 | AP47: 31 | AQ47: 40 | AR47: 58 | AT47: 255313 | AU47: 211323 | AV47: 208482 | AW47: 193269 | AX47: 210600 | AZ47: 40238 | BA47: 0 | BC47: 21276 | BD47: 17610 | BE47: 17374 | BF47: 16106 | BG47: 17550 | BI47: 83% | BJ47: 82% | BK47: 76% | BL47: 83% | BN47: 88% | BO47: 87% | BP47: 86% | BQ47: 82% | BS47: 23 | BT47: 24 | BU47: 32 | BV47: 23
A48: 23000 | B48: 276000 | C48: 20900 | D48: 21225 | E48: 60713 | F48: 215287 | H48: 220800 | I48: 214176 | J48: 178572 | L48: 158359 | M48: 154087 | N48: 131043 | O48: 95160 | Q48: 17941 | R48: 13197 | S48: 12841 | T48: 10920 | U48: 7930 | W48: 6449 | X48: 7222 | Y48: 0 | Z48: 32243 | AB48: 0 | AC48: 131043 | AE48: 79% | AF48: 78% | AG48: 69% | AH48: 56% | AJ48: 86% | AK48: 85% | AL48: 81% | AM48: 66% | AO48: 30 | AP48: 32 | AQ48: 44 | AR48: 63 | AT48: 261487 | AU48: 215599 | AV48: 212652 | AW48: 196729 | AX48: 210600 | AZ48: 38686 | BA48: 0 | BC48: 21791 | BD48: 17967 | BE48: 17721 | BF48: 16394 | BG48: 17550 | BI48: 83% | BJ48: 82% | BK48: 77% | BL48: 82% | BN48: 88% | BO48: 87% | BP48: 86% | BQ48: 81% | BS48: 24 | BT48: 25 | BU48: 34 | BV48: 27
A49: 24000 | B49: 288000 | C49: 19700 | D49: 22038 | E49: 64140 | F49: 223860 | H49: 230400 | I49: 223488 | J49: 186336 | L49: 164554 | M49: 160087 | N49: 136057 | O49: 95160 | Q49: 18655 | R49: 13713 | S49: 13341 | T49: 11338 | U49: 7930 | W49: 6729 | X49: 7536 | Y49: 0 | Z49: 33645 | AB49: 0 | AC49: 136057 | AE49: 79% | AF49: 78% | AG49: 70% | AH49: 55% | AJ49: 86% | AK49: 85% | AL49: 81% | AM49: 65% | AO49: 31 | AP49: 33 | AQ49: 46 | AR49: 67 | AT49: 267660 | AU49: 219874 | AV49: 216789 | AW49: 200189 | AX49: 210600 | AZ49: 37133 | BA49: 0 | BC49: 22305 | BD49: 18323 | BE49: 18066 | BF49: 16682 | BG49: 17550 | BI49: 83% | BJ49: 82% | BK49: 77% | BL49: 80% | BN49: 88% | BO49: 88% | BP49: 86% | BQ49: 81% | BS49: 25 | BT49: 26 | BU49: 35 | BV49: 30
A50: 25000 | B50: 300000 | C50: 18500 | D50: 22851 | E50: 67567 | F50: 232433 | H50: 240000 | I50: 232800 | J50: 194100 | L50: 170781 | M50: 166119 | N50: 141102 | O50: 95160 | Q50: 19369 | R50: 14232 | S50: 13843 | T50: 11759 | U50: 7930 | W50: 7009 | X50: 7850 | Y50: 0 | Z50: 35046 | AB50: 0 | AC50: 141102 | AE50: 79% | AF50: 78% | AG50: 70% | AH50: 54% | AJ50: 86% | AK50: 85% | AL50: 81% | AM50: 65% | AO50: 32 | AP50: 35 | AQ50: 48 | AR50: 71 | AT50: 273833 | AU50: 224181 | AV50: 220959 | AW50: 203682 | AX50: 210600 | AZ50: 35580 | BA50: 0 | BC50: 22819 | BD50: 18682 | BE50: 18413 | BF50: 16974 | BG50: 17550 | BI50: 83% | BJ50: 82% | BK50: 77% | BL50: 79% | BN50: 88% | BO50: 88% | BP50: 86% | BQ50: 80% | BS50: 26 | BT50: 28 | BU50: 37 | BV50: 33
A51: 26000 | B51: 312000 | C51: 17300 | D51: 23664 | E51: 70994 | F51: 241006 | H51: 240000 | I51: 242112 | J51: 201864 | L51: 170781 | M51: 172151 | N51: 146115 | O51: 95160 | Q51: 20084 | R51: 14232 | S51: 14346 | T51: 12176 | U51: 7930 | W51: 8411 | X51: 8164 | Y51: 0 | Z51: 36448 | AB51: 0 | AC51: 146115 | AE51: 77% | AF51: 78% | AG51: 70% | AH51: 53% | AJ51: 84% | AK51: 85% | AL51: 81% | AM51: 64% | AO51: 37 | AP51: 36 | AQ51: 49 | AR51: 76 | AT51: 280006 | AU51: 224181 | AV51: 225128 | AW51: 207142 | AX51: 210600 | AZ51: 34027 | BA51: 0 | BC51: 23334 | BD51: 18682 | BE51: 18761 | BF51: 17262 | BG51: 17550 | BI51: 82% | BJ51: 82% | BK51: 77% | BL51: 78% | BN51: 87% | BO51: 88% | BP51: 86% | BQ51: 79% | BS51: 29 | BT51: 29 | BU51: 38 | BV51: 36
A52: 27000 | B52: 324000 | C52: 16100 | D52: 24478 | E52: 74419 | F52: 249581 | H52: 240000 | I52: 251424 | J52: 209628 | L52: 170781 | M52: 178151 | N52: 151128 | O52: 95160 | Q52: 20798 | R52: 14232 | S52: 14846 | T52: 12594 | U52: 7930 | W52: 9813 | X52: 8478 | Y52: 0 | Z52: 37850 | AB52: 0 | AC52: 151128 | AE52: 76% | AF52: 78% | AG52: 70% | AH52: 52% | AJ52: 83% | AK52: 85% | AL52: 81% | AM52: 63% | AO52: 41 | AP52: 37 | AQ52: 51 | AR52: 80 | AT52: 286181 | AU52: 224181 | AV52: 229266 | AW52: 210603 | AX52: 210600 | AZ52: 32474 | BA52: 0 | BC52: 23848 | BD52: 18682 | BE52: 19105 | BF52: 17550 | BG52: 17550 | BI52: 81% | BJ52: 82% | BK52: 77% | BL52: 77% | BN52: 86% | BO52: 88% | BP52: 86% | BQ52: 78% | BS52: 32 | BT52: 30 | BU52: 39 | BV52: 39
A53: 28000 | B53: 336000 | C53: 14900 | D53: 25291 | E53: 77846 | F53: 258154 | H53: 240000 | I53: 260736 | J53: 217392 | L53: 170781 | M53: 184182 | N53: 156142 | O53: 95160 | Q53: 21513 | R53: 14232 | S53: 15349 | T53: 13012 | U53: 7930 | W53: 11215 | X53: 8792 | Y53: 0 | Z53: 39252 | AB53: 0 | AC53: 156142 | AE53: 74% | AF53: 78% | AG53: 70% | AH53: 51% | AJ53: 82% | AK53: 85% | AL53: 81% | AM53: 63% | AO53: 46 | AP53: 39 | AQ53: 53 | AR53: 85 | AT53: 292354 | AU53: 224181 | AV53: 233435 | AW53: 214063 | AX53: 210600 | AZ53: 30922 | BA53: 0 | BC53: 24363 | BD53: 18682 | BE53: 19453 | BF53: 17839 | BG53: 17550 | BI53: 80% | BJ53: 82% | BK53: 77% | BL53: 76% | BN53: 85% | BO53: 88% | BP53: 86% | BQ53: 78% | BS53: 36 | BT53: 31 | BU53: 41 | BV53: 43
A54: 29000 | B54: 348000 | C54: 13700 | D54: 26104 | E54: 81273 | F54: 266727 | H54: 240000 | I54: 260736 | J54: 217392 | L54: 170781 | M54: 184182 | N54: 156142 | O54: 95160 | Q54: 22227 | R54: 14232 | S54: 15349 | T54: 13012 | U54: 7930 | W54: 12617 | X54: 10194 | Y54: 0 | Z54: 40654 | AB54: 0 | AC54: 156142 | AE54: 72% | AF54: 76% | AG54: 68% | AH54: 51% | AJ54: 81% | AK54: 84% | AL54: 80% | AM54: 62% | AO54: 50 | AP54: 43 | AQ54: 58 | AR54: 89 | AT54: 298527 | AU54: 224181 | AV54: 233435 | AW54: 214063 | AX54: 210600 | AZ54: 30922 | BA54: 0 | BC54: 24877 | BD54: 18682 | BE54: 19453 | BF54: 17839 | BG54: 17550 | BI54: 79% | BJ54: 81% | BK54: 76% | BL54: 75% | BN54: 85% | BO54: 87% | BP54: 85% | BQ54: 77% | BS54: 39 | BT54: 34 | BU54: 44 | BV54: 46
A55: 30000 | B55: 360000 | C55: 13200 | D55: 26693 | E55: 84699 | F55: 275301 | H55: 240000 | I55: 260736 | J55: 217392 | L55: 170781 | M55: 184182 | N55: 156142 | O55: 95160 | Q55: 22942 | R55: 14232 | S55: 15349 | T55: 13012 | U55: 7930 | W55: 14019 | X55: 11596 | Y55: 0 | Z55: 42056 | AB55: 0 | AC55: 156142 | AE55: 71% | AF55: 75% | AG55: 67% | AH55: 50% | AJ55: 80% | AK55: 82% | AL55: 80% | AM55: 62% | AO55: 54 | AP55: 47 | AQ55: 62 | AR55: 94 | AT55: 304701 | AU55: 224181 | AV55: 233435 | AW55: 214063 | AX55: 210600 | AZ55: 30922 | BA55: 0 | BC55: 25392 | BD55: 18682 | BE55: 19453 | BF55: 17839 | BG55: 17550 | BI55: 78% | BJ55: 80% | BK55: 75% | BL55: 74% | BN55: 84% | BO55: 86% | BP55: 84% | BQ55: 77% | BS55: 42 | BT55: 37 | BU55: 47 | BV55: 49
A56: 31000 | B56: 372000 | C56: 13200 | D56: 26770 | E56: 88477 | F56: 283523 | H56: 240000 | I56: 260736 | J56: 217392 | L56: 170781 | M56: 184182 | N56: 156142 | O56: 95160 | Q56: 23627 | R56: 14232 | S56: 15349 | T56: 13012 | U56: 7930 | W56: 15420 | X56: 12998 | Y56: 0 | Z56: 43458 | AB56: 0 | AC56: 156142 | AE56: 70% | AF56: 73% | AG56: 66% | AH56: 49% | AJ56: 79% | AK56: 81% | AL56: 79% | AM56: 62% | AO56: 59 | AP56: 52 | AQ56: 66 | AR56: 98 | AT56: 310523 | AU56: 224181 | AV56: 233435 | AW56: 214063 | AX56: 210600 | AZ56: 30922 | BA56: 0 | BC56: 25877 | BD56: 18682 | BE56: 19453 | BF56: 17839 | BG56: 17550 | BI56: 77% | BJ56: 79% | BK56: 74% | BL56: 73% | BN56: 83% | BO56: 85% | BP56: 84% | BQ56: 76% | BS56: 45 | BT56: 40 | BU56: 50 | BV56: 52
A57: 32000 | B57: 384000 | C57: =GRUNDAVDRAG(B57) -> 13200 | D57: =JSA(B57, C57,$B$2) -> 26770 | E57: =(B57-C57)*$B$2-D57+MAX(0,0.2*(B57-$B$11))+MAX(0,0.05*(B57-$B$12)) -> 92331 | F57: 291669 | H57: 240000 | I57: 260736 | J57: 217392 | L57: 170781 | M57: 184182 | N57: 156142 | O57: 95160 | Q57: 24306 | R57: =L57/12 -> 14232 | S57: =M57/12 -> 15349 | T57: 13012 | U57: 7930 | W57: 16822 | X57: 14400 | Y57: 0 | Z57: 44859 | AB57: 0 | AC57: 156142 | AE57: 69% | AF57: 72% | AG57: 65% | AH57: 49% | AJ57: 78% | AK57: 80% | AL57: 78% | AM57: 61% | AO57: 63 | AP57: 56 | AQ57: 71 | AR57: 102 | AT57: =F57+$B$19+MAX(0, $B$18-0.2*MAX(0,(B57-117000))) -> 318669 | AU57: =L57+$B$19+MAX(0, $B$18-0.2*MAX(0,(H57-117000))) -> 224181 | AV57: =M57+$B$19+MAX(0, $B$18-0.2*MAX(0,(I57-117000))) -> 233435 | AW57: 214063 | AX57: 210600 | AZ57: =MAX(0, $B$18-0.2*MAX(0,(J57-117000))) -> 30922 | BA57: =BOSTADSTILLAGG(J57, 7000 * 12 - AZ57) -> 0 | BC57: 26556 | BD57: 18682 | BE57: 19453 | BF57: 17839 | BG57: 17550 | BI57: 75% | BJ57: 78% | BK57: 73% | BL57: 72% | BN57: 82% | BO57: 84% | BP57: 83% | BQ57: 75% | BS57: 49 | BT57: 44 | BU57: 54 | BV57: 56
A58: 33000 | B58: 396000 | C58: 13200 | D58: 26770 | E58: 96185 | F58: 299815 | H58: 240000 | I58: 260736 | J58: 217392 | L58: 170781 | M58: 184182 | N58: 156142 | O58: 95160 | Q58: 24985 | R58: 14232 | S58: 15349 | T58: 13012 | U58: 7930 | W58: 18224 | X58: 15802 | Y58: 0 | Z58: 46261 | AB58: 0 | AC58: 156142 | AE58: =1-($F58-L58)/$B58 -> 67% | AF58: =1-($F58-M58)/$B58 -> 71% | AG58: =1-($F58-AC58)/$B58 -> 64% | AH58: 48% | AJ58: =1-(1-$B$4)*($F58-L58+W58)/((1+$B$3)*$B58) -> 77% | AK58: =1-(1-$B$4)*($F58-M58+X58)/((1+$B$3)*$B58) -> 80% | AL58: 78% | AM58: =1-(1-$B$4)*($F58-O58+Z58)/((1+$B$3)*$B58) -> 61% | AO58: =($Q58-R58)/160 -> 67 | AP58: =($Q58-S58)/160 -> 60 | AQ58: =($Q58-T58)/160 -> 75 | AR58: =($Q58-U58)/160 -> 107 | AT58: 326815 | AU58: 224181 | AV58: 233435 | AW58: 214063 | AX58: 210600 | AZ58: 30922 | BA58: 0 | BC58: 27235 | BD58: 18682 | BE58: 19453 | BF58: 17839 | BG58: 17550 | BI58: =1-($AT58-AU58)/$B58 -> 74% | BJ58: =1-($AT58-AV58)/$B58 -> 76% | BK58: =1-($AT58-AW58)/$B58 -> 72% | BL58: =1-($AT58-AX58)/$B58 -> 71% | BN58: =1-(1-$B$4)*($AT58-AU58+W58)/((1+$B$3)*$B58) -> 81% | BO58: =1-(1-$B$4)*($AT58-AV58+X58)/((1+$B$3)*$B58) -> 83% | BP58: =1-(1-$B$4)*($AT58-AW58+Y58)/((1+$B$3)*$B58) -> 82% | BQ58: =1-(1-$B$4)*($AT58-AX58+Z58)/((1+$B$3)*$B58) -> 75% | BS58: 53 | BT58: 49 | BU58: 59 | BV58: 61
A59: 34000 | B59: 408000 | C59: 13200 | D59: 26770 | E59: 100040 | F59: 307960 | H59: 240000 | I59: 260736 | J59: 217392 | L59: 170781 | M59: 184182 | N59: 156142 | O59: 95160 | Q59: 25663 | R59: 14232 | S59: 15349 | T59: 13012 | U59: 7930 | W59: 19626 | X59: 17204 | Y59: 0 | Z59: 47663 | AB59: 0 | AC59: 156142 | AE59: 66% | AF59: 70% | AG59: 63% | AH59: 48% | AJ59: 76% | AK59: 79% | AL59: 77% | AM59: 61% | AO59: 71 | AP59: 64 | AQ59: 79 | AR59: 111 | AT59: 334960 | AU59: 224181 | AV59: 233435 | AW59: 214063 | AX59: 210600 | AZ59: 30922 | BA59: 0 | BC59: 27913 | BD59: 18682 | BE59: 19453 | BF59: 17839 | BG59: 17550 | BI59: 73% | BJ59: 75% | BK59: 70% | BL59: 70% | BN59: 80% | BO59: 82% | BP59: 82% | BQ59: 74% | BS59: 58 | BT59: 53 | BU59: 63 | BV59: 65
A60: 35000 | B60: 420000 | C60: 13200 | D60: 26770 | E60: 103894 | F60: 316106 | H60: 240000 | I60: 260736 | J60: 217392 | L60: 170781 | M60: 184182 | N60: 156142 | O60: 95160 | Q60: 26342 | R60: 14232 | S60: 15349 | T60: 13012 | U60: 7930 | W60: 21028 | X60: 18605 | Y60: 0 | Z60: 49065 | AB60: 0 | AC60: 156142 | AE60: 65% | AF60: 69% | AG60: 62% | AH60: 47% | AJ60: 76% | AK60: 78% | AL60: 77% | AM60: 60% | AO60: 76 | AP60: 69 | AQ60: 83 | AR60: 115 | AT60: 343106 | AU60: 224181 | AV60: 233435 | AW60: 214063 | AX60: 210600 | AZ60: 30922 | BA60: 0 | BC60: 28592 | BD60: 18682 | BE60: 19453 | BF60: 17839 | BG60: 17550 | BI60: 72% | BJ60: 74% | BK60: 69% | BL60: 68% | BN60: 79% | BO60: 81% | BP60: 81% | BQ60: 73% | BS60: 62 | BT60: 57 | BU60: 67 | BV60: 69
A61: 36000 | B61: 432000 | C61: 13200 | D61: 26770 | E61: 107749 | F61: 324251 | H61: 240000 | I61: 260736 | J61: 217392 | L61: 170781 | M61: 184182 | N61: 156142 | O61: 95160 | Q61: 27021 | R61: 14232 | S61: 15349 | T61: 13012 | U61: 7930 | W61: 22430 | X61: 20007 | Y61: 0 | Z61: 50467 | AB61: 0 | AC61: 156142 | AE61: 64% | AF61: 68% | AG61: 61% | AH61: 47% | AJ61: 75% | AK61: 77% | AL61: 76% | AM61: 60% | AO61: 80 | AP61: 73 | AQ61: 88 | AR61: 119 | AT61: 351251 | AU61: 224181 | AV61: 233435 | AW61: 214063 | AX61: 210600 | AZ61: 30922 | BA61: 0 | BC61: 29271 | BD61: 18682 | BE61: 19453 | BF61: 17839 | BG61: 17550 | BI61: 71% | BJ61: 73% | BK61: 68% | BL61: 67% | BN61: 79% | BO61: 80% | BP61: 80% | BQ61: 73% | BS61: 66 | BT61: 61 | BU61: 71 | BV61: 73
A62: 37000 | B62: 444000 | C62: 13200 | D62: 26770 | E62: 111603 | F62: 332397 | H62: 240000 | I62: 260736 | J62: 217392 | L62: 170781 | M62: 184182 | N62: 156142 | O62: 95160 | Q62: 27700 | R62: 14232 | S62: 15349 | T62: 13012 | U62: 7930 | W62: 23832 | X62: 21409 | Y62: 0 | Z62: 51869 | AB62: 0 | AC62: 156142 | AE62: 64% | AF62: 67% | AG62: 60% | AH62: 47% | AJ62: 74% | AK62: 76% | AL62: 76% | AM62: 60% | AO62: 84 | AP62: 77 | AQ62: 92 | AR62: 124 | AT62: 359397 | AU62: 224181 | AV62: 233435 | AW62: 214063 | AX62: 210600 | AZ62: 30922 | BA62: 0 | BC62: 29950 | BD62: 18682 | BE62: 19453 | BF62: 17839 | BG62: 17550 | BI62: 70% | BJ62: 72% | BK62: 67% | BL62: 66% | BN62: 78% | BO62: 80% | BP62: 80% | BQ62: 72% | BS62: 70 | BT62: 66 | BU62: 76 | BV62: 77
A63: 38000 | B63: 456000 | C63: 13200 | D63: 26770 | E63: 116237 | F63: 339763 | H63: 240000 | I63: 260736 | J63: 217392 | L63: 170781 | M63: 184182 | N63: 156142 | O63: 95160 | Q63: 28314 | R63: 14232 | S63: 15349 | T63: 13012 | U63: 7930 | W63: 25233 | X63: 22811 | Y63: 0 | Z63: 53271 | AB63: 0 | AC63: 156142 | AE63: 63% | AF63: 66% | AG63: 60% | AH63: 46% | AJ63: 74% | AK63: 76% | AL63: 75% | AM63: 60% | AO63: 88 | AP63: 81 | AQ63: 96 | AR63: 127 | AT63: 366763 | AU63: 224181 | AV63: 233435 | AW63: 214063 | AX63: 210600 | AZ63: 30922 | BA63: 0 | BC63: 30564 | BD63: 18682 | BE63: 19453 | BF63: 17839 | BG63: 17550 | BI63: 69% | BJ63: 71% | BK63: 67% | BL63: 66% | BN63: 77% | BO63: 79% | BP63: 79% | BQ63: 72% | BS63: 74 | BT63: 69 | BU63: 80 | BV63: 81
A64: 39000 | B64: 468000 | C64: 13200 | D64: 26770 | E64: 122492 | F64: 345508 | H64: 240000 | I64: 260736 | J64: 217392 | L64: 170781 | M64: 184182 | N64: 156142 | O64: 95160 | Q64: 28792 | R64: 14232 | S64: 15349 | T64: 13012 | U64: 7930 | W64: 26635 | X64: 24213 | Y64: 0 | Z64: 54672 | AB64: 0 | AC64: 156142 | AE64: 63% | AF64: 66% | AG64: 60% | AH64: 47% | AJ64: 73% | AK64: 76% | AL64: 75% | AM64: 60% | AO64: 91 | AP64: 84 | AQ64: 99 | AR64: 130 | AT64: 372508 | AU64: 224181 | AV64: 233435 | AW64: 214063 | AX64: 210600 | AZ64: 30922 | BA64: 0 | BC64: 31042 | BD64: 18682 | BE64: 19453 | BF64: 17839 | BG64: 17550 | BI64: 68% | BJ64: 70% | BK64: 66% | BL64: 65% | BN64: 77% | BO64: 78% | BP64: 79% | BQ64: 71% | BS64: 77 | BT64: 72 | BU64: 83 | BV64: 84
A65: 40000 | B65: 480000 | C65: 13200 | D65: 26770 | E65: 128746 | F65: 351254 | H65: 240000 | I65: 260736 | J65: 217392 | L65: 170781 | M65: 184182 | N65: 156142 | O65: 95160 | Q65: 29271 | R65: 14232 | S65: 15349 | T65: 13012 | U65: 7930 | W65: 28037 | X65: 25615 | Y65: 0 | Z65: 56074 | AB65: 0 | AC65: 156142 | AE65: 62% | AF65: 65% | AG65: 59% | AH65: 47% | AJ65: 73% | AK65: 75% | AL65: 75% | AM65: 60% | AO65: 94 | AP65: 87 | AQ65: 102 | AR65: 133 | AT65: 378254 | AU65: 224181 | AV65: 233435 | AW65: 214063 | AX65: 210600 | AZ65: 30922 | BA65: 0 | BC65: 31521 | BD65: 18682 | BE65: 19453 | BF65: 17839 | BG65: 17550 | BI65: 68% | BJ65: 70% | BK65: 66% | BL65: 65% | BN65: 77% | BO65: 78% | BP65: 79% | BQ65: 71% | BS65: 80 | BT65: 75 | BU65: 86 | BV65: 87
A66: 41000 | B66: 492000 | C66: 13200 | D66: 26770 | E66: 135001 | F66: 356999 | H66: 240000 | I66: 260736 | J66: 217392 | L66: 170781 | M66: 184182 | N66: 156142 | O66: 95160 | Q66: 29750 | R66: 14232 | S66: 15349 | T66: 13012 | U66: 7930 | W66: 29439 | X66: 27017 | Y66: 0 | Z66: 57476 | AB66: 0 | AC66: 156142 | AE66: 62% | AF66: 65% | AG66: 59% | AH66: 47% | AJ66: 73% | AK66: 75% | AL66: 75% | AM66: 60% | AO66: 97 | AP66: 90 | AQ66: 105 | AR66: 136 | AT66: 383999 | AU66: 224181 | AV66: 233435 | AW66: 214063 | AX66: 210600 | AZ66: 30922 | BA66: 0 | BC66: 32000 | BD66: 18682 | BE66: 19453 | BF66: 17839 | BG66: 17550 | BI66: 68% | BJ66: 69% | BK66: 65% | BL66: 65% | BN66: 76% | BO66: 78% | BP66: 79% | BQ66: 71% | BS66: 83 | BT66: 78 | BU66: 89 | BV66: 90
A67: 42000 | B67: 504000 | C67: 13200 | D67: 26770 | E67: 141255 | F67: 362745 | H67: 240000 | I67: 260736 | J67: 217392 | L67: 170781 | M67: 184182 | N67: 156142 | O67: 95160 | Q67: 30229 | R67: 14232 | S67: 15349 | T67: 13012 | U67: 7930 | W67: 29942 | X67: 27520 | Y67: 0 | Z67: 57979 | AB67: 0 | AC67: 156142 | AE67: 62% | AF67: 65% | AG67: 59% | AH67: 47% | AJ67: 73% | AK67: 75% | AL67: 75% | AM67: 60% | AO67: 100 | AP67: 93 | AQ67: 108 | AR67: 139 | AT67: 389745 | AU67: 224181 | AV67: 233435 | AW67: 214063 | AX67: 210600 | AZ67: 30922 | BA67: 0 | BC67: 32479 | BD67: 18682 | BE67: 19453 | BF67: 17839 | BG67: 17550 | BI67: 67% | BJ67: 69% | BK67: 65% | BL67: 64% | BN67: 76% | BO67: 78% | BP67: 79% | BQ67: 71% | BS67: 86 | BT67: 81 | BU67: 92 | BV67: 93
A68: 43000 | B68: 516000 | C68: 13200 | D68: 26770 | E68: 147509 | F68: 368491 | H68: 240000 | I68: 260736 | J68: 217392 | L68: 170781 | M68: 184182 | N68: 156142 | O68: 95160 | Q68: 30708 | R68: 14232 | S68: 15349 | T68: 13012 | U68: 7930 | W68: 29942 | X68: 27520 | Y68: 0 | Z68: 57979 | AB68: 0 | AC68: 156142 | AE68: 62% | AF68: 64% | AG68: 59% | AH68: 47% | AJ68: 73% | AK68: 75% | AL68: 75% | AM68: 60% | AO68: 103 | AP68: 96 | AQ68: 111 | AR68: 142 | AT68: 395491 | AU68: 224181 | AV68: 233435 | AW68: 214063 | AX68: 210600 | AZ68: 30922 | BA68: 0 | BC68: 32958 | BD68: 18682 | BE68: 19453 | BF68: 17839 | BG68: 17550 | BI68: 67% | BJ68: 69% | BK68: 65% | BL68: 64% | BN68: 76% | BO68: 77% | BP68: 78% | BQ68: 71% | BS68: 89 | BT68: 84 | BU68: 94 | BV68: 96
A69: 44000 | B69: 528000 | C69: 13200 | D69: 26770 | E69: 153764 | F69: 374236 | H69: 240000 | I69: 260736 | J69: 217392 | L69: 170781 | M69: 184182 | N69: 156142 | O69: 95160 | Q69: 31186 | R69: 14232 | S69: 15349 | T69: 13012 | U69: 7930 | W69: 29942 | X69: 27520 | Y69: 0 | Z69: 57979 | AB69: 0 | AC69: 156142 | AE69: 61% | AF69: 64% | AG69: 59% | AH69: 47% | AJ69: 73% | AK69: 75% | AL69: 75% | AM69: 61% | AO69: 106 | AP69: 99 | AQ69: 114 | AR69: 145 | AT69: 401236 | AU69: 224181 | AV69: 233435 | AW69: 214063 | AX69: 210600 | AZ69: 30922 | BA69: 0 | BC69: 33436 | BD69: 18682 | BE69: 19453 | BF69: 17839 | BG69: 17550 | BI69: 66% | BJ69: 68% | BK69: 65% | BL69: 64% | BN69: 76% | BO69: 77% | BP69: 78% | BQ69: 71% | BS69: 92 | BT69: 87 | BU69: 97 | BV69: 99
A70: 45000 | B70: 540000 | C70: 13200 | D70: 26770 | E70: 160018 | F70: 379982 | H70: 240000 | I70: 260736 | J70: 217392 | L70: 170781 | M70: 184182 | N70: 156142 | O70: 95160 | Q70: 31665 | R70: 14232 | S70: 15349 | T70: 13012 | U70: 7930 | W70: 29942 | X70: 27520 | Y70: 0 | Z70: 57979 | AB70: 0 | AC70: 156142 | AE70: 61% | AF70: 64% | AG70: 59% | AH70: 47% | AJ70: 73% | AK70: 75% | AL70: 74% | AM70: 61% | AO70: 109 | AP70: 102 | AQ70: 117 | AR70: 148 | AT70: 406982 | AU70: 224181 | AV70: 233435 | AW70: 214063 | AX70: 210600 | AZ70: 30922 | BA70: 0 | BC70: 33915 | BD70: 18682 | BE70: 19453 | BF70: 17839 | BG70: 17550 | BI70: 66% | BJ70: 68% | BK70: 64% | BL70: 64% | BN70: 76% | BO70: 77% | BP70: 78% | BQ70: 71% | BS70: 95 | BT70: 90 | BU70: 100 | BV70: 102
A71: 46000 | B71: 552000 | C71: 13200 | D71: 26770 | E71: 166273 | F71: 385727 | H71: 240000 | I71: 260736 | J71: 217392 | L71: 170781 | M71: 184182 | N71: 156142 | O71: 95160 | Q71: 32144 | R71: 14232 | S71: 15349 | T71: 13012 | U71: 7930 | W71: 29942 | X71: 27520 | Y71: 0 | Z71: 57979 | AB71: 0 | AC71: 156142 | AE71: 61% | AF71: 63% | AG71: 58% | AH71: 47% | AJ71: 73% | AK71: 74% | AL71: 74% | AM71: 61% | AO71: 112 | AP71: 105 | AQ71: 120 | AR71: 151 | AT71: 412727 | AU71: 224181 | AV71: 233435 | AW71: 214063 | AX71: 210600 | AZ71: 30922 | BA71: 0 | BC71: 34394 | BD71: 18682 | BE71: 19453 | BF71: 17839 | BG71: 17550 | BI71: 66% | BJ71: 68% | BK71: 64% | BL71: 63% | BN71: 76% | BO71: 77% | BP71: 78% | BQ71: 71% | BS71: 98 | BT71: 93 | BU71: 103 | BV71: 105
A72: 47000 | B72: 564000 | C72: 13200 | D72: 26770 | E72: 172527 | F72: 391473 | H72: 240000 | I72: 260736 | J72: 217392 | L72: 170781 | M72: 184182 | N72: 156142 | O72: 95160 | Q72: 32623 | R72: 14232 | S72: 15349 | T72: 13012 | U72: 7930 | W72: 29942 | X72: 27520 | Y72: 0 | Z72: 57979 | AB72: 0 | AC72: 156142 | AE72: 61% | AF72: 63% | AG72: 58% | AH72: 47% | AJ72: 73% | AK72: 74% | AL72: 74% | AM72: 61% | AO72: 115 | AP72: 108 | AQ72: 123 | AR72: 154 | AT72: 418473 | AU72: 224181 | AV72: 233435 | AW72: 214063 | AX72: 210600 | AZ72: 30922 | BA72: 0 | BC72: 34873 | BD72: 18682 | BE72: 19453 | BF72: 17839 | BG72: 17550 | BI72: 66% | BJ72: 67% | BK72: 64% | BL72: 63% | BN72: 75% | BO72: 77% | BP72: 78% | BQ72: 71% | BS72: 101 | BT72: 96 | BU72: 106 | BV72: 108
A73: 48000 | B73: 576000 | C73: 13200 | D73: 26770 | E73: 178781 | F73: 397219 | H73: 240000 | I73: 260736 | J73: 217392 | L73: 170781 | M73: 184182 | N73: 156142 | O73: 95160 | Q73: 33102 | R73: 14232 | S73: 15349 | T73: 13012 | U73: 7930 | W73: 29942 | X73: 27520 | Y73: 0 | Z73: 57979 | AB73: 0 | AC73: 156142 | AE73: 61% | AF73: 63% | AG73: 58% | AH73: 48% | AJ73: 73% | AK73: 74% | AL73: 74% | AM73: 61% | AO73: 118 | AP73: 111 | AQ73: 126 | AR73: 157 | AT73: 424219 | AU73: 224181 | AV73: 233435 | AW73: 214063 | AX73: 210600 | AZ73: 30922 | BA73: 0 | BC73: 35352 | BD73: 18682 | BE73: 19453 | BF73: 17839 | BG73: 17550 | BI73: 65% | BJ73: 67% | BK73: 64% | BL73: 63% | BN73: 75% | BO73: 77% | BP73: 78% | BQ73: 71% | BS73: 104 | BT73: 99 | BU73: 109 | BV73: 111
A74: 49000 | B74: 588000 | C74: 13200 | D74: 26770 | E74: 185036 | F74: 402964 | H74: 240000 | I74: 260736 | J74: 217392 | L74: 170781 | M74: 184182 | N74: 156142 | O74: 95160 | Q74: 33580 | R74: 14232 | S74: 15349 | T74: 13012 | U74: 7930 | W74: 29942 | X74: 27520 | Y74: 0 | Z74: 57979 | AB74: 0 | AC74: 156142 | AE74: 61% | AF74: 63% | AG74: 58% | AH74: 48% | AJ74: 73% | AK74: 74% | AL74: 74% | AM74: 62% | AO74: 121 | AP74: 114 | AQ74: 129 | AR74: 160 | AT74: 429964 | AU74: 224181 | AV74: 233435 | AW74: 214063 | AX74: 210600 | AZ74: 30922 | BA74: 0 | BC74: 35830 | BD74: 18682 | BE74: 19453 | BF74: 17839 | BG74: 17550 | BI74: 65% | BJ74: 67% | BK74: 63% | BL74: 63% | BN74: 75% | BO74: 77% | BP74: 77% | BQ74: 71% | BS74: 107 | BT74: 102 | BU74: 112 | BV74: 114
A75: 50000 | B75: 600000 | C75: 13200 | D75: 26770 | E75: 191290 | F75: 408710 | H75: 240000 | I75: 260736 | J75: 217392 | L75: 170781 | M75: 184182 | N75: 156142 | O75: 95160 | Q75: 34059 | R75: 14232 | S75: 15349 | T75: 13012 | U75: 7930 | W75: 29942 | X75: 27520 | Y75: 0 | Z75: 57979 | AB75: =BOSTADSTILLAGG(J75, 4000 * 12) -> 0 | AC75: 156142 | AE75: 60% | AF75: 63% | AG75: 58% | AH75: 48% | AJ75: 72% | AK75: 74% | AL75: 74% | AM75: 62% | AO75: 124 | AP75: 117 | AQ75: 132 | AR75: 163 | AT75: 435710 | AU75: 224181 | AV75: 233435 | AW75: 214063 | AX75: 210600 | AZ75: 30922 | BA75: 0 | BC75: 36309 | BD75: 18682 | BE75: 19453 | BF75: 17839 | BG75: 17550 | BI75: 65% | BJ75: 66% | BK75: 63% | BL75: 62% | BN75: 75% | BO75: 76% | BP75: 77% | BQ75: 71% | BS75: 110 | BT75: 105 | BU75: 115 | BV75: 117

Sheet Exempel
B1: Arbete | C1: A-kassa | D1: Skillnad | E1: % av arbetsgivarens kostnad
A2: Arbetsgivarens kostnad | B2: =-B3+B4 -> 28,912 | D2: =B2-C2 -> 28,912
A3: Arbetsgivaravgift | B3: =-0.3142*B4 -> -6,912
A4: Inkomst före skatt | B4: 22,000 | C4: =0.8*B4 -> 17,600
A5: Kommunalskatt | B5: -6,475 | C5: =C7-C4 -> -4,920
A6: Jobbskatteavdrag | B6: 1,701
A7: Inkomst efter skatt | B7: =B4+B5+B6 -> 17,226 | C7: =Deltagandeskatter!R47 -> 12,680
A8: Pensionsavsättning | B8: =B4*Deltagandeskatter!$B$14*(1-Deltagandeskatter!$B$2) -> 2,570 | C8: =C4*Deltagandeskatter!$B$14*(1-Deltagandeskatter!$B$2) -> 2,056
A9: Konsumtionsskatter | B9: =-(B7+B8)*Deltagandeskatter!$B$4 -> -3,761 | C9: =-(C7+C8)*Deltagandeskatter!$B$4 -> -2,800
A10: Kvar efter alla skatter | B10: =B7+B8+B9 -> 16,035 | C10: =C7+C8+C9 -> 11,936 | D10: =B10-C10 -> 4,098 | E10: =D10/D2 -> 14%
A11: Intäkt/kostnad för staten | B11: =-B3-B5-B6-B8-B9 -> 12,878 | C11: =-C4-C5-C8-C9 -> -11,936 | D11: =B11-C11 -> 24,814 | E11: =D11/D2 -> 86%
A13: Snittskatt | B13: =(-B3-B5-B6-B9-0.19*B8)/B2 -> 52%
A14: Snittskatt (justerat för pension) | B14: =1-B10/B2 -> 45%

Sheet Ersättningsnivåer
A1: Bidragssystem | B1: Ersättningsnivå | C1: Golv | D1: Tak
A2: A-kassa | B2: 80% | C2: =Deltagandeskatter!B5 -> 96000 | D2: =Deltagandeskatter!B6 -> 240000
A3: Sjukpenning | B3: =0.8*0.97 -> 77.6% | D3: =B3*Deltagandeskatter!B8 -> 260736
A4: Sjukersättning | B4: 64.7% | C4: =Deltagandeskatter!B9 -> 109760 | D4: =B4*Deltagandeskatter!B8 -> 217392
A5: Försörjningsstöd | C5: =Deltagandeskatter!B10 -> 95160

Sheet Med bidragsinkomst
D2: Inkomstskatt vid olika bidragsinkomst | K2: JSA vid olika bidragsinkomst | R2: Grundavdrag vid olika bidragsinkomst | Y2: Skatt på arbete vid olika bidragsinkomst | AF2: Marginalskatt på arbete vid olika bidragsinkomst
A3: Månadslön | B3: Årslön | D3: 0 | E3: 50000 | F3: 100000 | G3: 130000 | H3: 150000 | I3: 200000 | K3: 0 | L3: 50000 | M3: 100000 | N3: 130000 | O3: 150000 | P3: 200000 | R3: 0 | S3: 50000 | T3: 100000 | U3: 130000 | V3: 150000 | W3: 200000 | Y3: 0 | Z3: 50000 | AA3: 100000 | AB3: 130000 | AC3: 150000 | AD3: 200000 | AF3: 0 | AG3: 50000 | AH3: 100000 | AI3: 130000 | AJ3: 150000 | AK3: 200000
A4: =B4/12 -> 0 | B4: 0 | D4: =Deltagandeskatter!$B$2*('Med bidragsinkomst'!$B4+'Med bidragsinkomst'!D$3-GRUNDAVDRAG('Med bidragsinkomst'!$B4+'Med bidragsinkomst'!D$3))-JSA($B4,GRUNDAVDRAG($B4+D$3),Deltagandeskatter!$B$2)+MAX(0,0.2*($B4+D$3-Deltagandeskatter!$B$11))+MAX(0,0.05*('Med bidragsinkomst'!$B4+'Med bidragsinkomst'!D$3-Deltagandeskatter!$B$12)) -> 0 | E4: =Deltagandeskatter!$B$2*('Med bidragsinkomst'!$B4+'Med bidragsinkomst'!E$3-GRUNDAVDRAG('Med bidragsinkomst'!$B4+'Med bidragsinkomst'!E$3))-JSA($B4,GRUNDAVDRAG($B4+E$3),Deltagandeskatter!$B$2)+MAX(0,0.2*($B4+E$3-Deltagandeskatter!$B$11))+MAX(0,0.05*('Med bidragsinkomst'!$B4+'Med bidragsinkomst'!E$3-Deltagandeskatter!$B$12)) -> 9604 | F4: =Deltagandeskatter!$B$2*('Med bidragsinkomst'!$B4+'Med bidragsinkomst'!F$3-GRUNDAVDRAG('Med bidragsinkomst'!$B4+'Med bidragsinkomst'!F$3))-JSA($B4,GRUNDAVDRAG($B4+F$3),Deltagandeskatter!$B$2)+MAX(0,0.2*($B4+F$3-Deltagandeskatter!$B$11))+MAX(0,0.05*('Med bidragsinkomst'!$B4+'Med bidragsinkomst'!F$3-Deltagandeskatter!$B$12)) -> 22452 | G4: =Deltagandeskatter!$B$2*('Med bidragsinkomst'!$B4+'Med bidragsinkomst'!G$3-GRUNDAVDRAG('Med bidragsinkomst'!$B4+'Med bidragsinkomst'!G$3))-JSA($B4,GRUNDAVDRAG($B4+G$3),Deltagandeskatter!$B$2)+MAX(0,0.2*($B4+G$3-Deltagandeskatter!$B$11))+MAX(0,0.05*('Med bidragsinkomst'!$B4+'Med bidragsinkomst'!G$3-Deltagandeskatter!$B$12)) -> 30675 | H4: =Deltagandeskatter!$B$2*('Med bidragsinkomst'!$B4+'Med bidragsinkomst'!H$3-GRUNDAVDRAG('Med bidragsinkomst'!$B4+'Med bidragsinkomst'!H$3))-JSA($B4,GRUNDAVDRAG($B4+H$3),Deltagandeskatter!$B$2)+MAX(0,0.2*($B4+H$3-Deltagandeskatter!$B$11))+MAX(0,0.05*('Med bidragsinkomst'!$B4+'Med bidragsinkomst'!H$3-Deltagandeskatter!$B$12)) -> 37420 | I4: =Deltagandeskatter!$B$2*('Med bidragsinkomst'!$B4+'Med bidragsinkomst'!I$3-GRUNDAVDRAG('Med bidragsinkomst'!$B4+'Med bidragsinkomst'!I$3))-JSA($B4,GRUNDAVDRAG($B4+I$3),Deltagandeskatter!$B$2)+MAX(0,0.2*($B4+I$3-Deltagandeskatter!$B$11))+MAX(0,0.05*('Med bidragsinkomst'!$B4+'Med bidragsinkomst'!I$3-Deltagandeskatter!$B$12)) -> 55086 | K4: =JSA($B4,GRUNDAVDRAG($B4+K$3),Deltagandeskatter!$B$2) -> 0 | L4: =JSA($B4,GRUNDAVDRAG($B4+L$3),Deltagandeskatter!$B$2) -> 0 | M4: =JSA($B4,GRUNDAVDRAG($B4+M$3),Deltagandeskatter!$B$2) -> 0 | N4: =JSA($B4,GRUNDAVDRAG($B4+N$3),Deltagandeskatter!$B$2) -> 0 | O4: =JSA($B4,GRUNDAVDRAG($B4+O$3),Deltagandeskatter!$B$2) -> 0 | P4: =JSA($B4,GRUNDAVDRAG($B4+P$3),Deltagandeskatter!$B$2) -> 0 | R4: =GRUNDAVDRAG($B4+R$3) -> 0 | S4: =GRUNDAVDRAG($B4+S$3) -> 20100 | T4: 30100 | U4: 34500 | V4: 33500 | W4: 28500 | Y4: =D4-D$4 -> 0 | Z4: 0 | AA4: 0 | AB4: 0 | AC4: 0 | AD4: 0
A5: =B5/12 -> 83 | B5: 1000 | D5: =Deltagandeskatter!$B$2*('Med bidragsinkomst'!$B5+'Med bidragsinkomst'!D$3-GRUNDAVDRAG('Med bidragsinkomst'!$B5+'Med bidragsinkomst'!D$3))-JSA($B5,GRUNDAVDRAG($B5+D$3),Deltagandeskatter!$B$2)+MAX(0,0.2*($B5+D$3-Deltagandeskatter!$B$11))+MAX(0,0.05*('Med bidragsinkomst'!$B5+'Med bidragsinkomst'!D$3-Deltagandeskatter!$B$12)) -> 0 | E5: =Deltagandeskatter!$B$2*('Med bidragsinkomst'!$B5+'Med bidragsinkomst'!E$3-GRUNDAVDRAG('Med bidragsinkomst'!$B5+'Med bidragsinkomst'!E$3))-JSA($B5,GRUNDAVDRAG($B5+E$3),Deltagandeskatter!$B$2)+MAX(0,0.2*($B5+E$3-Deltagandeskatter!$B$11))+MAX(0,0.05*('Med bidragsinkomst'!$B5+'Med bidragsinkomst'!E$3-Deltagandeskatter!$B$12)) -> 9861 | F5: =Deltagandeskatter!$B$2*('Med bidragsinkomst'!$B5+'Med bidragsinkomst'!F$3-GRUNDAVDRAG('Med bidragsinkomst'!$B5+'Med bidragsinkomst'!F$3))-JSA($B5,GRUNDAVDRAG($B5+F$3),Deltagandeskatter!$B$2)+MAX(0,0.2*($B5+F$3-Deltagandeskatter!$B$11))+MAX(0,0.05*('Med bidragsinkomst'!$B5+'Med bidragsinkomst'!F$3-Deltagandeskatter!$B$12)) -> 22709 | G5: =Deltagandeskatter!$B$2*('Med bidragsinkomst'!$B5+'Med bidragsinkomst'!G$3-GRUNDAVDRAG('Med bidragsinkomst'!$B5+'Med bidragsinkomst'!G$3))-JSA($B5,GRUNDAVDRAG($B5+G$3),Deltagandeskatter!$B$2)+MAX(0,0.2*($B5+G$3-Deltagandeskatter!$B$11))+MAX(0,0.05*('Med bidragsinkomst'!$B5+'Med bidragsinkomst'!G$3-Deltagandeskatter!$B$12)) -> 30996 | H5: =Deltagandeskatter!$B$2*('Med bidragsinkomst'!$B5+'Med bidragsinkomst'!H$3-GRUNDAVDRAG('Med bidragsinkomst'!$B5+'Med bidragsinkomst'!H$3))-JSA($B5,GRUNDAVDRAG($B5+H$3),Deltagandeskatter!$B$2)+MAX(0,0.2*($B5+H$3-Deltagandeskatter!$B$11))+MAX(0,0.05*('Med bidragsinkomst'!$B5+'Med bidragsinkomst'!H$3-Deltagandeskatter!$B$12)) -> 37773 | I5: =Deltagandeskatter!$B$2*('Med bidragsinkomst'!$B5+'Med bidragsinkomst'!I$3-GRUNDAVDRAG('Med bidragsinkomst'!$B5+'Med bidragsinkomst'!I$3))-JSA($B5,GRUNDAVDRAG($B5+I$3),Deltagandeskatter!$B$2)+MAX(0,0.2*($B5+I$3-Deltagandeskatter!$B$11))+MAX(0,0.05*('Med bidragsinkomst'!$B5+'Med bidragsinkomst'!I$3-Deltagandeskatter!$B$12)) -> 55439 | K5: =JSA($B5,GRUNDAVDRAG($B5+K$3),Deltagandeskatter!$B$2) -> 0 | L5: =JSA($B5,GRUNDAVDRAG($B5+L$3),Deltagandeskatter!$B$2) -> 0 | M5: =JSA($B5,GRUNDAVDRAG($B5+M$3),Deltagandeskatter!$B$2) -> 0 | N5: =JSA($B5,GRUNDAVDRAG($B5+N$3),Deltagandeskatter!$B$2) -> 0 | O5: =JSA($B5,GRUNDAVDRAG($B5+O$3),Deltagandeskatter!$B$2) -> 0 | P5: =JSA($B5,GRUNDAVDRAG($B5+P$3),Deltagandeskatter!$B$2) -> 0 | R5: =GRUNDAVDRAG($B5+R$3) -> 1000 | S5: 20300 | T5: 30300 | U5: 34500 | V5: 33400 | W5: 28400 | Y5: =D5-D$4 -> 0 | Z5: =E5-E$4 -> 257 | AA5: =F5-F$4 -> 257 | AB5: =G5-G$4 -> 321 | AC5: =H5-H$4 -> 353 | AD5: =I5-I$4 -> 353 | AF5: =(Y5-Y4)/($B5-$B4) -> 0% | AG5: =(Z5-Z4)/($B5-$B4) -> 26% | AH5: 26% | AI5: 32% | AJ5: 35% | AK5: 35%
A6: 167 | B6: 2000 | D6: =Deltagandeskatter!$B$2*('Med bidragsinkomst'!$B6+'Med bidragsinkomst'!D$3-GRUNDAVDRAG('Med bidragsinkomst'!$B6+'Med bidragsinkomst'!D$3))-JSA($B6,GRUNDAVDRAG($B6+D$3),Deltagandeskatter!$B$2)+MAX(0,0.2*($B6+D$3-Deltagandeskatter!$B$11))+MAX(0,0.05*('Med bidragsinkomst'!$B6+'Med bidragsinkomst'!D$3-Deltagandeskatter!$B$12)) -> 0 | E6: =Deltagandeskatter!$B$2*('Med bidragsinkomst'!$B6+'Med bidragsinkomst'!E$3-GRUNDAVDRAG('Med bidragsinkomst'!$B6+'Med bidragsinkomst'!E$3))-JSA($B6,GRUNDAVDRAG($B6+E$3),Deltagandeskatter!$B$2)+MAX(0,0.2*($B6+E$3-Deltagandeskatter!$B$11))+MAX(0,0.05*('Med bidragsinkomst'!$B6+'Med bidragsinkomst'!E$3-Deltagandeskatter!$B$12)) -> 10118 | F6: =Deltagandeskatter!$B$2*('Med bidragsinkomst'!$B6+'Med bidragsinkomst'!F$3-GRUNDAVDRAG('Med bidragsinkomst'!$B6+'Med bidragsinkomst'!F$3))-JSA($B6,GRUNDAVDRAG($B6+F$3),Deltagandeskatter!$B$2)+MAX(0,0.2*($B6+F$3-Deltagandeskatter!$B$11))+MAX(0,0.05*('Med bidragsinkomst'!$B6+'Med bidragsinkomst'!F$3-Deltagandeskatter!$B$12)) -> 22966 | G6: =Deltagandeskatter!$B$2*('Med bidragsinkomst'!$B6+'Med bidragsinkomst'!G$3-GRUNDAVDRAG('Med bidragsinkomst'!$B6+'Med bidragsinkomst'!G$3))-JSA($B6,GRUNDAVDRAG($B6+G$3),Deltagandeskatter!$B$2)+MAX(0,0.2*($B6+G$3-Deltagandeskatter!$B$11))+MAX(0,0.05*('Med bidragsinkomst'!$B6+'Med bidragsinkomst'!G$3-Deltagandeskatter!$B$12)) -> 31317 | H6: =Deltagandeskatter!$B$2*('Med bidragsinkomst'!$B6+'Med bidragsinkomst'!H$3-GRUNDAVDRAG('Med bidragsinkomst'!$B6+'Med bidragsinkomst'!H$3))-JSA($B6,GRUNDAVDRAG($B6+H$3),Deltagandeskatter!$B$2)+MAX(0,0.2*($B6+H$3-Deltagandeskatter!$B$11))+MAX(0,0.05*('Med bidragsinkomst'!$B6+'Med bidragsinkomst'!H$3-Deltagandeskatter!$B$12)) -> 38126 | I6: =Deltagandeskatter!$B$2*('Med bidragsinkomst'!$B6+'Med bidragsinkomst'!I$3-GRUNDAVDRAG('Med bidragsinkomst'!$B6+'Med bidragsinkomst'!I$3))-JSA($B6,GRUNDAVDRAG($B6+I$3),Deltagandeskatter!$B$2)+MAX(0,0.2*($B6+I$3-Deltagandeskatter!$B$11))+MAX(0,0.05*('Med bidragsinkomst'!$B6+'Med bidragsinkomst'!I$3-Deltagandeskatter!$B$12)) -> 55792 | K6: =JSA($B6,GRUNDAVDRAG($B6+K$3),Deltagandeskatter!$B$2) -> 0 | L6: =JSA($B6,GRUNDAVDRAG($B6+L$3),Deltagandeskatter!$B$2) -> 0 | M6: =JSA($B6,GRUNDAVDRAG($B6+M$3),Deltagandeskatter!$B$2) -> 0 | N6: =JSA($B6,GRUNDAVDRAG($B6+N$3),Deltagandeskatter!$B$2) -> 0 | O6: =JSA($B6,GRUNDAVDRAG($B6+O$3),Deltagandeskatter!$B$2) -> 0 | P6: =JSA($B6,GRUNDAVDRAG($B6+P$3),Deltagandeskatter!$B$2) -> 0 | R6: 2000 | S6: 20500 | T6: 30500 | U6: 34500 | V6: 33300 | W6: 28300 | Y6: 0 | Z6: 514 | AA6: 514 | AB6: 642 | AC6: 707 | AD6: 707 | AF6: =(Y6-Y5)/($B6-$B5) -> 0% | AG6: =(Z6-Z5)/($B6-$B5) -> 26% | AH6: =(AA6-AA5)/($B6-$B5) -> 26% | AI6: =(AB6-AB5)/($B6-$B5) -> 32% | AJ6: =(AC6-AC5)/($B6-$B5) -> 35% | AK6: =(AD6-AD5)/($B6-$B5) -> 35%
A7: 250 | B7: 3000 | D7: =Deltagandeskatter!$B$2*('Med bidragsinkomst'!$B7+'Med bidragsinkomst'!D$3-GRUNDAVDRAG('Med bidragsinkomst'!$B7+'Med bidragsinkomst'!D$3))-JSA($B7,GRUNDAVDRAG($B7+D$3),Deltagandeskatter!$B$2)+MAX(0,0.2*($B7+D$3-Deltagandeskatter!$B$11))+MAX(0,0.05*('Med bidragsinkomst'!$B7+'Med bidragsinkomst'!D$3-Deltagandeskatter!$B$12)) -> 0 | E7: =Deltagandeskatter!$B$2*('Med bidragsinkomst'!$B7+'Med bidragsinkomst'!E$3-GRUNDAVDRAG('Med bidragsinkomst'!$B7+'Med bidragsinkomst'!E$3))-JSA($B7,GRUNDAVDRAG($B7+E$3),Deltagandeskatter!$B$2)+MAX(0,0.2*($B7+E$3-Deltagandeskatter!$B$11))+MAX(0,0.05*('Med bidragsinkomst'!$B7+'Med bidragsinkomst'!E$3-Deltagandeskatter!$B$12)) -> 10375 | F7: =Deltagandeskatter!$B$2*('Med bidragsinkomst'!$B7+'Med bidragsinkomst'!F$3-GRUNDAVDRAG('Med bidragsinkomst'!$B7+'Med bidragsinkomst'!F$3))-JSA($B7,GRUNDAVDRAG($B7+F$3),Deltagandeskatter!$B$2)+MAX(0,0.2*($B7+F$3-Deltagandeskatter!$B$11))+MAX(0,0.05*('Med bidragsinkomst'!$B7+'Med bidragsinkomst'!F$3-Deltagandeskatter!$B$12)) -> 23223 | G7: =Deltagandeskatter!$B$2*('Med bidragsinkomst'!$B7+'Med bidragsinkomst'!G$3-GRUNDAVDRAG('Med bidragsinkomst'!$B7+'Med bidragsinkomst'!G$3))-JSA($B7,GRUNDAVDRAG($B7+G$3),Deltagandeskatter!$B$2)+MAX(0,0.2*($B7+G$3-Deltagandeskatter!$B$11))+MAX(0,0.05*('Med bidragsinkomst'!$B7+'Med bidragsinkomst'!G$3-Deltagandeskatter!$B$12)) -> 31638 | H7: =Deltagandeskatter!$B$2*('Med bidragsinkomst'!$B7+'Med bidragsinkomst'!H$3-GRUNDAVDRAG('Med bidragsinkomst'!$B7+'Med bidragsinkomst'!H$3))-JSA($B7,GRUNDAVDRAG($B7+H$3),Deltagandeskatter!$B$2)+MAX(0,0.2*($B7+H$3-Deltagandeskatter!$B$11))+MAX(0,0.05*('Med bidragsinkomst'!$B7+'Med bidragsinkomst'!H$3-Deltagandeskatter!$B$12)) -> 38480 | I7: =Deltagandeskatter!$B$2*('Med bidragsinkomst'!$B7+'Med bidragsinkomst'!I$3-GRUNDAVDRAG('Med bidragsinkomst'!$B7+'Med bidragsinkomst'!I$3))-JSA($B7,GRUNDAVDRAG($B7+I$3),Deltagandeskatter!$B$2)+MAX(0,0.2*($B7+I$3-Deltagandeskatter!$B$11))+MAX(0,0.05*('Med bidragsinkomst'!$B7+'Med bidragsinkomst'!I$3-Deltagandeskatter!$B$12)) -> 56146 | K7: =JSA($B7,GRUNDAVDRAG($B7+K$3),Deltagandeskatter!$B$2) -> 0 | L7: =JSA($B7,GRUNDAVDRAG($B7+L$3),Deltagandeskatter!$B$2) -> 0 | M7: =JSA($B7,GRUNDAVDRAG($B7+M$3),Deltagandeskatter!$B$2) -> 0 | N7: =JSA($B7,GRUNDAVDRAG($B7+N$3),Deltagandeskatter!$B$2) -> 0 | O7: =JSA($B7,GRUNDAVDRAG($B7+O$3),Deltagandeskatter!$B$2) -> 0 | P7: =JSA($B7,GRUNDAVDRAG($B7+P$3),Deltagandeskatter!$B$2) -> 0 | R7: 3000 | S7: 20700 | T7: 30700 | U7: 34500 | V7: 33200 | W7: 28200 | Y7: 0 | Z7: 771 | AA7: 771 | AB7: 964 | AC7: 1060 | AD7: 1060 | AF7: =(Y7-Y6)/($B7-$B6) -> 0% | AG7: =(Z7-Z6)/($B7-$B6) -> 26% | AH7: =(AA7-AA6)/($B7-$B6) -> 26% | AI7: =(AB7-AB6)/($B7-$B6) -> 32% | AJ7: 35% | AK7: 35%
A8: 333 | B8: 4000 | D8: =Deltagandeskatter!$B$2*('Med bidragsinkomst'!$B8+'Med bidragsinkomst'!D$3-GRUNDAVDRAG('Med bidragsinkomst'!$B8+'Med bidragsinkomst'!D$3))-JSA($B8,GRUNDAVDRAG($B8+D$3),Deltagandeskatter!$B$2)+MAX(0,0.2*($B8+D$3-Deltagandeskatter!$B$11))+MAX(0,0.05*('Med bidragsinkomst'!$B8+'Med bidragsinkomst'!D$3-Deltagandeskatter!$B$12)) -> 0 | E8: =Deltagandeskatter!$B$2*('Med bidragsinkomst'!$B8+'Med bidragsinkomst'!E$3-GRUNDAVDRAG('Med bidragsinkomst'!$B8+'Med bidragsinkomst'!E$3))-JSA($B8,GRUNDAVDRAG($B8+E$3),Deltagandeskatter!$B$2)+MAX(0,0.2*($B8+E$3-Deltagandeskatter!$B$11))+MAX(0,0.05*('Med bidragsinkomst'!$B8+'Med bidragsinkomst'!E$3-Deltagandeskatter!$B$12)) -> 10632 | F8: =Deltagandeskatter!$B$2*('Med bidragsinkomst'!$B8+'Med bidragsinkomst'!F$3-GRUNDAVDRAG('Med bidragsinkomst'!$B8+'Med bidragsinkomst'!F$3))-JSA($B8,GRUNDAVDRAG($B8+F$3),Deltagandeskatter!$B$2)+MAX(0,0.2*($B8+F$3-Deltagandeskatter!$B$11))+MAX(0,0.05*('Med bidragsinkomst'!$B8+'Med bidragsinkomst'!F$3-Deltagandeskatter!$B$12)) -> 23480 | G8: =Deltagandeskatter!$B$2*('Med bidragsinkomst'!$B8+'Med bidragsinkomst'!G$3-GRUNDAVDRAG('Med bidragsinkomst'!$B8+'Med bidragsinkomst'!G$3))-JSA($B8,GRUNDAVDRAG($B8+G$3),Deltagandeskatter!$B$2)+MAX(0,0.2*($B8+G$3-Deltagandeskatter!$B$11))+MAX(0,0.05*('Med bidragsinkomst'!$B8+'Med bidragsinkomst'!G$3-Deltagandeskatter!$B$12)) -> 31959 | H8: =Deltagandeskatter!$B$2*('Med bidragsinkomst'!$B8+'Med bidragsinkomst'!H$3-GRUNDAVDRAG('Med bidragsinkomst'!$B8+'Med bidragsinkomst'!H$3))-JSA($B8,GRUNDAVDRAG($B8+H$3),Deltagandeskatter!$B$2)+MAX(0,0.2*($B8+H$3-Deltagandeskatter!$B$11))+MAX(0,0.05*('Med bidragsinkomst'!$B8+'Med bidragsinkomst'!H$3-Deltagandeskatter!$B$12)) -> 38833 | I8: =Deltagandeskatter!$B$2*('Med bidragsinkomst'!$B8+'Med bidragsinkomst'!I$3-GRUNDAVDRAG('Med bidragsinkomst'!$B8+'Med bidragsinkomst'!I$3))-JSA($B8,GRUNDAVDRAG($B8+I$3),Deltagandeskatter!$B$2)+MAX(0,0.2*($B8+I$3-Deltagandeskatter!$B$11))+MAX(0,0.05*('Med bidragsinkomst'!$B8+'Med bidragsinkomst'!I$3-Deltagandeskatter!$B$12)) -> 56499 | K8: =JSA($B8,GRUNDAVDRAG($B8+K$3),Deltagandeskatter!$B$2) -> 0 | L8: =JSA($B8,GRUNDAVDRAG($B8+L$3),Deltagandeskatter!$B$2) -> 0 | M8: =JSA($B8,GRUNDAVDRAG($B8+M$3),Deltagandeskatter!$B$2) -> 0 | N8: =JSA($B8,GRUNDAVDRAG($B8+N$3),Deltagandeskatter!$B$2) -> 0 | O8: =JSA($B8,GRUNDAVDRAG($B8+O$3),Deltagandeskatter!$B$2) -> 0 | P8: =JSA($B8,GRUNDAVDRAG($B8+P$3),Deltagandeskatter!$B$2) -> 0 | R8: 4000 | S8: 20900 | T8: 30900 | U8: 34500 | V8: 33100 | W8: 28100 | Y8: 0 | Z8: 1028 | AA8: 1028 | AB8: 1285 | AC8: 1413 | AD8: 1413 | AF8: 0% | AG8: 26% | AH8: 26% | AI8: 32% | AJ8: 35% | AK8: 35%
A9: 417 | B9: 5000 | D9: =Deltagandeskatter!$B$2*('Med bidragsinkomst'!$B9+'Med bidragsinkomst'!D$3-GRUNDAVDRAG('Med bidragsinkomst'!$B9+'Med bidragsinkomst'!D$3))-JSA($B9,GRUNDAVDRAG($B9+D$3),Deltagandeskatter!$B$2)+MAX(0,0.2*($B9+D$3-Deltagandeskatter!$B$11))+MAX(0,0.05*('Med bidragsinkomst'!$B9+'Med bidragsinkomst'!D$3-Deltagandeskatter!$B$12)) -> 0 | E9: =Deltagandeskatter!$B$2*('Med bidragsinkomst'!$B9+'Med bidragsinkomst'!E$3-GRUNDAVDRAG('Med bidragsinkomst'!$B9+'Med bidragsinkomst'!E$3))-JSA($B9,GRUNDAVDRAG($B9+E$3),Deltagandeskatter!$B$2)+MAX(0,0.2*($B9+E$3-Deltagandeskatter!$B$11))+MAX(0,0.05*('Med bidragsinkomst'!$B9+'Med bidragsinkomst'!E$3-Deltagandeskatter!$B$12)) -> 10889 | F9: =Deltagandeskatter!$B$2*('Med bidragsinkomst'!$B9+'Med bidragsinkomst'!F$3-GRUNDAVDRAG('Med bidragsinkomst'!$B9+'Med bidragsinkomst'!F$3))-JSA($B9,GRUNDAVDRAG($B9+F$3),Deltagandeskatter!$B$2)+MAX(0,0.2*($B9+F$3-Deltagandeskatter!$B$11))+MAX(0,0.05*('Med bidragsinkomst'!$B9+'Med bidragsinkomst'!F$3-Deltagandeskatter!$B$12)) -> 23737 | G9: =Deltagandeskatter!$B$2*('Med bidragsinkomst'!$B9+'Med bidragsinkomst'!G$3-GRUNDAVDRAG('Med bidragsinkomst'!$B9+'Med bidragsinkomst'!G$3))-JSA($B9,GRUNDAVDRAG($B9+G$3),Deltagandeskatter!$B$2)+MAX(0,0.2*($B9+G$3-Deltagandeskatter!$B$11))+MAX(0,0.05*('Med bidragsinkomst'!$B9+'Med bidragsinkomst'!G$3-Deltagandeskatter!$B$12)) -> 32281 | H9: =Deltagandeskatter!$B$2*('Med bidragsinkomst'!$B9+'Med bidragsinkomst'!H$3-GRUNDAVDRAG('Med bidragsinkomst'!$B9+'Med bidragsinkomst'!H$3))-JSA($B9,GRUNDAVDRAG($B9+H$3),Deltagandeskatter!$B$2)+MAX(0,0.2*($B9+H$3-Deltagandeskatter!$B$11))+MAX(0,0.05*('Med bidragsinkomst'!$B9+'Med bidragsinkomst'!H$3-Deltagandeskatter!$B$12)) -> 39186 | I9: =Deltagandeskatter!$B$2*('Med bidragsinkomst'!$B9+'Med bidragsinkomst'!I$3-GRUNDAVDRAG('Med bidragsinkomst'!$B9+'Med bidragsinkomst'!I$3))-JSA($B9,GRUNDAVDRAG($B9+I$3),Deltagandeskatter!$B$2)+MAX(0,0.2*($B9+I$3-Deltagandeskatter!$B$11))+MAX(0,0.05*('Med bidragsinkomst'!$B9+'Med bidragsinkomst'!I$3-Deltagandeskatter!$B$12)) -> 56852 | K9: =JSA($B9,GRUNDAVDRAG($B9+K$3),Deltagandeskatter!$B$2) -> 0 | L9: =JSA($B9,GRUNDAVDRAG($B9+L$3),Deltagandeskatter!$B$2) -> 0 | M9: =JSA($B9,GRUNDAVDRAG($B9+M$3),Deltagandeskatter!$B$2) -> 0 | N9: =JSA($B9,GRUNDAVDRAG($B9+N$3),Deltagandeskatter!$B$2) -> 0 | O9: =JSA($B9,GRUNDAVDRAG($B9+O$3),Deltagandeskatter!$B$2) -> 0 | P9: =JSA($B9,GRUNDAVDRAG($B9+P$3),Deltagandeskatter!$B$2) -> 0 | R9: 5000 | S9: 21100 | T9: 31100 | U9: 34500 | V9: 33000 | W9: 28000 | Y9: 0 | Z9: 1285 | AA9: 1285 | AB9: 1606 | AC9: 1767 | AD9: 1767 | AF9: 0% | AG9: =(Z9-Z8)/($B9-$B8) -> 26% | AH9: =(AA9-AA8)/($B9-$B8) -> 26% | AI9: 32% | AJ9: 35% | AK9: 35%
A10: 500 | B10: 6000 | D10: =Deltagandeskatter!$B$2*('Med bidragsinkomst'!$B10+'Med bidragsinkomst'!D$3-GRUNDAVDRAG('Med bidragsinkomst'!$B10+'Med bidragsinkomst'!D$3))-JSA($B10,GRUNDAVDRAG($B10+D$3),Deltagandeskatter!$B$2)+MAX(0,0.2*($B10+D$3-Deltagandeskatter!$B$11))+MAX(0,0.05*('Med bidragsinkomst'!$B10+'Med bidragsinkomst'!D$3-Deltagandeskatter!$B$12)) -> 0 | E10: =Deltagandeskatter!$B$2*('Med bidragsinkomst'!$B10+'Med bidragsinkomst'!E$3-GRUNDAVDRAG('Med bidragsinkomst'!$B10+'Med bidragsinkomst'!E$3))-JSA($B10,GRUNDAVDRAG($B10+E$3),Deltagandeskatter!$B$2)+MAX(0,0.2*($B10+E$3-Deltagandeskatter!$B$11))+MAX(0,0.05*('Med bidragsinkomst'!$B10+'Med bidragsinkomst'!E$3-Deltagandeskatter!$B$12)) -> 11146 | F10: =Deltagandeskatter!$B$2*('Med bidragsinkomst'!$B10+'Med bidragsinkomst'!F$3-GRUNDAVDRAG('Med bidragsinkomst'!$B10+'Med bidragsinkomst'!F$3))-JSA($B10,GRUNDAVDRAG($B10+F$3),Deltagandeskatter!$B$2)+MAX(0,0.2*($B10+F$3-Deltagandeskatter!$B$11))+MAX(0,0.05*('Med bidragsinkomst'!$B10+'Med bidragsinkomst'!F$3-Deltagandeskatter!$B$12)) -> 23994 | G10: =Deltagandeskatter!$B$2*('Med bidragsinkomst'!$B10+'Med bidragsinkomst'!G$3-GRUNDAVDRAG('Med bidragsinkomst'!$B10+'Med bidragsinkomst'!G$3))-JSA($B10,GRUNDAVDRAG($B10+G$3),Deltagandeskatter!$B$2)+MAX(0,0.2*($B10+G$3-Deltagandeskatter!$B$11))+MAX(0,0.05*('Med bidragsinkomst'!$B10+'Med bidragsinkomst'!G$3-Deltagandeskatter!$B$12)) -> 32602 | H10: =Deltagandeskatter!$B$2*('Med bidragsinkomst'!$B10+'Med bidragsinkomst'!H$3-GRUNDAVDRAG('Med bidragsinkomst'!$B10+'Med bidragsinkomst'!H$3))-JSA($B10,GRUNDAVDRAG($B10+H$3),Deltagandeskatter!$B$2)+MAX(0,0.2*($B10+H$3-Deltagandeskatter!$B$11))+MAX(0,0.05*('Med bidragsinkomst'!$B10+'Med bidragsinkomst'!H$3-Deltagandeskatter!$B$12)) -> 39540 | I10: =Deltagandeskatter!$B$2*('Med bidragsinkomst'!$B10+'Med bidragsinkomst'!I$3-GRUNDAVDRAG('Med bidragsinkomst'!$B10+'Med bidragsinkomst'!I$3))-JSA($B10,GRUNDAVDRAG($B10+I$3),Deltagandeskatter!$B$2)+MAX(0,0.2*($B10+I$3-Deltagandeskatter!$B$11))+MAX(0,0.05*('Med bidragsinkomst'!$B10+'Med bidragsinkomst'!I$3-Deltagandeskatter!$B$12)) -> 57206 | K10: =JSA($B10,GRUNDAVDRAG($B10+K$3),Deltagandeskatter!$B$2) -> 0 | L10: =JSA($B10,GRUNDAVDRAG($B10+L$3),Deltagandeskatter!$B$2) -> 0 | M10: =JSA($B10,GRUNDAVDRAG($B10+M$3),Deltagandeskatter!$B$2) -> 0 | N10: =JSA($B10,GRUNDAVDRAG($B10+N$3),Deltagandeskatter!$B$2) -> 0 | O10: =JSA($B10,GRUNDAVDRAG($B10+O$3),Deltagandeskatter!$B$2) -> 0 | P10: =JSA($B10,GRUNDAVDRAG($B10+P$3),Deltagandeskatter!$B$2) -> 0 | R10: 6000 | S10: 21300 | T10: 31300 | U10: 34500 | V10: 32900 | W10: 27900 | Y10: 0 | Z10: 1542 | AA10: 1542 | AB10: 1927 | AC10: 2120 | AD10: 2120 | AF10: 0% | AG10: 26% | AH10: 26% | AI10: 32% | AJ10: 35% | AK10: 35%
A11: 583 | B11: 7000 | D11: =Deltagandeskatter!$B$2*('Med bidragsinkomst'!$B11+'Med bidragsinkomst'!D$3-GRUNDAVDRAG('Med bidragsinkomst'!$B11+'Med bidragsinkomst'!D$3))-JSA($B11,GRUNDAVDRAG($B11+D$3),Deltagandeskatter!$B$2)+MAX(0,0.2*($B11+D$3-Deltagandeskatter!$B$11))+MAX(0,0.05*('Med bidragsinkomst'!$B11+'Med bidragsinkomst'!D$3-Deltagandeskatter!$B$12)) -> 0 | E11: =Deltagandeskatter!$B$2*('Med bidragsinkomst'!$B11+'Med bidragsinkomst'!E$3-GRUNDAVDRAG('Med bidragsinkomst'!$B11+'Med bidragsinkomst'!E$3))-JSA($B11,GRUNDAVDRAG($B11+E$3),Deltagandeskatter!$B$2)+MAX(0,0.2*($B11+E$3-Deltagandeskatter!$B$11))+MAX(0,0.05*('Med bidragsinkomst'!$B11+'Med bidragsinkomst'!E$3-Deltagandeskatter!$B$12)) -> 11403 | F11: =Deltagandeskatter!$B$2*('Med bidragsinkomst'!$B11+'Med bidragsinkomst'!F$3-GRUNDAVDRAG('Med bidragsinkomst'!$B11+'Med bidragsinkomst'!F$3))-JSA($B11,GRUNDAVDRAG($B11+F$3),Deltagandeskatter!$B$2)+MAX(0,0.2*($B11+F$3-Deltagandeskatter!$B$11))+MAX(0,0.05*('Med bidragsinkomst'!$B11+'Med bidragsinkomst'!F$3-Deltagandeskatter!$B$12)) -> 24251 | G11: =Deltagandeskatter!$B$2*('Med bidragsinkomst'!$B11+'Med bidragsinkomst'!G$3-GRUNDAVDRAG('Med bidragsinkomst'!$B11+'Med bidragsinkomst'!G$3))-JSA($B11,GRUNDAVDRAG($B11+G$3),Deltagandeskatter!$B$2)+MAX(0,0.2*($B11+G$3-Deltagandeskatter!$B$11))+MAX(0,0.05*('Med bidragsinkomst'!$B11+'Med bidragsinkomst'!G$3-Deltagandeskatter!$B$12)) -> 32923 | H11: =Deltagandeskatter!$B$2*('Med bidragsinkomst'!$B11+'Med bidragsinkomst'!H$3-GRUNDAVDRAG('Med bidragsinkomst'!$B11+'Med bidragsinkomst'!H$3))-JSA($B11,GRUNDAVDRAG($B11+H$3),Deltagandeskatter!$B$2)+MAX(0,0.2*($B11+H$3-Deltagandeskatter!$B$11))+MAX(0,0.05*('Med bidragsinkomst'!$B11+'Med bidragsinkomst'!H$3-Deltagandeskatter!$B$12)) -> 39893 | I11: =Deltagandeskatter!$B$2*('Med bidragsinkomst'!$B11+'Med bidragsinkomst'!I$3-GRUNDAVDRAG('Med bidragsinkomst'!$B11+'Med bidragsinkomst'!I$3))-JSA($B11,GRUNDAVDRAG($B11+I$3),Deltagandeskatter!$B$2)+MAX(0,0.2*($B11+I$3-Deltagandeskatter!$B$11))+MAX(0,0.05*('Med bidragsinkomst'!$B11+'Med bidragsinkomst'!I$3-Deltagandeskatter!$B$12)) -> 57559 | K11: =JSA($B11,GRUNDAVDRAG($B11+K$3),Deltagandeskatter!$B$2) -> 0 | L11: =JSA($B11,GRUNDAVDRAG($B11+L$3),Deltagandeskatter!$B$2) -> 0 | M11: =JSA($B11,GRUNDAVDRAG($B11+M$3),Deltagandeskatter!$B$2) -> 0 | N11: =JSA($B11,GRUNDAVDRAG($B11+N$3),Deltagandeskatter!$B$2) -> 0 | O11: =JSA($B11,GRUNDAVDRAG($B11+O$3),Deltagandeskatter!$B$2) -> 0 | P11: =JSA($B11,GRUNDAVDRAG($B11+P$3),Deltagandeskatter!$B$2) -> 0 | R11: 7000 | S11: 21500 | T11: 31500 | U11: 34500 | V11: 32800 | W11: 27800 | Y11: 0 | Z11: 1799 | AA11: 1799 | AB11: 2248 | AC11: 2473 | AD11: 2473 | AF11: 0% | AG11: 26% | AH11: 26% | AI11: 32% | AJ11: 35% | AK11: 35%
A12: 667 | B12: 8000 | D12: =Deltagandeskatter!$B$2*('Med bidragsinkomst'!$B12+'Med bidragsinkomst'!D$3-GRUNDAVDRAG('Med bidragsinkomst'!$B12+'Med bidragsinkomst'!D$3))-JSA($B12,GRUNDAVDRAG($B12+D$3),Deltagandeskatter!$B$2)+MAX(0,0.2*($B12+D$3-Deltagandeskatter!$B$11))+MAX(0,0.05*('Med bidragsinkomst'!$B12+'Med bidragsinkomst'!D$3-Deltagandeskatter!$B$12)) -> 0 | E12: =Deltagandeskatter!$B$2*('Med bidragsinkomst'!$B12+'Med bidragsinkomst'!E$3-GRUNDAVDRAG('Med bidragsinkomst'!$B12+'Med bidragsinkomst'!E$3))-JSA($B12,GRUNDAVDRAG($B12+E$3),Deltagandeskatter!$B$2)+MAX(0,0.2*($B12+E$3-Deltagandeskatter!$B$11))+MAX(0,0.05*('Med bidragsinkomst'!$B12+'Med bidragsinkomst'!E$3-Deltagandeskatter!$B$12)) -> 11660 | F12: =Deltagandeskatter!$B$2*('Med bidragsinkomst'!$B12+'Med bidragsinkomst'!F$3-GRUNDAVDRAG('Med bidragsinkomst'!$B12+'Med bidragsinkomst'!F$3))-JSA($B12,GRUNDAVDRAG($B12+F$3),Deltagandeskatter!$B$2)+MAX(0,0.2*($B12+F$3-Deltagandeskatter!$B$11))+MAX(0,0.05*('Med bidragsinkomst'!$B12+'Med bidragsinkomst'!F$3-Deltagandeskatter!$B$12)) -> 24508 | G12: =Deltagandeskatter!$B$2*('Med bidragsinkomst'!$B12+'Med bidragsinkomst'!G$3-GRUNDAVDRAG('Med bidragsinkomst'!$B12+'Med bidragsinkomst'!G$3))-JSA($B12,GRUNDAVDRAG($B12+G$3),Deltagandeskatter!$B$2)+MAX(0,0.2*($B12+G$3-Deltagandeskatter!$B$11))+MAX(0,0.05*('Med bidragsinkomst'!$B12+'Med bidragsinkomst'!G$3-Deltagandeskatter!$B$12)) -> 33244 | H12: =Deltagandeskatter!$B$2*('Med bidragsinkomst'!$B12+'Med bidragsinkomst'!H$3-GRUNDAVDRAG('Med bidragsinkomst'!$B12+'Med bidragsinkomst'!H$3))-JSA($B12,GRUNDAVDRAG($B12+H$3),Deltagandeskatter!$B$2)+MAX(0,0.2*($B12+H$3-Deltagandeskatter!$B$11))+MAX(0,0.05*('Med bidragsinkomst'!$B12+'Med bidragsinkomst'!H$3-Deltagandeskatter!$B$12)) -> 40246 | I12: =Deltagandeskatter!$B$2*('Med bidragsinkomst'!$B12+'Med bidragsinkomst'!I$3-GRUNDAVDRAG('Med bidragsinkomst'!$B12+'Med bidragsinkomst'!I$3))-JSA($B12,GRUNDAVDRAG($B12+I$3),Deltagandeskatter!$B$2)+MAX(0,0.2*($B12+I$3-Deltagandeskatter!$B$11))+MAX(0,0.05*('Med bidragsinkomst'!$B12+'Med bidragsinkomst'!I$3-Deltagandeskatter!$B$12)) -> 57912 | K12: =JSA($B12,GRUNDAVDRAG($B12+K$3),Deltagandeskatter!$B$2) -> 0 | L12: =JSA($B12,GRUNDAVDRAG($B12+L$3),Deltagandeskatter!$B$2) -> 0 | M12: =JSA($B12,GRUNDAVDRAG($B12+M$3),Deltagandeskatter!$B$2) -> 0 | N12: =JSA($B12,GRUNDAVDRAG($B12+N$3),Deltagandeskatter!$B$2) -> 0 | O12: =JSA($B12,GRUNDAVDRAG($B12+O$3),Deltagandeskatter!$B$2) -> 0 | P12: =JSA($B12,GRUNDAVDRAG($B12+P$3),Deltagandeskatter!$B$2) -> 0 | R12: 8000 | S12: 21700 | T12: 31700 | U12: 34500 | V12: 32700 | W12: 27700 | Y12: 0 | Z12: 2056 | AA12: 2056 | AB12: 2570 | AC12: 2827 | AD12: 2827 | AF12: 0% | AG12: 26% | AH12: 26% | AI12: 32% | AJ12: =(AC12-AC11)/($B12-$B11) -> 35% | AK12: 35%
A13: 750 | B13: 9000 | D13: =Deltagandeskatter!$B$2*('Med bidragsinkomst'!$B13+'Med bidragsinkomst'!D$3-GRUNDAVDRAG('Med bidragsinkomst'!$B13+'Med bidragsinkomst'!D$3))-JSA($B13,GRUNDAVDRAG($B13+D$3),Deltagandeskatter!$B$2)+MAX(0,0.2*($B13+D$3-Deltagandeskatter!$B$11))+MAX(0,0.05*('Med bidragsinkomst'!$B13+'Med bidragsinkomst'!D$3-Deltagandeskatter!$B$12)) -> 0 | E13: =Deltagandeskatter!$B$2*('Med bidragsinkomst'!$B13+'Med bidragsinkomst'!E$3-GRUNDAVDRAG('Med bidragsinkomst'!$B13+'Med bidragsinkomst'!E$3))-JSA($B13,GRUNDAVDRAG($B13+E$3),Deltagandeskatter!$B$2)+MAX(0,0.2*($B13+E$3-Deltagandeskatter!$B$11))+MAX(0,0.05*('Med bidragsinkomst'!$B13+'Med bidragsinkomst'!E$3-Deltagandeskatter!$B$12)) -> 11917 | F13: =Deltagandeskatter!$B$2*('Med bidragsinkomst'!$B13+'Med bidragsinkomst'!F$3-GRUNDAVDRAG('Med bidragsinkomst'!$B13+'Med bidragsinkomst'!F$3))-JSA($B13,GRUNDAVDRAG($B13+F$3),Deltagandeskatter!$B$2)+MAX(0,0.2*($B13+F$3-Deltagandeskatter!$B$11))+MAX(0,0.05*('Med bidragsinkomst'!$B13+'Med bidragsinkomst'!F$3-Deltagandeskatter!$B$12)) -> 24765 | G13: =Deltagandeskatter!$B$2*('Med bidragsinkomst'!$B13+'Med bidragsinkomst'!G$3-GRUNDAVDRAG('Med bidragsinkomst'!$B13+'Med bidragsinkomst'!G$3))-JSA($B13,GRUNDAVDRAG($B13+G$3),Deltagandeskatter!$B$2)+MAX(0,0.2*($B13+G$3-Deltagandeskatter!$B$11))+MAX(0,0.05*('Med bidragsinkomst'!$B13+'Med bidragsinkomst'!G$3-Deltagandeskatter!$B$12)) -> 33565 | H13: =Deltagandeskatter!$B$2*('Med bidragsinkomst'!$B13+'Med bidragsinkomst'!H$3-GRUNDAVDRAG('Med bidragsinkomst'!$B13+'Med bidragsinkomst'!H$3))-JSA($B13,GRUNDAVDRAG($B13+H$3),Deltagandeskatter!$B$2)+MAX(0,0.2*($B13+H$3-Deltagandeskatter!$B$11))+MAX(0,0.05*('Med bidragsinkomst'!$B13+'Med bidragsinkomst'!H$3-Deltagandeskatter!$B$12)) -> 40600 | I13: =Deltagandeskatter!$B$2*('Med bidragsinkomst'!$B13+'Med bidragsinkomst'!I$3-GRUNDAVDRAG('Med bidragsinkomst'!$B13+'Med bidragsinkomst'!I$3))-JSA($B13,GRUNDAVDRAG($B13+I$3),Deltagandeskatter!$B$2)+MAX(0,0.2*($B13+I$3-Deltagandeskatter!$B$11))+MAX(0,0.05*('Med bidragsinkomst'!$B13+'Med bidragsinkomst'!I$3-Deltagandeskatter!$B$12)) -> 58266 | K13: =JSA($B13,GRUNDAVDRAG($B13+K$3),Deltagandeskatter!$B$2) -> 0 | L13: =JSA($B13,GRUNDAVDRAG($B13+L$3),Deltagandeskatter!$B$2) -> 0 | M13: =JSA($B13,GRUNDAVDRAG($B13+M$3),Deltagandeskatter!$B$2) -> 0 | N13: =JSA($B13,GRUNDAVDRAG($B13+N$3),Deltagandeskatter!$B$2) -> 0 | O13: =JSA($B13,GRUNDAVDRAG($B13+O$3),Deltagandeskatter!$B$2) -> 0 | P13: =JSA($B13,GRUNDAVDRAG($B13+P$3),Deltagandeskatter!$B$2) -> 0 | R13: 9000 | S13: 21900 | T13: 31900 | U13: 34500 | V13: 32600 | W13: 27600 | Y13: 0 | Z13: 2313 | AA13: 2313 | AB13: 2891 | AC13: 3180 | AD13: 3180 | AF13: 0% | AG13: 26% | AH13: =(AA13-AA12)/($B13-$B12) -> 26% | AI13: 32% | AJ13: 35% | AK13: 35%
A14: 833 | B14: 10000 | D14: =Deltagandeskatter!$B$2*('Med bidragsinkomst'!$B14+'Med bidragsinkomst'!D$3-GRUNDAVDRAG('Med bidragsinkomst'!$B14+'Med bidragsinkomst'!D$3))-JSA($B14,GRUNDAVDRAG($B14+D$3),Deltagandeskatter!$B$2)+MAX(0,0.2*($B14+D$3-Deltagandeskatter!$B$11))+MAX(0,0.05*('Med bidragsinkomst'!$B14+'Med bidragsinkomst'!D$3-Deltagandeskatter!$B$12)) -> 0 | E14: =Deltagandeskatter!$B$2*('Med bidragsinkomst'!$B14+'Med bidragsinkomst'!E$3-GRUNDAVDRAG('Med bidragsinkomst'!$B14+'Med bidragsinkomst'!E$3))-JSA($B14,GRUNDAVDRAG($B14+E$3),Deltagandeskatter!$B$2)+MAX(0,0.2*($B14+E$3-Deltagandeskatter!$B$11))+MAX(0,0.05*('Med bidragsinkomst'!$B14+'Med bidragsinkomst'!E$3-Deltagandeskatter!$B$12)) -> 12173 | F14: =Deltagandeskatter!$B$2*('Med bidragsinkomst'!$B14+'Med bidragsinkomst'!F$3-GRUNDAVDRAG('Med bidragsinkomst'!$B14+'Med bidragsinkomst'!F$3))-JSA($B14,GRUNDAVDRAG($B14+F$3),Deltagandeskatter!$B$2)+MAX(0,0.2*($B14+F$3-Deltagandeskatter!$B$11))+MAX(0,0.05*('Med bidragsinkomst'!$B14+'Med bidragsinkomst'!F$3-Deltagandeskatter!$B$12)) -> 25021 | G14: =Deltagandeskatter!$B$2*('Med bidragsinkomst'!$B14+'Med bidragsinkomst'!G$3-GRUNDAVDRAG('Med bidragsinkomst'!$B14+'Med bidragsinkomst'!G$3))-JSA($B14,GRUNDAVDRAG($B14+G$3),Deltagandeskatter!$B$2)+MAX(0,0.2*($B14+G$3-Deltagandeskatter!$B$11))+MAX(0,0.05*('Med bidragsinkomst'!$B14+'Med bidragsinkomst'!G$3-Deltagandeskatter!$B$12)) -> 33887 | H14: =Deltagandeskatter!$B$2*('Med bidragsinkomst'!$B14+'Med bidragsinkomst'!H$3-GRUNDAVDRAG('Med bidragsinkomst'!$B14+'Med bidragsinkomst'!H$3))-JSA($B14,GRUNDAVDRAG($B14+H$3),Deltagandeskatter!$B$2)+MAX(0,0.2*($B14+H$3-Deltagandeskatter!$B$11))+MAX(0,0.05*('Med bidragsinkomst'!$B14+'Med bidragsinkomst'!H$3-Deltagandeskatter!$B$12)) -> 40953 | I14: =Deltagandeskatter!$B$2*('Med bidragsinkomst'!$B14+'Med bidragsinkomst'!I$3-GRUNDAVDRAG('Med bidragsinkomst'!$B14+'Med bidragsinkomst'!I$3))-JSA($B14,GRUNDAVDRAG($B14+I$3),Deltagandeskatter!$B$2)+MAX(0,0.2*($B14+I$3-Deltagandeskatter!$B$11))+MAX(0,0.05*('Med bidragsinkomst'!$B14+'Med bidragsinkomst'!I$3-Deltagandeskatter!$B$12)) -> 58619 | K14: =JSA($B14,GRUNDAVDRAG($B14+K$3),Deltagandeskatter!$B$2) -> 0 | L14: =JSA($B14,GRUNDAVDRAG($B14+L$3),Deltagandeskatter!$B$2) -> 0 | M14: =JSA($B14,GRUNDAVDRAG($B14+M$3),Deltagandeskatter!$B$2) -> 0 | N14: =JSA($B14,GRUNDAVDRAG($B14+N$3),Deltagandeskatter!$B$2) -> 0 | O14: =JSA($B14,GRUNDAVDRAG($B14+O$3),Deltagandeskatter!$B$2) -> 0 | P14: =JSA($B14,GRUNDAVDRAG($B14+P$3),Deltagandeskatter!$B$2) -> 0 | R14: 10000 | S14: 22100 | T14: 32100 | U14: 34500 | V14: 32500 | W14: 27500 | Y14: 0 | Z14: 2570 | AA14: 2570 | AB14: 3212 | AC14: 3533 | AD14: 3533 | AF14: 0% | AG14: 26% | AH14: 26% | AI14: 32% | AJ14: 35% | AK14: 35%
A15: 917 | B15: 11000 | D15: =Deltagandeskatter!$B$2*('Med bidragsinkomst'!$B15+'Med bidragsinkomst'!D$3-GRUNDAVDRAG('Med bidragsinkomst'!$B15+'Med bidragsinkomst'!D$3))-JSA($B15,GRUNDAVDRAG($B15+D$3),Deltagandeskatter!$B$2)+MAX(0,0.2*($B15+D$3-Deltagandeskatter!$B$11))+MAX(0,0.05*('Med bidragsinkomst'!$B15+'Med bidragsinkomst'!D$3-Deltagandeskatter!$B$12)) -> 0 | E15: =Deltagandeskatter!$B$2*('Med bidragsinkomst'!$B15+'Med bidragsinkomst'!E$3-GRUNDAVDRAG('Med bidragsinkomst'!$B15+'Med bidragsinkomst'!E$3))-JSA($B15,GRUNDAVDRAG($B15+E$3),Deltagandeskatter!$B$2)+MAX(0,0.2*($B15+E$3-Deltagandeskatter!$B$11))+MAX(0,0.05*('Med bidragsinkomst'!$B15+'Med bidragsinkomst'!E$3-Deltagandeskatter!$B$12)) -> 12430 | F15: =Deltagandeskatter!$B$2*('Med bidragsinkomst'!$B15+'Med bidragsinkomst'!F$3-GRUNDAVDRAG('Med bidragsinkomst'!$B15+'Med bidragsinkomst'!F$3))-JSA($B15,GRUNDAVDRAG($B15+F$3),Deltagandeskatter!$B$2)+MAX(0,0.2*($B15+F$3-Deltagandeskatter!$B$11))+MAX(0,0.05*('Med bidragsinkomst'!$B15+'Med bidragsinkomst'!F$3-Deltagandeskatter!$B$12)) -> 25278 | G15: =Deltagandeskatter!$B$2*('Med bidragsinkomst'!$B15+'Med bidragsinkomst'!G$3-GRUNDAVDRAG('Med bidragsinkomst'!$B15+'Med bidragsinkomst'!G$3))-JSA($B15,GRUNDAVDRAG($B15+G$3),Deltagandeskatter!$B$2)+MAX(0,0.2*($B15+G$3-Deltagandeskatter!$B$11))+MAX(0,0.05*('Med bidragsinkomst'!$B15+'Med bidragsinkomst'!G$3-Deltagandeskatter!$B$12)) -> 34240 | H15: =Deltagandeskatter!$B$2*('Med bidragsinkomst'!$B15+'Med bidragsinkomst'!H$3-GRUNDAVDRAG('Med bidragsinkomst'!$B15+'Med bidragsinkomst'!H$3))-JSA($B15,GRUNDAVDRAG($B15+H$3),Deltagandeskatter!$B$2)+MAX(0,0.2*($B15+H$3-Deltagandeskatter!$B$11))+MAX(0,0.05*('Med bidragsinkomst'!$B15+'Med bidragsinkomst'!H$3-Deltagandeskatter!$B$12)) -> 41306 | I15: =Deltagandeskatter!$B$2*('Med bidragsinkomst'!$B15+'Med bidragsinkomst'!I$3-GRUNDAVDRAG('Med bidragsinkomst'!$B15+'Med bidragsinkomst'!I$3))-JSA($B15,GRUNDAVDRAG($B15+I$3),Deltagandeskatter!$B$2)+MAX(0,0.2*($B15+I$3-Deltagandeskatter!$B$11))+MAX(0,0.05*('Med bidragsinkomst'!$B15+'Med bidragsinkomst'!I$3-Deltagandeskatter!$B$12)) -> 58972 | K15: =JSA($B15,GRUNDAVDRAG($B15+K$3),Deltagandeskatter!$B$2) -> 0 | L15: =JSA($B15,GRUNDAVDRAG($B15+L$3),Deltagandeskatter!$B$2) -> 0 | M15: =JSA($B15,GRUNDAVDRAG($B15+M$3),Deltagandeskatter!$B$2) -> 0 | N15: =JSA($B15,GRUNDAVDRAG($B15+N$3),Deltagandeskatter!$B$2) -> 0 | O15: =JSA($B15,GRUNDAVDRAG($B15+O$3),Deltagandeskatter!$B$2) -> 0 | P15: =JSA($B15,GRUNDAVDRAG($B15+P$3),Deltagandeskatter!$B$2) -> 0 | R15: 11000 | S15: 22300 | T15: 32300 | U15: 34400 | V15: 32400 | W15: 27400 | Y15: 0 | Z15: 2827 | AA15: 2827 | AB15: 3565 | AC15: 3887 | AD15: 3887 | AF15: 0% | AG15: 26% | AH15: 26% | AI15: 35% | AJ15: 35% | AK15: 35%
A16: 1000 | B16: 12000 | D16: =Deltagandeskatter!$B$2*('Med bidragsinkomst'!$B16+'Med bidragsinkomst'!D$3-GRUNDAVDRAG('Med bidragsinkomst'!$B16+'Med bidragsinkomst'!D$3))-JSA($B16,GRUNDAVDRAG($B16+D$3),Deltagandeskatter!$B$2)+MAX(0,0.2*($B16+D$3-Deltagandeskatter!$B$11))+MAX(0,0.05*('Med bidragsinkomst'!$B16+'Med bidragsinkomst'!D$3-Deltagandeskatter!$B$12)) -> 0 | E16: =Deltagandeskatter!$B$2*('Med bidragsinkomst'!$B16+'Med bidragsinkomst'!E$3-GRUNDAVDRAG('Med bidragsinkomst'!$B16+'Med bidragsinkomst'!E$3))-JSA($B16,GRUNDAVDRAG($B16+E$3),Deltagandeskatter!$B$2)+MAX(0,0.2*($B16+E$3-Deltagandeskatter!$B$11))+MAX(0,0.05*('Med bidragsinkomst'!$B16+'Med bidragsinkomst'!E$3-Deltagandeskatter!$B$12)) -> 12687 | F16: =Deltagandeskatter!$B$2*('Med bidragsinkomst'!$B16+'Med bidragsinkomst'!F$3-GRUNDAVDRAG('Med bidragsinkomst'!$B16+'Med bidragsinkomst'!F$3))-JSA($B16,GRUNDAVDRAG($B16+F$3),Deltagandeskatter!$B$2)+MAX(0,0.2*($B16+F$3-Deltagandeskatter!$B$11))+MAX(0,0.05*('Med bidragsinkomst'!$B16+'Med bidragsinkomst'!F$3-Deltagandeskatter!$B$12)) -> 25535 | G16: =Deltagandeskatter!$B$2*('Med bidragsinkomst'!$B16+'Med bidragsinkomst'!G$3-GRUNDAVDRAG('Med bidragsinkomst'!$B16+'Med bidragsinkomst'!G$3))-JSA($B16,GRUNDAVDRAG($B16+G$3),Deltagandeskatter!$B$2)+MAX(0,0.2*($B16+G$3-Deltagandeskatter!$B$11))+MAX(0,0.05*('Med bidragsinkomst'!$B16+'Med bidragsinkomst'!G$3-Deltagandeskatter!$B$12)) -> 34593 | H16: =Deltagandeskatter!$B$2*('Med bidragsinkomst'!$B16+'Med bidragsinkomst'!H$3-GRUNDAVDRAG('Med bidragsinkomst'!$B16+'Med bidragsinkomst'!H$3))-JSA($B16,GRUNDAVDRAG($B16+H$3),Deltagandeskatter!$B$2)+MAX(0,0.2*($B16+H$3-Deltagandeskatter!$B$11))+MAX(0,0.05*('Med bidragsinkomst'!$B16+'Med bidragsinkomst'!H$3-Deltagandeskatter!$B$12)) -> 41660 | I16: =Deltagandeskatter!$B$2*('Med bidragsinkomst'!$B16+'Med bidragsinkomst'!I$3-GRUNDAVDRAG('Med bidragsinkomst'!$B16+'Med bidragsinkomst'!I$3))-JSA($B16,GRUNDAVDRAG($B16+I$3),Deltagandeskatter!$B$2)+MAX(0,0.2*($B16+I$3-Deltagandeskatter!$B$11))+MAX(0,0.05*('Med bidragsinkomst'!$B16+'Med bidragsinkomst'!I$3-Deltagandeskatter!$B$12)) -> 59326 | K16: =JSA($B16,GRUNDAVDRAG($B16+K$3),Deltagandeskatter!$B$2) -> 0 | L16: =JSA($B16,GRUNDAVDRAG($B16+L$3),Deltagandeskatter!$B$2) -> 0 | M16: =JSA($B16,GRUNDAVDRAG($B16+M$3),Deltagandeskatter!$B$2) -> 0 | N16: =JSA($B16,GRUNDAVDRAG($B16+N$3),Deltagandeskatter!$B$2) -> 0 | O16: =JSA($B16,GRUNDAVDRAG($B16+O$3),Deltagandeskatter!$B$2) -> 0 | P16: =JSA($B16,GRUNDAVDRAG($B16+P$3),Deltagandeskatter!$B$2) -> 0 | R16: 12000 | S16: 22500 | T16: 32500 | U16: 34300 | V16: 32300 | W16: 27300 | Y16: 0 | Z16: 3084 | AA16: 3084 | AB16: 3919 | AC16: 4240 | AD16: 4240 | AF16: 0% | AG16: =(Z16-Z15)/($B16-$B15) -> 26% | AH16: 26% | AI16: 35% | AJ16: 35% | AK16: 35%
A17: 1083 | B17: 13000 | D17: =Deltagandeskatter!$B$2*('Med bidragsinkomst'!$B17+'Med bidragsinkomst'!D$3-GRUNDAVDRAG('Med bidragsinkomst'!$B17+'Med bidragsinkomst'!D$3))-JSA($B17,GRUNDAVDRAG($B17+D$3),Deltagandeskatter!$B$2)+MAX(0,0.2*($B17+D$3-Deltagandeskatter!$B$11))+MAX(0,0.05*('Med bidragsinkomst'!$B17+'Med bidragsinkomst'!D$3-Deltagandeskatter!$B$12)) -> 0 | E17: =Deltagandeskatter!$B$2*('Med bidragsinkomst'!$B17+'Med bidragsinkomst'!E$3-GRUNDAVDRAG('Med bidragsinkomst'!$B17+'Med bidragsinkomst'!E$3))-JSA($B17,GRUNDAVDRAG($B17+E$3),Deltagandeskatter!$B$2)+MAX(0,0.2*($B17+E$3-Deltagandeskatter!$B$11))+MAX(0,0.05*('Med bidragsinkomst'!$B17+'Med bidragsinkomst'!E$3-Deltagandeskatter!$B$12)) -> 12944 | F17: =Deltagandeskatter!$B$2*('Med bidragsinkomst'!$B17+'Med bidragsinkomst'!F$3-GRUNDAVDRAG('Med bidragsinkomst'!$B17+'Med bidragsinkomst'!F$3))-JSA($B17,GRUNDAVDRAG($B17+F$3),Deltagandeskatter!$B$2)+MAX(0,0.2*($B17+F$3-Deltagandeskatter!$B$11))+MAX(0,0.05*('Med bidragsinkomst'!$B17+'Med bidragsinkomst'!F$3-Deltagandeskatter!$B$12)) -> 25792 | G17: =Deltagandeskatter!$B$2*('Med bidragsinkomst'!$B17+'Med bidragsinkomst'!G$3-GRUNDAVDRAG('Med bidragsinkomst'!$B17+'Med bidragsinkomst'!G$3))-JSA($B17,GRUNDAVDRAG($B17+G$3),Deltagandeskatter!$B$2)+MAX(0,0.2*($B17+G$3-Deltagandeskatter!$B$11))+MAX(0,0.05*('Med bidragsinkomst'!$B17+'Med bidragsinkomst'!G$3-Deltagandeskatter!$B$12)) -> 34947 | H17: =Deltagandeskatter!$B$2*('Med bidragsinkomst'!$B17+'Med bidragsinkomst'!H$3-GRUNDAVDRAG('Med bidragsinkomst'!$B17+'Med bidragsinkomst'!H$3))-JSA($B17,GRUNDAVDRAG($B17+H$3),Deltagandeskatter!$B$2)+MAX(0,0.2*($B17+H$3-Deltagandeskatter!$B$11))+MAX(0,0.05*('Med bidragsinkomst'!$B17+'Med bidragsinkomst'!H$3-Deltagandeskatter!$B$12)) -> 42013 | I17: =Deltagandeskatter!$B$2*('Med bidragsinkomst'!$B17+'Med bidragsinkomst'!I$3-GRUNDAVDRAG('Med bidragsinkomst'!$B17+'Med bidragsinkomst'!I$3))-JSA($B17,GRUNDAVDRAG($B17+I$3),Deltagandeskatter!$B$2)+MAX(0,0.2*($B17+I$3-Deltagandeskatter!$B$11))+MAX(0,0.05*('Med bidragsinkomst'!$B17+'Med bidragsinkomst'!I$3-Deltagandeskatter!$B$12)) -> 59679 | K17: =JSA($B17,GRUNDAVDRAG($B17+K$3),Deltagandeskatter!$B$2) -> 0 | L17: =JSA($B17,GRUNDAVDRAG($B17+L$3),Deltagandeskatter!$B$2) -> 0 | M17: =JSA($B17,GRUNDAVDRAG($B17+M$3),Deltagandeskatter!$B$2) -> 0 | N17: =JSA($B17,GRUNDAVDRAG($B17+N$3),Deltagandeskatter!$B$2) -> 0 | O17: =JSA($B17,GRUNDAVDRAG($B17+O$3),Deltagandeskatter!$B$2) -> 0 | P17: =JSA($B17,GRUNDAVDRAG($B17+P$3),Deltagandeskatter!$B$2) -> 0 | R17: 13000 | S17: 22700 | T17: 32700 | U17: 34200 | V17: 32200 | W17: 27200 | Y17: 0 | Z17: 3340 | AA17: 3340 | AB17: 4272 | AC17: 4593 | AD17: 4593 | AF17: 0% | AG17: 26% | AH17: 26% | AI17: 35% | AJ17: 35% | AK17: =(AD17-AD16)/($B17-$B16) -> 35%
A18: 1167 | B18: 14000 | D18: =Deltagandeskatter!$B$2*('Med bidragsinkomst'!$B18+'Med bidragsinkomst'!D$3-GRUNDAVDRAG('Med bidragsinkomst'!$B18+'Med bidragsinkomst'!D$3))-JSA($B18,GRUNDAVDRAG($B18+D$3),Deltagandeskatter!$B$2)+MAX(0,0.2*($B18+D$3-Deltagandeskatter!$B$11))+MAX(0,0.05*('Med bidragsinkomst'!$B18+'Med bidragsinkomst'!D$3-Deltagandeskatter!$B$12)) -> 0 | E18: =Deltagandeskatter!$B$2*('Med bidragsinkomst'!$B18+'Med bidragsinkomst'!E$3-GRUNDAVDRAG('Med bidragsinkomst'!$B18+'Med bidragsinkomst'!E$3))-JSA($B18,GRUNDAVDRAG($B18+E$3),Deltagandeskatter!$B$2)+MAX(0,0.2*($B18+E$3-Deltagandeskatter!$B$11))+MAX(0,0.05*('Med bidragsinkomst'!$B18+'Med bidragsinkomst'!E$3-Deltagandeskatter!$B$12)) -> 13201 | F18: =Deltagandeskatter!$B$2*('Med bidragsinkomst'!$B18+'Med bidragsinkomst'!F$3-GRUNDAVDRAG('Med bidragsinkomst'!$B18+'Med bidragsinkomst'!F$3))-JSA($B18,GRUNDAVDRAG($B18+F$3),Deltagandeskatter!$B$2)+MAX(0,0.2*($B18+F$3-Deltagandeskatter!$B$11))+MAX(0,0.05*('Med bidragsinkomst'!$B18+'Med bidragsinkomst'!F$3-Deltagandeskatter!$B$12)) -> 26049 | G18: =Deltagandeskatter!$B$2*('Med bidragsinkomst'!$B18+'Med bidragsinkomst'!G$3-GRUNDAVDRAG('Med bidragsinkomst'!$B18+'Med bidragsinkomst'!G$3))-JSA($B18,GRUNDAVDRAG($B18+G$3),Deltagandeskatter!$B$2)+MAX(0,0.2*($B18+G$3-Deltagandeskatter!$B$11))+MAX(0,0.05*('Med bidragsinkomst'!$B18+'Med bidragsinkomst'!G$3-Deltagandeskatter!$B$12)) -> 35300 | H18: =Deltagandeskatter!$B$2*('Med bidragsinkomst'!$B18+'Med bidragsinkomst'!H$3-GRUNDAVDRAG('Med bidragsinkomst'!$B18+'Med bidragsinkomst'!H$3))-JSA($B18,GRUNDAVDRAG($B18+H$3),Deltagandeskatter!$B$2)+MAX(0,0.2*($B18+H$3-Deltagandeskatter!$B$11))+MAX(0,0.05*('Med bidragsinkomst'!$B18+'Med bidragsinkomst'!H$3-Deltagandeskatter!$B$12)) -> 42366 | I18: =Deltagandeskatter!$B$2*('Med bidragsinkomst'!$B18+'Med bidragsinkomst'!I$3-GRUNDAVDRAG('Med bidragsinkomst'!$B18+'Med bidragsinkomst'!I$3))-JSA($B18,GRUNDAVDRAG($B18+I$3),Deltagandeskatter!$B$2)+MAX(0,0.2*($B18+I$3-Deltagandeskatter!$B$11))+MAX(0,0.05*('Med bidragsinkomst'!$B18+'Med bidragsinkomst'!I$3-Deltagandeskatter!$B$12)) -> 60032 | K18: =JSA($B18,GRUNDAVDRAG($B18+K$3),Deltagandeskatter!$B$2) -> 0 | L18: =JSA($B18,GRUNDAVDRAG($B18+L$3),Deltagandeskatter!$B$2) -> 0 | M18: =JSA($B18,GRUNDAVDRAG($B18+M$3),Deltagandeskatter!$B$2) -> 0 | N18: =JSA($B18,GRUNDAVDRAG($B18+N$3),Deltagandeskatter!$B$2) -> 0 | O18: =JSA($B18,GRUNDAVDRAG($B18+O$3),Deltagandeskatter!$B$2) -> 0 | P18: =JSA($B18,GRUNDAVDRAG($B18+P$3),Deltagandeskatter!$B$2) -> 0 | R18: 14000 | S18: 22900 | T18: 32900 | U18: 34100 | V18: 32100 | W18: 27100 | Y18: 0 | Z18: 3597 | AA18: 3597 | AB18: 4625 | AC18: 4946 | AD18: 4946 | AF18: 0% | AG18: 26% | AH18: 26% | AI18: 35% | AJ18: 35% | AK18: 35%
A19: 1250 | B19: 15000 | D19: =Deltagandeskatter!$B$2*('Med bidragsinkomst'!$B19+'Med bidragsinkomst'!D$3-GRUNDAVDRAG('Med bidragsinkomst'!$B19+'Med bidragsinkomst'!D$3))-JSA($B19,GRUNDAVDRAG($B19+D$3),Deltagandeskatter!$B$2)+MAX(0,0.2*($B19+D$3-Deltagandeskatter!$B$11))+MAX(0,0.05*('Med bidragsinkomst'!$B19+'Med bidragsinkomst'!D$3-Deltagandeskatter!$B$12)) -> 0 | E19: =Deltagandeskatter!$B$2*('Med bidragsinkomst'!$B19+'Med bidragsinkomst'!E$3-GRUNDAVDRAG('Med bidragsinkomst'!$B19+'Med bidragsinkomst'!E$3))-JSA($B19,GRUNDAVDRAG($B19+E$3),Deltagandeskatter!$B$2)+MAX(0,0.2*($B19+E$3-Deltagandeskatter!$B$11))+MAX(0,0.05*('Med bidragsinkomst'!$B19+'Med bidragsinkomst'!E$3-Deltagandeskatter!$B$12)) -> 13458 | F19: =Deltagandeskatter!$B$2*('Med bidragsinkomst'!$B19+'Med bidragsinkomst'!F$3-GRUNDAVDRAG('Med bidragsinkomst'!$B19+'Med bidragsinkomst'!F$3))-JSA($B19,GRUNDAVDRAG($B19+F$3),Deltagandeskatter!$B$2)+MAX(0,0.2*($B19+F$3-Deltagandeskatter!$B$11))+MAX(0,0.05*('Med bidragsinkomst'!$B19+'Med bidragsinkomst'!F$3-Deltagandeskatter!$B$12)) -> 26306 | G19: =Deltagandeskatter!$B$2*('Med bidragsinkomst'!$B19+'Med bidragsinkomst'!G$3-GRUNDAVDRAG('Med bidragsinkomst'!$B19+'Med bidragsinkomst'!G$3))-JSA($B19,GRUNDAVDRAG($B19+G$3),Deltagandeskatter!$B$2)+MAX(0,0.2*($B19+G$3-Deltagandeskatter!$B$11))+MAX(0,0.05*('Med bidragsinkomst'!$B19+'Med bidragsinkomst'!G$3-Deltagandeskatter!$B$12)) -> 35653 | H19: =Deltagandeskatter!$B$2*('Med bidragsinkomst'!$B19+'Med bidragsinkomst'!H$3-GRUNDAVDRAG('Med bidragsinkomst'!$B19+'Med bidragsinkomst'!H$3))-JSA($B19,GRUNDAVDRAG($B19+H$3),Deltagandeskatter!$B$2)+MAX(0,0.2*($B19+H$3-Deltagandeskatter!$B$11))+MAX(0,0.05*('Med bidragsinkomst'!$B19+'Med bidragsinkomst'!H$3-Deltagandeskatter!$B$12)) -> 42720 | I19: =Deltagandeskatter!$B$2*('Med bidragsinkomst'!$B19+'Med bidragsinkomst'!I$3-GRUNDAVDRAG('Med bidragsinkomst'!$B19+'Med bidragsinkomst'!I$3))-JSA($B19,GRUNDAVDRAG($B19+I$3),Deltagandeskatter!$B$2)+MAX(0,0.2*($B19+I$3-Deltagandeskatter!$B$11))+MAX(0,0.05*('Med bidragsinkomst'!$B19+'Med bidragsinkomst'!I$3-Deltagandeskatter!$B$12)) -> 60386 | K19: =JSA($B19,GRUNDAVDRAG($B19+K$3),Deltagandeskatter!$B$2) -> 0 | L19: =JSA($B19,GRUNDAVDRAG($B19+L$3),Deltagandeskatter!$B$2) -> 0 | M19: =JSA($B19,GRUNDAVDRAG($B19+M$3),Deltagandeskatter!$B$2) -> 0 | N19: =JSA($B19,GRUNDAVDRAG($B19+N$3),Deltagandeskatter!$B$2) -> 0 | O19: =JSA($B19,GRUNDAVDRAG($B19+O$3),Deltagandeskatter!$B$2) -> 0 | P19: =JSA($B19,GRUNDAVDRAG($B19+P$3),Deltagandeskatter!$B$2) -> 0 | R19: 15000 | S19: 23100 | T19: 33100 | U19: 34000 | V19: 32000 | W19: 27000 | Y19: 0 | Z19: 3854 | AA19: 3854 | AB19: 4979 | AC19: 5300 | AD19: 5300 | AF19: 0% | AG19: 26% | AH19: 26% | AI19: 35% | AJ19: 35% | AK19: 35%
A20: 1333 | B20: 16000 | D20: =Deltagandeskatter!$B$2*('Med bidragsinkomst'!$B20+'Med bidragsinkomst'!D$3-GRUNDAVDRAG('Med bidragsinkomst'!$B20+'Med bidragsinkomst'!D$3))-JSA($B20,GRUNDAVDRAG($B20+D$3),Deltagandeskatter!$B$2)+MAX(0,0.2*($B20+D$3-Deltagandeskatter!$B$11))+MAX(0,0.05*('Med bidragsinkomst'!$B20+'Med bidragsinkomst'!D$3-Deltagandeskatter!$B$12)) -> 0 | E20: =Deltagandeskatter!$B$2*('Med bidragsinkomst'!$B20+'Med bidragsinkomst'!E$3-GRUNDAVDRAG('Med bidragsinkomst'!$B20+'Med bidragsinkomst'!E$3))-JSA($B20,GRUNDAVDRAG($B20+E$3),Deltagandeskatter!$B$2)+MAX(0,0.2*($B20+E$3-Deltagandeskatter!$B$11))+MAX(0,0.05*('Med bidragsinkomst'!$B20+'Med bidragsinkomst'!E$3-Deltagandeskatter!$B$12)) -> 13715 | F20: =Deltagandeskatter!$B$2*('Med bidragsinkomst'!$B20+'Med bidragsinkomst'!F$3-GRUNDAVDRAG('Med bidragsinkomst'!$B20+'Med bidragsinkomst'!F$3))-JSA($B20,GRUNDAVDRAG($B20+F$3),Deltagandeskatter!$B$2)+MAX(0,0.2*($B20+F$3-Deltagandeskatter!$B$11))+MAX(0,0.05*('Med bidragsinkomst'!$B20+'Med bidragsinkomst'!F$3-Deltagandeskatter!$B$12)) -> 26563 | G20: =Deltagandeskatter!$B$2*('Med bidragsinkomst'!$B20+'Med bidragsinkomst'!G$3-GRUNDAVDRAG('Med bidragsinkomst'!$B20+'Med bidragsinkomst'!G$3))-JSA($B20,GRUNDAVDRAG($B20+G$3),Deltagandeskatter!$B$2)+MAX(0,0.2*($B20+G$3-Deltagandeskatter!$B$11))+MAX(0,0.05*('Med bidragsinkomst'!$B20+'Med bidragsinkomst'!G$3-Deltagandeskatter!$B$12)) -> 36007 | H20: =Deltagandeskatter!$B$2*('Med bidragsinkomst'!$B20+'Med bidragsinkomst'!H$3-GRUNDAVDRAG('Med bidragsinkomst'!$B20+'Med bidragsinkomst'!H$3))-JSA($B20,GRUNDAVDRAG($B20+H$3),Deltagandeskatter!$B$2)+MAX(0,0.2*($B20+H$3-Deltagandeskatter!$B$11))+MAX(0,0.05*('Med bidragsinkomst'!$B20+'Med bidragsinkomst'!H$3-Deltagandeskatter!$B$12)) -> 43073 | I20: =Deltagandeskatter!$B$2*('Med bidragsinkomst'!$B20+'Med bidragsinkomst'!I$3-GRUNDAVDRAG('Med bidragsinkomst'!$B20+'Med bidragsinkomst'!I$3))-JSA($B20,GRUNDAVDRAG($B20+I$3),Deltagandeskatter!$B$2)+MAX(0,0.2*($B20+I$3-Deltagandeskatter!$B$11))+MAX(0,0.05*('Med bidragsinkomst'!$B20+'Med bidragsinkomst'!I$3-Deltagandeskatter!$B$12)) -> 60739 | K20: =JSA($B20,GRUNDAVDRAG($B20+K$3),Deltagandeskatter!$B$2) -> 0 | L20: =JSA($B20,GRUNDAVDRAG($B20+L$3),Deltagandeskatter!$B$2) -> 0 | M20: =JSA($B20,GRUNDAVDRAG($B20+M$3),Deltagandeskatter!$B$2) -> 0 | N20: =JSA($B20,GRUNDAVDRAG($B20+N$3),Deltagandeskatter!$B$2) -> 0 | O20: =JSA($B20,GRUNDAVDRAG($B20+O$3),Deltagandeskatter!$B$2) -> 0 | P20: =JSA($B20,GRUNDAVDRAG($B20+P$3),Deltagandeskatter!$B$2) -> 0 | R20: 16000 | S20: 23300 | T20: 33300 | U20: 33900 | V20: 31900 | W20: 26900 | Y20: 0 | Z20: =E20-E$4 -> 4111 | AA20: 4111 | AB20: 5332 | AC20: 5653 | AD20: 5653 | AF20: 0% | AG20: 26% | AH20: 26% | AI20: 35% | AJ20: 35% | AK20: 35%
A21: 1417 | B21: 17000 | D21: =Deltagandeskatter!$B$2*('Med bidragsinkomst'!$B21+'Med bidragsinkomst'!D$3-GRUNDAVDRAG('Med bidragsinkomst'!$B21+'Med bidragsinkomst'!D$3))-JSA($B21,GRUNDAVDRAG($B21+D$3),Deltagandeskatter!$B$2)+MAX(0,0.2*($B21+D$3-Deltagandeskatter!$B$11))+MAX(0,0.05*('Med bidragsinkomst'!$B21+'Med bidragsinkomst'!D$3-Deltagandeskatter!$B$12)) -> 0 | E21: =Deltagandeskatter!$B$2*('Med bidragsinkomst'!$B21+'Med bidragsinkomst'!E$3-GRUNDAVDRAG('Med bidragsinkomst'!$B21+'Med bidragsinkomst'!E$3))-JSA($B21,GRUNDAVDRAG($B21+E$3),Deltagandeskatter!$B$2)+MAX(0,0.2*($B21+E$3-Deltagandeskatter!$B$11))+MAX(0,0.05*('Med bidragsinkomst'!$B21+'Med bidragsinkomst'!E$3-Deltagandeskatter!$B$12)) -> 13972 | F21: =Deltagandeskatter!$B$2*('Med bidragsinkomst'!$B21+'Med bidragsinkomst'!F$3-GRUNDAVDRAG('Med bidragsinkomst'!$B21+'Med bidragsinkomst'!F$3))-JSA($B21,GRUNDAVDRAG($B21+F$3),Deltagandeskatter!$B$2)+MAX(0,0.2*($B21+F$3-Deltagandeskatter!$B$11))+MAX(0,0.05*('Med bidragsinkomst'!$B21+'Med bidragsinkomst'!F$3-Deltagandeskatter!$B$12)) -> 26820 | G21: =Deltagandeskatter!$B$2*('Med bidragsinkomst'!$B21+'Med bidragsinkomst'!G$3-GRUNDAVDRAG('Med bidragsinkomst'!$B21+'Med bidragsinkomst'!G$3))-JSA($B21,GRUNDAVDRAG($B21+G$3),Deltagandeskatter!$B$2)+MAX(0,0.2*($B21+G$3-Deltagandeskatter!$B$11))+MAX(0,0.05*('Med bidragsinkomst'!$B21+'Med bidragsinkomst'!G$3-Deltagandeskatter!$B$12)) -> 36360 | H21: =Deltagandeskatter!$B$2*('Med bidragsinkomst'!$B21+'Med bidragsinkomst'!H$3-GRUNDAVDRAG('Med bidragsinkomst'!$B21+'Med bidragsinkomst'!H$3))-JSA($B21,GRUNDAVDRAG($B21+H$3),Deltagandeskatter!$B$2)+MAX(0,0.2*($B21+H$3-Deltagandeskatter!$B$11))+MAX(0,0.05*('Med bidragsinkomst'!$B21+'Med bidragsinkomst'!H$3-Deltagandeskatter!$B$12)) -> 43426 | I21: =Deltagandeskatter!$B$2*('Med bidragsinkomst'!$B21+'Med bidragsinkomst'!I$3-GRUNDAVDRAG('Med bidragsinkomst'!$B21+'Med bidragsinkomst'!I$3))-JSA($B21,GRUNDAVDRAG($B21+I$3),Deltagandeskatter!$B$2)+MAX(0,0.2*($B21+I$3-Deltagandeskatter!$B$11))+MAX(0,0.05*('Med bidragsinkomst'!$B21+'Med bidragsinkomst'!I$3-Deltagandeskatter!$B$12)) -> 61092 | K21: =JSA($B21,GRUNDAVDRAG($B21+K$3),Deltagandeskatter!$B$2) -> 0 | L21: =JSA($B21,GRUNDAVDRAG($B21+L$3),Deltagandeskatter!$B$2) -> 0 | M21: =JSA($B21,GRUNDAVDRAG($B21+M$3),Deltagandeskatter!$B$2) -> 0 | N21: =JSA($B21,GRUNDAVDRAG($B21+N$3),Deltagandeskatter!$B$2) -> 0 | O21: =JSA($B21,GRUNDAVDRAG($B21+O$3),Deltagandeskatter!$B$2) -> 0 | P21: =JSA($B21,GRUNDAVDRAG($B21+P$3),Deltagandeskatter!$B$2) -> 0 | R21: 17000 | S21: 23500 | T21: 33500 | U21: 33800 | V21: 31800 | W21: 26800 | Y21: 0 | Z21: 4368 | AA21: 4368 | AB21: 5685 | AC21: 6006 | AD21: 6006 | AF21: 0% | AG21: 26% | AH21: 26% | AI21: 35% | AJ21: 35% | AK21: 35%
A22: 1500 | B22: 18000 | D22: =Deltagandeskatter!$B$2*('Med bidragsinkomst'!$B22+'Med bidragsinkomst'!D$3-GRUNDAVDRAG('Med bidragsinkomst'!$B22+'Med bidragsinkomst'!D$3))-JSA($B22,GRUNDAVDRAG($B22+D$3),Deltagandeskatter!$B$2)+MAX(0,0.2*($B22+D$3-Deltagandeskatter!$B$11))+MAX(0,0.05*('Med bidragsinkomst'!$B22+'Med bidragsinkomst'!D$3-Deltagandeskatter!$B$12)) -> 0 | E22: =Deltagandeskatter!$B$2*('Med bidragsinkomst'!$B22+'Med bidragsinkomst'!E$3-GRUNDAVDRAG('Med bidragsinkomst'!$B22+'Med bidragsinkomst'!E$3))-JSA($B22,GRUNDAVDRAG($B22+E$3),Deltagandeskatter!$B$2)+MAX(0,0.2*($B22+E$3-Deltagandeskatter!$B$11))+MAX(0,0.05*('Med bidragsinkomst'!$B22+'Med bidragsinkomst'!E$3-Deltagandeskatter!$B$12)) -> 14229 | F22: =Deltagandeskatter!$B$2*('Med bidragsinkomst'!$B22+'Med bidragsinkomst'!F$3-GRUNDAVDRAG('Med bidragsinkomst'!$B22+'Med bidragsinkomst'!F$3))-JSA($B22,GRUNDAVDRAG($B22+F$3),Deltagandeskatter!$B$2)+MAX(0,0.2*($B22+F$3-Deltagandeskatter!$B$11))+MAX(0,0.05*('Med bidragsinkomst'!$B22+'Med bidragsinkomst'!F$3-Deltagandeskatter!$B$12)) -> 27077 | G22: =Deltagandeskatter!$B$2*('Med bidragsinkomst'!$B22+'Med bidragsinkomst'!G$3-GRUNDAVDRAG('Med bidragsinkomst'!$B22+'Med bidragsinkomst'!G$3))-JSA($B22,GRUNDAVDRAG($B22+G$3),Deltagandeskatter!$B$2)+MAX(0,0.2*($B22+G$3-Deltagandeskatter!$B$11))+MAX(0,0.05*('Med bidragsinkomst'!$B22+'Med bidragsinkomst'!G$3-Deltagandeskatter!$B$12)) -> 36713 | H22: =Deltagandeskatter!$B$2*('Med bidragsinkomst'!$B22+'Med bidragsinkomst'!H$3-GRUNDAVDRAG('Med bidragsinkomst'!$B22+'Med bidragsinkomst'!H$3))-JSA($B22,GRUNDAVDRAG($B22+H$3),Deltagandeskatter!$B$2)+MAX(0,0.2*($B22+H$3-Deltagandeskatter!$B$11))+MAX(0,0.05*('Med bidragsinkomst'!$B22+'Med bidragsinkomst'!H$3-Deltagandeskatter!$B$12)) -> 43780 | I22: =Deltagandeskatter!$B$2*('Med bidragsinkomst'!$B22+'Med bidragsinkomst'!I$3-GRUNDAVDRAG('Med bidragsinkomst'!$B22+'Med bidragsinkomst'!I$3))-JSA($B22,GRUNDAVDRAG($B22+I$3),Deltagandeskatter!$B$2)+MAX(0,0.2*($B22+I$3-Deltagandeskatter!$B$11))+MAX(0,0.05*('Med bidragsinkomst'!$B22+'Med bidragsinkomst'!I$3-Deltagandeskatter!$B$12)) -> 61446 | K22: =JSA($B22,GRUNDAVDRAG($B22+K$3),Deltagandeskatter!$B$2) -> 0 | L22: =JSA($B22,GRUNDAVDRAG($B22+L$3),Deltagandeskatter!$B$2) -> 0 | M22: =JSA($B22,GRUNDAVDRAG($B22+M$3),Deltagandeskatter!$B$2) -> 0 | N22: =JSA($B22,GRUNDAVDRAG($B22+N$3),Deltagandeskatter!$B$2) -> 0 | O22: =JSA($B22,GRUNDAVDRAG($B22+O$3),Deltagandeskatter!$B$2) -> 0 | P22: =JSA($B22,GRUNDAVDRAG($B22+P$3),Deltagandeskatter!$B$2) -> 0 | R22: 18000 | S22: 23700 | T22: 33700 | U22: 33700 | V22: 31700 | W22: 26700 | Y22: 0 | Z22: 4625 | AA22: 4625 | AB22: 6039 | AC22: 6360 | AD22: 6360 | AF22: 0% | AG22: 26% | AH22: 26% | AI22: 35% | AJ22: 35% | AK22: 35%
A23: 1583 | B23: 19000 | D23: =Deltagandeskatter!$B$2*('Med bidragsinkomst'!$B23+'Med bidragsinkomst'!D$3-GRUNDAVDRAG('Med bidragsinkomst'!$B23+'Med bidragsinkomst'!D$3))-JSA($B23,GRUNDAVDRAG($B23+D$3),Deltagandeskatter!$B$2)+MAX(0,0.2*($B23+D$3-Deltagandeskatter!$B$11))+MAX(0,0.05*('Med bidragsinkomst'!$B23+'Med bidragsinkomst'!D$3-Deltagandeskatter!$B$12)) -> 0 | E23: =Deltagandeskatter!$B$2*('Med bidragsinkomst'!$B23+'Med bidragsinkomst'!E$3-GRUNDAVDRAG('Med bidragsinkomst'!$B23+'Med bidragsinkomst'!E$3))-JSA($B23,GRUNDAVDRAG($B23+E$3),Deltagandeskatter!$B$2)+MAX(0,0.2*($B23+E$3-Deltagandeskatter!$B$11))+MAX(0,0.05*('Med bidragsinkomst'!$B23+'Med bidragsinkomst'!E$3-Deltagandeskatter!$B$12)) -> 14486 | F23: =Deltagandeskatter!$B$2*('Med bidragsinkomst'!$B23+'Med bidragsinkomst'!F$3-GRUNDAVDRAG('Med bidragsinkomst'!$B23+'Med bidragsinkomst'!F$3))-JSA($B23,GRUNDAVDRAG($B23+F$3),Deltagandeskatter!$B$2)+MAX(0,0.2*($B23+F$3-Deltagandeskatter!$B$11))+MAX(0,0.05*('Med bidragsinkomst'!$B23+'Med bidragsinkomst'!F$3-Deltagandeskatter!$B$12)) -> 27334 | G23: =Deltagandeskatter!$B$2*('Med bidragsinkomst'!$B23+'Med bidragsinkomst'!G$3-GRUNDAVDRAG('Med bidragsinkomst'!$B23+'Med bidragsinkomst'!G$3))-JSA($B23,GRUNDAVDRAG($B23+G$3),Deltagandeskatter!$B$2)+MAX(0,0.2*($B23+G$3-Deltagandeskatter!$B$11))+MAX(0,0.05*('Med bidragsinkomst'!$B23+'Med bidragsinkomst'!G$3-Deltagandeskatter!$B$12)) -> 37066 | H23: =Deltagandeskatter!$B$2*('Med bidragsinkomst'!$B23+'Med bidragsinkomst'!H$3-GRUNDAVDRAG('Med bidragsinkomst'!$B23+'Med bidragsinkomst'!H$3))-JSA($B23,GRUNDAVDRAG($B23+H$3),Deltagandeskatter!$B$2)+MAX(0,0.2*($B23+H$3-Deltagandeskatter!$B$11))+MAX(0,0.05*('Med bidragsinkomst'!$B23+'Med bidragsinkomst'!H$3-Deltagandeskatter!$B$12)) -> 44133 | I23: =Deltagandeskatter!$B$2*('Med bidragsinkomst'!$B23+'Med bidragsinkomst'!I$3-GRUNDAVDRAG('Med bidragsinkomst'!$B23+'Med bidragsinkomst'!I$3))-JSA($B23,GRUNDAVDRAG($B23+I$3),Deltagandeskatter!$B$2)+MAX(0,0.2*($B23+I$3-Deltagandeskatter!$B$11))+MAX(0,0.05*('Med bidragsinkomst'!$B23+'Med bidragsinkomst'!I$3-Deltagandeskatter!$B$12)) -> 61799 | K23: =JSA($B23,GRUNDAVDRAG($B23+K$3),Deltagandeskatter!$B$2) -> 0 | L23: =JSA($B23,GRUNDAVDRAG($B23+L$3),Deltagandeskatter!$B$2) -> 0 | M23: =JSA($B23,GRUNDAVDRAG($B23+M$3),Deltagandeskatter!$B$2) -> 0 | N23: =JSA($B23,GRUNDAVDRAG($B23+N$3),Deltagandeskatter!$B$2) -> 0 | O23: =JSA($B23,GRUNDAVDRAG($B23+O$3),Deltagandeskatter!$B$2) -> 0 | P23: =JSA($B23,GRUNDAVDRAG($B23+P$3),Deltagandeskatter!$B$2) -> 0 | R23: 19000 | S23: 23900 | T23: 33900 | U23: 33600 | V23: 31600 | W23: 26600 | Y23: 0 | Z23: 4882 | AA23: 4882 | AB23: 6392 | AC23: 6713 | AD23: 6713 | AF23: 0% | AG23: 26% | AH23: 26% | AI23: 35% | AJ23: 35% | AK23: 35%
A24: 1667 | B24: 20000 | D24: =Deltagandeskatter!$B$2*('Med bidragsinkomst'!$B24+'Med bidragsinkomst'!D$3-GRUNDAVDRAG('Med bidragsinkomst'!$B24+'Med bidragsinkomst'!D$3))-JSA($B24,GRUNDAVDRAG($B24+D$3),Deltagandeskatter!$B$2)+MAX(0,0.2*($B24+D$3-Deltagandeskatter!$B$11))+MAX(0,0.05*('Med bidragsinkomst'!$B24+'Med bidragsinkomst'!D$3-Deltagandeskatter!$B$12)) -> 0 | E24: =Deltagandeskatter!$B$2*('Med bidragsinkomst'!$B24+'Med bidragsinkomst'!E$3-GRUNDAVDRAG('Med bidragsinkomst'!$B24+'Med bidragsinkomst'!E$3))-JSA($B24,GRUNDAVDRAG($B24+E$3),Deltagandeskatter!$B$2)+MAX(0,0.2*($B24+E$3-Deltagandeskatter!$B$11))+MAX(0,0.05*('Med bidragsinkomst'!$B24+'Med bidragsinkomst'!E$3-Deltagandeskatter!$B$12)) -> 14743 | F24: =Deltagandeskatter!$B$2*('Med bidragsinkomst'!$B24+'Med bidragsinkomst'!F$3-GRUNDAVDRAG('Med bidragsinkomst'!$B24+'Med bidragsinkomst'!F$3))-JSA($B24,GRUNDAVDRAG($B24+F$3),Deltagandeskatter!$B$2)+MAX(0,0.2*($B24+F$3-Deltagandeskatter!$B$11))+MAX(0,0.05*('Med bidragsinkomst'!$B24+'Med bidragsinkomst'!F$3-Deltagandeskatter!$B$12)) -> 27591 | G24: =Deltagandeskatter!$B$2*('Med bidragsinkomst'!$B24+'Med bidragsinkomst'!G$3-GRUNDAVDRAG('Med bidragsinkomst'!$B24+'Med bidragsinkomst'!G$3))-JSA($B24,GRUNDAVDRAG($B24+G$3),Deltagandeskatter!$B$2)+MAX(0,0.2*($B24+G$3-Deltagandeskatter!$B$11))+MAX(0,0.05*('Med bidragsinkomst'!$B24+'Med bidragsinkomst'!G$3-Deltagandeskatter!$B$12)) -> 37420 | H24: =Deltagandeskatter!$B$2*('Med bidragsinkomst'!$B24+'Med bidragsinkomst'!H$3-GRUNDAVDRAG('Med bidragsinkomst'!$B24+'Med bidragsinkomst'!H$3))-JSA($B24,GRUNDAVDRAG($B24+H$3),Deltagandeskatter!$B$2)+MAX(0,0.2*($B24+H$3-Deltagandeskatter!$B$11))+MAX(0,0.05*('Med bidragsinkomst'!$B24+'Med bidragsinkomst'!H$3-Deltagandeskatter!$B$12)) -> 44486 | I24: =Deltagandeskatter!$B$2*('Med bidragsinkomst'!$B24+'Med bidragsinkomst'!I$3-GRUNDAVDRAG('Med bidragsinkomst'!$B24+'Med bidragsinkomst'!I$3))-JSA($B24,GRUNDAVDRAG($B24+I$3),Deltagandeskatter!$B$2)+MAX(0,0.2*($B24+I$3-Deltagandeskatter!$B$11))+MAX(0,0.05*('Med bidragsinkomst'!$B24+'Med bidragsinkomst'!I$3-Deltagandeskatter!$B$12)) -> 62152 | K24: =JSA($B24,GRUNDAVDRAG($B24+K$3),Deltagandeskatter!$B$2) -> 321 | L24: =JSA($B24,GRUNDAVDRAG($B24+L$3),Deltagandeskatter!$B$2) -> 0 | M24: =JSA($B24,GRUNDAVDRAG($B24+M$3),Deltagandeskatter!$B$2) -> 0 | N24: =JSA($B24,GRUNDAVDRAG($B24+N$3),Deltagandeskatter!$B$2) -> 0 | O24: =JSA($B24,GRUNDAVDRAG($B24+O$3),Deltagandeskatter!$B$2) -> 0 | P24: =JSA($B24,GRUNDAVDRAG($B24+P$3),Deltagandeskatter!$B$2) -> 0 | R24: 19000 | S24: 24100 | T24: 34100 | U24: 33500 | V24: 31500 | W24: 26500 | Y24: 0 | Z24: 5139 | AA24: 5139 | AB24: =G24-G$4 -> 6745 | AC24: 7066 | AD24: 7066 | AF24: 0% | AG24: 26% | AH24: 26% | AI24: 35% | AJ24: 35% | AK24: 35%
A25: 1750 | B25: 21000 | D25: =Deltagandeskatter!$B$2*('Med bidragsinkomst'!$B25+'Med bidragsinkomst'!D$3-GRUNDAVDRAG('Med bidragsinkomst'!$B25+'Med bidragsinkomst'!D$3))-JSA($B25,GRUNDAVDRAG($B25+D$3),Deltagandeskatter!$B$2)+MAX(0,0.2*($B25+D$3-Deltagandeskatter!$B$11))+MAX(0,0.05*('Med bidragsinkomst'!$B25+'Med bidragsinkomst'!D$3-Deltagandeskatter!$B$12)) -> 0 | E25: =Deltagandeskatter!$B$2*('Med bidragsinkomst'!$B25+'Med bidragsinkomst'!E$3-GRUNDAVDRAG('Med bidragsinkomst'!$B25+'Med bidragsinkomst'!E$3))-JSA($B25,GRUNDAVDRAG($B25+E$3),Deltagandeskatter!$B$2)+MAX(0,0.2*($B25+E$3-Deltagandeskatter!$B$11))+MAX(0,0.05*('Med bidragsinkomst'!$B25+'Med bidragsinkomst'!E$3-Deltagandeskatter!$B$12)) -> 15000 | F25: =Deltagandeskatter!$B$2*('Med bidragsinkomst'!$B25+'Med bidragsinkomst'!F$3-GRUNDAVDRAG('Med bidragsinkomst'!$B25+'Med bidragsinkomst'!F$3))-JSA($B25,GRUNDAVDRAG($B25+F$3),Deltagandeskatter!$B$2)+MAX(0,0.2*($B25+F$3-Deltagandeskatter!$B$11))+MAX(0,0.05*('Med bidragsinkomst'!$B25+'Med bidragsinkomst'!F$3-Deltagandeskatter!$B$12)) -> 27848 | G25: =Deltagandeskatter!$B$2*('Med bidragsinkomst'!$B25+'Med bidragsinkomst'!G$3-GRUNDAVDRAG('Med bidragsinkomst'!$B25+'Med bidragsinkomst'!G$3))-JSA($B25,GRUNDAVDRAG($B25+G$3),Deltagandeskatter!$B$2)+MAX(0,0.2*($B25+G$3-Deltagandeskatter!$B$11))+MAX(0,0.05*('Med bidragsinkomst'!$B25+'Med bidragsinkomst'!G$3-Deltagandeskatter!$B$12)) -> 37773 | H25: =Deltagandeskatter!$B$2*('Med bidragsinkomst'!$B25+'Med bidragsinkomst'!H$3-GRUNDAVDRAG('Med bidragsinkomst'!$B25+'Med bidragsinkomst'!H$3))-JSA($B25,GRUNDAVDRAG($B25+H$3),Deltagandeskatter!$B$2)+MAX(0,0.2*($B25+H$3-Deltagandeskatter!$B$11))+MAX(0,0.05*('Med bidragsinkomst'!$B25+'Med bidragsinkomst'!H$3-Deltagandeskatter!$B$12)) -> 44840 | I25: =Deltagandeskatter!$B$2*('Med bidragsinkomst'!$B25+'Med bidragsinkomst'!I$3-GRUNDAVDRAG('Med bidragsinkomst'!$B25+'Med bidragsinkomst'!I$3))-JSA($B25,GRUNDAVDRAG($B25+I$3),Deltagandeskatter!$B$2)+MAX(0,0.2*($B25+I$3-Deltagandeskatter!$B$11))+MAX(0,0.05*('Med bidragsinkomst'!$B25+'Med bidragsinkomst'!I$3-Deltagandeskatter!$B$12)) -> 62506 | K25: =JSA($B25,GRUNDAVDRAG($B25+K$3),Deltagandeskatter!$B$2) -> 642 | L25: =JSA($B25,GRUNDAVDRAG($B25+L$3),Deltagandeskatter!$B$2) -> 0 | M25: =JSA($B25,GRUNDAVDRAG($B25+M$3),Deltagandeskatter!$B$2) -> 0 | N25: =JSA($B25,GRUNDAVDRAG($B25+N$3),Deltagandeskatter!$B$2) -> 0 | O25: =JSA($B25,GRUNDAVDRAG($B25+O$3),Deltagandeskatter!$B$2) -> 0 | P25: =JSA($B25,GRUNDAVDRAG($B25+P$3),Deltagandeskatter!$B$2) -> 0 | R25: 19000 | S25: 24300 | T25: 34300 | U25: 33400 | V25: 31400 | W25: 26400 | Y25: 0 | Z25: 5396 | AA25: 5396 | AB25: 7099 | AC25: 7420 | AD25: 7420 | AF25: 0% | AG25: 26% | AH25: 26% | AI25: =(AB25-AB24)/($B25-$B24) -> 35% | AJ25: 35% | AK25: 35%
A26: 1833 | B26: 22000 | D26: =Deltagandeskatter!$B$2*('Med bidragsinkomst'!$B26+'Med bidragsinkomst'!D$3-GRUNDAVDRAG('Med bidragsinkomst'!$B26+'Med bidragsinkomst'!D$3))-JSA($B26,GRUNDAVDRAG($B26+D$3),Deltagandeskatter!$B$2)+MAX(0,0.2*($B26+D$3-Deltagandeskatter!$B$11))+MAX(0,0.05*('Med bidragsinkomst'!$B26+'Med bidragsinkomst'!D$3-Deltagandeskatter!$B$12)) -> -0 | E26: =Deltagandeskatter!$B$2*('Med bidragsinkomst'!$B26+'Med bidragsinkomst'!E$3-GRUNDAVDRAG('Med bidragsinkomst'!$B26+'Med bidragsinkomst'!E$3))-JSA($B26,GRUNDAVDRAG($B26+E$3),Deltagandeskatter!$B$2)+MAX(0,0.2*($B26+E$3-Deltagandeskatter!$B$11))+MAX(0,0.05*('Med bidragsinkomst'!$B26+'Med bidragsinkomst'!E$3-Deltagandeskatter!$B$12)) -> 15257 | F26: =Deltagandeskatter!$B$2*('Med bidragsinkomst'!$B26+'Med bidragsinkomst'!F$3-GRUNDAVDRAG('Med bidragsinkomst'!$B26+'Med bidragsinkomst'!F$3))-JSA($B26,GRUNDAVDRAG($B26+F$3),Deltagandeskatter!$B$2)+MAX(0,0.2*($B26+F$3-Deltagandeskatter!$B$11))+MAX(0,0.05*('Med bidragsinkomst'!$B26+'Med bidragsinkomst'!F$3-Deltagandeskatter!$B$12)) -> 28105 | G26: =Deltagandeskatter!$B$2*('Med bidragsinkomst'!$B26+'Med bidragsinkomst'!G$3-GRUNDAVDRAG('Med bidragsinkomst'!$B26+'Med bidragsinkomst'!G$3))-JSA($B26,GRUNDAVDRAG($B26+G$3),Deltagandeskatter!$B$2)+MAX(0,0.2*($B26+G$3-Deltagandeskatter!$B$11))+MAX(0,0.05*('Med bidragsinkomst'!$B26+'Med bidragsinkomst'!G$3-Deltagandeskatter!$B$12)) -> 38126 | H26: =Deltagandeskatter!$B$2*('Med bidragsinkomst'!$B26+'Med bidragsinkomst'!H$3-GRUNDAVDRAG('Med bidragsinkomst'!$B26+'Med bidragsinkomst'!H$3))-JSA($B26,GRUNDAVDRAG($B26+H$3),Deltagandeskatter!$B$2)+MAX(0,0.2*($B26+H$3-Deltagandeskatter!$B$11))+MAX(0,0.05*('Med bidragsinkomst'!$B26+'Med bidragsinkomst'!H$3-Deltagandeskatter!$B$12)) -> 45193 | I26: =Deltagandeskatter!$B$2*('Med bidragsinkomst'!$B26+'Med bidragsinkomst'!I$3-GRUNDAVDRAG('Med bidragsinkomst'!$B26+'Med bidragsinkomst'!I$3))-JSA($B26,GRUNDAVDRAG($B26+I$3),Deltagandeskatter!$B$2)+MAX(0,0.2*($B26+I$3-Deltagandeskatter!$B$11))+MAX(0,0.05*('Med bidragsinkomst'!$B26+'Med bidragsinkomst'!I$3-Deltagandeskatter!$B$12)) -> 62859 | K26: =JSA($B26,GRUNDAVDRAG($B26+K$3),Deltagandeskatter!$B$2) -> 964 | L26: =JSA($B26,GRUNDAVDRAG($B26+L$3),Deltagandeskatter!$B$2) -> 0 | M26: =JSA($B26,GRUNDAVDRAG($B26+M$3),Deltagandeskatter!$B$2) -> 0 | N26: =JSA($B26,GRUNDAVDRAG($B26+N$3),Deltagandeskatter!$B$2) -> 0 | O26: =JSA($B26,GRUNDAVDRAG($B26+O$3),Deltagandeskatter!$B$2) -> 0 | P26: =JSA($B26,GRUNDAVDRAG($B26+P$3),Deltagandeskatter!$B$2) -> 0 | R26: 19000 | S26: 24500 | T26: 34500 | U26: 33300 | V26: 31300 | W26: 26300 | Y26: -0 | Z26: 5653 | AA26: 5653 | AB26: 7452 | AC26: 7773 | AD26: 7773 | AF26: -0% | AG26: 26% | AH26: 26% | AI26: 35% | AJ26: 35% | AK26: 35%
A27: 1917 | B27: 23000 | D27: =Deltagandeskatter!$B$2*('Med bidragsinkomst'!$B27+'Med bidragsinkomst'!D$3-GRUNDAVDRAG('Med bidragsinkomst'!$B27+'Med bidragsinkomst'!D$3))-JSA($B27,GRUNDAVDRAG($B27+D$3),Deltagandeskatter!$B$2)+MAX(0,0.2*($B27+D$3-Deltagandeskatter!$B$11))+MAX(0,0.05*('Med bidragsinkomst'!$B27+'Med bidragsinkomst'!D$3-Deltagandeskatter!$B$12)) -> -0 | E27: =Deltagandeskatter!$B$2*('Med bidragsinkomst'!$B27+'Med bidragsinkomst'!E$3-GRUNDAVDRAG('Med bidragsinkomst'!$B27+'Med bidragsinkomst'!E$3))-JSA($B27,GRUNDAVDRAG($B27+E$3),Deltagandeskatter!$B$2)+MAX(0,0.2*($B27+E$3-Deltagandeskatter!$B$11))+MAX(0,0.05*('Med bidragsinkomst'!$B27+'Med bidragsinkomst'!E$3-Deltagandeskatter!$B$12)) -> 15514 | F27: =Deltagandeskatter!$B$2*('Med bidragsinkomst'!$B27+'Med bidragsinkomst'!F$3-GRUNDAVDRAG('Med bidragsinkomst'!$B27+'Med bidragsinkomst'!F$3))-JSA($B27,GRUNDAVDRAG($B27+F$3),Deltagandeskatter!$B$2)+MAX(0,0.2*($B27+F$3-Deltagandeskatter!$B$11))+MAX(0,0.05*('Med bidragsinkomst'!$B27+'Med bidragsinkomst'!F$3-Deltagandeskatter!$B$12)) -> 28426 | G27: =Deltagandeskatter!$B$2*('Med bidragsinkomst'!$B27+'Med bidragsinkomst'!G$3-GRUNDAVDRAG('Med bidragsinkomst'!$B27+'Med bidragsinkomst'!G$3))-JSA($B27,GRUNDAVDRAG($B27+G$3),Deltagandeskatter!$B$2)+MAX(0,0.2*($B27+G$3-Deltagandeskatter!$B$11))+MAX(0,0.05*('Med bidragsinkomst'!$B27+'Med bidragsinkomst'!G$3-Deltagandeskatter!$B$12)) -> 38480 | H27: =Deltagandeskatter!$B$2*('Med bidragsinkomst'!$B27+'Med bidragsinkomst'!H$3-GRUNDAVDRAG('Med bidragsinkomst'!$B27+'Med bidragsinkomst'!H$3))-JSA($B27,GRUNDAVDRAG($B27+H$3),Deltagandeskatter!$B$2)+MAX(0,0.2*($B27+H$3-Deltagandeskatter!$B$11))+MAX(0,0.05*('Med bidragsinkomst'!$B27+'Med bidragsinkomst'!H$3-Deltagandeskatter!$B$12)) -> 45546 | I27: =Deltagandeskatter!$B$2*('Med bidragsinkomst'!$B27+'Med bidragsinkomst'!I$3-GRUNDAVDRAG('Med bidragsinkomst'!$B27+'Med bidragsinkomst'!I$3))-JSA($B27,GRUNDAVDRAG($B27+I$3),Deltagandeskatter!$B$2)+MAX(0,0.2*($B27+I$3-Deltagandeskatter!$B$11))+MAX(0,0.05*('Med bidragsinkomst'!$B27+'Med bidragsinkomst'!I$3-Deltagandeskatter!$B$12)) -> 63212 | K27: =JSA($B27,GRUNDAVDRAG($B27+K$3),Deltagandeskatter!$B$2) -> 1285 | L27: =JSA($B27,GRUNDAVDRAG($B27+L$3),Deltagandeskatter!$B$2) -> 0 | M27: =JSA($B27,GRUNDAVDRAG($B27+M$3),Deltagandeskatter!$B$2) -> 0 | N27: =JSA($B27,GRUNDAVDRAG($B27+N$3),Deltagandeskatter!$B$2) -> 0 | O27: =JSA($B27,GRUNDAVDRAG($B27+O$3),Deltagandeskatter!$B$2) -> 0 | P27: =JSA($B27,GRUNDAVDRAG($B27+P$3),Deltagandeskatter!$B$2) -> 0 | R27: 19000 | S27: 24700 | T27: 34500 | U27: 33200 | V27: 31200 | W27: 26200 | Y27: -0 | Z27: 5910 | AA27: 5974 | AB27: 7805 | AC27: 8126 | AD27: 8126 | AF27: 0% | AG27: 26% | AH27: 32% | AI27: 35% | AJ27: 35% | AK27: 35%
A28: 2000 | B28: 24000 | D28: =Deltagandeskatter!$B$2*('Med bidragsinkomst'!$B28+'Med bidragsinkomst'!D$3-GRUNDAVDRAG('Med bidragsinkomst'!$B28+'Med bidragsinkomst'!D$3))-JSA($B28,GRUNDAVDRAG($B28+D$3),Deltagandeskatter!$B$2)+MAX(0,0.2*($B28+D$3-Deltagandeskatter!$B$11))+MAX(0,0.05*('Med bidragsinkomst'!$B28+'Med bidragsinkomst'!D$3-Deltagandeskatter!$B$12)) -> 0 | E28: =Deltagandeskatter!$B$2*('Med bidragsinkomst'!$B28+'Med bidragsinkomst'!E$3-GRUNDAVDRAG('Med bidragsinkomst'!$B28+'Med bidragsinkomst'!E$3))-JSA($B28,GRUNDAVDRAG($B28+E$3),Deltagandeskatter!$B$2)+MAX(0,0.2*($B28+E$3-Deltagandeskatter!$B$11))+MAX(0,0.05*('Med bidragsinkomst'!$B28+'Med bidragsinkomst'!E$3-Deltagandeskatter!$B$12)) -> 15771 | F28: =Deltagandeskatter!$B$2*('Med bidragsinkomst'!$B28+'Med bidragsinkomst'!F$3-GRUNDAVDRAG('Med bidragsinkomst'!$B28+'Med bidragsinkomst'!F$3))-JSA($B28,GRUNDAVDRAG($B28+F$3),Deltagandeskatter!$B$2)+MAX(0,0.2*($B28+F$3-Deltagandeskatter!$B$11))+MAX(0,0.05*('Med bidragsinkomst'!$B28+'Med bidragsinkomst'!F$3-Deltagandeskatter!$B$12)) -> 28747 | G28: =Deltagandeskatter!$B$2*('Med bidragsinkomst'!$B28+'Med bidragsinkomst'!G$3-GRUNDAVDRAG('Med bidragsinkomst'!$B28+'Med bidragsinkomst'!G$3))-JSA($B28,GRUNDAVDRAG($B28+G$3),Deltagandeskatter!$B$2)+MAX(0,0.2*($B28+G$3-Deltagandeskatter!$B$11))+MAX(0,0.05*('Med bidragsinkomst'!$B28+'Med bidragsinkomst'!G$3-Deltagandeskatter!$B$12)) -> 38833 | H28: =Deltagandeskatter!$B$2*('Med bidragsinkomst'!$B28+'Med bidragsinkomst'!H$3-GRUNDAVDRAG('Med bidragsinkomst'!$B28+'Med bidragsinkomst'!H$3))-JSA($B28,GRUNDAVDRAG($B28+H$3),Deltagandeskatter!$B$2)+MAX(0,0.2*($B28+H$3-Deltagandeskatter!$B$11))+MAX(0,0.05*('Med bidragsinkomst'!$B28+'Med bidragsinkomst'!H$3-Deltagandeskatter!$B$12)) -> 45899 | I28: =Deltagandeskatter!$B$2*('Med bidragsinkomst'!$B28+'Med bidragsinkomst'!I$3-GRUNDAVDRAG('Med bidragsinkomst'!$B28+'Med bidragsinkomst'!I$3))-JSA($B28,GRUNDAVDRAG($B28+I$3),Deltagandeskatter!$B$2)+MAX(0,0.2*($B28+I$3-Deltagandeskatter!$B$11))+MAX(0,0.05*('Med bidragsinkomst'!$B28+'Med bidragsinkomst'!I$3-Deltagandeskatter!$B$12)) -> 63565 | K28: =JSA($B28,GRUNDAVDRAG($B28+K$3),Deltagandeskatter!$B$2) -> 1606 | L28: =JSA($B28,GRUNDAVDRAG($B28+L$3),Deltagandeskatter!$B$2) -> 0 | M28: =JSA($B28,GRUNDAVDRAG($B28+M$3),Deltagandeskatter!$B$2) -> 0 | N28: =JSA($B28,GRUNDAVDRAG($B28+N$3),Deltagandeskatter!$B$2) -> 0 | O28: =JSA($B28,GRUNDAVDRAG($B28+O$3),Deltagandeskatter!$B$2) -> 0 | P28: =JSA($B28,GRUNDAVDRAG($B28+P$3),Deltagandeskatter!$B$2) -> 0 | R28: 19000 | S28: 24900 | T28: 34500 | U28: 33100 | V28: 31100 | W28: 26100 | Y28: 0 | Z28: 6167 | AA28: 6296 | AB28: 8158 | AC28: 8480 | AD28: 8480 | AF28: =(Y28-Y27)/($B28-$B27) -> 0% | AG28: 26% | AH28: 32% | AI28: 35% | AJ28: 35% | AK28: 35%
A29: 2083 | B29: 25000 | D29: =Deltagandeskatter!$B$2*('Med bidragsinkomst'!$B29+'Med bidragsinkomst'!D$3-GRUNDAVDRAG('Med bidragsinkomst'!$B29+'Med bidragsinkomst'!D$3))-JSA($B29,GRUNDAVDRAG($B29+D$3),Deltagandeskatter!$B$2)+MAX(0,0.2*($B29+D$3-Deltagandeskatter!$B$11))+MAX(0,0.05*('Med bidragsinkomst'!$B29+'Med bidragsinkomst'!D$3-Deltagandeskatter!$B$12)) -> 0 | E29: =Deltagandeskatter!$B$2*('Med bidragsinkomst'!$B29+'Med bidragsinkomst'!E$3-GRUNDAVDRAG('Med bidragsinkomst'!$B29+'Med bidragsinkomst'!E$3))-JSA($B29,GRUNDAVDRAG($B29+E$3),Deltagandeskatter!$B$2)+MAX(0,0.2*($B29+E$3-Deltagandeskatter!$B$11))+MAX(0,0.05*('Med bidragsinkomst'!$B29+'Med bidragsinkomst'!E$3-Deltagandeskatter!$B$12)) -> 16028 | F29: =Deltagandeskatter!$B$2*('Med bidragsinkomst'!$B29+'Med bidragsinkomst'!F$3-GRUNDAVDRAG('Med bidragsinkomst'!$B29+'Med bidragsinkomst'!F$3))-JSA($B29,GRUNDAVDRAG($B29+F$3),Deltagandeskatter!$B$2)+MAX(0,0.2*($B29+F$3-Deltagandeskatter!$B$11))+MAX(0,0.05*('Med bidragsinkomst'!$B29+'Med bidragsinkomst'!F$3-Deltagandeskatter!$B$12)) -> 29069 | G29: =Deltagandeskatter!$B$2*('Med bidragsinkomst'!$B29+'Med bidragsinkomst'!G$3-GRUNDAVDRAG('Med bidragsinkomst'!$B29+'Med bidragsinkomst'!G$3))-JSA($B29,GRUNDAVDRAG($B29+G$3),Deltagandeskatter!$B$2)+MAX(0,0.2*($B29+G$3-Deltagandeskatter!$B$11))+MAX(0,0.05*('Med bidragsinkomst'!$B29+'Med bidragsinkomst'!G$3-Deltagandeskatter!$B$12)) -> 39186 | H29: =Deltagandeskatter!$B$2*('Med bidragsinkomst'!$B29+'Med bidragsinkomst'!H$3-GRUNDAVDRAG('Med bidragsinkomst'!$B29+'Med bidragsinkomst'!H$3))-JSA($B29,GRUNDAVDRAG($B29+H$3),Deltagandeskatter!$B$2)+MAX(0,0.2*($B29+H$3-Deltagandeskatter!$B$11))+MAX(0,0.05*('Med bidragsinkomst'!$B29+'Med bidragsinkomst'!H$3-Deltagandeskatter!$B$12)) -> 46253 | I29: =Deltagandeskatter!$B$2*('Med bidragsinkomst'!$B29+'Med bidragsinkomst'!I$3-GRUNDAVDRAG('Med bidragsinkomst'!$B29+'Med bidragsinkomst'!I$3))-JSA($B29,GRUNDAVDRAG($B29+I$3),Deltagandeskatter!$B$2)+MAX(0,0.2*($B29+I$3-Deltagandeskatter!$B$11))+MAX(0,0.05*('Med bidragsinkomst'!$B29+'Med bidragsinkomst'!I$3-Deltagandeskatter!$B$12)) -> 63919 | K29: =JSA($B29,GRUNDAVDRAG($B29+K$3),Deltagandeskatter!$B$2) -> 1927 | L29: =JSA($B29,GRUNDAVDRAG($B29+L$3),Deltagandeskatter!$B$2) -> 0 | M29: =JSA($B29,GRUNDAVDRAG($B29+M$3),Deltagandeskatter!$B$2) -> 0 | N29: =JSA($B29,GRUNDAVDRAG($B29+N$3),Deltagandeskatter!$B$2) -> 0 | O29: =JSA($B29,GRUNDAVDRAG($B29+O$3),Deltagandeskatter!$B$2) -> 0 | P29: =JSA($B29,GRUNDAVDRAG($B29+P$3),Deltagandeskatter!$B$2) -> 0 | R29: 19000 | S29: 25100 | T29: 34500 | U29: 33000 | V29: 31000 | W29: 26000 | Y29: 0 | Z29: 6424 | AA29: 6617 | AB29: 8512 | AC29: 8833 | AD29: 8833 | AF29: 0% | AG29: 26% | AH29: 32% | AI29: 35% | AJ29: 35% | AK29: 35%
A30: 2167 | B30: 26000 | D30: =Deltagandeskatter!$B$2*('Med bidragsinkomst'!$B30+'Med bidragsinkomst'!D$3-GRUNDAVDRAG('Med bidragsinkomst'!$B30+'Med bidragsinkomst'!D$3))-JSA($B30,GRUNDAVDRAG($B30+D$3),Deltagandeskatter!$B$2)+MAX(0,0.2*($B30+D$3-Deltagandeskatter!$B$11))+MAX(0,0.05*('Med bidragsinkomst'!$B30+'Med bidragsinkomst'!D$3-Deltagandeskatter!$B$12)) -> 0 | E30: =Deltagandeskatter!$B$2*('Med bidragsinkomst'!$B30+'Med bidragsinkomst'!E$3-GRUNDAVDRAG('Med bidragsinkomst'!$B30+'Med bidragsinkomst'!E$3))-JSA($B30,GRUNDAVDRAG($B30+E$3),Deltagandeskatter!$B$2)+MAX(0,0.2*($B30+E$3-Deltagandeskatter!$B$11))+MAX(0,0.05*('Med bidragsinkomst'!$B30+'Med bidragsinkomst'!E$3-Deltagandeskatter!$B$12)) -> 16060 | F30: =Deltagandeskatter!$B$2*('Med bidragsinkomst'!$B30+'Med bidragsinkomst'!F$3-GRUNDAVDRAG('Med bidragsinkomst'!$B30+'Med bidragsinkomst'!F$3))-JSA($B30,GRUNDAVDRAG($B30+F$3),Deltagandeskatter!$B$2)+MAX(0,0.2*($B30+F$3-Deltagandeskatter!$B$11))+MAX(0,0.05*('Med bidragsinkomst'!$B30+'Med bidragsinkomst'!F$3-Deltagandeskatter!$B$12)) -> 29390 | G30: =Deltagandeskatter!$B$2*('Med bidragsinkomst'!$B30+'Med bidragsinkomst'!G$3-GRUNDAVDRAG('Med bidragsinkomst'!$B30+'Med bidragsinkomst'!G$3))-JSA($B30,GRUNDAVDRAG($B30+G$3),Deltagandeskatter!$B$2)+MAX(0,0.2*($B30+G$3-Deltagandeskatter!$B$11))+MAX(0,0.05*('Med bidragsinkomst'!$B30+'Med bidragsinkomst'!G$3-Deltagandeskatter!$B$12)) -> 39540 | H30: =Deltagandeskatter!$B$2*('Med bidragsinkomst'!$B30+'Med bidragsinkomst'!H$3-GRUNDAVDRAG('Med bidragsinkomst'!$B30+'Med bidragsinkomst'!H$3))-JSA($B30,GRUNDAVDRAG($B30+H$3),Deltagandeskatter!$B$2)+MAX(0,0.2*($B30+H$3-Deltagandeskatter!$B$11))+MAX(0,0.05*('Med bidragsinkomst'!$B30+'Med bidragsinkomst'!H$3-Deltagandeskatter!$B$12)) -> 46606 | I30: =Deltagandeskatter!$B$2*('Med bidragsinkomst'!$B30+'Med bidragsinkomst'!I$3-GRUNDAVDRAG('Med bidragsinkomst'!$B30+'Med bidragsinkomst'!I$3))-JSA($B30,GRUNDAVDRAG($B30+I$3),Deltagandeskatter!$B$2)+MAX(0,0.2*($B30+I$3-Deltagandeskatter!$B$11))+MAX(0,0.05*('Med bidragsinkomst'!$B30+'Med bidragsinkomst'!I$3-Deltagandeskatter!$B$12)) -> 64240 | K30: =JSA($B30,GRUNDAVDRAG($B30+K$3),Deltagandeskatter!$B$2) -> 2248 | L30: =JSA($B30,GRUNDAVDRAG($B30+L$3),Deltagandeskatter!$B$2) -> 225 | M30: =JSA($B30,GRUNDAVDRAG($B30+M$3),Deltagandeskatter!$B$2) -> 0 | N30: =JSA($B30,GRUNDAVDRAG($B30+N$3),Deltagandeskatter!$B$2) -> 0 | O30: =JSA($B30,GRUNDAVDRAG($B30+O$3),Deltagandeskatter!$B$2) -> 0 | P30: =JSA($B30,GRUNDAVDRAG($B30+P$3),Deltagandeskatter!$B$2) -> 32 | R30: 19000 | S30: 25300 | T30: 34500 | U30: 32900 | V30: 30900 | W30: 25900 | Y30: 0 | Z30: 6456 | AA30: 6938 | AB30: 8865 | AC30: 9186 | AD30: 9154 | AF30: 0% | AG30: 3% | AH30: 32% | AI30: 35% | AJ30: 35% | AK30: 32%
A31: 2250 | B31: 27000 | D31: =Deltagandeskatter!$B$2*('Med bidragsinkomst'!$B31+'Med bidragsinkomst'!D$3-GRUNDAVDRAG('Med bidragsinkomst'!$B31+'Med bidragsinkomst'!D$3))-JSA($B31,GRUNDAVDRAG($B31+D$3),Deltagandeskatter!$B$2)+MAX(0,0.2*($B31+D$3-Deltagandeskatter!$B$11))+MAX(0,0.05*('Med bidragsinkomst'!$B31+'Med bidragsinkomst'!D$3-Deltagandeskatter!$B$12)) -> -0 | E31: =Deltagandeskatter!$B$2*('Med bidragsinkomst'!$B31+'Med bidragsinkomst'!E$3-GRUNDAVDRAG('Med bidragsinkomst'!$B31+'Med bidragsinkomst'!E$3))-JSA($B31,GRUNDAVDRAG($B31+E$3),Deltagandeskatter!$B$2)+MAX(0,0.2*($B31+E$3-Deltagandeskatter!$B$11))+MAX(0,0.05*('Med bidragsinkomst'!$B31+'Med bidragsinkomst'!E$3-Deltagandeskatter!$B$12)) -> 16060 | F31: =Deltagandeskatter!$B$2*('Med bidragsinkomst'!$B31+'Med bidragsinkomst'!F$3-GRUNDAVDRAG('Med bidragsinkomst'!$B31+'Med bidragsinkomst'!F$3))-JSA($B31,GRUNDAVDRAG($B31+F$3),Deltagandeskatter!$B$2)+MAX(0,0.2*($B31+F$3-Deltagandeskatter!$B$11))+MAX(0,0.05*('Med bidragsinkomst'!$B31+'Med bidragsinkomst'!F$3-Deltagandeskatter!$B$12)) -> 29711 | G31: =Deltagandeskatter!$B$2*('Med bidragsinkomst'!$B31+'Med bidragsinkomst'!G$3-GRUNDAVDRAG('Med bidragsinkomst'!$B31+'Med bidragsinkomst'!G$3))-JSA($B31,GRUNDAVDRAG($B31+G$3),Deltagandeskatter!$B$2)+MAX(0,0.2*($B31+G$3-Deltagandeskatter!$B$11))+MAX(0,0.05*('Med bidragsinkomst'!$B31+'Med bidragsinkomst'!G$3-Deltagandeskatter!$B$12)) -> 39893 | H31: =Deltagandeskatter!$B$2*('Med bidragsinkomst'!$B31+'Med bidragsinkomst'!H$3-GRUNDAVDRAG('Med bidragsinkomst'!$B31+'Med bidragsinkomst'!H$3))-JSA($B31,GRUNDAVDRAG($B31+H$3),Deltagandeskatter!$B$2)+MAX(0,0.2*($B31+H$3-Deltagandeskatter!$B$11))+MAX(0,0.05*('Med bidragsinkomst'!$B31+'Med bidragsinkomst'!H$3-Deltagandeskatter!$B$12)) -> 46959 | I31: =Deltagandeskatter!$B$2*('Med bidragsinkomst'!$B31+'Med bidragsinkomst'!I$3-GRUNDAVDRAG('Med bidragsinkomst'!$B31+'Med bidragsinkomst'!I$3))-JSA($B31,GRUNDAVDRAG($B31+I$3),Deltagandeskatter!$B$2)+MAX(0,0.2*($B31+I$3-Deltagandeskatter!$B$11))+MAX(0,0.05*('Med bidragsinkomst'!$B31+'Med bidragsinkomst'!I$3-Deltagandeskatter!$B$12)) -> 64240 | K31: =JSA($B31,GRUNDAVDRAG($B31+K$3),Deltagandeskatter!$B$2) -> 2570 | L31: =JSA($B31,GRUNDAVDRAG($B31+L$3),Deltagandeskatter!$B$2) -> 482 | M31: =JSA($B31,GRUNDAVDRAG($B31+M$3),Deltagandeskatter!$B$2) -> 0 | N31: =JSA($B31,GRUNDAVDRAG($B31+N$3),Deltagandeskatter!$B$2) -> 0 | O31: =JSA($B31,GRUNDAVDRAG($B31+O$3),Deltagandeskatter!$B$2) -> 0 | P31: =JSA($B31,GRUNDAVDRAG($B31+P$3),Deltagandeskatter!$B$2) -> 385 | R31: 19000 | S31: 25500 | T31: 34500 | U31: 32800 | V31: 30800 | W31: 25800 | Y31: -0 | Z31: 6456 | AA31: 7259 | AB31: 9218 | AC31: 9540 | AD31: 9155 | AF31: -0% | AG31: -0% | AH31: 32% | AI31: 35% | AJ31: 35% | AK31: 0%
A32: 2333 | B32: 28000 | D32: =Deltagandeskatter!$B$2*('Med bidragsinkomst'!$B32+'Med bidragsinkomst'!D$3-GRUNDAVDRAG('Med bidragsinkomst'!$B32+'Med bidragsinkomst'!D$3))-JSA($B32,GRUNDAVDRAG($B32+D$3),Deltagandeskatter!$B$2)+MAX(0,0.2*($B32+D$3-Deltagandeskatter!$B$11))+MAX(0,0.05*('Med bidragsinkomst'!$B32+'Med bidragsinkomst'!D$3-Deltagandeskatter!$B$12)) -> -0 | E32: =Deltagandeskatter!$B$2*('Med bidragsinkomst'!$B32+'Med bidragsinkomst'!E$3-GRUNDAVDRAG('Med bidragsinkomst'!$B32+'Med bidragsinkomst'!E$3))-JSA($B32,GRUNDAVDRAG($B32+E$3),Deltagandeskatter!$B$2)+MAX(0,0.2*($B32+E$3-Deltagandeskatter!$B$11))+MAX(0,0.05*('Med bidragsinkomst'!$B32+'Med bidragsinkomst'!E$3-Deltagandeskatter!$B$12)) -> 16060 | F32: =Deltagandeskatter!$B$2*('Med bidragsinkomst'!$B32+'Med bidragsinkomst'!F$3-GRUNDAVDRAG('Med bidragsinkomst'!$B32+'Med bidragsinkomst'!F$3))-JSA($B32,GRUNDAVDRAG($B32+F$3),Deltagandeskatter!$B$2)+MAX(0,0.2*($B32+F$3-Deltagandeskatter!$B$11))+MAX(0,0.05*('Med bidragsinkomst'!$B32+'Med bidragsinkomst'!F$3-Deltagandeskatter!$B$12)) -> 30032 | G32: =Deltagandeskatter!$B$2*('Med bidragsinkomst'!$B32+'Med bidragsinkomst'!G$3-GRUNDAVDRAG('Med bidragsinkomst'!$B32+'Med bidragsinkomst'!G$3))-JSA($B32,GRUNDAVDRAG($B32+G$3),Deltagandeskatter!$B$2)+MAX(0,0.2*($B32+G$3-Deltagandeskatter!$B$11))+MAX(0,0.05*('Med bidragsinkomst'!$B32+'Med bidragsinkomst'!G$3-Deltagandeskatter!$B$12)) -> 40246 | H32: =Deltagandeskatter!$B$2*('Med bidragsinkomst'!$B32+'Med bidragsinkomst'!H$3-GRUNDAVDRAG('Med bidragsinkomst'!$B32+'Med bidragsinkomst'!H$3))-JSA($B32,GRUNDAVDRAG($B32+H$3),Deltagandeskatter!$B$2)+MAX(0,0.2*($B32+H$3-Deltagandeskatter!$B$11))+MAX(0,0.05*('Med bidragsinkomst'!$B32+'Med bidragsinkomst'!H$3-Deltagandeskatter!$B$12)) -> 47313 | I32: =Deltagandeskatter!$B$2*('Med bidragsinkomst'!$B32+'Med bidragsinkomst'!I$3-GRUNDAVDRAG('Med bidragsinkomst'!$B32+'Med bidragsinkomst'!I$3))-JSA($B32,GRUNDAVDRAG($B32+I$3),Deltagandeskatter!$B$2)+MAX(0,0.2*($B32+I$3-Deltagandeskatter!$B$11))+MAX(0,0.05*('Med bidragsinkomst'!$B32+'Med bidragsinkomst'!I$3-Deltagandeskatter!$B$12)) -> 64240 | K32: =JSA($B32,GRUNDAVDRAG($B32+K$3),Deltagandeskatter!$B$2) -> 2891 | L32: =JSA($B32,GRUNDAVDRAG($B32+L$3),Deltagandeskatter!$B$2) -> 739 | M32: =JSA($B32,GRUNDAVDRAG($B32+M$3),Deltagandeskatter!$B$2) -> 0 | N32: =JSA($B32,GRUNDAVDRAG($B32+N$3),Deltagandeskatter!$B$2) -> 0 | O32: =JSA($B32,GRUNDAVDRAG($B32+O$3),Deltagandeskatter!$B$2) -> 0 | P32: =JSA($B32,GRUNDAVDRAG($B32+P$3),Deltagandeskatter!$B$2) -> 739 | R32: 19000 | S32: 25700 | T32: 34500 | U32: 32700 | V32: 30700 | W32: 25700 | Y32: -0 | Z32: 6456 | AA32: 7580 | AB32: 9572 | AC32: 9893 | AD32: 9154 | AF32: 0% | AG32: -0% | AH32: 32% | AI32: 35% | AJ32: 35% | AK32: -0%
A33: 2417 | B33: 29000 | D33: =Deltagandeskatter!$B$2*('Med bidragsinkomst'!$B33+'Med bidragsinkomst'!D$3-GRUNDAVDRAG('Med bidragsinkomst'!$B33+'Med bidragsinkomst'!D$3))-JSA($B33,GRUNDAVDRAG($B33+D$3),Deltagandeskatter!$B$2)+MAX(0,0.2*($B33+D$3-Deltagandeskatter!$B$11))+MAX(0,0.05*('Med bidragsinkomst'!$B33+'Med bidragsinkomst'!D$3-Deltagandeskatter!$B$12)) -> 0 | E33: =Deltagandeskatter!$B$2*('Med bidragsinkomst'!$B33+'Med bidragsinkomst'!E$3-GRUNDAVDRAG('Med bidragsinkomst'!$B33+'Med bidragsinkomst'!E$3))-JSA($B33,GRUNDAVDRAG($B33+E$3),Deltagandeskatter!$B$2)+MAX(0,0.2*($B33+E$3-Deltagandeskatter!$B$11))+MAX(0,0.05*('Med bidragsinkomst'!$B33+'Med bidragsinkomst'!E$3-Deltagandeskatter!$B$12)) -> 16060 | F33: =Deltagandeskatter!$B$2*('Med bidragsinkomst'!$B33+'Med bidragsinkomst'!F$3-GRUNDAVDRAG('Med bidragsinkomst'!$B33+'Med bidragsinkomst'!F$3))-JSA($B33,GRUNDAVDRAG($B33+F$3),Deltagandeskatter!$B$2)+MAX(0,0.2*($B33+F$3-Deltagandeskatter!$B$11))+MAX(0,0.05*('Med bidragsinkomst'!$B33+'Med bidragsinkomst'!F$3-Deltagandeskatter!$B$12)) -> 30353 | G33: =Deltagandeskatter!$B$2*('Med bidragsinkomst'!$B33+'Med bidragsinkomst'!G$3-GRUNDAVDRAG('Med bidragsinkomst'!$B33+'Med bidragsinkomst'!G$3))-JSA($B33,GRUNDAVDRAG($B33+G$3),Deltagandeskatter!$B$2)+MAX(0,0.2*($B33+G$3-Deltagandeskatter!$B$11))+MAX(0,0.05*('Med bidragsinkomst'!$B33+'Med bidragsinkomst'!G$3-Deltagandeskatter!$B$12)) -> 40600 | H33: =Deltagandeskatter!$B$2*('Med bidragsinkomst'!$B33+'Med bidragsinkomst'!H$3-GRUNDAVDRAG('Med bidragsinkomst'!$B33+'Med bidragsinkomst'!H$3))-JSA($B33,GRUNDAVDRAG($B33+H$3),Deltagandeskatter!$B$2)+MAX(0,0.2*($B33+H$3-Deltagandeskatter!$B$11))+MAX(0,0.05*('Med bidragsinkomst'!$B33+'Med bidragsinkomst'!H$3-Deltagandeskatter!$B$12)) -> 47666 | I33: =Deltagandeskatter!$B$2*('Med bidragsinkomst'!$B33+'Med bidragsinkomst'!I$3-GRUNDAVDRAG('Med bidragsinkomst'!$B33+'Med bidragsinkomst'!I$3))-JSA($B33,GRUNDAVDRAG($B33+I$3),Deltagandeskatter!$B$2)+MAX(0,0.2*($B33+I$3-Deltagandeskatter!$B$11))+MAX(0,0.05*('Med bidragsinkomst'!$B33+'Med bidragsinkomst'!I$3-Deltagandeskatter!$B$12)) -> 64240 | K33: =JSA($B33,GRUNDAVDRAG($B33+K$3),Deltagandeskatter!$B$2) -> 3212 | L33: =JSA($B33,GRUNDAVDRAG($B33+L$3),Deltagandeskatter!$B$2) -> 996 | M33: =JSA($B33,GRUNDAVDRAG($B33+M$3),Deltagandeskatter!$B$2) -> 0 | N33: =JSA($B33,GRUNDAVDRAG($B33+N$3),Deltagandeskatter!$B$2) -> 0 | O33: =JSA($B33,GRUNDAVDRAG($B33+O$3),Deltagandeskatter!$B$2) -> 0 | P33: =JSA($B33,GRUNDAVDRAG($B33+P$3),Deltagandeskatter!$B$2) -> 1092 | R33: 19000 | S33: 25900 | T33: 34500 | U33: 32600 | V33: 30600 | W33: 25600 | Y33: 0 | Z33: 6456 | AA33: =F33-F$4 -> 7902 | AB33: 9925 | AC33: 10246 | AD33: 9154 | AF33: 0% | AG33: -0% | AH33: 32% | AI33: 35% | AJ33: 35% | AK33: 0%
A34: 2500 | B34: 30000 | D34: =Deltagandeskatter!$B$2*('Med bidragsinkomst'!$B34+'Med bidragsinkomst'!D$3-GRUNDAVDRAG('Med bidragsinkomst'!$B34+'Med bidragsinkomst'!D$3))-JSA($B34,GRUNDAVDRAG($B34+D$3),Deltagandeskatter!$B$2)+MAX(0,0.2*($B34+D$3-Deltagandeskatter!$B$11))+MAX(0,0.05*('Med bidragsinkomst'!$B34+'Med bidragsinkomst'!D$3-Deltagandeskatter!$B$12)) -> 0 | E34: =Deltagandeskatter!$B$2*('Med bidragsinkomst'!$B34+'Med bidragsinkomst'!E$3-GRUNDAVDRAG('Med bidragsinkomst'!$B34+'Med bidragsinkomst'!E$3))-JSA($B34,GRUNDAVDRAG($B34+E$3),Deltagandeskatter!$B$2)+MAX(0,0.2*($B34+E$3-Deltagandeskatter!$B$11))+MAX(0,0.05*('Med bidragsinkomst'!$B34+'Med bidragsinkomst'!E$3-Deltagandeskatter!$B$12)) -> 16060 | F34: =Deltagandeskatter!$B$2*('Med bidragsinkomst'!$B34+'Med bidragsinkomst'!F$3-GRUNDAVDRAG('Med bidragsinkomst'!$B34+'Med bidragsinkomst'!F$3))-JSA($B34,GRUNDAVDRAG($B34+F$3),Deltagandeskatter!$B$2)+MAX(0,0.2*($B34+F$3-Deltagandeskatter!$B$11))+MAX(0,0.05*('Med bidragsinkomst'!$B34+'Med bidragsinkomst'!F$3-Deltagandeskatter!$B$12)) -> 30675 | G34: =Deltagandeskatter!$B$2*('Med bidragsinkomst'!$B34+'Med bidragsinkomst'!G$3-GRUNDAVDRAG('Med bidragsinkomst'!$B34+'Med bidragsinkomst'!G$3))-JSA($B34,GRUNDAVDRAG($B34+G$3),Deltagandeskatter!$B$2)+MAX(0,0.2*($B34+G$3-Deltagandeskatter!$B$11))+MAX(0,0.05*('Med bidragsinkomst'!$B34+'Med bidragsinkomst'!G$3-Deltagandeskatter!$B$12)) -> 40953 | H34: =Deltagandeskatter!$B$2*('Med bidragsinkomst'!$B34+'Med bidragsinkomst'!H$3-GRUNDAVDRAG('Med bidragsinkomst'!$B34+'Med bidragsinkomst'!H$3))-JSA($B34,GRUNDAVDRAG($B34+H$3),Deltagandeskatter!$B$2)+MAX(0,0.2*($B34+H$3-Deltagandeskatter!$B$11))+MAX(0,0.05*('Med bidragsinkomst'!$B34+'Med bidragsinkomst'!H$3-Deltagandeskatter!$B$12)) -> 48019 | I34: =Deltagandeskatter!$B$2*('Med bidragsinkomst'!$B34+'Med bidragsinkomst'!I$3-GRUNDAVDRAG('Med bidragsinkomst'!$B34+'Med bidragsinkomst'!I$3))-JSA($B34,GRUNDAVDRAG($B34+I$3),Deltagandeskatter!$B$2)+MAX(0,0.2*($B34+I$3-Deltagandeskatter!$B$11))+MAX(0,0.05*('Med bidragsinkomst'!$B34+'Med bidragsinkomst'!I$3-Deltagandeskatter!$B$12)) -> 64240 | K34: =JSA($B34,GRUNDAVDRAG($B34+K$3),Deltagandeskatter!$B$2) -> 3533 | L34: =JSA($B34,GRUNDAVDRAG($B34+L$3),Deltagandeskatter!$B$2) -> 1253 | M34: =JSA($B34,GRUNDAVDRAG($B34+M$3),Deltagandeskatter!$B$2) -> 0 | N34: =JSA($B34,GRUNDAVDRAG($B34+N$3),Deltagandeskatter!$B$2) -> 0 | O34: =JSA($B34,GRUNDAVDRAG($B34+O$3),Deltagandeskatter!$B$2) -> 0 | P34: =JSA($B34,GRUNDAVDRAG($B34+P$3),Deltagandeskatter!$B$2) -> 1445 | R34: 19000 | S34: 26100 | T34: 34500 | U34: 32500 | V34: 30500 | W34: 25500 | Y34: 0 | Z34: 6456 | AA34: 8223 | AB34: 10278 | AC34: 10600 | AD34: 9155 | AF34: 0% | AG34: -0% | AH34: 32% | AI34: 35% | AJ34: 35% | AK34: 0%
A35: 2583 | B35: 31000 | D35: =Deltagandeskatter!$B$2*('Med bidragsinkomst'!$B35+'Med bidragsinkomst'!D$3-GRUNDAVDRAG('Med bidragsinkomst'!$B35+'Med bidragsinkomst'!D$3))-JSA($B35,GRUNDAVDRAG($B35+D$3),Deltagandeskatter!$B$2)+MAX(0,0.2*($B35+D$3-Deltagandeskatter!$B$11))+MAX(0,0.05*('Med bidragsinkomst'!$B35+'Med bidragsinkomst'!D$3-Deltagandeskatter!$B$12)) -> 0 | E35: =Deltagandeskatter!$B$2*('Med bidragsinkomst'!$B35+'Med bidragsinkomst'!E$3-GRUNDAVDRAG('Med bidragsinkomst'!$B35+'Med bidragsinkomst'!E$3))-JSA($B35,GRUNDAVDRAG($B35+E$3),Deltagandeskatter!$B$2)+MAX(0,0.2*($B35+E$3-Deltagandeskatter!$B$11))+MAX(0,0.05*('Med bidragsinkomst'!$B35+'Med bidragsinkomst'!E$3-Deltagandeskatter!$B$12)) -> 16060 | F35: =Deltagandeskatter!$B$2*('Med bidragsinkomst'!$B35+'Med bidragsinkomst'!F$3-GRUNDAVDRAG('Med bidragsinkomst'!$B35+'Med bidragsinkomst'!F$3))-JSA($B35,GRUNDAVDRAG($B35+F$3),Deltagandeskatter!$B$2)+MAX(0,0.2*($B35+F$3-Deltagandeskatter!$B$11))+MAX(0,0.05*('Med bidragsinkomst'!$B35+'Med bidragsinkomst'!F$3-Deltagandeskatter!$B$12)) -> 30996 | G35: =Deltagandeskatter!$B$2*('Med bidragsinkomst'!$B35+'Med bidragsinkomst'!G$3-GRUNDAVDRAG('Med bidragsinkomst'!$B35+'Med bidragsinkomst'!G$3))-JSA($B35,GRUNDAVDRAG($B35+G$3),Deltagandeskatter!$B$2)+MAX(0,0.2*($B35+G$3-Deltagandeskatter!$B$11))+MAX(0,0.05*('Med bidragsinkomst'!$B35+'Med bidragsinkomst'!G$3-Deltagandeskatter!$B$12)) -> 41306 | H35: =Deltagandeskatter!$B$2*('Med bidragsinkomst'!$B35+'Med bidragsinkomst'!H$3-GRUNDAVDRAG('Med bidragsinkomst'!$B35+'Med bidragsinkomst'!H$3))-JSA($B35,GRUNDAVDRAG($B35+H$3),Deltagandeskatter!$B$2)+MAX(0,0.2*($B35+H$3-Deltagandeskatter!$B$11))+MAX(0,0.05*('Med bidragsinkomst'!$B35+'Med bidragsinkomst'!H$3-Deltagandeskatter!$B$12)) -> 48180 | I35: =Deltagandeskatter!$B$2*('Med bidragsinkomst'!$B35+'Med bidragsinkomst'!I$3-GRUNDAVDRAG('Med bidragsinkomst'!$B35+'Med bidragsinkomst'!I$3))-JSA($B35,GRUNDAVDRAG($B35+I$3),Deltagandeskatter!$B$2)+MAX(0,0.2*($B35+I$3-Deltagandeskatter!$B$11))+MAX(0,0.05*('Med bidragsinkomst'!$B35+'Med bidragsinkomst'!I$3-Deltagandeskatter!$B$12)) -> 64240 | K35: =JSA($B35,GRUNDAVDRAG($B35+K$3),Deltagandeskatter!$B$2) -> 3854 | L35: =JSA($B35,GRUNDAVDRAG($B35+L$3),Deltagandeskatter!$B$2) -> 1510 | M35: =JSA($B35,GRUNDAVDRAG($B35+M$3),Deltagandeskatter!$B$2) -> 0 | N35: =JSA($B35,GRUNDAVDRAG($B35+N$3),Deltagandeskatter!$B$2) -> 0 | O35: =JSA($B35,GRUNDAVDRAG($B35+O$3),Deltagandeskatter!$B$2) -> 193 | P35: =JSA($B35,GRUNDAVDRAG($B35+P$3),Deltagandeskatter!$B$2) -> 1799 | R35: 19000 | S35: 26300 | T35: 34500 | U35: 32400 | V35: 30400 | W35: 25400 | Y35: 0 | Z35: 6456 | AA35: 8544 | AB35: 10632 | AC35: 10760 | AD35: 9154 | AF35: 0% | AG35: -0% | AH35: 32% | AI35: 35% | AJ35: 16% | AK35: -0%
A36: 2667 | B36: 32000 | D36: =Deltagandeskatter!$B$2*('Med bidragsinkomst'!$B36+'Med bidragsinkomst'!D$3-GRUNDAVDRAG('Med bidragsinkomst'!$B36+'Med bidragsinkomst'!D$3))-JSA($B36,GRUNDAVDRAG($B36+D$3),Deltagandeskatter!$B$2)+MAX(0,0.2*($B36+D$3-Deltagandeskatter!$B$11))+MAX(0,0.05*('Med bidragsinkomst'!$B36+'Med bidragsinkomst'!D$3-Deltagandeskatter!$B$12)) -> -0 | E36: =Deltagandeskatter!$B$2*('Med bidragsinkomst'!$B36+'Med bidragsinkomst'!E$3-GRUNDAVDRAG('Med bidragsinkomst'!$B36+'Med bidragsinkomst'!E$3))-JSA($B36,GRUNDAVDRAG($B36+E$3),Deltagandeskatter!$B$2)+MAX(0,0.2*($B36+E$3-Deltagandeskatter!$B$11))+MAX(0,0.05*('Med bidragsinkomst'!$B36+'Med bidragsinkomst'!E$3-Deltagandeskatter!$B$12)) -> 16060 | F36: =Deltagandeskatter!$B$2*('Med bidragsinkomst'!$B36+'Med bidragsinkomst'!F$3-GRUNDAVDRAG('Med bidragsinkomst'!$B36+'Med bidragsinkomst'!F$3))-JSA($B36,GRUNDAVDRAG($B36+F$3),Deltagandeskatter!$B$2)+MAX(0,0.2*($B36+F$3-Deltagandeskatter!$B$11))+MAX(0,0.05*('Med bidragsinkomst'!$B36+'Med bidragsinkomst'!F$3-Deltagandeskatter!$B$12)) -> 31317 | G36: =Deltagandeskatter!$B$2*('Med bidragsinkomst'!$B36+'Med bidragsinkomst'!G$3-GRUNDAVDRAG('Med bidragsinkomst'!$B36+'Med bidragsinkomst'!G$3))-JSA($B36,GRUNDAVDRAG($B36+G$3),Deltagandeskatter!$B$2)+MAX(0,0.2*($B36+G$3-Deltagandeskatter!$B$11))+MAX(0,0.05*('Med bidragsinkomst'!$B36+'Med bidragsinkomst'!G$3-Deltagandeskatter!$B$12)) -> 41660 | H36: =Deltagandeskatter!$B$2*('Med bidragsinkomst'!$B36+'Med bidragsinkomst'!H$3-GRUNDAVDRAG('Med bidragsinkomst'!$B36+'Med bidragsinkomst'!H$3))-JSA($B36,GRUNDAVDRAG($B36+H$3),Deltagandeskatter!$B$2)+MAX(0,0.2*($B36+H$3-Deltagandeskatter!$B$11))+MAX(0,0.05*('Med bidragsinkomst'!$B36+'Med bidragsinkomst'!H$3-Deltagandeskatter!$B$12)) -> 48180 | I36: =Deltagandeskatter!$B$2*('Med bidragsinkomst'!$B36+'Med bidragsinkomst'!I$3-GRUNDAVDRAG('Med bidragsinkomst'!$B36+'Med bidragsinkomst'!I$3))-JSA($B36,GRUNDAVDRAG($B36+I$3),Deltagandeskatter!$B$2)+MAX(0,0.2*($B36+I$3-Deltagandeskatter!$B$11))+MAX(0,0.05*('Med bidragsinkomst'!$B36+'Med bidragsinkomst'!I$3-Deltagandeskatter!$B$12)) -> 64240 | K36: =JSA($B36,GRUNDAVDRAG($B36+K$3),Deltagandeskatter!$B$2) -> 4176 | L36: =JSA($B36,GRUNDAVDRAG($B36+L$3),Deltagandeskatter!$B$2) -> 1767 | M36: =JSA($B36,GRUNDAVDRAG($B36+M$3),Deltagandeskatter!$B$2) -> 0 | N36: =JSA($B36,GRUNDAVDRAG($B36+N$3),Deltagandeskatter!$B$2) -> 0 | O36: =JSA($B36,GRUNDAVDRAG($B36+O$3),Deltagandeskatter!$B$2) -> 546 | P36: =JSA($B36,GRUNDAVDRAG($B36+P$3),Deltagandeskatter!$B$2) -> 2152 | R36: 19000 | S36: 26500 | T36: 34500 | U36: 32300 | V36: 30300 | W36: 25300 | Y36: -0 | Z36: 6456 | AA36: 8865 | AB36: 10985 | AC36: 10760 | AD36: 9154 | AF36: -0% | AG36: -0% | AH36: 32% | AI36: 35% | AJ36: 0% | AK36: 0%
A37: 2750 | B37: 33000 | D37: =Deltagandeskatter!$B$2*('Med bidragsinkomst'!$B37+'Med bidragsinkomst'!D$3-GRUNDAVDRAG('Med bidragsinkomst'!$B37+'Med bidragsinkomst'!D$3))-JSA($B37,GRUNDAVDRAG($B37+D$3),Deltagandeskatter!$B$2)+MAX(0,0.2*($B37+D$3-Deltagandeskatter!$B$11))+MAX(0,0.05*('Med bidragsinkomst'!$B37+'Med bidragsinkomst'!D$3-Deltagandeskatter!$B$12)) -> -0 | E37: =Deltagandeskatter!$B$2*('Med bidragsinkomst'!$B37+'Med bidragsinkomst'!E$3-GRUNDAVDRAG('Med bidragsinkomst'!$B37+'Med bidragsinkomst'!E$3))-JSA($B37,GRUNDAVDRAG($B37+E$3),Deltagandeskatter!$B$2)+MAX(0,0.2*($B37+E$3-Deltagandeskatter!$B$11))+MAX(0,0.05*('Med bidragsinkomst'!$B37+'Med bidragsinkomst'!E$3-Deltagandeskatter!$B$12)) -> 16060 | F37: =Deltagandeskatter!$B$2*('Med bidragsinkomst'!$B37+'Med bidragsinkomst'!F$3-GRUNDAVDRAG('Med bidragsinkomst'!$B37+'Med bidragsinkomst'!F$3))-JSA($B37,GRUNDAVDRAG($B37+F$3),Deltagandeskatter!$B$2)+MAX(0,0.2*($B37+F$3-Deltagandeskatter!$B$11))+MAX(0,0.05*('Med bidragsinkomst'!$B37+'Med bidragsinkomst'!F$3-Deltagandeskatter!$B$12)) -> 31638 | G37: =Deltagandeskatter!$B$2*('Med bidragsinkomst'!$B37+'Med bidragsinkomst'!G$3-GRUNDAVDRAG('Med bidragsinkomst'!$B37+'Med bidragsinkomst'!G$3))-JSA($B37,GRUNDAVDRAG($B37+G$3),Deltagandeskatter!$B$2)+MAX(0,0.2*($B37+G$3-Deltagandeskatter!$B$11))+MAX(0,0.05*('Med bidragsinkomst'!$B37+'Med bidragsinkomst'!G$3-Deltagandeskatter!$B$12)) -> 41756 | H37: =Deltagandeskatter!$B$2*('Med bidragsinkomst'!$B37+'Med bidragsinkomst'!H$3-GRUNDAVDRAG('Med bidragsinkomst'!$B37+'Med bidragsinkomst'!H$3))-JSA($B37,GRUNDAVDRAG($B37+H$3),Deltagandeskatter!$B$2)+MAX(0,0.2*($B37+H$3-Deltagandeskatter!$B$11))+MAX(0,0.05*('Med bidragsinkomst'!$B37+'Med bidragsinkomst'!H$3-Deltagandeskatter!$B$12)) -> 48180 | I37: =Deltagandeskatter!$B$2*('Med bidragsinkomst'!$B37+'Med bidragsinkomst'!I$3-GRUNDAVDRAG('Med bidragsinkomst'!$B37+'Med bidragsinkomst'!I$3))-JSA($B37,GRUNDAVDRAG($B37+I$3),Deltagandeskatter!$B$2)+MAX(0,0.2*($B37+I$3-Deltagandeskatter!$B$11))+MAX(0,0.05*('Med bidragsinkomst'!$B37+'Med bidragsinkomst'!I$3-Deltagandeskatter!$B$12)) -> 64240 | K37: =JSA($B37,GRUNDAVDRAG($B37+K$3),Deltagandeskatter!$B$2) -> 4497 | L37: =JSA($B37,GRUNDAVDRAG($B37+L$3),Deltagandeskatter!$B$2) -> 2024 | M37: =JSA($B37,GRUNDAVDRAG($B37+M$3),Deltagandeskatter!$B$2) -> 0 | N37: =JSA($B37,GRUNDAVDRAG($B37+N$3),Deltagandeskatter!$B$2) -> 257 | O37: =JSA($B37,GRUNDAVDRAG($B37+O$3),Deltagandeskatter!$B$2) -> 899 | P37: =JSA($B37,GRUNDAVDRAG($B37+P$3),Deltagandeskatter!$B$2) -> 2505 | R37: 19000 | S37: 26700 | T37: 34500 | U37: 32200 | V37: 30200 | W37: 25200 | Y37: -0 | Z37: 6456 | AA37: 9186 | AB37: 11081 | AC37: 10761 | AD37: 9155 | AF37: 0% | AG37: -0% | AH37: 32% | AI37: 10% | AJ37: 0% | AK37: 0%
A38: 2833 | B38: 34000 | D38: =Deltagandeskatter!$B$2*('Med bidragsinkomst'!$B38+'Med bidragsinkomst'!D$3-GRUNDAVDRAG('Med bidragsinkomst'!$B38+'Med bidragsinkomst'!D$3))-JSA($B38,GRUNDAVDRAG($B38+D$3),Deltagandeskatter!$B$2)+MAX(0,0.2*($B38+D$3-Deltagandeskatter!$B$11))+MAX(0,0.05*('Med bidragsinkomst'!$B38+'Med bidragsinkomst'!D$3-Deltagandeskatter!$B$12)) -> 0 | E38: =Deltagandeskatter!$B$2*('Med bidragsinkomst'!$B38+'Med bidragsinkomst'!E$3-GRUNDAVDRAG('Med bidragsinkomst'!$B38+'Med bidragsinkomst'!E$3))-JSA($B38,GRUNDAVDRAG($B38+E$3),Deltagandeskatter!$B$2)+MAX(0,0.2*($B38+E$3-Deltagandeskatter!$B$11))+MAX(0,0.05*('Med bidragsinkomst'!$B38+'Med bidragsinkomst'!E$3-Deltagandeskatter!$B$12)) -> 16060 | F38: =Deltagandeskatter!$B$2*('Med bidragsinkomst'!$B38+'Med bidragsinkomst'!F$3-GRUNDAVDRAG('Med bidragsinkomst'!$B38+'Med bidragsinkomst'!F$3))-JSA($B38,GRUNDAVDRAG($B38+F$3),Deltagandeskatter!$B$2)+MAX(0,0.2*($B38+F$3-Deltagandeskatter!$B$11))+MAX(0,0.05*('Med bidragsinkomst'!$B38+'Med bidragsinkomst'!F$3-Deltagandeskatter!$B$12)) -> 31959 | G38: =Deltagandeskatter!$B$2*('Med bidragsinkomst'!$B38+'Med bidragsinkomst'!G$3-GRUNDAVDRAG('Med bidragsinkomst'!$B38+'Med bidragsinkomst'!G$3))-JSA($B38,GRUNDAVDRAG($B38+G$3),Deltagandeskatter!$B$2)+MAX(0,0.2*($B38+G$3-Deltagandeskatter!$B$11))+MAX(0,0.05*('Med bidragsinkomst'!$B38+'Med bidragsinkomst'!G$3-Deltagandeskatter!$B$12)) -> 41756 | H38: =Deltagandeskatter!$B$2*('Med bidragsinkomst'!$B38+'Med bidragsinkomst'!H$3-GRUNDAVDRAG('Med bidragsinkomst'!$B38+'Med bidragsinkomst'!H$3))-JSA($B38,GRUNDAVDRAG($B38+H$3),Deltagandeskatter!$B$2)+MAX(0,0.2*($B38+H$3-Deltagandeskatter!$B$11))+MAX(0,0.05*('Med bidragsinkomst'!$B38+'Med bidragsinkomst'!H$3-Deltagandeskatter!$B$12)) -> 48180 | I38: =Deltagandeskatter!$B$2*('Med bidragsinkomst'!$B38+'Med bidragsinkomst'!I$3-GRUNDAVDRAG('Med bidragsinkomst'!$B38+'Med bidragsinkomst'!I$3))-JSA($B38,GRUNDAVDRAG($B38+I$3),Deltagandeskatter!$B$2)+MAX(0,0.2*($B38+I$3-Deltagandeskatter!$B$11))+MAX(0,0.05*('Med bidragsinkomst'!$B38+'Med bidragsinkomst'!I$3-Deltagandeskatter!$B$12)) -> 64240 | K38: =JSA($B38,GRUNDAVDRAG($B38+K$3),Deltagandeskatter!$B$2) -> 4818 | L38: =JSA($B38,GRUNDAVDRAG($B38+L$3),Deltagandeskatter!$B$2) -> 2281 | M38: =JSA($B38,GRUNDAVDRAG($B38+M$3),Deltagandeskatter!$B$2) -> 0 | N38: =JSA($B38,GRUNDAVDRAG($B38+N$3),Deltagandeskatter!$B$2) -> 610 | O38: =JSA($B38,GRUNDAVDRAG($B38+O$3),Deltagandeskatter!$B$2) -> 1253 | P38: =JSA($B38,GRUNDAVDRAG($B38+P$3),Deltagandeskatter!$B$2) -> 2859 | R38: 19000 | S38: 26900 | T38: 34500 | U38: 32100 | V38: 30100 | W38: 25100 | Y38: 0 | Z38: 6456 | AA38: 9508 | AB38: 11082 | AC38: 10760 | AD38: =I38-I$4 -> 9154 | AF38: 0% | AG38: -0% | AH38: 32% | AI38: 0% | AJ38: -0% | AK38: -0%
A39: 2917 | B39: 35000 | D39: =Deltagandeskatter!$B$2*('Med bidragsinkomst'!$B39+'Med bidragsinkomst'!D$3-GRUNDAVDRAG('Med bidragsinkomst'!$B39+'Med bidragsinkomst'!D$3))-JSA($B39,GRUNDAVDRAG($B39+D$3),Deltagandeskatter!$B$2)+MAX(0,0.2*($B39+D$3-Deltagandeskatter!$B$11))+MAX(0,0.05*('Med bidragsinkomst'!$B39+'Med bidragsinkomst'!D$3-Deltagandeskatter!$B$12)) -> 0 | E39: =Deltagandeskatter!$B$2*('Med bidragsinkomst'!$B39+'Med bidragsinkomst'!E$3-GRUNDAVDRAG('Med bidragsinkomst'!$B39+'Med bidragsinkomst'!E$3))-JSA($B39,GRUNDAVDRAG($B39+E$3),Deltagandeskatter!$B$2)+MAX(0,0.2*($B39+E$3-Deltagandeskatter!$B$11))+MAX(0,0.05*('Med bidragsinkomst'!$B39+'Med bidragsinkomst'!E$3-Deltagandeskatter!$B$12)) -> 16060 | F39: =Deltagandeskatter!$B$2*('Med bidragsinkomst'!$B39+'Med bidragsinkomst'!F$3-GRUNDAVDRAG('Med bidragsinkomst'!$B39+'Med bidragsinkomst'!F$3))-JSA($B39,GRUNDAVDRAG($B39+F$3),Deltagandeskatter!$B$2)+MAX(0,0.2*($B39+F$3-Deltagandeskatter!$B$11))+MAX(0,0.05*('Med bidragsinkomst'!$B39+'Med bidragsinkomst'!F$3-Deltagandeskatter!$B$12)) -> 32120 | G39: =Deltagandeskatter!$B$2*('Med bidragsinkomst'!$B39+'Med bidragsinkomst'!G$3-GRUNDAVDRAG('Med bidragsinkomst'!$B39+'Med bidragsinkomst'!G$3))-JSA($B39,GRUNDAVDRAG($B39+G$3),Deltagandeskatter!$B$2)+MAX(0,0.2*($B39+G$3-Deltagandeskatter!$B$11))+MAX(0,0.05*('Med bidragsinkomst'!$B39+'Med bidragsinkomst'!G$3-Deltagandeskatter!$B$12)) -> 41756 | H39: =Deltagandeskatter!$B$2*('Med bidragsinkomst'!$B39+'Med bidragsinkomst'!H$3-GRUNDAVDRAG('Med bidragsinkomst'!$B39+'Med bidragsinkomst'!H$3))-JSA($B39,GRUNDAVDRAG($B39+H$3),Deltagandeskatter!$B$2)+MAX(0,0.2*($B39+H$3-Deltagandeskatter!$B$11))+MAX(0,0.05*('Med bidragsinkomst'!$B39+'Med bidragsinkomst'!H$3-Deltagandeskatter!$B$12)) -> 48180 | I39: =Deltagandeskatter!$B$2*('Med bidragsinkomst'!$B39+'Med bidragsinkomst'!I$3-GRUNDAVDRAG('Med bidragsinkomst'!$B39+'Med bidragsinkomst'!I$3))-JSA($B39,GRUNDAVDRAG($B39+I$3),Deltagandeskatter!$B$2)+MAX(0,0.2*($B39+I$3-Deltagandeskatter!$B$11))+MAX(0,0.05*('Med bidragsinkomst'!$B39+'Med bidragsinkomst'!I$3-Deltagandeskatter!$B$12)) -> 64240 | K39: =JSA($B39,GRUNDAVDRAG($B39+K$3),Deltagandeskatter!$B$2) -> 5139 | L39: =JSA($B39,GRUNDAVDRAG($B39+L$3),Deltagandeskatter!$B$2) -> 2537 | M39: =JSA($B39,GRUNDAVDRAG($B39+M$3),Deltagandeskatter!$B$2) -> 161 | N39: =JSA($B39,GRUNDAVDRAG($B39+N$3),Deltagandeskatter!$B$2) -> 964 | O39: =JSA($B39,GRUNDAVDRAG($B39+O$3),Deltagandeskatter!$B$2) -> 1606 | P39: =JSA($B39,GRUNDAVDRAG($B39+P$3),Deltagandeskatter!$B$2) -> 3212 | R39: 19000 | S39: 27100 | T39: 34500 | U39: 32000 | V39: 30000 | W39: 25000 | Y39: 0 | Z39: 6457 | AA39: 9668 | AB39: 11081 | AC39: =H39-H$4 -> 10760 | AD39: 9154 | AF39: 0% | AG39: 0% | AH39: 16% | AI39: -0% | AJ39: 0% | AK39: 0%
A40: 3000 | B40: 36000 | D40: =Deltagandeskatter!$B$2*('Med bidragsinkomst'!$B40+'Med bidragsinkomst'!D$3-GRUNDAVDRAG('Med bidragsinkomst'!$B40+'Med bidragsinkomst'!D$3))-JSA($B40,GRUNDAVDRAG($B40+D$3),Deltagandeskatter!$B$2)+MAX(0,0.2*($B40+D$3-Deltagandeskatter!$B$11))+MAX(0,0.05*('Med bidragsinkomst'!$B40+'Med bidragsinkomst'!D$3-Deltagandeskatter!$B$12)) -> 0 | E40: =Deltagandeskatter!$B$2*('Med bidragsinkomst'!$B40+'Med bidragsinkomst'!E$3-GRUNDAVDRAG('Med bidragsinkomst'!$B40+'Med bidragsinkomst'!E$3))-JSA($B40,GRUNDAVDRAG($B40+E$3),Deltagandeskatter!$B$2)+MAX(0,0.2*($B40+E$3-Deltagandeskatter!$B$11))+MAX(0,0.05*('Med bidragsinkomst'!$B40+'Med bidragsinkomst'!E$3-Deltagandeskatter!$B$12)) -> 16060 | F40: =Deltagandeskatter!$B$2*('Med bidragsinkomst'!$B40+'Med bidragsinkomst'!F$3-GRUNDAVDRAG('Med bidragsinkomst'!$B40+'Med bidragsinkomst'!F$3))-JSA($B40,GRUNDAVDRAG($B40+F$3),Deltagandeskatter!$B$2)+MAX(0,0.2*($B40+F$3-Deltagandeskatter!$B$11))+MAX(0,0.05*('Med bidragsinkomst'!$B40+'Med bidragsinkomst'!F$3-Deltagandeskatter!$B$12)) -> 32120 | G40: =Deltagandeskatter!$B$2*('Med bidragsinkomst'!$B40+'Med bidragsinkomst'!G$3-GRUNDAVDRAG('Med bidragsinkomst'!$B40+'Med bidragsinkomst'!G$3))-JSA($B40,GRUNDAVDRAG($B40+G$3),Deltagandeskatter!$B$2)+MAX(0,0.2*($B40+G$3-Deltagandeskatter!$B$11))+MAX(0,0.05*('Med bidragsinkomst'!$B40+'Med bidragsinkomst'!G$3-Deltagandeskatter!$B$12)) -> 41756 | H40: =Deltagandeskatter!$B$2*('Med bidragsinkomst'!$B40+'Med bidragsinkomst'!H$3-GRUNDAVDRAG('Med bidragsinkomst'!$B40+'Med bidragsinkomst'!H$3))-JSA($B40,GRUNDAVDRAG($B40+H$3),Deltagandeskatter!$B$2)+MAX(0,0.2*($B40+H$3-Deltagandeskatter!$B$11))+MAX(0,0.05*('Med bidragsinkomst'!$B40+'Med bidragsinkomst'!H$3-Deltagandeskatter!$B$12)) -> 48180 | I40: =Deltagandeskatter!$B$2*('Med bidragsinkomst'!$B40+'Med bidragsinkomst'!I$3-GRUNDAVDRAG('Med bidragsinkomst'!$B40+'Med bidragsinkomst'!I$3))-JSA($B40,GRUNDAVDRAG($B40+I$3),Deltagandeskatter!$B$2)+MAX(0,0.2*($B40+I$3-Deltagandeskatter!$B$11))+MAX(0,0.05*('Med bidragsinkomst'!$B40+'Med bidragsinkomst'!I$3-Deltagandeskatter!$B$12)) -> 64240 | K40: =JSA($B40,GRUNDAVDRAG($B40+K$3),Deltagandeskatter!$B$2) -> 5460 | L40: =JSA($B40,GRUNDAVDRAG($B40+L$3),Deltagandeskatter!$B$2) -> 2794 | M40: =JSA($B40,GRUNDAVDRAG($B40+M$3),Deltagandeskatter!$B$2) -> 482 | N40: =JSA($B40,GRUNDAVDRAG($B40+N$3),Deltagandeskatter!$B$2) -> 1317 | O40: =JSA($B40,GRUNDAVDRAG($B40+O$3),Deltagandeskatter!$B$2) -> 1959 | P40: =JSA($B40,GRUNDAVDRAG($B40+P$3),Deltagandeskatter!$B$2) -> 3565 | R40: 19000 | S40: 27300 | T40: 34500 | U40: 31900 | V40: 29900 | W40: 24900 | Y40: 0 | Z40: 6457 | AA40: 9668 | AB40: 11081 | AC40: 10761 | AD40: 9155 | AF40: 0% | AG40: -0% | AH40: 0% | AI40: 0% | AJ40: 0% | AK40: 0%
A41: 3083 | B41: 37000 | D41: =Deltagandeskatter!$B$2*('Med bidragsinkomst'!$B41+'Med bidragsinkomst'!D$3-GRUNDAVDRAG('Med bidragsinkomst'!$B41+'Med bidragsinkomst'!D$3))-JSA($B41,GRUNDAVDRAG($B41+D$3),Deltagandeskatter!$B$2)+MAX(0,0.2*($B41+D$3-Deltagandeskatter!$B$11))+MAX(0,0.05*('Med bidragsinkomst'!$B41+'Med bidragsinkomst'!D$3-Deltagandeskatter!$B$12)) -> -0 | E41: =Deltagandeskatter!$B$2*('Med bidragsinkomst'!$B41+'Med bidragsinkomst'!E$3-GRUNDAVDRAG('Med bidragsinkomst'!$B41+'Med bidragsinkomst'!E$3))-JSA($B41,GRUNDAVDRAG($B41+E$3),Deltagandeskatter!$B$2)+MAX(0,0.2*($B41+E$3-Deltagandeskatter!$B$11))+MAX(0,0.05*('Med bidragsinkomst'!$B41+'Med bidragsinkomst'!E$3-Deltagandeskatter!$B$12)) -> 16060 | F41: =Deltagandeskatter!$B$2*('Med bidragsinkomst'!$B41+'Med bidragsinkomst'!F$3-GRUNDAVDRAG('Med bidragsinkomst'!$B41+'Med bidragsinkomst'!F$3))-JSA($B41,GRUNDAVDRAG($B41+F$3),Deltagandeskatter!$B$2)+MAX(0,0.2*($B41+F$3-Deltagandeskatter!$B$11))+MAX(0,0.05*('Med bidragsinkomst'!$B41+'Med bidragsinkomst'!F$3-Deltagandeskatter!$B$12)) -> 32120 | G41: =Deltagandeskatter!$B$2*('Med bidragsinkomst'!$B41+'Med bidragsinkomst'!G$3-GRUNDAVDRAG('Med bidragsinkomst'!$B41+'Med bidragsinkomst'!G$3))-JSA($B41,GRUNDAVDRAG($B41+G$3),Deltagandeskatter!$B$2)+MAX(0,0.2*($B41+G$3-Deltagandeskatter!$B$11))+MAX(0,0.05*('Med bidragsinkomst'!$B41+'Med bidragsinkomst'!G$3-Deltagandeskatter!$B$12)) -> 41756 | H41: =Deltagandeskatter!$B$2*('Med bidragsinkomst'!$B41+'Med bidragsinkomst'!H$3-GRUNDAVDRAG('Med bidragsinkomst'!$B41+'Med bidragsinkomst'!H$3))-JSA($B41,GRUNDAVDRAG($B41+H$3),Deltagandeskatter!$B$2)+MAX(0,0.2*($B41+H$3-Deltagandeskatter!$B$11))+MAX(0,0.05*('Med bidragsinkomst'!$B41+'Med bidragsinkomst'!H$3-Deltagandeskatter!$B$12)) -> 48180 | I41: =Deltagandeskatter!$B$2*('Med bidragsinkomst'!$B41+'Med bidragsinkomst'!I$3-GRUNDAVDRAG('Med bidragsinkomst'!$B41+'Med bidragsinkomst'!I$3))-JSA($B41,GRUNDAVDRAG($B41+I$3),Deltagandeskatter!$B$2)+MAX(0,0.2*($B41+I$3-Deltagandeskatter!$B$11))+MAX(0,0.05*('Med bidragsinkomst'!$B41+'Med bidragsinkomst'!I$3-Deltagandeskatter!$B$12)) -> 64240 | K41: =JSA($B41,GRUNDAVDRAG($B41+K$3),Deltagandeskatter!$B$2) -> 5782 | L41: =JSA($B41,GRUNDAVDRAG($B41+L$3),Deltagandeskatter!$B$2) -> 3051 | M41: =JSA($B41,GRUNDAVDRAG($B41+M$3),Deltagandeskatter!$B$2) -> 803 | N41: =JSA($B41,GRUNDAVDRAG($B41+N$3),Deltagandeskatter!$B$2) -> 1670 | O41: =JSA($B41,GRUNDAVDRAG($B41+O$3),Deltagandeskatter!$B$2) -> 2313 | P41: =JSA($B41,GRUNDAVDRAG($B41+P$3),Deltagandeskatter!$B$2) -> 3919 | R41: 19000 | S41: 27500 | T41: 34500 | U41: 31800 | V41: 29800 | W41: 24800 | Y41: -0 | Z41: 6457 | AA41: 9668 | AB41: 11082 | AC41: 10760 | AD41: 9154 | AF41: -0% | AG41: -0% | AH41: 0% | AI41: 0% | AJ41: -0% | AK41: -0%
A42: 3167 | B42: 38000 | D42: =Deltagandeskatter!$B$2*('Med bidragsinkomst'!$B42+'Med bidragsinkomst'!D$3-GRUNDAVDRAG('Med bidragsinkomst'!$B42+'Med bidragsinkomst'!D$3))-JSA($B42,GRUNDAVDRAG($B42+D$3),Deltagandeskatter!$B$2)+MAX(0,0.2*($B42+D$3-Deltagandeskatter!$B$11))+MAX(0,0.05*('Med bidragsinkomst'!$B42+'Med bidragsinkomst'!D$3-Deltagandeskatter!$B$12)) -> -0 | E42: =Deltagandeskatter!$B$2*('Med bidragsinkomst'!$B42+'Med bidragsinkomst'!E$3-GRUNDAVDRAG('Med bidragsinkomst'!$B42+'Med bidragsinkomst'!E$3))-JSA($B42,GRUNDAVDRAG($B42+E$3),Deltagandeskatter!$B$2)+MAX(0,0.2*($B42+E$3-Deltagandeskatter!$B$11))+MAX(0,0.05*('Med bidragsinkomst'!$B42+'Med bidragsinkomst'!E$3-Deltagandeskatter!$B$12)) -> 16060 | F42: =Deltagandeskatter!$B$2*('Med bidragsinkomst'!$B42+'Med bidragsinkomst'!F$3-GRUNDAVDRAG('Med bidragsinkomst'!$B42+'Med bidragsinkomst'!F$3))-JSA($B42,GRUNDAVDRAG($B42+F$3),Deltagandeskatter!$B$2)+MAX(0,0.2*($B42+F$3-Deltagandeskatter!$B$11))+MAX(0,0.05*('Med bidragsinkomst'!$B42+'Med bidragsinkomst'!F$3-Deltagandeskatter!$B$12)) -> 32120 | G42: =Deltagandeskatter!$B$2*('Med bidragsinkomst'!$B42+'Med bidragsinkomst'!G$3-GRUNDAVDRAG('Med bidragsinkomst'!$B42+'Med bidragsinkomst'!G$3))-JSA($B42,GRUNDAVDRAG($B42+G$3),Deltagandeskatter!$B$2)+MAX(0,0.2*($B42+G$3-Deltagandeskatter!$B$11))+MAX(0,0.05*('Med bidragsinkomst'!$B42+'Med bidragsinkomst'!G$3-Deltagandeskatter!$B$12)) -> 41756 | H42: =Deltagandeskatter!$B$2*('Med bidragsinkomst'!$B42+'Med bidragsinkomst'!H$3-GRUNDAVDRAG('Med bidragsinkomst'!$B42+'Med bidragsinkomst'!H$3))-JSA($B42,GRUNDAVDRAG($B42+H$3),Deltagandeskatter!$B$2)+MAX(0,0.2*($B42+H$3-Deltagandeskatter!$B$11))+MAX(0,0.05*('Med bidragsinkomst'!$B42+'Med bidragsinkomst'!H$3-Deltagandeskatter!$B$12)) -> 48180 | I42: =Deltagandeskatter!$B$2*('Med bidragsinkomst'!$B42+'Med bidragsinkomst'!I$3-GRUNDAVDRAG('Med bidragsinkomst'!$B42+'Med bidragsinkomst'!I$3))-JSA($B42,GRUNDAVDRAG($B42+I$3),Deltagandeskatter!$B$2)+MAX(0,0.2*($B42+I$3-Deltagandeskatter!$B$11))+MAX(0,0.05*('Med bidragsinkomst'!$B42+'Med bidragsinkomst'!I$3-Deltagandeskatter!$B$12)) -> 64240 | K42: =JSA($B42,GRUNDAVDRAG($B42+K$3),Deltagandeskatter!$B$2) -> 6103 | L42: =JSA($B42,GRUNDAVDRAG($B42+L$3),Deltagandeskatter!$B$2) -> 3308 | M42: =JSA($B42,GRUNDAVDRAG($B42+M$3),Deltagandeskatter!$B$2) -> 1124 | N42: =JSA($B42,GRUNDAVDRAG($B42+N$3),Deltagandeskatter!$B$2) -> 2024 | O42: =JSA($B42,GRUNDAVDRAG($B42+O$3),Deltagandeskatter!$B$2) -> 2666 | P42: =JSA($B42,GRUNDAVDRAG($B42+P$3),Deltagandeskatter!$B$2) -> 4272 | R42: 19000 | S42: 27700 | T42: 34500 | U42: 31700 | V42: 29700 | W42: 24700 | Y42: -0 | Z42: 6456 | AA42: 9668 | AB42: 11081 | AC42: 10760 | AD42: 9154 | AF42: 0% | AG42: -0% | AH42: 0% | AI42: -0% | AJ42: 0% | AK42: 0%
A43: 3250 | B43: 39000 | D43: =Deltagandeskatter!$B$2*('Med bidragsinkomst'!$B43+'Med bidragsinkomst'!D$3-GRUNDAVDRAG('Med bidragsinkomst'!$B43+'Med bidragsinkomst'!D$3))-JSA($B43,GRUNDAVDRAG($B43+D$3),Deltagandeskatter!$B$2)+MAX(0,0.2*($B43+D$3-Deltagandeskatter!$B$11))+MAX(0,0.05*('Med bidragsinkomst'!$B43+'Med bidragsinkomst'!D$3-Deltagandeskatter!$B$12)) -> 0 | E43: =Deltagandeskatter!$B$2*('Med bidragsinkomst'!$B43+'Med bidragsinkomst'!E$3-GRUNDAVDRAG('Med bidragsinkomst'!$B43+'Med bidragsinkomst'!E$3))-JSA($B43,GRUNDAVDRAG($B43+E$3),Deltagandeskatter!$B$2)+MAX(0,0.2*($B43+E$3-Deltagandeskatter!$B$11))+MAX(0,0.05*('Med bidragsinkomst'!$B43+'Med bidragsinkomst'!E$3-Deltagandeskatter!$B$12)) -> 16060 | F43: =Deltagandeskatter!$B$2*('Med bidragsinkomst'!$B43+'Med bidragsinkomst'!F$3-GRUNDAVDRAG('Med bidragsinkomst'!$B43+'Med bidragsinkomst'!F$3))-JSA($B43,GRUNDAVDRAG($B43+F$3),Deltagandeskatter!$B$2)+MAX(0,0.2*($B43+F$3-Deltagandeskatter!$B$11))+MAX(0,0.05*('Med bidragsinkomst'!$B43+'Med bidragsinkomst'!F$3-Deltagandeskatter!$B$12)) -> 32120 | G43: =Deltagandeskatter!$B$2*('Med bidragsinkomst'!$B43+'Med bidragsinkomst'!G$3-GRUNDAVDRAG('Med bidragsinkomst'!$B43+'Med bidragsinkomst'!G$3))-JSA($B43,GRUNDAVDRAG($B43+G$3),Deltagandeskatter!$B$2)+MAX(0,0.2*($B43+G$3-Deltagandeskatter!$B$11))+MAX(0,0.05*('Med bidragsinkomst'!$B43+'Med bidragsinkomst'!G$3-Deltagandeskatter!$B$12)) -> 41756 | H43: =Deltagandeskatter!$B$2*('Med bidragsinkomst'!$B43+'Med bidragsinkomst'!H$3-GRUNDAVDRAG('Med bidragsinkomst'!$B43+'Med bidragsinkomst'!H$3))-JSA($B43,GRUNDAVDRAG($B43+H$3),Deltagandeskatter!$B$2)+MAX(0,0.2*($B43+H$3-Deltagandeskatter!$B$11))+MAX(0,0.05*('Med bidragsinkomst'!$B43+'Med bidragsinkomst'!H$3-Deltagandeskatter!$B$12)) -> 48180 | I43: =Deltagandeskatter!$B$2*('Med bidragsinkomst'!$B43+'Med bidragsinkomst'!I$3-GRUNDAVDRAG('Med bidragsinkomst'!$B43+'Med bidragsinkomst'!I$3))-JSA($B43,GRUNDAVDRAG($B43+I$3),Deltagandeskatter!$B$2)+MAX(0,0.2*($B43+I$3-Deltagandeskatter!$B$11))+MAX(0,0.05*('Med bidragsinkomst'!$B43+'Med bidragsinkomst'!I$3-Deltagandeskatter!$B$12)) -> 64240 | K43: =JSA($B43,GRUNDAVDRAG($B43+K$3),Deltagandeskatter!$B$2) -> 6424 | L43: =JSA($B43,GRUNDAVDRAG($B43+L$3),Deltagandeskatter!$B$2) -> 3565 | M43: =JSA($B43,GRUNDAVDRAG($B43+M$3),Deltagandeskatter!$B$2) -> 1445 | N43: =JSA($B43,GRUNDAVDRAG($B43+N$3),Deltagandeskatter!$B$2) -> 2377 | O43: =JSA($B43,GRUNDAVDRAG($B43+O$3),Deltagandeskatter!$B$2) -> 3019 | P43: =JSA($B43,GRUNDAVDRAG($B43+P$3),Deltagandeskatter!$B$2) -> 4625 | R43: 19000 | S43: 27900 | T43: 34500 | U43: 31600 | V43: 29600 | W43: 24600 | Y43: 0 | Z43: 6456 | AA43: 9669 | AB43: 11081 | AC43: 10760 | AD43: 9154 | AF43: 0% | AG43: -0% | AH43: 0% | AI43: 0% | AJ43: 0% | AK43: 0%
A44: 3333 | B44: 40000 | D44: =Deltagandeskatter!$B$2*('Med bidragsinkomst'!$B44+'Med bidragsinkomst'!D$3-GRUNDAVDRAG('Med bidragsinkomst'!$B44+'Med bidragsinkomst'!D$3))-JSA($B44,GRUNDAVDRAG($B44+D$3),Deltagandeskatter!$B$2)+MAX(0,0.2*($B44+D$3-Deltagandeskatter!$B$11))+MAX(0,0.05*('Med bidragsinkomst'!$B44+'Med bidragsinkomst'!D$3-Deltagandeskatter!$B$12)) -> 0 | E44: =Deltagandeskatter!$B$2*('Med bidragsinkomst'!$B44+'Med bidragsinkomst'!E$3-GRUNDAVDRAG('Med bidragsinkomst'!$B44+'Med bidragsinkomst'!E$3))-JSA($B44,GRUNDAVDRAG($B44+E$3),Deltagandeskatter!$B$2)+MAX(0,0.2*($B44+E$3-Deltagandeskatter!$B$11))+MAX(0,0.05*('Med bidragsinkomst'!$B44+'Med bidragsinkomst'!E$3-Deltagandeskatter!$B$12)) -> 16060 | F44: =Deltagandeskatter!$B$2*('Med bidragsinkomst'!$B44+'Med bidragsinkomst'!F$3-GRUNDAVDRAG('Med bidragsinkomst'!$B44+'Med bidragsinkomst'!F$3))-JSA($B44,GRUNDAVDRAG($B44+F$3),Deltagandeskatter!$B$2)+MAX(0,0.2*($B44+F$3-Deltagandeskatter!$B$11))+MAX(0,0.05*('Med bidragsinkomst'!$B44+'Med bidragsinkomst'!F$3-Deltagandeskatter!$B$12)) -> 32120 | G44: =Deltagandeskatter!$B$2*('Med bidragsinkomst'!$B44+'Med bidragsinkomst'!G$3-GRUNDAVDRAG('Med bidragsinkomst'!$B44+'Med bidragsinkomst'!G$3))-JSA($B44,GRUNDAVDRAG($B44+G$3),Deltagandeskatter!$B$2)+MAX(0,0.2*($B44+G$3-Deltagandeskatter!$B$11))+MAX(0,0.05*('Med bidragsinkomst'!$B44+'Med bidragsinkomst'!G$3-Deltagandeskatter!$B$12)) -> 41756 | H44: =Deltagandeskatter!$B$2*('Med bidragsinkomst'!$B44+'Med bidragsinkomst'!H$3-GRUNDAVDRAG('Med bidragsinkomst'!$B44+'Med bidragsinkomst'!H$3))-JSA($B44,GRUNDAVDRAG($B44+H$3),Deltagandeskatter!$B$2)+MAX(0,0.2*($B44+H$3-Deltagandeskatter!$B$11))+MAX(0,0.05*('Med bidragsinkomst'!$B44+'Med bidragsinkomst'!H$3-Deltagandeskatter!$B$12)) -> 48180 | I44: =Deltagandeskatter!$B$2*('Med bidragsinkomst'!$B44+'Med bidragsinkomst'!I$3-GRUNDAVDRAG('Med bidragsinkomst'!$B44+'Med bidragsinkomst'!I$3))-JSA($B44,GRUNDAVDRAG($B44+I$3),Deltagandeskatter!$B$2)+MAX(0,0.2*($B44+I$3-Deltagandeskatter!$B$11))+MAX(0,0.05*('Med bidragsinkomst'!$B44+'Med bidragsinkomst'!I$3-Deltagandeskatter!$B$12)) -> 64240 | K44: =JSA($B44,GRUNDAVDRAG($B44+K$3),Deltagandeskatter!$B$2) -> 6745 | L44: =JSA($B44,GRUNDAVDRAG($B44+L$3),Deltagandeskatter!$B$2) -> 3822 | M44: =JSA($B44,GRUNDAVDRAG($B44+M$3),Deltagandeskatter!$B$2) -> 1767 | N44: =JSA($B44,GRUNDAVDRAG($B44+N$3),Deltagandeskatter!$B$2) -> 2730 | O44: =JSA($B44,GRUNDAVDRAG($B44+O$3),Deltagandeskatter!$B$2) -> 3373 | P44: =JSA($B44,GRUNDAVDRAG($B44+P$3),Deltagandeskatter!$B$2) -> 4979 | R44: 19000 | S44: 28100 | T44: 34500 | U44: 31500 | V44: 29500 | W44: 24500 | Y44: 0 | Z44: 6456 | AA44: 9668 | AB44: 11082 | AC44: 10760 | AD44: 9154 | AF44: 0% | AG44: -0% | AH44: -0% | AI44: 0% | AJ44: -0% | AK44: -0%
A45: 3417 | B45: 41000 | D45: =Deltagandeskatter!$B$2*('Med bidragsinkomst'!$B45+'Med bidragsinkomst'!D$3-GRUNDAVDRAG('Med bidragsinkomst'!$B45+'Med bidragsinkomst'!D$3))-JSA($B45,GRUNDAVDRAG($B45+D$3),Deltagandeskatter!$B$2)+MAX(0,0.2*($B45+D$3-Deltagandeskatter!$B$11))+MAX(0,0.05*('Med bidragsinkomst'!$B45+'Med bidragsinkomst'!D$3-Deltagandeskatter!$B$12)) -> 49 | E45: =Deltagandeskatter!$B$2*('Med bidragsinkomst'!$B45+'Med bidragsinkomst'!E$3-GRUNDAVDRAG('Med bidragsinkomst'!$B45+'Med bidragsinkomst'!E$3))-JSA($B45,GRUNDAVDRAG($B45+E$3),Deltagandeskatter!$B$2)+MAX(0,0.2*($B45+E$3-Deltagandeskatter!$B$11))+MAX(0,0.05*('Med bidragsinkomst'!$B45+'Med bidragsinkomst'!E$3-Deltagandeskatter!$B$12)) -> 16110 | F45: =Deltagandeskatter!$B$2*('Med bidragsinkomst'!$B45+'Med bidragsinkomst'!F$3-GRUNDAVDRAG('Med bidragsinkomst'!$B45+'Med bidragsinkomst'!F$3))-JSA($B45,GRUNDAVDRAG($B45+F$3),Deltagandeskatter!$B$2)+MAX(0,0.2*($B45+F$3-Deltagandeskatter!$B$11))+MAX(0,0.05*('Med bidragsinkomst'!$B45+'Med bidragsinkomst'!F$3-Deltagandeskatter!$B$12)) -> 32170 | G45: =Deltagandeskatter!$B$2*('Med bidragsinkomst'!$B45+'Med bidragsinkomst'!G$3-GRUNDAVDRAG('Med bidragsinkomst'!$B45+'Med bidragsinkomst'!G$3))-JSA($B45,GRUNDAVDRAG($B45+G$3),Deltagandeskatter!$B$2)+MAX(0,0.2*($B45+G$3-Deltagandeskatter!$B$11))+MAX(0,0.05*('Med bidragsinkomst'!$B45+'Med bidragsinkomst'!G$3-Deltagandeskatter!$B$12)) -> 41806 | H45: =Deltagandeskatter!$B$2*('Med bidragsinkomst'!$B45+'Med bidragsinkomst'!H$3-GRUNDAVDRAG('Med bidragsinkomst'!$B45+'Med bidragsinkomst'!H$3))-JSA($B45,GRUNDAVDRAG($B45+H$3),Deltagandeskatter!$B$2)+MAX(0,0.2*($B45+H$3-Deltagandeskatter!$B$11))+MAX(0,0.05*('Med bidragsinkomst'!$B45+'Med bidragsinkomst'!H$3-Deltagandeskatter!$B$12)) -> 48230 | I45: =Deltagandeskatter!$B$2*('Med bidragsinkomst'!$B45+'Med bidragsinkomst'!I$3-GRUNDAVDRAG('Med bidragsinkomst'!$B45+'Med bidragsinkomst'!I$3))-JSA($B45,GRUNDAVDRAG($B45+I$3),Deltagandeskatter!$B$2)+MAX(0,0.2*($B45+I$3-Deltagandeskatter!$B$11))+MAX(0,0.05*('Med bidragsinkomst'!$B45+'Med bidragsinkomst'!I$3-Deltagandeskatter!$B$12)) -> 64290 | K45: =JSA($B45,GRUNDAVDRAG($B45+K$3),Deltagandeskatter!$B$2) -> 7017 | L45: =JSA($B45,GRUNDAVDRAG($B45+L$3),Deltagandeskatter!$B$2) -> 4029 | M45: =JSA($B45,GRUNDAVDRAG($B45+M$3),Deltagandeskatter!$B$2) -> 2070 | N45: =JSA($B45,GRUNDAVDRAG($B45+N$3),Deltagandeskatter!$B$2) -> 3034 | O45: =JSA($B45,GRUNDAVDRAG($B45+O$3),Deltagandeskatter!$B$2) -> 3676 | P45: =JSA($B45,GRUNDAVDRAG($B45+P$3),Deltagandeskatter!$B$2) -> 5282 | R45: 19000 | S45: 28300 | T45: 34400 | U45: 31400 | V45: 29400 | W45: 24400 | Y45: 49 | Z45: 6506 | AA45: 9718 | AB45: 11131 | AC45: 10810 | AD45: 9204 | AF45: 5% | AG45: 5% | AH45: 5% | AI45: 5% | AJ45: 5% | AK45: 5%
A46: 3500 | B46: 42000 | D46: =Deltagandeskatter!$B$2*('Med bidragsinkomst'!$B46+'Med bidragsinkomst'!D$3-GRUNDAVDRAG('Med bidragsinkomst'!$B46+'Med bidragsinkomst'!D$3))-JSA($B46,GRUNDAVDRAG($B46+D$3),Deltagandeskatter!$B$2)+MAX(0,0.2*($B46+D$3-Deltagandeskatter!$B$11))+MAX(0,0.05*('Med bidragsinkomst'!$B46+'Med bidragsinkomst'!D$3-Deltagandeskatter!$B$12)) -> 265 | E46: =Deltagandeskatter!$B$2*('Med bidragsinkomst'!$B46+'Med bidragsinkomst'!E$3-GRUNDAVDRAG('Med bidragsinkomst'!$B46+'Med bidragsinkomst'!E$3))-JSA($B46,GRUNDAVDRAG($B46+E$3),Deltagandeskatter!$B$2)+MAX(0,0.2*($B46+E$3-Deltagandeskatter!$B$11))+MAX(0,0.05*('Med bidragsinkomst'!$B46+'Med bidragsinkomst'!E$3-Deltagandeskatter!$B$12)) -> 16324 | F46: =Deltagandeskatter!$B$2*('Med bidragsinkomst'!$B46+'Med bidragsinkomst'!F$3-GRUNDAVDRAG('Med bidragsinkomst'!$B46+'Med bidragsinkomst'!F$3))-JSA($B46,GRUNDAVDRAG($B46+F$3),Deltagandeskatter!$B$2)+MAX(0,0.2*($B46+F$3-Deltagandeskatter!$B$11))+MAX(0,0.05*('Med bidragsinkomst'!$B46+'Med bidragsinkomst'!F$3-Deltagandeskatter!$B$12)) -> 32384 | G46: =Deltagandeskatter!$B$2*('Med bidragsinkomst'!$B46+'Med bidragsinkomst'!G$3-GRUNDAVDRAG('Med bidragsinkomst'!$B46+'Med bidragsinkomst'!G$3))-JSA($B46,GRUNDAVDRAG($B46+G$3),Deltagandeskatter!$B$2)+MAX(0,0.2*($B46+G$3-Deltagandeskatter!$B$11))+MAX(0,0.05*('Med bidragsinkomst'!$B46+'Med bidragsinkomst'!G$3-Deltagandeskatter!$B$12)) -> 42020 | H46: =Deltagandeskatter!$B$2*('Med bidragsinkomst'!$B46+'Med bidragsinkomst'!H$3-GRUNDAVDRAG('Med bidragsinkomst'!$B46+'Med bidragsinkomst'!H$3))-JSA($B46,GRUNDAVDRAG($B46+H$3),Deltagandeskatter!$B$2)+MAX(0,0.2*($B46+H$3-Deltagandeskatter!$B$11))+MAX(0,0.05*('Med bidragsinkomst'!$B46+'Med bidragsinkomst'!H$3-Deltagandeskatter!$B$12)) -> 48444 | I46: =Deltagandeskatter!$B$2*('Med bidragsinkomst'!$B46+'Med bidragsinkomst'!I$3-GRUNDAVDRAG('Med bidragsinkomst'!$B46+'Med bidragsinkomst'!I$3))-JSA($B46,GRUNDAVDRAG($B46+I$3),Deltagandeskatter!$B$2)+MAX(0,0.2*($B46+I$3-Deltagandeskatter!$B$11))+MAX(0,0.05*('Med bidragsinkomst'!$B46+'Med bidragsinkomst'!I$3-Deltagandeskatter!$B$12)) -> 64504 | K46: =JSA($B46,GRUNDAVDRAG($B46+K$3),Deltagandeskatter!$B$2) -> 7123 | L46: =JSA($B46,GRUNDAVDRAG($B46+L$3),Deltagandeskatter!$B$2) -> 4072 | M46: =JSA($B46,GRUNDAVDRAG($B46+M$3),Deltagandeskatter!$B$2) -> 2209 | N46: =JSA($B46,GRUNDAVDRAG($B46+N$3),Deltagandeskatter!$B$2) -> 3173 | O46: =JSA($B46,GRUNDAVDRAG($B46+O$3),Deltagandeskatter!$B$2) -> 3815 | P46: =JSA($B46,GRUNDAVDRAG($B46+P$3),Deltagandeskatter!$B$2) -> 5421 | R46: 19000 | S46: 28500 | T46: 34300 | U46: 31300 | V46: 29300 | W46: 24300 | Y46: 265 | Z46: 6720 | AA46: 9932 | AB46: 11345 | AC46: 11024 | AD46: 9418 | AF46: 22% | AG46: 21% | AH46: 21% | AI46: 21% | AJ46: 21% | AK46: 21%
A47: 3583 | B47: 43000 | D47: =Deltagandeskatter!$B$2*('Med bidragsinkomst'!$B47+'Med bidragsinkomst'!D$3-GRUNDAVDRAG('Med bidragsinkomst'!$B47+'Med bidragsinkomst'!D$3))-JSA($B47,GRUNDAVDRAG($B47+D$3),Deltagandeskatter!$B$2)+MAX(0,0.2*($B47+D$3-Deltagandeskatter!$B$11))+MAX(0,0.05*('Med bidragsinkomst'!$B47+'Med bidragsinkomst'!D$3-Deltagandeskatter!$B$12)) -> 479 | E47: =Deltagandeskatter!$B$2*('Med bidragsinkomst'!$B47+'Med bidragsinkomst'!E$3-GRUNDAVDRAG('Med bidragsinkomst'!$B47+'Med bidragsinkomst'!E$3))-JSA($B47,GRUNDAVDRAG($B47+E$3),Deltagandeskatter!$B$2)+MAX(0,0.2*($B47+E$3-Deltagandeskatter!$B$11))+MAX(0,0.05*('Med bidragsinkomst'!$B47+'Med bidragsinkomst'!E$3-Deltagandeskatter!$B$12)) -> 16539 | F47: =Deltagandeskatter!$B$2*('Med bidragsinkomst'!$B47+'Med bidragsinkomst'!F$3-GRUNDAVDRAG('Med bidragsinkomst'!$B47+'Med bidragsinkomst'!F$3))-JSA($B47,GRUNDAVDRAG($B47+F$3),Deltagandeskatter!$B$2)+MAX(0,0.2*($B47+F$3-Deltagandeskatter!$B$11))+MAX(0,0.05*('Med bidragsinkomst'!$B47+'Med bidragsinkomst'!F$3-Deltagandeskatter!$B$12)) -> 32599 | G47: =Deltagandeskatter!$B$2*('Med bidragsinkomst'!$B47+'Med bidragsinkomst'!G$3-GRUNDAVDRAG('Med bidragsinkomst'!$B47+'Med bidragsinkomst'!G$3))-JSA($B47,GRUNDAVDRAG($B47+G$3),Deltagandeskatter!$B$2)+MAX(0,0.2*($B47+G$3-Deltagandeskatter!$B$11))+MAX(0,0.05*('Med bidragsinkomst'!$B47+'Med bidragsinkomst'!G$3-Deltagandeskatter!$B$12)) -> 42235 | H47: =Deltagandeskatter!$B$2*('Med bidragsinkomst'!$B47+'Med bidragsinkomst'!H$3-GRUNDAVDRAG('Med bidragsinkomst'!$B47+'Med bidragsinkomst'!H$3))-JSA($B47,GRUNDAVDRAG($B47+H$3),Deltagandeskatter!$B$2)+MAX(0,0.2*($B47+H$3-Deltagandeskatter!$B$11))+MAX(0,0.05*('Med bidragsinkomst'!$B47+'Med bidragsinkomst'!H$3-Deltagandeskatter!$B$12)) -> 48659 | I47: =Deltagandeskatter!$B$2*('Med bidragsinkomst'!$B47+'Med bidragsinkomst'!I$3-GRUNDAVDRAG('Med bidragsinkomst'!$B47+'Med bidragsinkomst'!I$3))-JSA($B47,GRUNDAVDRAG($B47+I$3),Deltagandeskatter!$B$2)+MAX(0,0.2*($B47+I$3-Deltagandeskatter!$B$11))+MAX(0,0.05*('Med bidragsinkomst'!$B47+'Med bidragsinkomst'!I$3-Deltagandeskatter!$B$12)) -> 64719 | K47: =JSA($B47,GRUNDAVDRAG($B47+K$3),Deltagandeskatter!$B$2) -> 7230 | L47: =JSA($B47,GRUNDAVDRAG($B47+L$3),Deltagandeskatter!$B$2) -> 4114 | M47: =JSA($B47,GRUNDAVDRAG($B47+M$3),Deltagandeskatter!$B$2) -> 2348 | N47: =JSA($B47,GRUNDAVDRAG($B47+N$3),Deltagandeskatter!$B$2) -> 3311 | O47: =JSA($B47,GRUNDAVDRAG($B47+O$3),Deltagandeskatter!$B$2) -> 3954 | P47: =JSA($B47,GRUNDAVDRAG($B47+P$3),Deltagandeskatter!$B$2) -> 5560 | R47: 19000 | S47: 28700 | T47: 34200 | U47: 31200 | V47: 29200 | W47: 24200 | Y47: 479 | Z47: 6935 | AA47: 10147 | AB47: 11561 | AC47: 11239 | AD47: 9633 | AF47: 21% | AG47: 21% | AH47: 21% | AI47: 22% | AJ47: 21% | AK47: 21%
A48: 3667 | B48: 44000 | D48: =Deltagandeskatter!$B$2*('Med bidragsinkomst'!$B48+'Med bidragsinkomst'!D$3-GRUNDAVDRAG('Med bidragsinkomst'!$B48+'Med bidragsinkomst'!D$3))-JSA($B48,GRUNDAVDRAG($B48+D$3),Deltagandeskatter!$B$2)+MAX(0,0.2*($B48+D$3-Deltagandeskatter!$B$11))+MAX(0,0.05*('Med bidragsinkomst'!$B48+'Med bidragsinkomst'!D$3-Deltagandeskatter!$B$12)) -> 693 | E48: =Deltagandeskatter!$B$2*('Med bidragsinkomst'!$B48+'Med bidragsinkomst'!E$3-GRUNDAVDRAG('Med bidragsinkomst'!$B48+'Med bidragsinkomst'!E$3))-JSA($B48,GRUNDAVDRAG($B48+E$3),Deltagandeskatter!$B$2)+MAX(0,0.2*($B48+E$3-Deltagandeskatter!$B$11))+MAX(0,0.05*('Med bidragsinkomst'!$B48+'Med bidragsinkomst'!E$3-Deltagandeskatter!$B$12)) -> 16753 | F48: =Deltagandeskatter!$B$2*('Med bidragsinkomst'!$B48+'Med bidragsinkomst'!F$3-GRUNDAVDRAG('Med bidragsinkomst'!$B48+'Med bidragsinkomst'!F$3))-JSA($B48,GRUNDAVDRAG($B48+F$3),Deltagandeskatter!$B$2)+MAX(0,0.2*($B48+F$3-Deltagandeskatter!$B$11))+MAX(0,0.05*('Med bidragsinkomst'!$B48+'Med bidragsinkomst'!F$3-Deltagandeskatter!$B$12)) -> 32814 | G48: =Deltagandeskatter!$B$2*('Med bidragsinkomst'!$B48+'Med bidragsinkomst'!G$3-GRUNDAVDRAG('Med bidragsinkomst'!$B48+'Med bidragsinkomst'!G$3))-JSA($B48,GRUNDAVDRAG($B48+G$3),Deltagandeskatter!$B$2)+MAX(0,0.2*($B48+G$3-Deltagandeskatter!$B$11))+MAX(0,0.05*('Med bidragsinkomst'!$B48+'Med bidragsinkomst'!G$3-Deltagandeskatter!$B$12)) -> 42449 | H48: =Deltagandeskatter!$B$2*('Med bidragsinkomst'!$B48+'Med bidragsinkomst'!H$3-GRUNDAVDRAG('Med bidragsinkomst'!$B48+'Med bidragsinkomst'!H$3))-JSA($B48,GRUNDAVDRAG($B48+H$3),Deltagandeskatter!$B$2)+MAX(0,0.2*($B48+H$3-Deltagandeskatter!$B$11))+MAX(0,0.05*('Med bidragsinkomst'!$B48+'Med bidragsinkomst'!H$3-Deltagandeskatter!$B$12)) -> 48874 | I48: =Deltagandeskatter!$B$2*('Med bidragsinkomst'!$B48+'Med bidragsinkomst'!I$3-GRUNDAVDRAG('Med bidragsinkomst'!$B48+'Med bidragsinkomst'!I$3))-JSA($B48,GRUNDAVDRAG($B48+I$3),Deltagandeskatter!$B$2)+MAX(0,0.2*($B48+I$3-Deltagandeskatter!$B$11))+MAX(0,0.05*('Med bidragsinkomst'!$B48+'Med bidragsinkomst'!I$3-Deltagandeskatter!$B$12)) -> 64934 | K48: =JSA($B48,GRUNDAVDRAG($B48+K$3),Deltagandeskatter!$B$2) -> 7337 | L48: =JSA($B48,GRUNDAVDRAG($B48+L$3),Deltagandeskatter!$B$2) -> 4157 | M48: =JSA($B48,GRUNDAVDRAG($B48+M$3),Deltagandeskatter!$B$2) -> 2486 | N48: =JSA($B48,GRUNDAVDRAG($B48+N$3),Deltagandeskatter!$B$2) -> 3450 | O48: =JSA($B48,GRUNDAVDRAG($B48+O$3),Deltagandeskatter!$B$2) -> 4092 | P48: =JSA($B48,GRUNDAVDRAG($B48+P$3),Deltagandeskatter!$B$2) -> 5698 | R48: 19000 | S48: 28900 | T48: 34100 | U48: 31100 | V48: 29100 | W48: 24100 | Y48: 693 | Z48: 7149 | AA48: 10362 | AB48: 11775 | AC48: 11454 | AD48: 9848 | AF48: 21% | AG48: 21% | AH48: 22% | AI48: 21% | AJ48: 22% | AK48: 22%
A49: 3750 | B49: 45000 | D49: =Deltagandeskatter!$B$2*('Med bidragsinkomst'!$B49+'Med bidragsinkomst'!D$3-GRUNDAVDRAG('Med bidragsinkomst'!$B49+'Med bidragsinkomst'!D$3))-JSA($B49,GRUNDAVDRAG($B49+D$3),Deltagandeskatter!$B$2)+MAX(0,0.2*($B49+D$3-Deltagandeskatter!$B$11))+MAX(0,0.05*('Med bidragsinkomst'!$B49+'Med bidragsinkomst'!D$3-Deltagandeskatter!$B$12)) -> 908 | E49: =Deltagandeskatter!$B$2*('Med bidragsinkomst'!$B49+'Med bidragsinkomst'!E$3-GRUNDAVDRAG('Med bidragsinkomst'!$B49+'Med bidragsinkomst'!E$3))-JSA($B49,GRUNDAVDRAG($B49+E$3),Deltagandeskatter!$B$2)+MAX(0,0.2*($B49+E$3-Deltagandeskatter!$B$11))+MAX(0,0.05*('Med bidragsinkomst'!$B49+'Med bidragsinkomst'!E$3-Deltagandeskatter!$B$12)) -> 16968 | F49: =Deltagandeskatter!$B$2*('Med bidragsinkomst'!$B49+'Med bidragsinkomst'!F$3-GRUNDAVDRAG('Med bidragsinkomst'!$B49+'Med bidragsinkomst'!F$3))-JSA($B49,GRUNDAVDRAG($B49+F$3),Deltagandeskatter!$B$2)+MAX(0,0.2*($B49+F$3-Deltagandeskatter!$B$11))+MAX(0,0.05*('Med bidragsinkomst'!$B49+'Med bidragsinkomst'!F$3-Deltagandeskatter!$B$12)) -> 33028 | G49: =Deltagandeskatter!$B$2*('Med bidragsinkomst'!$B49+'Med bidragsinkomst'!G$3-GRUNDAVDRAG('Med bidragsinkomst'!$B49+'Med bidragsinkomst'!G$3))-JSA($B49,GRUNDAVDRAG($B49+G$3),Deltagandeskatter!$B$2)+MAX(0,0.2*($B49+G$3-Deltagandeskatter!$B$11))+MAX(0,0.05*('Med bidragsinkomst'!$B49+'Med bidragsinkomst'!G$3-Deltagandeskatter!$B$12)) -> 42664 | H49: =Deltagandeskatter!$B$2*('Med bidragsinkomst'!$B49+'Med bidragsinkomst'!H$3-GRUNDAVDRAG('Med bidragsinkomst'!$B49+'Med bidragsinkomst'!H$3))-JSA($B49,GRUNDAVDRAG($B49+H$3),Deltagandeskatter!$B$2)+MAX(0,0.2*($B49+H$3-Deltagandeskatter!$B$11))+MAX(0,0.05*('Med bidragsinkomst'!$B49+'Med bidragsinkomst'!H$3-Deltagandeskatter!$B$12)) -> 49088 | I49: =Deltagandeskatter!$B$2*('Med bidragsinkomst'!$B49+'Med bidragsinkomst'!I$3-GRUNDAVDRAG('Med bidragsinkomst'!$B49+'Med bidragsinkomst'!I$3))-JSA($B49,GRUNDAVDRAG($B49+I$3),Deltagandeskatter!$B$2)+MAX(0,0.2*($B49+I$3-Deltagandeskatter!$B$11))+MAX(0,0.05*('Med bidragsinkomst'!$B49+'Med bidragsinkomst'!I$3-Deltagandeskatter!$B$12)) -> 65148 | K49: =JSA($B49,GRUNDAVDRAG($B49+K$3),Deltagandeskatter!$B$2) -> 7411 | L49: =JSA($B49,GRUNDAVDRAG($B49+L$3),Deltagandeskatter!$B$2) -> 4199 | M49: =JSA($B49,GRUNDAVDRAG($B49+M$3),Deltagandeskatter!$B$2) -> 2625 | N49: =JSA($B49,GRUNDAVDRAG($B49+N$3),Deltagandeskatter!$B$2) -> 3589 | O49: =JSA($B49,GRUNDAVDRAG($B49+O$3),Deltagandeskatter!$B$2) -> 4231 | P49: =JSA($B49,GRUNDAVDRAG($B49+P$3),Deltagandeskatter!$B$2) -> 5837 | R49: 19100 | S49: 29100 | T49: 34000 | U49: 31000 | V49: 29000 | W49: 24000 | Y49: 908 | Z49: 7364 | AA49: 10576 | AB49: 11989 | AC49: 11668 | AD49: 10062 | AF49: 22% | AG49: 21% | AH49: 21% | AI49: 21% | AJ49: 21% | AK49: 21%
A50: 3833 | B50: 46000 | D50: =Deltagandeskatter!$B$2*('Med bidragsinkomst'!$B50+'Med bidragsinkomst'!D$3-GRUNDAVDRAG('Med bidragsinkomst'!$B50+'Med bidragsinkomst'!D$3))-JSA($B50,GRUNDAVDRAG($B50+D$3),Deltagandeskatter!$B$2)+MAX(0,0.2*($B50+D$3-Deltagandeskatter!$B$11))+MAX(0,0.05*('Med bidragsinkomst'!$B50+'Med bidragsinkomst'!D$3-Deltagandeskatter!$B$12)) -> 1123 | E50: =Deltagandeskatter!$B$2*('Med bidragsinkomst'!$B50+'Med bidragsinkomst'!E$3-GRUNDAVDRAG('Med bidragsinkomst'!$B50+'Med bidragsinkomst'!E$3))-JSA($B50,GRUNDAVDRAG($B50+E$3),Deltagandeskatter!$B$2)+MAX(0,0.2*($B50+E$3-Deltagandeskatter!$B$11))+MAX(0,0.05*('Med bidragsinkomst'!$B50+'Med bidragsinkomst'!E$3-Deltagandeskatter!$B$12)) -> 17183 | F50: =Deltagandeskatter!$B$2*('Med bidragsinkomst'!$B50+'Med bidragsinkomst'!F$3-GRUNDAVDRAG('Med bidragsinkomst'!$B50+'Med bidragsinkomst'!F$3))-JSA($B50,GRUNDAVDRAG($B50+F$3),Deltagandeskatter!$B$2)+MAX(0,0.2*($B50+F$3-Deltagandeskatter!$B$11))+MAX(0,0.05*('Med bidragsinkomst'!$B50+'Med bidragsinkomst'!F$3-Deltagandeskatter!$B$12)) -> 33243 | G50: =Deltagandeskatter!$B$2*('Med bidragsinkomst'!$B50+'Med bidragsinkomst'!G$3-GRUNDAVDRAG('Med bidragsinkomst'!$B50+'Med bidragsinkomst'!G$3))-JSA($B50,GRUNDAVDRAG($B50+G$3),Deltagandeskatter!$B$2)+MAX(0,0.2*($B50+G$3-Deltagandeskatter!$B$11))+MAX(0,0.05*('Med bidragsinkomst'!$B50+'Med bidragsinkomst'!G$3-Deltagandeskatter!$B$12)) -> 42878 | H50: =Deltagandeskatter!$B$2*('Med bidragsinkomst'!$B50+'Med bidragsinkomst'!H$3-GRUNDAVDRAG('Med bidragsinkomst'!$B50+'Med bidragsinkomst'!H$3))-JSA($B50,GRUNDAVDRAG($B50+H$3),Deltagandeskatter!$B$2)+MAX(0,0.2*($B50+H$3-Deltagandeskatter!$B$11))+MAX(0,0.05*('Med bidragsinkomst'!$B50+'Med bidragsinkomst'!H$3-Deltagandeskatter!$B$12)) -> 49303 | I50: =Deltagandeskatter!$B$2*('Med bidragsinkomst'!$B50+'Med bidragsinkomst'!I$3-GRUNDAVDRAG('Med bidragsinkomst'!$B50+'Med bidragsinkomst'!I$3))-JSA($B50,GRUNDAVDRAG($B50+I$3),Deltagandeskatter!$B$2)+MAX(0,0.2*($B50+I$3-Deltagandeskatter!$B$11))+MAX(0,0.05*('Med bidragsinkomst'!$B50+'Med bidragsinkomst'!I$3-Deltagandeskatter!$B$12)) -> 65363 | K50: =JSA($B50,GRUNDAVDRAG($B50+K$3),Deltagandeskatter!$B$2) -> 7453 | L50: =JSA($B50,GRUNDAVDRAG($B50+L$3),Deltagandeskatter!$B$2) -> 4241 | M50: =JSA($B50,GRUNDAVDRAG($B50+M$3),Deltagandeskatter!$B$2) -> 2764 | N50: =JSA($B50,GRUNDAVDRAG($B50+N$3),Deltagandeskatter!$B$2) -> 3728 | O50: =JSA($B50,GRUNDAVDRAG($B50+O$3),Deltagandeskatter!$B$2) -> 4370 | P50: =JSA($B50,GRUNDAVDRAG($B50+P$3),Deltagandeskatter!$B$2) -> 5976 | R50: 19300 | S50: 29300 | T50: 33900 | U50: 30900 | V50: 28900 | W50: 23900 | Y50: 1123 | Z50: 7579 | AA50: 10791 | AB50: 12204 | AC50: 11883 | AD50: 10277 | AF50: 21% | AG50: 21% | AH50: 21% | AI50: 21% | AJ50: 21% | AK50: 21%
A51: 3917 | B51: 47000 | D51: =Deltagandeskatter!$B$2*('Med bidragsinkomst'!$B51+'Med bidragsinkomst'!D$3-GRUNDAVDRAG('Med bidragsinkomst'!$B51+'Med bidragsinkomst'!D$3))-JSA($B51,GRUNDAVDRAG($B51+D$3),Deltagandeskatter!$B$2)+MAX(0,0.2*($B51+D$3-Deltagandeskatter!$B$11))+MAX(0,0.05*('Med bidragsinkomst'!$B51+'Med bidragsinkomst'!D$3-Deltagandeskatter!$B$12)) -> 1337 | E51: =Deltagandeskatter!$B$2*('Med bidragsinkomst'!$B51+'Med bidragsinkomst'!E$3-GRUNDAVDRAG('Med bidragsinkomst'!$B51+'Med bidragsinkomst'!E$3))-JSA($B51,GRUNDAVDRAG($B51+E$3),Deltagandeskatter!$B$2)+MAX(0,0.2*($B51+E$3-Deltagandeskatter!$B$11))+MAX(0,0.05*('Med bidragsinkomst'!$B51+'Med bidragsinkomst'!E$3-Deltagandeskatter!$B$12)) -> 17397 | F51: =Deltagandeskatter!$B$2*('Med bidragsinkomst'!$B51+'Med bidragsinkomst'!F$3-GRUNDAVDRAG('Med bidragsinkomst'!$B51+'Med bidragsinkomst'!F$3))-JSA($B51,GRUNDAVDRAG($B51+F$3),Deltagandeskatter!$B$2)+MAX(0,0.2*($B51+F$3-Deltagandeskatter!$B$11))+MAX(0,0.05*('Med bidragsinkomst'!$B51+'Med bidragsinkomst'!F$3-Deltagandeskatter!$B$12)) -> 33457 | G51: =Deltagandeskatter!$B$2*('Med bidragsinkomst'!$B51+'Med bidragsinkomst'!G$3-GRUNDAVDRAG('Med bidragsinkomst'!$B51+'Med bidragsinkomst'!G$3))-JSA($B51,GRUNDAVDRAG($B51+G$3),Deltagandeskatter!$B$2)+MAX(0,0.2*($B51+G$3-Deltagandeskatter!$B$11))+MAX(0,0.05*('Med bidragsinkomst'!$B51+'Med bidragsinkomst'!G$3-Deltagandeskatter!$B$12)) -> 43093 | H51: =Deltagandeskatter!$B$2*('Med bidragsinkomst'!$B51+'Med bidragsinkomst'!H$3-GRUNDAVDRAG('Med bidragsinkomst'!$B51+'Med bidragsinkomst'!H$3))-JSA($B51,GRUNDAVDRAG($B51+H$3),Deltagandeskatter!$B$2)+MAX(0,0.2*($B51+H$3-Deltagandeskatter!$B$11))+MAX(0,0.05*('Med bidragsinkomst'!$B51+'Med bidragsinkomst'!H$3-Deltagandeskatter!$B$12)) -> 49517 | I51: =Deltagandeskatter!$B$2*('Med bidragsinkomst'!$B51+'Med bidragsinkomst'!I$3-GRUNDAVDRAG('Med bidragsinkomst'!$B51+'Med bidragsinkomst'!I$3))-JSA($B51,GRUNDAVDRAG($B51+I$3),Deltagandeskatter!$B$2)+MAX(0,0.2*($B51+I$3-Deltagandeskatter!$B$11))+MAX(0,0.05*('Med bidragsinkomst'!$B51+'Med bidragsinkomst'!I$3-Deltagandeskatter!$B$12)) -> 65577 | K51: =JSA($B51,GRUNDAVDRAG($B51+K$3),Deltagandeskatter!$B$2) -> 7496 | L51: =JSA($B51,GRUNDAVDRAG($B51+L$3),Deltagandeskatter!$B$2) -> 4284 | M51: =JSA($B51,GRUNDAVDRAG($B51+M$3),Deltagandeskatter!$B$2) -> 2903 | N51: =JSA($B51,GRUNDAVDRAG($B51+N$3),Deltagandeskatter!$B$2) -> 3866 | O51: =JSA($B51,GRUNDAVDRAG($B51+O$3),Deltagandeskatter!$B$2) -> 4509 | P51: =JSA($B51,GRUNDAVDRAG($B51+P$3),Deltagandeskatter!$B$2) -> 6115 | R51: 19500 | S51: 29500 | T51: 33800 | U51: 30800 | V51: 28800 | W51: 23800 | Y51: 1337 | Z51: 7793 | AA51: 11005 | AB51: 12419 | AC51: 12097 | AD51: 10491 | AF51: 21% | AG51: 21% | AH51: 21% | AI51: 22% | AJ51: 21% | AK51: 21%
A52: 4000 | B52: 48000 | D52: =Deltagandeskatter!$B$2*('Med bidragsinkomst'!$B52+'Med bidragsinkomst'!D$3-GRUNDAVDRAG('Med bidragsinkomst'!$B52+'Med bidragsinkomst'!D$3))-JSA($B52,GRUNDAVDRAG($B52+D$3),Deltagandeskatter!$B$2)+MAX(0,0.2*($B52+D$3-Deltagandeskatter!$B$11))+MAX(0,0.05*('Med bidragsinkomst'!$B52+'Med bidragsinkomst'!D$3-Deltagandeskatter!$B$12)) -> 1552 | E52: =Deltagandeskatter!$B$2*('Med bidragsinkomst'!$B52+'Med bidragsinkomst'!E$3-GRUNDAVDRAG('Med bidragsinkomst'!$B52+'Med bidragsinkomst'!E$3))-JSA($B52,GRUNDAVDRAG($B52+E$3),Deltagandeskatter!$B$2)+MAX(0,0.2*($B52+E$3-Deltagandeskatter!$B$11))+MAX(0,0.05*('Med bidragsinkomst'!$B52+'Med bidragsinkomst'!E$3-Deltagandeskatter!$B$12)) -> 17612 | F52: =Deltagandeskatter!$B$2*('Med bidragsinkomst'!$B52+'Med bidragsinkomst'!F$3-GRUNDAVDRAG('Med bidragsinkomst'!$B52+'Med bidragsinkomst'!F$3))-JSA($B52,GRUNDAVDRAG($B52+F$3),Deltagandeskatter!$B$2)+MAX(0,0.2*($B52+F$3-Deltagandeskatter!$B$11))+MAX(0,0.05*('Med bidragsinkomst'!$B52+'Med bidragsinkomst'!F$3-Deltagandeskatter!$B$12)) -> 33672 | G52: =Deltagandeskatter!$B$2*('Med bidragsinkomst'!$B52+'Med bidragsinkomst'!G$3-GRUNDAVDRAG('Med bidragsinkomst'!$B52+'Med bidragsinkomst'!G$3))-JSA($B52,GRUNDAVDRAG($B52+G$3),Deltagandeskatter!$B$2)+MAX(0,0.2*($B52+G$3-Deltagandeskatter!$B$11))+MAX(0,0.05*('Med bidragsinkomst'!$B52+'Med bidragsinkomst'!G$3-Deltagandeskatter!$B$12)) -> 43308 | H52: =Deltagandeskatter!$B$2*('Med bidragsinkomst'!$B52+'Med bidragsinkomst'!H$3-GRUNDAVDRAG('Med bidragsinkomst'!$B52+'Med bidragsinkomst'!H$3))-JSA($B52,GRUNDAVDRAG($B52+H$3),Deltagandeskatter!$B$2)+MAX(0,0.2*($B52+H$3-Deltagandeskatter!$B$11))+MAX(0,0.05*('Med bidragsinkomst'!$B52+'Med bidragsinkomst'!H$3-Deltagandeskatter!$B$12)) -> 49732 | I52: =Deltagandeskatter!$B$2*('Med bidragsinkomst'!$B52+'Med bidragsinkomst'!I$3-GRUNDAVDRAG('Med bidragsinkomst'!$B52+'Med bidragsinkomst'!I$3))-JSA($B52,GRUNDAVDRAG($B52+I$3),Deltagandeskatter!$B$2)+MAX(0,0.2*($B52+I$3-Deltagandeskatter!$B$11))+MAX(0,0.05*('Med bidragsinkomst'!$B52+'Med bidragsinkomst'!I$3-Deltagandeskatter!$B$12)) -> 65792 | K52: =JSA($B52,GRUNDAVDRAG($B52+K$3),Deltagandeskatter!$B$2) -> 7538 | L52: =JSA($B52,GRUNDAVDRAG($B52+L$3),Deltagandeskatter!$B$2) -> 4326 | M52: =JSA($B52,GRUNDAVDRAG($B52+M$3),Deltagandeskatter!$B$2) -> 3041 | N52: =JSA($B52,GRUNDAVDRAG($B52+N$3),Deltagandeskatter!$B$2) -> 4005 | O52: =JSA($B52,GRUNDAVDRAG($B52+O$3),Deltagandeskatter!$B$2) -> 4647 | P52: =JSA($B52,GRUNDAVDRAG($B52+P$3),Deltagandeskatter!$B$2) -> 6253 | R52: 19700 | S52: 29700 | T52: 33700 | U52: 30700 | V52: 28700 | W52: 23700 | Y52: 1552 | Z52: 8008 | AA52: 11220 | AB52: 12633 | AC52: 12312 | AD52: 10706 | AF52: 21% | AG52: 21% | AH52: 22% | AI52: 21% | AJ52: 22% | AK52: 22%
A53: 4083 | B53: 49000 | D53: =Deltagandeskatter!$B$2*('Med bidragsinkomst'!$B53+'Med bidragsinkomst'!D$3-GRUNDAVDRAG('Med bidragsinkomst'!$B53+'Med bidragsinkomst'!D$3))-JSA($B53,GRUNDAVDRAG($B53+D$3),Deltagandeskatter!$B$2)+MAX(0,0.2*($B53+D$3-Deltagandeskatter!$B$11))+MAX(0,0.05*('Med bidragsinkomst'!$B53+'Med bidragsinkomst'!D$3-Deltagandeskatter!$B$12)) -> 1766 | E53: =Deltagandeskatter!$B$2*('Med bidragsinkomst'!$B53+'Med bidragsinkomst'!E$3-GRUNDAVDRAG('Med bidragsinkomst'!$B53+'Med bidragsinkomst'!E$3))-JSA($B53,GRUNDAVDRAG($B53+E$3),Deltagandeskatter!$B$2)+MAX(0,0.2*($B53+E$3-Deltagandeskatter!$B$11))+MAX(0,0.05*('Med bidragsinkomst'!$B53+'Med bidragsinkomst'!E$3-Deltagandeskatter!$B$12)) -> 17826 | F53: =Deltagandeskatter!$B$2*('Med bidragsinkomst'!$B53+'Med bidragsinkomst'!F$3-GRUNDAVDRAG('Med bidragsinkomst'!$B53+'Med bidragsinkomst'!F$3))-JSA($B53,GRUNDAVDRAG($B53+F$3),Deltagandeskatter!$B$2)+MAX(0,0.2*($B53+F$3-Deltagandeskatter!$B$11))+MAX(0,0.05*('Med bidragsinkomst'!$B53+'Med bidragsinkomst'!F$3-Deltagandeskatter!$B$12)) -> 33886 | G53: =Deltagandeskatter!$B$2*('Med bidragsinkomst'!$B53+'Med bidragsinkomst'!G$3-GRUNDAVDRAG('Med bidragsinkomst'!$B53+'Med bidragsinkomst'!G$3))-JSA($B53,GRUNDAVDRAG($B53+G$3),Deltagandeskatter!$B$2)+MAX(0,0.2*($B53+G$3-Deltagandeskatter!$B$11))+MAX(0,0.05*('Med bidragsinkomst'!$B53+'Med bidragsinkomst'!G$3-Deltagandeskatter!$B$12)) -> 43522 | H53: =Deltagandeskatter!$B$2*('Med bidragsinkomst'!$B53+'Med bidragsinkomst'!H$3-GRUNDAVDRAG('Med bidragsinkomst'!$B53+'Med bidragsinkomst'!H$3))-JSA($B53,GRUNDAVDRAG($B53+H$3),Deltagandeskatter!$B$2)+MAX(0,0.2*($B53+H$3-Deltagandeskatter!$B$11))+MAX(0,0.05*('Med bidragsinkomst'!$B53+'Med bidragsinkomst'!H$3-Deltagandeskatter!$B$12)) -> 49946 | I53: =Deltagandeskatter!$B$2*('Med bidragsinkomst'!$B53+'Med bidragsinkomst'!I$3-GRUNDAVDRAG('Med bidragsinkomst'!$B53+'Med bidragsinkomst'!I$3))-JSA($B53,GRUNDAVDRAG($B53+I$3),Deltagandeskatter!$B$2)+MAX(0,0.2*($B53+I$3-Deltagandeskatter!$B$11))+MAX(0,0.05*('Med bidragsinkomst'!$B53+'Med bidragsinkomst'!I$3-Deltagandeskatter!$B$12)) -> 66006 | K53: =JSA($B53,GRUNDAVDRAG($B53+K$3),Deltagandeskatter!$B$2) -> 7581 | L53: =JSA($B53,GRUNDAVDRAG($B53+L$3),Deltagandeskatter!$B$2) -> 4369 | M53: =JSA($B53,GRUNDAVDRAG($B53+M$3),Deltagandeskatter!$B$2) -> 3180 | N53: =JSA($B53,GRUNDAVDRAG($B53+N$3),Deltagandeskatter!$B$2) -> 4144 | O53: =JSA($B53,GRUNDAVDRAG($B53+O$3),Deltagandeskatter!$B$2) -> 4786 | P53: =JSA($B53,GRUNDAVDRAG($B53+P$3),Deltagandeskatter!$B$2) -> 6392 | R53: 19900 | S53: 29900 | T53: 33600 | U53: 30600 | V53: 28600 | W53: 23600 | Y53: 1766 | Z53: 8222 | AA53: 11435 | AB53: 12847 | AC53: 12527 | AD53: 10921 | AF53: 21% | AG53: 21% | AH53: 21% | AI53: 21% | AJ53: 21% | AK53: 21%
A54: 4167 | B54: 50000 | D54: =Deltagandeskatter!$B$2*('Med bidragsinkomst'!$B54+'Med bidragsinkomst'!D$3-GRUNDAVDRAG('Med bidragsinkomst'!$B54+'Med bidragsinkomst'!D$3))-JSA($B54,GRUNDAVDRAG($B54+D$3),Deltagandeskatter!$B$2)+MAX(0,0.2*($B54+D$3-Deltagandeskatter!$B$11))+MAX(0,0.05*('Med bidragsinkomst'!$B54+'Med bidragsinkomst'!D$3-Deltagandeskatter!$B$12)) -> 1981 | E54: =Deltagandeskatter!$B$2*('Med bidragsinkomst'!$B54+'Med bidragsinkomst'!E$3-GRUNDAVDRAG('Med bidragsinkomst'!$B54+'Med bidragsinkomst'!E$3))-JSA($B54,GRUNDAVDRAG($B54+E$3),Deltagandeskatter!$B$2)+MAX(0,0.2*($B54+E$3-Deltagandeskatter!$B$11))+MAX(0,0.05*('Med bidragsinkomst'!$B54+'Med bidragsinkomst'!E$3-Deltagandeskatter!$B$12)) -> 18041 | F54: =Deltagandeskatter!$B$2*('Med bidragsinkomst'!$B54+'Med bidragsinkomst'!F$3-GRUNDAVDRAG('Med bidragsinkomst'!$B54+'Med bidragsinkomst'!F$3))-JSA($B54,GRUNDAVDRAG($B54+F$3),Deltagandeskatter!$B$2)+MAX(0,0.2*($B54+F$3-Deltagandeskatter!$B$11))+MAX(0,0.05*('Med bidragsinkomst'!$B54+'Med bidragsinkomst'!F$3-Deltagandeskatter!$B$12)) -> 34101 | G54: =Deltagandeskatter!$B$2*('Med bidragsinkomst'!$B54+'Med bidragsinkomst'!G$3-GRUNDAVDRAG('Med bidragsinkomst'!$B54+'Med bidragsinkomst'!G$3))-JSA($B54,GRUNDAVDRAG($B54+G$3),Deltagandeskatter!$B$2)+MAX(0,0.2*($B54+G$3-Deltagandeskatter!$B$11))+MAX(0,0.05*('Med bidragsinkomst'!$B54+'Med bidragsinkomst'!G$3-Deltagandeskatter!$B$12)) -> 43736 | H54: =Deltagandeskatter!$B$2*('Med bidragsinkomst'!$B54+'Med bidragsinkomst'!H$3-GRUNDAVDRAG('Med bidragsinkomst'!$B54+'Med bidragsinkomst'!H$3))-JSA($B54,GRUNDAVDRAG($B54+H$3),Deltagandeskatter!$B$2)+MAX(0,0.2*($B54+H$3-Deltagandeskatter!$B$11))+MAX(0,0.05*('Med bidragsinkomst'!$B54+'Med bidragsinkomst'!H$3-Deltagandeskatter!$B$12)) -> 50161 | I54: =Deltagandeskatter!$B$2*('Med bidragsinkomst'!$B54+'Med bidragsinkomst'!I$3-GRUNDAVDRAG('Med bidragsinkomst'!$B54+'Med bidragsinkomst'!I$3))-JSA($B54,GRUNDAVDRAG($B54+I$3),Deltagandeskatter!$B$2)+MAX(0,0.2*($B54+I$3-Deltagandeskatter!$B$11))+MAX(0,0.05*('Med bidragsinkomst'!$B54+'Med bidragsinkomst'!I$3-Deltagandeskatter!$B$12)) -> 66221 | K54: =JSA($B54,GRUNDAVDRAG($B54+K$3),Deltagandeskatter!$B$2) -> 7623 | L54: =JSA($B54,GRUNDAVDRAG($B54+L$3),Deltagandeskatter!$B$2) -> 4411 | M54: =JSA($B54,GRUNDAVDRAG($B54+M$3),Deltagandeskatter!$B$2) -> 3319 | N54: =JSA($B54,GRUNDAVDRAG($B54+N$3),Deltagandeskatter!$B$2) -> 4283 | O54: =JSA($B54,GRUNDAVDRAG($B54+O$3),Deltagandeskatter!$B$2) -> 4925 | P54: =JSA($B54,GRUNDAVDRAG($B54+P$3),Deltagandeskatter!$B$2) -> 6531 | R54: 20100 | S54: 30100 | T54: 33500 | U54: 30500 | V54: 28500 | W54: 23500 | Y54: 1981 | Z54: 8437 | AA54: 11649 | AB54: 13062 | AC54: 12741 | AD54: 11135 | AF54: 21% | AG54: 21% | AH54: 21% | AI54: 21% | AJ54: 21% | AK54: 21%
A55: 4250 | B55: 51000 | D55: =Deltagandeskatter!$B$2*('Med bidragsinkomst'!$B55+'Med bidragsinkomst'!D$3-GRUNDAVDRAG('Med bidragsinkomst'!$B55+'Med bidragsinkomst'!D$3))-JSA($B55,GRUNDAVDRAG($B55+D$3),Deltagandeskatter!$B$2)+MAX(0,0.2*($B55+D$3-Deltagandeskatter!$B$11))+MAX(0,0.05*('Med bidragsinkomst'!$B55+'Med bidragsinkomst'!D$3-Deltagandeskatter!$B$12)) -> 2196 | E55: =Deltagandeskatter!$B$2*('Med bidragsinkomst'!$B55+'Med bidragsinkomst'!E$3-GRUNDAVDRAG('Med bidragsinkomst'!$B55+'Med bidragsinkomst'!E$3))-JSA($B55,GRUNDAVDRAG($B55+E$3),Deltagandeskatter!$B$2)+MAX(0,0.2*($B55+E$3-Deltagandeskatter!$B$11))+MAX(0,0.05*('Med bidragsinkomst'!$B55+'Med bidragsinkomst'!E$3-Deltagandeskatter!$B$12)) -> 18256 | F55: =Deltagandeskatter!$B$2*('Med bidragsinkomst'!$B55+'Med bidragsinkomst'!F$3-GRUNDAVDRAG('Med bidragsinkomst'!$B55+'Med bidragsinkomst'!F$3))-JSA($B55,GRUNDAVDRAG($B55+F$3),Deltagandeskatter!$B$2)+MAX(0,0.2*($B55+F$3-Deltagandeskatter!$B$11))+MAX(0,0.05*('Med bidragsinkomst'!$B55+'Med bidragsinkomst'!F$3-Deltagandeskatter!$B$12)) -> 34315 | G55: =Deltagandeskatter!$B$2*('Med bidragsinkomst'!$B55+'Med bidragsinkomst'!G$3-GRUNDAVDRAG('Med bidragsinkomst'!$B55+'Med bidragsinkomst'!G$3))-JSA($B55,GRUNDAVDRAG($B55+G$3),Deltagandeskatter!$B$2)+MAX(0,0.2*($B55+G$3-Deltagandeskatter!$B$11))+MAX(0,0.05*('Med bidragsinkomst'!$B55+'Med bidragsinkomst'!G$3-Deltagandeskatter!$B$12)) -> 43952 | H55: =Deltagandeskatter!$B$2*('Med bidragsinkomst'!$B55+'Med bidragsinkomst'!H$3-GRUNDAVDRAG('Med bidragsinkomst'!$B55+'Med bidragsinkomst'!H$3))-JSA($B55,GRUNDAVDRAG($B55+H$3),Deltagandeskatter!$B$2)+MAX(0,0.2*($B55+H$3-Deltagandeskatter!$B$11))+MAX(0,0.05*('Med bidragsinkomst'!$B55+'Med bidragsinkomst'!H$3-Deltagandeskatter!$B$12)) -> 50375 | I55: =Deltagandeskatter!$B$2*('Med bidragsinkomst'!$B55+'Med bidragsinkomst'!I$3-GRUNDAVDRAG('Med bidragsinkomst'!$B55+'Med bidragsinkomst'!I$3))-JSA($B55,GRUNDAVDRAG($B55+I$3),Deltagandeskatter!$B$2)+MAX(0,0.2*($B55+I$3-Deltagandeskatter!$B$11))+MAX(0,0.05*('Med bidragsinkomst'!$B55+'Med bidragsinkomst'!I$3-Deltagandeskatter!$B$12)) -> 66435 | K55: =JSA($B55,GRUNDAVDRAG($B55+K$3),Deltagandeskatter!$B$2) -> 7665 | L55: =JSA($B55,GRUNDAVDRAG($B55+L$3),Deltagandeskatter!$B$2) -> 4453 | M55: =JSA($B55,GRUNDAVDRAG($B55+M$3),Deltagandeskatter!$B$2) -> 3458 | N55: =JSA($B55,GRUNDAVDRAG($B55+N$3),Deltagandeskatter!$B$2) -> 4421 | O55: =JSA($B55,GRUNDAVDRAG($B55+O$3),Deltagandeskatter!$B$2) -> 5064 | P55: =JSA($B55,GRUNDAVDRAG($B55+P$3),Deltagandeskatter!$B$2) -> 6670 | R55: 20300 | S55: 30300 | T55: 33400 | U55: 30400 | V55: 28400 | W55: 23400 | Y55: 2196 | Z55: 8652 | AA55: 11863 | AB55: 13277 | AC55: 12955 | AD55: 11349 | AF55: 21% | AG55: 21% | AH55: 21% | AI55: 22% | AJ55: 21% | AK55: 21%
A56: 4333 | B56: 52000 | D56: =Deltagandeskatter!$B$2*('Med bidragsinkomst'!$B56+'Med bidragsinkomst'!D$3-GRUNDAVDRAG('Med bidragsinkomst'!$B56+'Med bidragsinkomst'!D$3))-JSA($B56,GRUNDAVDRAG($B56+D$3),Deltagandeskatter!$B$2)+MAX(0,0.2*($B56+D$3-Deltagandeskatter!$B$11))+MAX(0,0.05*('Med bidragsinkomst'!$B56+'Med bidragsinkomst'!D$3-Deltagandeskatter!$B$12)) -> 2410 | E56: =Deltagandeskatter!$B$2*('Med bidragsinkomst'!$B56+'Med bidragsinkomst'!E$3-GRUNDAVDRAG('Med bidragsinkomst'!$B56+'Med bidragsinkomst'!E$3))-JSA($B56,GRUNDAVDRAG($B56+E$3),Deltagandeskatter!$B$2)+MAX(0,0.2*($B56+E$3-Deltagandeskatter!$B$11))+MAX(0,0.05*('Med bidragsinkomst'!$B56+'Med bidragsinkomst'!E$3-Deltagandeskatter!$B$12)) -> 18470 | F56: =Deltagandeskatter!$B$2*('Med bidragsinkomst'!$B56+'Med bidragsinkomst'!F$3-GRUNDAVDRAG('Med bidragsinkomst'!$B56+'Med bidragsinkomst'!F$3))-JSA($B56,GRUNDAVDRAG($B56+F$3),Deltagandeskatter!$B$2)+MAX(0,0.2*($B56+F$3-Deltagandeskatter!$B$11))+MAX(0,0.05*('Med bidragsinkomst'!$B56+'Med bidragsinkomst'!F$3-Deltagandeskatter!$B$12)) -> 34530 | G56: =Deltagandeskatter!$B$2*('Med bidragsinkomst'!$B56+'Med bidragsinkomst'!G$3-GRUNDAVDRAG('Med bidragsinkomst'!$B56+'Med bidragsinkomst'!G$3))-JSA($B56,GRUNDAVDRAG($B56+G$3),Deltagandeskatter!$B$2)+MAX(0,0.2*($B56+G$3-Deltagandeskatter!$B$11))+MAX(0,0.05*('Med bidragsinkomst'!$B56+'Med bidragsinkomst'!G$3-Deltagandeskatter!$B$12)) -> 44166 | H56: =Deltagandeskatter!$B$2*('Med bidragsinkomst'!$B56+'Med bidragsinkomst'!H$3-GRUNDAVDRAG('Med bidragsinkomst'!$B56+'Med bidragsinkomst'!H$3))-JSA($B56,GRUNDAVDRAG($B56+H$3),Deltagandeskatter!$B$2)+MAX(0,0.2*($B56+H$3-Deltagandeskatter!$B$11))+MAX(0,0.05*('Med bidragsinkomst'!$B56+'Med bidragsinkomst'!H$3-Deltagandeskatter!$B$12)) -> 50590 | I56: =Deltagandeskatter!$B$2*('Med bidragsinkomst'!$B56+'Med bidragsinkomst'!I$3-GRUNDAVDRAG('Med bidragsinkomst'!$B56+'Med bidragsinkomst'!I$3))-JSA($B56,GRUNDAVDRAG($B56+I$3),Deltagandeskatter!$B$2)+MAX(0,0.2*($B56+I$3-Deltagandeskatter!$B$11))+MAX(0,0.05*('Med bidragsinkomst'!$B56+'Med bidragsinkomst'!I$3-Deltagandeskatter!$B$12)) -> 66650 | K56: =JSA($B56,GRUNDAVDRAG($B56+K$3),Deltagandeskatter!$B$2) -> 7708 | L56: =JSA($B56,GRUNDAVDRAG($B56+L$3),Deltagandeskatter!$B$2) -> 4496 | M56: =JSA($B56,GRUNDAVDRAG($B56+M$3),Deltagandeskatter!$B$2) -> 3596 | N56: =JSA($B56,GRUNDAVDRAG($B56+N$3),Deltagandeskatter!$B$2) -> 4560 | O56: =JSA($B56,GRUNDAVDRAG($B56+O$3),Deltagandeskatter!$B$2) -> 5202 | P56: =JSA($B56,GRUNDAVDRAG($B56+P$3),Deltagandeskatter!$B$2) -> 6808 | R56: 20500 | S56: 30500 | T56: 33300 | U56: 30300 | V56: 28300 | W56: 23300 | Y56: =D56-D$4 -> 2410 | Z56: =E56-E$4 -> 8866 | AA56: =F56-F$4 -> 12079 | AB56: =G56-G$4 -> 13491 | AC56: =H56-H$4 -> 13171 | AD56: =I56-I$4 -> 11565 | AF56: =(Y56-Y55)/($B56-$B55) -> 21% | AG56: =(Z56-Z55)/($B56-$B55) -> 21% | AH56: =(AA56-AA55)/($B56-$B55) -> 22% | AI56: =(AB56-AB55)/($B56-$B55) -> 21% | AJ56: =(AC56-AC55)/($B56-$B55) -> 22% | AK56: =(AD56-AD55)/($B56-$B55) -> 22%
A57: 4417 | B57: 53000 | D57: =Deltagandeskatter!$B$2*('Med bidragsinkomst'!$B57+'Med bidragsinkomst'!D$3-GRUNDAVDRAG('Med bidragsinkomst'!$B57+'Med bidragsinkomst'!D$3))-JSA($B57,GRUNDAVDRAG($B57+D$3),Deltagandeskatter!$B$2)+MAX(0,0.2*($B57+D$3-Deltagandeskatter!$B$11))+MAX(0,0.05*('Med bidragsinkomst'!$B57+'Med bidragsinkomst'!D$3-Deltagandeskatter!$B$12)) -> 2625 | E57: =Deltagandeskatter!$B$2*('Med bidragsinkomst'!$B57+'Med bidragsinkomst'!E$3-GRUNDAVDRAG('Med bidragsinkomst'!$B57+'Med bidragsinkomst'!E$3))-JSA($B57,GRUNDAVDRAG($B57+E$3),Deltagandeskatter!$B$2)+MAX(0,0.2*($B57+E$3-Deltagandeskatter!$B$11))+MAX(0,0.05*('Med bidragsinkomst'!$B57+'Med bidragsinkomst'!E$3-Deltagandeskatter!$B$12)) -> 18685 | F57: =Deltagandeskatter!$B$2*('Med bidragsinkomst'!$B57+'Med bidragsinkomst'!F$3-GRUNDAVDRAG('Med bidragsinkomst'!$B57+'Med bidragsinkomst'!F$3))-JSA($B57,GRUNDAVDRAG($B57+F$3),Deltagandeskatter!$B$2)+MAX(0,0.2*($B57+F$3-Deltagandeskatter!$B$11))+MAX(0,0.05*('Med bidragsinkomst'!$B57+'Med bidragsinkomst'!F$3-Deltagandeskatter!$B$12)) -> 34745 | G57: =Deltagandeskatter!$B$2*('Med bidragsinkomst'!$B57+'Med bidragsinkomst'!G$3-GRUNDAVDRAG('Med bidragsinkomst'!$B57+'Med bidragsinkomst'!G$3))-JSA($B57,GRUNDAVDRAG($B57+G$3),Deltagandeskatter!$B$2)+MAX(0,0.2*($B57+G$3-Deltagandeskatter!$B$11))+MAX(0,0.05*('Med bidragsinkomst'!$B57+'Med bidragsinkomst'!G$3-Deltagandeskatter!$B$12)) -> 44380 | H57: =Deltagandeskatter!$B$2*('Med bidragsinkomst'!$B57+'Med bidragsinkomst'!H$3-GRUNDAVDRAG('Med bidragsinkomst'!$B57+'Med bidragsinkomst'!H$3))-JSA($B57,GRUNDAVDRAG($B57+H$3),Deltagandeskatter!$B$2)+MAX(0,0.2*($B57+H$3-Deltagandeskatter!$B$11))+MAX(0,0.05*('Med bidragsinkomst'!$B57+'Med bidragsinkomst'!H$3-Deltagandeskatter!$B$12)) -> 50805 | I57: =Deltagandeskatter!$B$2*('Med bidragsinkomst'!$B57+'Med bidragsinkomst'!I$3-GRUNDAVDRAG('Med bidragsinkomst'!$B57+'Med bidragsinkomst'!I$3))-JSA($B57,GRUNDAVDRAG($B57+I$3),Deltagandeskatter!$B$2)+MAX(0,0.2*($B57+I$3-Deltagandeskatter!$B$11))+MAX(0,0.05*('Med bidragsinkomst'!$B57+'Med bidragsinkomst'!I$3-Deltagandeskatter!$B$12)) -> 66865 | K57: =JSA($B57,GRUNDAVDRAG($B57+K$3),Deltagandeskatter!$B$2) -> 7750 | L57: =JSA($B57,GRUNDAVDRAG($B57+L$3),Deltagandeskatter!$B$2) -> 4538 | M57: =JSA($B57,GRUNDAVDRAG($B57+M$3),Deltagandeskatter!$B$2) -> 3735 | N57: =JSA($B57,GRUNDAVDRAG($B57+N$3),Deltagandeskatter!$B$2) -> 4699 | O57: =JSA($B57,GRUNDAVDRAG($B57+O$3),Deltagandeskatter!$B$2) -> 5341 | P57: =JSA($B57,GRUNDAVDRAG($B57+P$3),Deltagandeskatter!$B$2) -> 6947 | R57: 20700 | S57: 30700 | T57: 33200 | U57: 30200 | V57: 28200 | W57: 23200 | Y57: 2625 | Z57: 9081 | AA57: 12293 | AB57: 13706 | AC57: 13385 | AD57: 11779 | AF57: 21% | AG57: 21% | AH57: 21% | AI57: 21% | AJ57: 21% | AK57: 21%
A58: 4500 | B58: 54000 | D58: =Deltagandeskatter!$B$2*('Med bidragsinkomst'!$B58+'Med bidragsinkomst'!D$3-GRUNDAVDRAG('Med bidragsinkomst'!$B58+'Med bidragsinkomst'!D$3))-JSA($B58,GRUNDAVDRAG($B58+D$3),Deltagandeskatter!$B$2)+MAX(0,0.2*($B58+D$3-Deltagandeskatter!$B$11))+MAX(0,0.05*('Med bidragsinkomst'!$B58+'Med bidragsinkomst'!D$3-Deltagandeskatter!$B$12)) -> 2839 | E58: =Deltagandeskatter!$B$2*('Med bidragsinkomst'!$B58+'Med bidragsinkomst'!E$3-GRUNDAVDRAG('Med bidragsinkomst'!$B58+'Med bidragsinkomst'!E$3))-JSA($B58,GRUNDAVDRAG($B58+E$3),Deltagandeskatter!$B$2)+MAX(0,0.2*($B58+E$3-Deltagandeskatter!$B$11))+MAX(0,0.05*('Med bidragsinkomst'!$B58+'Med bidragsinkomst'!E$3-Deltagandeskatter!$B$12)) -> 18899 | F58: =Deltagandeskatter!$B$2*('Med bidragsinkomst'!$B58+'Med bidragsinkomst'!F$3-GRUNDAVDRAG('Med bidragsinkomst'!$B58+'Med bidragsinkomst'!F$3))-JSA($B58,GRUNDAVDRAG($B58+F$3),Deltagandeskatter!$B$2)+MAX(0,0.2*($B58+F$3-Deltagandeskatter!$B$11))+MAX(0,0.05*('Med bidragsinkomst'!$B58+'Med bidragsinkomst'!F$3-Deltagandeskatter!$B$12)) -> 34959 | G58: =Deltagandeskatter!$B$2*('Med bidragsinkomst'!$B58+'Med bidragsinkomst'!G$3-GRUNDAVDRAG('Med bidragsinkomst'!$B58+'Med bidragsinkomst'!G$3))-JSA($B58,GRUNDAVDRAG($B58+G$3),Deltagandeskatter!$B$2)+MAX(0,0.2*($B58+G$3-Deltagandeskatter!$B$11))+MAX(0,0.05*('Med bidragsinkomst'!$B58+'Med bidragsinkomst'!G$3-Deltagandeskatter!$B$12)) -> 44595 | H58: =Deltagandeskatter!$B$2*('Med bidragsinkomst'!$B58+'Med bidragsinkomst'!H$3-GRUNDAVDRAG('Med bidragsinkomst'!$B58+'Med bidragsinkomst'!H$3))-JSA($B58,GRUNDAVDRAG($B58+H$3),Deltagandeskatter!$B$2)+MAX(0,0.2*($B58+H$3-Deltagandeskatter!$B$11))+MAX(0,0.05*('Med bidragsinkomst'!$B58+'Med bidragsinkomst'!H$3-Deltagandeskatter!$B$12)) -> 51019 | I58: =Deltagandeskatter!$B$2*('Med bidragsinkomst'!$B58+'Med bidragsinkomst'!I$3-GRUNDAVDRAG('Med bidragsinkomst'!$B58+'Med bidragsinkomst'!I$3))-JSA($B58,GRUNDAVDRAG($B58+I$3),Deltagandeskatter!$B$2)+MAX(0,0.2*($B58+I$3-Deltagandeskatter!$B$11))+MAX(0,0.05*('Med bidragsinkomst'!$B58+'Med bidragsinkomst'!I$3-Deltagandeskatter!$B$12)) -> 67079 | K58: =JSA($B58,GRUNDAVDRAG($B58+K$3),Deltagandeskatter!$B$2) -> 7793 | L58: =JSA($B58,GRUNDAVDRAG($B58+L$3),Deltagandeskatter!$B$2) -> 4581 | M58: =JSA($B58,GRUNDAVDRAG($B58+M$3),Deltagandeskatter!$B$2) -> 3874 | N58: =JSA($B58,GRUNDAVDRAG($B58+N$3),Deltagandeskatter!$B$2) -> 4838 | O58: =JSA($B58,GRUNDAVDRAG($B58+O$3),Deltagandeskatter!$B$2) -> 5480 | P58: =JSA($B58,GRUNDAVDRAG($B58+P$3),Deltagandeskatter!$B$2) -> 7086 | R58: 20900 | S58: 30900 | T58: 33100 | U58: 30100 | V58: 28100 | W58: 23100 | Y58: 2839 | Z58: 9295 | AA58: 12507 | AB58: 13920 | AC58: 13599 | AD58: 11993 | AF58: 21% | AG58: 21% | AH58: 21% | AI58: 21% | AJ58: 21% | AK58: 21%
A59: 4583 | B59: 55000 | D59: =Deltagandeskatter!$B$2*('Med bidragsinkomst'!$B59+'Med bidragsinkomst'!D$3-GRUNDAVDRAG('Med bidragsinkomst'!$B59+'Med bidragsinkomst'!D$3))-JSA($B59,GRUNDAVDRAG($B59+D$3),Deltagandeskatter!$B$2)+MAX(0,0.2*($B59+D$3-Deltagandeskatter!$B$11))+MAX(0,0.05*('Med bidragsinkomst'!$B59+'Med bidragsinkomst'!D$3-Deltagandeskatter!$B$12)) -> 3054 | E59: =Deltagandeskatter!$B$2*('Med bidragsinkomst'!$B59+'Med bidragsinkomst'!E$3-GRUNDAVDRAG('Med bidragsinkomst'!$B59+'Med bidragsinkomst'!E$3))-JSA($B59,GRUNDAVDRAG($B59+E$3),Deltagandeskatter!$B$2)+MAX(0,0.2*($B59+E$3-Deltagandeskatter!$B$11))+MAX(0,0.05*('Med bidragsinkomst'!$B59+'Med bidragsinkomst'!E$3-Deltagandeskatter!$B$12)) -> 19114 | F59: =Deltagandeskatter!$B$2*('Med bidragsinkomst'!$B59+'Med bidragsinkomst'!F$3-GRUNDAVDRAG('Med bidragsinkomst'!$B59+'Med bidragsinkomst'!F$3))-JSA($B59,GRUNDAVDRAG($B59+F$3),Deltagandeskatter!$B$2)+MAX(0,0.2*($B59+F$3-Deltagandeskatter!$B$11))+MAX(0,0.05*('Med bidragsinkomst'!$B59+'Med bidragsinkomst'!F$3-Deltagandeskatter!$B$12)) -> 35173 | G59: =Deltagandeskatter!$B$2*('Med bidragsinkomst'!$B59+'Med bidragsinkomst'!G$3-GRUNDAVDRAG('Med bidragsinkomst'!$B59+'Med bidragsinkomst'!G$3))-JSA($B59,GRUNDAVDRAG($B59+G$3),Deltagandeskatter!$B$2)+MAX(0,0.2*($B59+G$3-Deltagandeskatter!$B$11))+MAX(0,0.05*('Med bidragsinkomst'!$B59+'Med bidragsinkomst'!G$3-Deltagandeskatter!$B$12)) -> 44810 | H59: =Deltagandeskatter!$B$2*('Med bidragsinkomst'!$B59+'Med bidragsinkomst'!H$3-GRUNDAVDRAG('Med bidragsinkomst'!$B59+'Med bidragsinkomst'!H$3))-JSA($B59,GRUNDAVDRAG($B59+H$3),Deltagandeskatter!$B$2)+MAX(0,0.2*($B59+H$3-Deltagandeskatter!$B$11))+MAX(0,0.05*('Med bidragsinkomst'!$B59+'Med bidragsinkomst'!H$3-Deltagandeskatter!$B$12)) -> 51233 | I59: =Deltagandeskatter!$B$2*('Med bidragsinkomst'!$B59+'Med bidragsinkomst'!I$3-GRUNDAVDRAG('Med bidragsinkomst'!$B59+'Med bidragsinkomst'!I$3))-JSA($B59,GRUNDAVDRAG($B59+I$3),Deltagandeskatter!$B$2)+MAX(0,0.2*($B59+I$3-Deltagandeskatter!$B$11))+MAX(0,0.05*('Med bidragsinkomst'!$B59+'Med bidragsinkomst'!I$3-Deltagandeskatter!$B$12)) -> 67293 | K59: =JSA($B59,GRUNDAVDRAG($B59+K$3),Deltagandeskatter!$B$2) -> 7835 | L59: =JSA($B59,GRUNDAVDRAG($B59+L$3),Deltagandeskatter!$B$2) -> 4623 | M59: =JSA($B59,GRUNDAVDRAG($B59+M$3),Deltagandeskatter!$B$2) -> 4013 | N59: =JSA($B59,GRUNDAVDRAG($B59+N$3),Deltagandeskatter!$B$2) -> 4976 | O59: =JSA($B59,GRUNDAVDRAG($B59+O$3),Deltagandeskatter!$B$2) -> 5619 | P59: =JSA($B59,GRUNDAVDRAG($B59+P$3),Deltagandeskatter!$B$2) -> 7225 | R59: 21100 | S59: 31100 | T59: 33000 | U59: 30000 | V59: 28000 | W59: 23000 | Y59: 3054 | Z59: 9510 | AA59: 12722 | AB59: 14135 | AC59: 13814 | AD59: 12208 | AF59: 21% | AG59: 21% | AH59: 21% | AI59: 22% | AJ59: 21% | AK59: 21%
A60: 4667 | B60: 56000 | D60: =Deltagandeskatter!$B$2*('Med bidragsinkomst'!$B60+'Med bidragsinkomst'!D$3-GRUNDAVDRAG('Med bidragsinkomst'!$B60+'Med bidragsinkomst'!D$3))-JSA($B60,GRUNDAVDRAG($B60+D$3),Deltagandeskatter!$B$2)+MAX(0,0.2*($B60+D$3-Deltagandeskatter!$B$11))+MAX(0,0.05*('Med bidragsinkomst'!$B60+'Med bidragsinkomst'!D$3-Deltagandeskatter!$B$12)) -> 3269 | E60: =Deltagandeskatter!$B$2*('Med bidragsinkomst'!$B60+'Med bidragsinkomst'!E$3-GRUNDAVDRAG('Med bidragsinkomst'!$B60+'Med bidragsinkomst'!E$3))-JSA($B60,GRUNDAVDRAG($B60+E$3),Deltagandeskatter!$B$2)+MAX(0,0.2*($B60+E$3-Deltagandeskatter!$B$11))+MAX(0,0.05*('Med bidragsinkomst'!$B60+'Med bidragsinkomst'!E$3-Deltagandeskatter!$B$12)) -> 19329 | F60: =Deltagandeskatter!$B$2*('Med bidragsinkomst'!$B60+'Med bidragsinkomst'!F$3-GRUNDAVDRAG('Med bidragsinkomst'!$B60+'Med bidragsinkomst'!F$3))-JSA($B60,GRUNDAVDRAG($B60+F$3),Deltagandeskatter!$B$2)+MAX(0,0.2*($B60+F$3-Deltagandeskatter!$B$11))+MAX(0,0.05*('Med bidragsinkomst'!$B60+'Med bidragsinkomst'!F$3-Deltagandeskatter!$B$12)) -> 35388 | G60: =Deltagandeskatter!$B$2*('Med bidragsinkomst'!$B60+'Med bidragsinkomst'!G$3-GRUNDAVDRAG('Med bidragsinkomst'!$B60+'Med bidragsinkomst'!G$3))-JSA($B60,GRUNDAVDRAG($B60+G$3),Deltagandeskatter!$B$2)+MAX(0,0.2*($B60+G$3-Deltagandeskatter!$B$11))+MAX(0,0.05*('Med bidragsinkomst'!$B60+'Med bidragsinkomst'!G$3-Deltagandeskatter!$B$12)) -> 45024 | H60: =Deltagandeskatter!$B$2*('Med bidragsinkomst'!$B60+'Med bidragsinkomst'!H$3-GRUNDAVDRAG('Med bidragsinkomst'!$B60+'Med bidragsinkomst'!H$3))-JSA($B60,GRUNDAVDRAG($B60+H$3),Deltagandeskatter!$B$2)+MAX(0,0.2*($B60+H$3-Deltagandeskatter!$B$11))+MAX(0,0.05*('Med bidragsinkomst'!$B60+'Med bidragsinkomst'!H$3-Deltagandeskatter!$B$12)) -> 51448 | I60: =Deltagandeskatter!$B$2*('Med bidragsinkomst'!$B60+'Med bidragsinkomst'!I$3-GRUNDAVDRAG('Med bidragsinkomst'!$B60+'Med bidragsinkomst'!I$3))-JSA($B60,GRUNDAVDRAG($B60+I$3),Deltagandeskatter!$B$2)+MAX(0,0.2*($B60+I$3-Deltagandeskatter!$B$11))+MAX(0,0.05*('Med bidragsinkomst'!$B60+'Med bidragsinkomst'!I$3-Deltagandeskatter!$B$12)) -> 67508 | K60: =JSA($B60,GRUNDAVDRAG($B60+K$3),Deltagandeskatter!$B$2) -> 7877 | L60: =JSA($B60,GRUNDAVDRAG($B60+L$3),Deltagandeskatter!$B$2) -> 4665 | M60: =JSA($B60,GRUNDAVDRAG($B60+M$3),Deltagandeskatter!$B$2) -> 4152 | N60: =JSA($B60,GRUNDAVDRAG($B60+N$3),Deltagandeskatter!$B$2) -> 5115 | O60: =JSA($B60,GRUNDAVDRAG($B60+O$3),Deltagandeskatter!$B$2) -> 5758 | P60: =JSA($B60,GRUNDAVDRAG($B60+P$3),Deltagandeskatter!$B$2) -> 7364 | R60: =GRUNDAVDRAG($B60+R$3) -> 21300 | S60: 31300 | T60: 32900 | U60: 29900 | V60: 27900 | W60: 22900 | Y60: 3269 | Z60: 9725 | AA60: 12936 | AB60: 14350 | AC60: 14028 | AD60: 12422 | AF60: 21% | AG60: 21% | AH60: 21% | AI60: 21% | AJ60: 21% | AK60: 21%
A61: 4750 | B61: 57000 | D61: =Deltagandeskatter!$B$2*('Med bidragsinkomst'!$B61+'Med bidragsinkomst'!D$3-GRUNDAVDRAG('Med bidragsinkomst'!$B61+'Med bidragsinkomst'!D$3))-JSA($B61,GRUNDAVDRAG($B61+D$3),Deltagandeskatter!$B$2)+MAX(0,0.2*($B61+D$3-Deltagandeskatter!$B$11))+MAX(0,0.05*('Med bidragsinkomst'!$B61+'Med bidragsinkomst'!D$3-Deltagandeskatter!$B$12)) -> 3483 | E61: =Deltagandeskatter!$B$2*('Med bidragsinkomst'!$B61+'Med bidragsinkomst'!E$3-GRUNDAVDRAG('Med bidragsinkomst'!$B61+'Med bidragsinkomst'!E$3))-JSA($B61,GRUNDAVDRAG($B61+E$3),Deltagandeskatter!$B$2)+MAX(0,0.2*($B61+E$3-Deltagandeskatter!$B$11))+MAX(0,0.05*('Med bidragsinkomst'!$B61+'Med bidragsinkomst'!E$3-Deltagandeskatter!$B$12)) -> 19543 | F61: =Deltagandeskatter!$B$2*('Med bidragsinkomst'!$B61+'Med bidragsinkomst'!F$3-GRUNDAVDRAG('Med bidragsinkomst'!$B61+'Med bidragsinkomst'!F$3))-JSA($B61,GRUNDAVDRAG($B61+F$3),Deltagandeskatter!$B$2)+MAX(0,0.2*($B61+F$3-Deltagandeskatter!$B$11))+MAX(0,0.05*('Med bidragsinkomst'!$B61+'Med bidragsinkomst'!F$3-Deltagandeskatter!$B$12)) -> 35603 | G61: =Deltagandeskatter!$B$2*('Med bidragsinkomst'!$B61+'Med bidragsinkomst'!G$3-GRUNDAVDRAG('Med bidragsinkomst'!$B61+'Med bidragsinkomst'!G$3))-JSA($B61,GRUNDAVDRAG($B61+G$3),Deltagandeskatter!$B$2)+MAX(0,0.2*($B61+G$3-Deltagandeskatter!$B$11))+MAX(0,0.05*('Med bidragsinkomst'!$B61+'Med bidragsinkomst'!G$3-Deltagandeskatter!$B$12)) -> 45239 | H61: =Deltagandeskatter!$B$2*('Med bidragsinkomst'!$B61+'Med bidragsinkomst'!H$3-GRUNDAVDRAG('Med bidragsinkomst'!$B61+'Med bidragsinkomst'!H$3))-JSA($B61,GRUNDAVDRAG($B61+H$3),Deltagandeskatter!$B$2)+MAX(0,0.2*($B61+H$3-Deltagandeskatter!$B$11))+MAX(0,0.05*('Med bidragsinkomst'!$B61+'Med bidragsinkomst'!H$3-Deltagandeskatter!$B$12)) -> 51663 | I61: =Deltagandeskatter!$B$2*('Med bidragsinkomst'!$B61+'Med bidragsinkomst'!I$3-GRUNDAVDRAG('Med bidragsinkomst'!$B61+'Med bidragsinkomst'!I$3))-JSA($B61,GRUNDAVDRAG($B61+I$3),Deltagandeskatter!$B$2)+MAX(0,0.2*($B61+I$3-Deltagandeskatter!$B$11))+MAX(0,0.05*('Med bidragsinkomst'!$B61+'Med bidragsinkomst'!I$3-Deltagandeskatter!$B$12)) -> 67723 | K61: =JSA($B61,GRUNDAVDRAG($B61+K$3),Deltagandeskatter!$B$2) -> 7920 | L61: =JSA($B61,GRUNDAVDRAG($B61+L$3),Deltagandeskatter!$B$2) -> 4708 | M61: =JSA($B61,GRUNDAVDRAG($B61+M$3),Deltagandeskatter!$B$2) -> 4290 | N61: =JSA($B61,GRUNDAVDRAG($B61+N$3),Deltagandeskatter!$B$2) -> 5254 | O61: =JSA($B61,GRUNDAVDRAG($B61+O$3),Deltagandeskatter!$B$2) -> 5896 | P61: =JSA($B61,GRUNDAVDRAG($B61+P$3),Deltagandeskatter!$B$2) -> 7502 | R61: 21500 | S61: 31500 | T61: 32800 | U61: 29800 | V61: 27800 | W61: 22800 | Y61: 3483 | Z61: 9939 | AA61: 13151 | AB61: 14564 | AC61: 14243 | AD61: 12637 | AF61: 21% | AG61: 21% | AH61: 22% | AI61: 21% | AJ61: 22% | AK61: 22%
A62: 4833 | B62: 58000 | D62: =Deltagandeskatter!$B$2*('Med bidragsinkomst'!$B62+'Med bidragsinkomst'!D$3-GRUNDAVDRAG('Med bidragsinkomst'!$B62+'Med bidragsinkomst'!D$3))-JSA($B62,GRUNDAVDRAG($B62+D$3),Deltagandeskatter!$B$2)+MAX(0,0.2*($B62+D$3-Deltagandeskatter!$B$11))+MAX(0,0.05*('Med bidragsinkomst'!$B62+'Med bidragsinkomst'!D$3-Deltagandeskatter!$B$12)) -> 3698 | E62: =Deltagandeskatter!$B$2*('Med bidragsinkomst'!$B62+'Med bidragsinkomst'!E$3-GRUNDAVDRAG('Med bidragsinkomst'!$B62+'Med bidragsinkomst'!E$3))-JSA($B62,GRUNDAVDRAG($B62+E$3),Deltagandeskatter!$B$2)+MAX(0,0.2*($B62+E$3-Deltagandeskatter!$B$11))+MAX(0,0.05*('Med bidragsinkomst'!$B62+'Med bidragsinkomst'!E$3-Deltagandeskatter!$B$12)) -> 19758 | F62: =Deltagandeskatter!$B$2*('Med bidragsinkomst'!$B62+'Med bidragsinkomst'!F$3-GRUNDAVDRAG('Med bidragsinkomst'!$B62+'Med bidragsinkomst'!F$3))-JSA($B62,GRUNDAVDRAG($B62+F$3),Deltagandeskatter!$B$2)+MAX(0,0.2*($B62+F$3-Deltagandeskatter!$B$11))+MAX(0,0.05*('Med bidragsinkomst'!$B62+'Med bidragsinkomst'!F$3-Deltagandeskatter!$B$12)) -> 35817 | G62: =Deltagandeskatter!$B$2*('Med bidragsinkomst'!$B62+'Med bidragsinkomst'!G$3-GRUNDAVDRAG('Med bidragsinkomst'!$B62+'Med bidragsinkomst'!G$3))-JSA($B62,GRUNDAVDRAG($B62+G$3),Deltagandeskatter!$B$2)+MAX(0,0.2*($B62+G$3-Deltagandeskatter!$B$11))+MAX(0,0.05*('Med bidragsinkomst'!$B62+'Med bidragsinkomst'!G$3-Deltagandeskatter!$B$12)) -> 45453 | H62: =Deltagandeskatter!$B$2*('Med bidragsinkomst'!$B62+'Med bidragsinkomst'!H$3-GRUNDAVDRAG('Med bidragsinkomst'!$B62+'Med bidragsinkomst'!H$3))-JSA($B62,GRUNDAVDRAG($B62+H$3),Deltagandeskatter!$B$2)+MAX(0,0.2*($B62+H$3-Deltagandeskatter!$B$11))+MAX(0,0.05*('Med bidragsinkomst'!$B62+'Med bidragsinkomst'!H$3-Deltagandeskatter!$B$12)) -> 51877 | I62: =Deltagandeskatter!$B$2*('Med bidragsinkomst'!$B62+'Med bidragsinkomst'!I$3-GRUNDAVDRAG('Med bidragsinkomst'!$B62+'Med bidragsinkomst'!I$3))-JSA($B62,GRUNDAVDRAG($B62+I$3),Deltagandeskatter!$B$2)+MAX(0,0.2*($B62+I$3-Deltagandeskatter!$B$11))+MAX(0,0.05*('Med bidragsinkomst'!$B62+'Med bidragsinkomst'!I$3-Deltagandeskatter!$B$12)) -> 67937 | K62: =JSA($B62,GRUNDAVDRAG($B62+K$3),Deltagandeskatter!$B$2) -> 7962 | L62: =JSA($B62,GRUNDAVDRAG($B62+L$3),Deltagandeskatter!$B$2) -> 4750 | M62: =JSA($B62,GRUNDAVDRAG($B62+M$3),Deltagandeskatter!$B$2) -> 4429 | N62: =JSA($B62,GRUNDAVDRAG($B62+N$3),Deltagandeskatter!$B$2) -> 5393 | O62: =JSA($B62,GRUNDAVDRAG($B62+O$3),Deltagandeskatter!$B$2) -> 6035 | P62: =JSA($B62,GRUNDAVDRAG($B62+P$3),Deltagandeskatter!$B$2) -> 7641 | R62: 21700 | S62: 31700 | T62: 32700 | U62: 29700 | V62: 27700 | W62: 22700 | Y62: 3698 | Z62: 10154 | AA62: 13365 | AB62: 14778 | AC62: 14458 | AD62: 12852 | AF62: 21% | AG62: 21% | AH62: 21% | AI62: 21% | AJ62: 21% | AK62: 21%
A63: 4917 | B63: 59000 | D63: =Deltagandeskatter!$B$2*('Med bidragsinkomst'!$B63+'Med bidragsinkomst'!D$3-GRUNDAVDRAG('Med bidragsinkomst'!$B63+'Med bidragsinkomst'!D$3))-JSA($B63,GRUNDAVDRAG($B63+D$3),Deltagandeskatter!$B$2)+MAX(0,0.2*($B63+D$3-Deltagandeskatter!$B$11))+MAX(0,0.05*('Med bidragsinkomst'!$B63+'Med bidragsinkomst'!D$3-Deltagandeskatter!$B$12)) -> 3912 | E63: =Deltagandeskatter!$B$2*('Med bidragsinkomst'!$B63+'Med bidragsinkomst'!E$3-GRUNDAVDRAG('Med bidragsinkomst'!$B63+'Med bidragsinkomst'!E$3))-JSA($B63,GRUNDAVDRAG($B63+E$3),Deltagandeskatter!$B$2)+MAX(0,0.2*($B63+E$3-Deltagandeskatter!$B$11))+MAX(0,0.05*('Med bidragsinkomst'!$B63+'Med bidragsinkomst'!E$3-Deltagandeskatter!$B$12)) -> 19972 | F63: =Deltagandeskatter!$B$2*('Med bidragsinkomst'!$B63+'Med bidragsinkomst'!F$3-GRUNDAVDRAG('Med bidragsinkomst'!$B63+'Med bidragsinkomst'!F$3))-JSA($B63,GRUNDAVDRAG($B63+F$3),Deltagandeskatter!$B$2)+MAX(0,0.2*($B63+F$3-Deltagandeskatter!$B$11))+MAX(0,0.05*('Med bidragsinkomst'!$B63+'Med bidragsinkomst'!F$3-Deltagandeskatter!$B$12)) -> 36032 | G63: =Deltagandeskatter!$B$2*('Med bidragsinkomst'!$B63+'Med bidragsinkomst'!G$3-GRUNDAVDRAG('Med bidragsinkomst'!$B63+'Med bidragsinkomst'!G$3))-JSA($B63,GRUNDAVDRAG($B63+G$3),Deltagandeskatter!$B$2)+MAX(0,0.2*($B63+G$3-Deltagandeskatter!$B$11))+MAX(0,0.05*('Med bidragsinkomst'!$B63+'Med bidragsinkomst'!G$3-Deltagandeskatter!$B$12)) -> 45668 | H63: =Deltagandeskatter!$B$2*('Med bidragsinkomst'!$B63+'Med bidragsinkomst'!H$3-GRUNDAVDRAG('Med bidragsinkomst'!$B63+'Med bidragsinkomst'!H$3))-JSA($B63,GRUNDAVDRAG($B63+H$3),Deltagandeskatter!$B$2)+MAX(0,0.2*($B63+H$3-Deltagandeskatter!$B$11))+MAX(0,0.05*('Med bidragsinkomst'!$B63+'Med bidragsinkomst'!H$3-Deltagandeskatter!$B$12)) -> 52092 | I63: =Deltagandeskatter!$B$2*('Med bidragsinkomst'!$B63+'Med bidragsinkomst'!I$3-GRUNDAVDRAG('Med bidragsinkomst'!$B63+'Med bidragsinkomst'!I$3))-JSA($B63,GRUNDAVDRAG($B63+I$3),Deltagandeskatter!$B$2)+MAX(0,0.2*($B63+I$3-Deltagandeskatter!$B$11))+MAX(0,0.05*('Med bidragsinkomst'!$B63+'Med bidragsinkomst'!I$3-Deltagandeskatter!$B$12)) -> 68152 | K63: =JSA($B63,GRUNDAVDRAG($B63+K$3),Deltagandeskatter!$B$2) -> 8005 | L63: =JSA($B63,GRUNDAVDRAG($B63+L$3),Deltagandeskatter!$B$2) -> 4793 | M63: =JSA($B63,GRUNDAVDRAG($B63+M$3),Deltagandeskatter!$B$2) -> 4568 | N63: =JSA($B63,GRUNDAVDRAG($B63+N$3),Deltagandeskatter!$B$2) -> 5531 | O63: =JSA($B63,GRUNDAVDRAG($B63+O$3),Deltagandeskatter!$B$2) -> 6174 | P63: =JSA($B63,GRUNDAVDRAG($B63+P$3),Deltagandeskatter!$B$2) -> 7780 | R63: 21900 | S63: 31900 | T63: 32600 | U63: 29600 | V63: 27600 | W63: 22600 | Y63: 3912 | Z63: 10368 | AA63: 13580 | AB63: 14994 | AC63: 14672 | AD63: 13066 | AF63: 21% | AG63: 21% | AH63: 21% | AI63: 22% | AJ63: 21% | AK63: 21%
A64: 5000 | B64: 60000 | D64: =Deltagandeskatter!$B$2*('Med bidragsinkomst'!$B64+'Med bidragsinkomst'!D$3-GRUNDAVDRAG('Med bidragsinkomst'!$B64+'Med bidragsinkomst'!D$3))-JSA($B64,GRUNDAVDRAG($B64+D$3),Deltagandeskatter!$B$2)+MAX(0,0.2*($B64+D$3-Deltagandeskatter!$B$11))+MAX(0,0.05*('Med bidragsinkomst'!$B64+'Med bidragsinkomst'!D$3-Deltagandeskatter!$B$12)) -> 4126 | E64: =Deltagandeskatter!$B$2*('Med bidragsinkomst'!$B64+'Med bidragsinkomst'!E$3-GRUNDAVDRAG('Med bidragsinkomst'!$B64+'Med bidragsinkomst'!E$3))-JSA($B64,GRUNDAVDRAG($B64+E$3),Deltagandeskatter!$B$2)+MAX(0,0.2*($B64+E$3-Deltagandeskatter!$B$11))+MAX(0,0.05*('Med bidragsinkomst'!$B64+'Med bidragsinkomst'!E$3-Deltagandeskatter!$B$12)) -> 20186 | F64: =Deltagandeskatter!$B$2*('Med bidragsinkomst'!$B64+'Med bidragsinkomst'!F$3-GRUNDAVDRAG('Med bidragsinkomst'!$B64+'Med bidragsinkomst'!F$3))-JSA($B64,GRUNDAVDRAG($B64+F$3),Deltagandeskatter!$B$2)+MAX(0,0.2*($B64+F$3-Deltagandeskatter!$B$11))+MAX(0,0.05*('Med bidragsinkomst'!$B64+'Med bidragsinkomst'!F$3-Deltagandeskatter!$B$12)) -> 36246 | G64: =Deltagandeskatter!$B$2*('Med bidragsinkomst'!$B64+'Med bidragsinkomst'!G$3-GRUNDAVDRAG('Med bidragsinkomst'!$B64+'Med bidragsinkomst'!G$3))-JSA($B64,GRUNDAVDRAG($B64+G$3),Deltagandeskatter!$B$2)+MAX(0,0.2*($B64+G$3-Deltagandeskatter!$B$11))+MAX(0,0.05*('Med bidragsinkomst'!$B64+'Med bidragsinkomst'!G$3-Deltagandeskatter!$B$12)) -> 45883 | H64: =Deltagandeskatter!$B$2*('Med bidragsinkomst'!$B64+'Med bidragsinkomst'!H$3-GRUNDAVDRAG('Med bidragsinkomst'!$B64+'Med bidragsinkomst'!H$3))-JSA($B64,GRUNDAVDRAG($B64+H$3),Deltagandeskatter!$B$2)+MAX(0,0.2*($B64+H$3-Deltagandeskatter!$B$11))+MAX(0,0.05*('Med bidragsinkomst'!$B64+'Med bidragsinkomst'!H$3-Deltagandeskatter!$B$12)) -> 52306 | I64: =Deltagandeskatter!$B$2*('Med bidragsinkomst'!$B64+'Med bidragsinkomst'!I$3-GRUNDAVDRAG('Med bidragsinkomst'!$B64+'Med bidragsinkomst'!I$3))-JSA($B64,GRUNDAVDRAG($B64+I$3),Deltagandeskatter!$B$2)+MAX(0,0.2*($B64+I$3-Deltagandeskatter!$B$11))+MAX(0,0.05*('Med bidragsinkomst'!$B64+'Med bidragsinkomst'!I$3-Deltagandeskatter!$B$12)) -> 68366 | K64: =JSA($B64,GRUNDAVDRAG($B64+K$3),Deltagandeskatter!$B$2) -> 8047 | L64: =JSA($B64,GRUNDAVDRAG($B64+L$3),Deltagandeskatter!$B$2) -> 4835 | M64: =JSA($B64,GRUNDAVDRAG($B64+M$3),Deltagandeskatter!$B$2) -> 4707 | N64: =JSA($B64,GRUNDAVDRAG($B64+N$3),Deltagandeskatter!$B$2) -> 5670 | O64: =JSA($B64,GRUNDAVDRAG($B64+O$3),Deltagandeskatter!$B$2) -> 6313 | P64: =JSA($B64,GRUNDAVDRAG($B64+P$3),Deltagandeskatter!$B$2) -> 7919 | R64: 22100 | S64: 32100 | T64: 32500 | U64: 29500 | V64: 27500 | W64: 22500 | Y64: 4126 | Z64: 10583 | AA64: 13794 | AB64: 15208 | AC64: 14886 | AD64: 13280 | AF64: 21% | AG64: 21% | AH64: 21% | AI64: 21% | AJ64: 21% | AK64: 21%
A65: 5083 | B65: 61000 | D65: =Deltagandeskatter!$B$2*('Med bidragsinkomst'!$B65+'Med bidragsinkomst'!D$3-GRUNDAVDRAG('Med bidragsinkomst'!$B65+'Med bidragsinkomst'!D$3))-JSA($B65,GRUNDAVDRAG($B65+D$3),Deltagandeskatter!$B$2)+MAX(0,0.2*($B65+D$3-Deltagandeskatter!$B$11))+MAX(0,0.05*('Med bidragsinkomst'!$B65+'Med bidragsinkomst'!D$3-Deltagandeskatter!$B$12)) -> 4341 | E65: =Deltagandeskatter!$B$2*('Med bidragsinkomst'!$B65+'Med bidragsinkomst'!E$3-GRUNDAVDRAG('Med bidragsinkomst'!$B65+'Med bidragsinkomst'!E$3))-JSA($B65,GRUNDAVDRAG($B65+E$3),Deltagandeskatter!$B$2)+MAX(0,0.2*($B65+E$3-Deltagandeskatter!$B$11))+MAX(0,0.05*('Med bidragsinkomst'!$B65+'Med bidragsinkomst'!E$3-Deltagandeskatter!$B$12)) -> 20401 | F65: =Deltagandeskatter!$B$2*('Med bidragsinkomst'!$B65+'Med bidragsinkomst'!F$3-GRUNDAVDRAG('Med bidragsinkomst'!$B65+'Med bidragsinkomst'!F$3))-JSA($B65,GRUNDAVDRAG($B65+F$3),Deltagandeskatter!$B$2)+MAX(0,0.2*($B65+F$3-Deltagandeskatter!$B$11))+MAX(0,0.05*('Med bidragsinkomst'!$B65+'Med bidragsinkomst'!F$3-Deltagandeskatter!$B$12)) -> 36461 | G65: =Deltagandeskatter!$B$2*('Med bidragsinkomst'!$B65+'Med bidragsinkomst'!G$3-GRUNDAVDRAG('Med bidragsinkomst'!$B65+'Med bidragsinkomst'!G$3))-JSA($B65,GRUNDAVDRAG($B65+G$3),Deltagandeskatter!$B$2)+MAX(0,0.2*($B65+G$3-Deltagandeskatter!$B$11))+MAX(0,0.05*('Med bidragsinkomst'!$B65+'Med bidragsinkomst'!G$3-Deltagandeskatter!$B$12)) -> 46097 | H65: =Deltagandeskatter!$B$2*('Med bidragsinkomst'!$B65+'Med bidragsinkomst'!H$3-GRUNDAVDRAG('Med bidragsinkomst'!$B65+'Med bidragsinkomst'!H$3))-JSA($B65,GRUNDAVDRAG($B65+H$3),Deltagandeskatter!$B$2)+MAX(0,0.2*($B65+H$3-Deltagandeskatter!$B$11))+MAX(0,0.05*('Med bidragsinkomst'!$B65+'Med bidragsinkomst'!H$3-Deltagandeskatter!$B$12)) -> 52521 | I65: =Deltagandeskatter!$B$2*('Med bidragsinkomst'!$B65+'Med bidragsinkomst'!I$3-GRUNDAVDRAG('Med bidragsinkomst'!$B65+'Med bidragsinkomst'!I$3))-JSA($B65,GRUNDAVDRAG($B65+I$3),Deltagandeskatter!$B$2)+MAX(0,0.2*($B65+I$3-Deltagandeskatter!$B$11))+MAX(0,0.05*('Med bidragsinkomst'!$B65+'Med bidragsinkomst'!I$3-Deltagandeskatter!$B$12)) -> 68581 | K65: =JSA($B65,GRUNDAVDRAG($B65+K$3),Deltagandeskatter!$B$2) -> 8089 | L65: =JSA($B65,GRUNDAVDRAG($B65+L$3),Deltagandeskatter!$B$2) -> 4877 | M65: =JSA($B65,GRUNDAVDRAG($B65+M$3),Deltagandeskatter!$B$2) -> 4845 | N65: =JSA($B65,GRUNDAVDRAG($B65+N$3),Deltagandeskatter!$B$2) -> 5809 | O65: =JSA($B65,GRUNDAVDRAG($B65+O$3),Deltagandeskatter!$B$2) -> 6451 | P65: =JSA($B65,GRUNDAVDRAG($B65+P$3),Deltagandeskatter!$B$2) -> 8057 | R65: 22300 | S65: 32300 | T65: 32400 | U65: 29400 | V65: 27400 | W65: 22400 | Y65: 4341 | Z65: 10798 | AA65: 14009 | AB65: 15422 | AC65: 15102 | AD65: 13496 | AF65: 21% | AG65: 21% | AH65: 22% | AI65: 21% | AJ65: 22% | AK65: 22%
A66: 5167 | B66: 62000 | D66: =Deltagandeskatter!$B$2*('Med bidragsinkomst'!$B66+'Med bidragsinkomst'!D$3-GRUNDAVDRAG('Med bidragsinkomst'!$B66+'Med bidragsinkomst'!D$3))-JSA($B66,GRUNDAVDRAG($B66+D$3),Deltagandeskatter!$B$2)+MAX(0,0.2*($B66+D$3-Deltagandeskatter!$B$11))+MAX(0,0.05*('Med bidragsinkomst'!$B66+'Med bidragsinkomst'!D$3-Deltagandeskatter!$B$12)) -> 4555 | E66: =Deltagandeskatter!$B$2*('Med bidragsinkomst'!$B66+'Med bidragsinkomst'!E$3-GRUNDAVDRAG('Med bidragsinkomst'!$B66+'Med bidragsinkomst'!E$3))-JSA($B66,GRUNDAVDRAG($B66+E$3),Deltagandeskatter!$B$2)+MAX(0,0.2*($B66+E$3-Deltagandeskatter!$B$11))+MAX(0,0.05*('Med bidragsinkomst'!$B66+'Med bidragsinkomst'!E$3-Deltagandeskatter!$B$12)) -> 20615 | F66: =Deltagandeskatter!$B$2*('Med bidragsinkomst'!$B66+'Med bidragsinkomst'!F$3-GRUNDAVDRAG('Med bidragsinkomst'!$B66+'Med bidragsinkomst'!F$3))-JSA($B66,GRUNDAVDRAG($B66+F$3),Deltagandeskatter!$B$2)+MAX(0,0.2*($B66+F$3-Deltagandeskatter!$B$11))+MAX(0,0.05*('Med bidragsinkomst'!$B66+'Med bidragsinkomst'!F$3-Deltagandeskatter!$B$12)) -> 36676 | G66: =Deltagandeskatter!$B$2*('Med bidragsinkomst'!$B66+'Med bidragsinkomst'!G$3-GRUNDAVDRAG('Med bidragsinkomst'!$B66+'Med bidragsinkomst'!G$3))-JSA($B66,GRUNDAVDRAG($B66+G$3),Deltagandeskatter!$B$2)+MAX(0,0.2*($B66+G$3-Deltagandeskatter!$B$11))+MAX(0,0.05*('Med bidragsinkomst'!$B66+'Med bidragsinkomst'!G$3-Deltagandeskatter!$B$12)) -> 46311 | H66: =Deltagandeskatter!$B$2*('Med bidragsinkomst'!$B66+'Med bidragsinkomst'!H$3-GRUNDAVDRAG('Med bidragsinkomst'!$B66+'Med bidragsinkomst'!H$3))-JSA($B66,GRUNDAVDRAG($B66+H$3),Deltagandeskatter!$B$2)+MAX(0,0.2*($B66+H$3-Deltagandeskatter!$B$11))+MAX(0,0.05*('Med bidragsinkomst'!$B66+'Med bidragsinkomst'!H$3-Deltagandeskatter!$B$12)) -> 52736 | I66: =Deltagandeskatter!$B$2*('Med bidragsinkomst'!$B66+'Med bidragsinkomst'!I$3-GRUNDAVDRAG('Med bidragsinkomst'!$B66+'Med bidragsinkomst'!I$3))-JSA($B66,GRUNDAVDRAG($B66+I$3),Deltagandeskatter!$B$2)+MAX(0,0.2*($B66+I$3-Deltagandeskatter!$B$11))+MAX(0,0.05*('Med bidragsinkomst'!$B66+'Med bidragsinkomst'!I$3-Deltagandeskatter!$B$12)) -> 68796 | K66: =JSA($B66,GRUNDAVDRAG($B66+K$3),Deltagandeskatter!$B$2) -> 8132 | L66: =JSA($B66,GRUNDAVDRAG($B66+L$3),Deltagandeskatter!$B$2) -> 4920 | M66: =JSA($B66,GRUNDAVDRAG($B66+M$3),Deltagandeskatter!$B$2) -> 4984 | N66: =JSA($B66,GRUNDAVDRAG($B66+N$3),Deltagandeskatter!$B$2) -> 5948 | O66: =JSA($B66,GRUNDAVDRAG($B66+O$3),Deltagandeskatter!$B$2) -> 6590 | P66: =JSA($B66,GRUNDAVDRAG($B66+P$3),Deltagandeskatter!$B$2) -> 8196 | R66: 22500 | S66: 32500 | T66: 32300 | U66: 29300 | V66: 27300 | W66: 22300 | Y66: 4555 | Z66: 11012 | AA66: 14224 | AB66: 15637 | AC66: 15316 | AD66: 13710 | AF66: 21% | AG66: 21% | AH66: 21% | AI66: 21% | AJ66: 21% | AK66: 21%
A67: 5250 | B67: 63000 | D67: =Deltagandeskatter!$B$2*('Med bidragsinkomst'!$B67+'Med bidragsinkomst'!D$3-GRUNDAVDRAG('Med bidragsinkomst'!$B67+'Med bidragsinkomst'!D$3))-JSA($B67,GRUNDAVDRAG($B67+D$3),Deltagandeskatter!$B$2)+MAX(0,0.2*($B67+D$3-Deltagandeskatter!$B$11))+MAX(0,0.05*('Med bidragsinkomst'!$B67+'Med bidragsinkomst'!D$3-Deltagandeskatter!$B$12)) -> 4770 | E67: =Deltagandeskatter!$B$2*('Med bidragsinkomst'!$B67+'Med bidragsinkomst'!E$3-GRUNDAVDRAG('Med bidragsinkomst'!$B67+'Med bidragsinkomst'!E$3))-JSA($B67,GRUNDAVDRAG($B67+E$3),Deltagandeskatter!$B$2)+MAX(0,0.2*($B67+E$3-Deltagandeskatter!$B$11))+MAX(0,0.05*('Med bidragsinkomst'!$B67+'Med bidragsinkomst'!E$3-Deltagandeskatter!$B$12)) -> 20830 | F67: =Deltagandeskatter!$B$2*('Med bidragsinkomst'!$B67+'Med bidragsinkomst'!F$3-GRUNDAVDRAG('Med bidragsinkomst'!$B67+'Med bidragsinkomst'!F$3))-JSA($B67,GRUNDAVDRAG($B67+F$3),Deltagandeskatter!$B$2)+MAX(0,0.2*($B67+F$3-Deltagandeskatter!$B$11))+MAX(0,0.05*('Med bidragsinkomst'!$B67+'Med bidragsinkomst'!F$3-Deltagandeskatter!$B$12)) -> 36890 | G67: =Deltagandeskatter!$B$2*('Med bidragsinkomst'!$B67+'Med bidragsinkomst'!G$3-GRUNDAVDRAG('Med bidragsinkomst'!$B67+'Med bidragsinkomst'!G$3))-JSA($B67,GRUNDAVDRAG($B67+G$3),Deltagandeskatter!$B$2)+MAX(0,0.2*($B67+G$3-Deltagandeskatter!$B$11))+MAX(0,0.05*('Med bidragsinkomst'!$B67+'Med bidragsinkomst'!G$3-Deltagandeskatter!$B$12)) -> 46527 | H67: =Deltagandeskatter!$B$2*('Med bidragsinkomst'!$B67+'Med bidragsinkomst'!H$3-GRUNDAVDRAG('Med bidragsinkomst'!$B67+'Med bidragsinkomst'!H$3))-JSA($B67,GRUNDAVDRAG($B67+H$3),Deltagandeskatter!$B$2)+MAX(0,0.2*($B67+H$3-Deltagandeskatter!$B$11))+MAX(0,0.05*('Med bidragsinkomst'!$B67+'Med bidragsinkomst'!H$3-Deltagandeskatter!$B$12)) -> 52950 | I67: =Deltagandeskatter!$B$2*('Med bidragsinkomst'!$B67+'Med bidragsinkomst'!I$3-GRUNDAVDRAG('Med bidragsinkomst'!$B67+'Med bidragsinkomst'!I$3))-JSA($B67,GRUNDAVDRAG($B67+I$3),Deltagandeskatter!$B$2)+MAX(0,0.2*($B67+I$3-Deltagandeskatter!$B$11))+MAX(0,0.05*('Med bidragsinkomst'!$B67+'Med bidragsinkomst'!I$3-Deltagandeskatter!$B$12)) -> 69010 | K67: =JSA($B67,GRUNDAVDRAG($B67+K$3),Deltagandeskatter!$B$2) -> 8174 | L67: =JSA($B67,GRUNDAVDRAG($B67+L$3),Deltagandeskatter!$B$2) -> 4962 | M67: =JSA($B67,GRUNDAVDRAG($B67+M$3),Deltagandeskatter!$B$2) -> 5123 | N67: =JSA($B67,GRUNDAVDRAG($B67+N$3),Deltagandeskatter!$B$2) -> 6086 | O67: =JSA($B67,GRUNDAVDRAG($B67+O$3),Deltagandeskatter!$B$2) -> 6729 | P67: =JSA($B67,GRUNDAVDRAG($B67+P$3),Deltagandeskatter!$B$2) -> 8335 | R67: 22700 | S67: 32700 | T67: 32200 | U67: 29200 | V67: 27200 | W67: 22200 | Y67: 4770 | Z67: 11226 | AA67: 14438 | AB67: 15852 | AC67: 15530 | AD67: 13924 | AF67: 21% | AG67: 21% | AH67: 21% | AI67: 22% | AJ67: 21% | AK67: 21%
A68: 5333 | B68: 64000 | D68: =Deltagandeskatter!$B$2*('Med bidragsinkomst'!$B68+'Med bidragsinkomst'!D$3-GRUNDAVDRAG('Med bidragsinkomst'!$B68+'Med bidragsinkomst'!D$3))-JSA($B68,GRUNDAVDRAG($B68+D$3),Deltagandeskatter!$B$2)+MAX(0,0.2*($B68+D$3-Deltagandeskatter!$B$11))+MAX(0,0.05*('Med bidragsinkomst'!$B68+'Med bidragsinkomst'!D$3-Deltagandeskatter!$B$12)) -> 4984 | E68: =Deltagandeskatter!$B$2*('Med bidragsinkomst'!$B68+'Med bidragsinkomst'!E$3-GRUNDAVDRAG('Med bidragsinkomst'!$B68+'Med bidragsinkomst'!E$3))-JSA($B68,GRUNDAVDRAG($B68+E$3),Deltagandeskatter!$B$2)+MAX(0,0.2*($B68+E$3-Deltagandeskatter!$B$11))+MAX(0,0.05*('Med bidragsinkomst'!$B68+'Med bidragsinkomst'!E$3-Deltagandeskatter!$B$12)) -> 21044 | F68: =Deltagandeskatter!$B$2*('Med bidragsinkomst'!$B68+'Med bidragsinkomst'!F$3-GRUNDAVDRAG('Med bidragsinkomst'!$B68+'Med bidragsinkomst'!F$3))-JSA($B68,GRUNDAVDRAG($B68+F$3),Deltagandeskatter!$B$2)+MAX(0,0.2*($B68+F$3-Deltagandeskatter!$B$11))+MAX(0,0.05*('Med bidragsinkomst'!$B68+'Med bidragsinkomst'!F$3-Deltagandeskatter!$B$12)) -> 37104 | G68: =Deltagandeskatter!$B$2*('Med bidragsinkomst'!$B68+'Med bidragsinkomst'!G$3-GRUNDAVDRAG('Med bidragsinkomst'!$B68+'Med bidragsinkomst'!G$3))-JSA($B68,GRUNDAVDRAG($B68+G$3),Deltagandeskatter!$B$2)+MAX(0,0.2*($B68+G$3-Deltagandeskatter!$B$11))+MAX(0,0.05*('Med bidragsinkomst'!$B68+'Med bidragsinkomst'!G$3-Deltagandeskatter!$B$12)) -> 46741 | H68: =Deltagandeskatter!$B$2*('Med bidragsinkomst'!$B68+'Med bidragsinkomst'!H$3-GRUNDAVDRAG('Med bidragsinkomst'!$B68+'Med bidragsinkomst'!H$3))-JSA($B68,GRUNDAVDRAG($B68+H$3),Deltagandeskatter!$B$2)+MAX(0,0.2*($B68+H$3-Deltagandeskatter!$B$11))+MAX(0,0.05*('Med bidragsinkomst'!$B68+'Med bidragsinkomst'!H$3-Deltagandeskatter!$B$12)) -> 53164 | I68: =Deltagandeskatter!$B$2*('Med bidragsinkomst'!$B68+'Med bidragsinkomst'!I$3-GRUNDAVDRAG('Med bidragsinkomst'!$B68+'Med bidragsinkomst'!I$3))-JSA($B68,GRUNDAVDRAG($B68+I$3),Deltagandeskatter!$B$2)+MAX(0,0.2*($B68+I$3-Deltagandeskatter!$B$11))+MAX(0,0.05*('Med bidragsinkomst'!$B68+'Med bidragsinkomst'!I$3-Deltagandeskatter!$B$12)) -> 69224 | K68: =JSA($B68,GRUNDAVDRAG($B68+K$3),Deltagandeskatter!$B$2) -> 8217 | L68: =JSA($B68,GRUNDAVDRAG($B68+L$3),Deltagandeskatter!$B$2) -> 5005 | M68: =JSA($B68,GRUNDAVDRAG($B68+M$3),Deltagandeskatter!$B$2) -> 5262 | N68: =JSA($B68,GRUNDAVDRAG($B68+N$3),Deltagandeskatter!$B$2) -> 6225 | O68: =JSA($B68,GRUNDAVDRAG($B68+O$3),Deltagandeskatter!$B$2) -> 6868 | P68: =JSA($B68,GRUNDAVDRAG($B68+P$3),Deltagandeskatter!$B$2) -> 8474 | R68: 22900 | S68: 32900 | T68: 32100 | U68: 29100 | V68: 27100 | W68: 22100 | Y68: 4984 | Z68: 11440 | AA68: 14652 | AB68: 16066 | AC68: 15744 | AD68: 14138 | AF68: 21% | AG68: 21% | AH68: 21% | AI68: 21% | AJ68: 21% | AK68: 21%
A69: =B69/12 -> 5417 | B69: 65000 | D69: =Deltagandeskatter!$B$2*('Med bidragsinkomst'!$B69+'Med bidragsinkomst'!D$3-GRUNDAVDRAG('Med bidragsinkomst'!$B69+'Med bidragsinkomst'!D$3))-JSA($B69,GRUNDAVDRAG($B69+D$3),Deltagandeskatter!$B$2)+MAX(0,0.2*($B69+D$3-Deltagandeskatter!$B$11))+MAX(0,0.05*('Med bidragsinkomst'!$B69+'Med bidragsinkomst'!D$3-Deltagandeskatter!$B$12)) -> 5199 | E69: =Deltagandeskatter!$B$2*('Med bidragsinkomst'!$B69+'Med bidragsinkomst'!E$3-GRUNDAVDRAG('Med bidragsinkomst'!$B69+'Med bidragsinkomst'!E$3))-JSA($B69,GRUNDAVDRAG($B69+E$3),Deltagandeskatter!$B$2)+MAX(0,0.2*($B69+E$3-Deltagandeskatter!$B$11))+MAX(0,0.05*('Med bidragsinkomst'!$B69+'Med bidragsinkomst'!E$3-Deltagandeskatter!$B$12)) -> 21259 | F69: =Deltagandeskatter!$B$2*('Med bidragsinkomst'!$B69+'Med bidragsinkomst'!F$3-GRUNDAVDRAG('Med bidragsinkomst'!$B69+'Med bidragsinkomst'!F$3))-JSA($B69,GRUNDAVDRAG($B69+F$3),Deltagandeskatter!$B$2)+MAX(0,0.2*($B69+F$3-Deltagandeskatter!$B$11))+MAX(0,0.05*('Med bidragsinkomst'!$B69+'Med bidragsinkomst'!F$3-Deltagandeskatter!$B$12)) -> 37320 | G69: =Deltagandeskatter!$B$2*('Med bidragsinkomst'!$B69+'Med bidragsinkomst'!G$3-GRUNDAVDRAG('Med bidragsinkomst'!$B69+'Med bidragsinkomst'!G$3))-JSA($B69,GRUNDAVDRAG($B69+G$3),Deltagandeskatter!$B$2)+MAX(0,0.2*($B69+G$3-Deltagandeskatter!$B$11))+MAX(0,0.05*('Med bidragsinkomst'!$B69+'Med bidragsinkomst'!G$3-Deltagandeskatter!$B$12)) -> 46955 | H69: =Deltagandeskatter!$B$2*('Med bidragsinkomst'!$B69+'Med bidragsinkomst'!H$3-GRUNDAVDRAG('Med bidragsinkomst'!$B69+'Med bidragsinkomst'!H$3))-JSA($B69,GRUNDAVDRAG($B69+H$3),Deltagandeskatter!$B$2)+MAX(0,0.2*($B69+H$3-Deltagandeskatter!$B$11))+MAX(0,0.05*('Med bidragsinkomst'!$B69+'Med bidragsinkomst'!H$3-Deltagandeskatter!$B$12)) -> 53380 | I69: =Deltagandeskatter!$B$2*('Med bidragsinkomst'!$B69+'Med bidragsinkomst'!I$3-GRUNDAVDRAG('Med bidragsinkomst'!$B69+'Med bidragsinkomst'!I$3))-JSA($B69,GRUNDAVDRAG($B69+I$3),Deltagandeskatter!$B$2)+MAX(0,0.2*($B69+I$3-Deltagandeskatter!$B$11))+MAX(0,0.05*('Med bidragsinkomst'!$B69+'Med bidragsinkomst'!I$3-Deltagandeskatter!$B$12)) -> 69440 | K69: =JSA($B69,GRUNDAVDRAG($B69+K$3),Deltagandeskatter!$B$2) -> 8259 | L69: =JSA($B69,GRUNDAVDRAG($B69+L$3),Deltagandeskatter!$B$2) -> 5047 | M69: =JSA($B69,GRUNDAVDRAG($B69+M$3),Deltagandeskatter!$B$2) -> 5400 | N69: =JSA($B69,GRUNDAVDRAG($B69+N$3),Deltagandeskatter!$B$2) -> 6364 | O69: =JSA($B69,GRUNDAVDRAG($B69+O$3),Deltagandeskatter!$B$2) -> 7006 | P69: =JSA($B69,GRUNDAVDRAG($B69+P$3),Deltagandeskatter!$B$2) -> 8612 | R69: 23100 | S69: 33100 | T69: 32000 | U69: 29000 | V69: 27000 | W69: 22000 | Y69: 5199 | Z69: 11655 | AA69: 14868 | AB69: 16281 | AC69: 15960 | AD69: 14354 | AF69: 21% | AG69: 21% | AH69: 22% | AI69: 21% | AJ69: 22% | AK69: 22%
A70: 5500 | B70: 66000 | D70: =Deltagandeskatter!$B$2*('Med bidragsinkomst'!$B70+'Med bidragsinkomst'!D$3-GRUNDAVDRAG('Med bidragsinkomst'!$B70+'Med bidragsinkomst'!D$3))-JSA($B70,GRUNDAVDRAG($B70+D$3),Deltagandeskatter!$B$2)+MAX(0,0.2*($B70+D$3-Deltagandeskatter!$B$11))+MAX(0,0.05*('Med bidragsinkomst'!$B70+'Med bidragsinkomst'!D$3-Deltagandeskatter!$B$12)) -> 5414 | E70: =Deltagandeskatter!$B$2*('Med bidragsinkomst'!$B70+'Med bidragsinkomst'!E$3-GRUNDAVDRAG('Med bidragsinkomst'!$B70+'Med bidragsinkomst'!E$3))-JSA($B70,GRUNDAVDRAG($B70+E$3),Deltagandeskatter!$B$2)+MAX(0,0.2*($B70+E$3-Deltagandeskatter!$B$11))+MAX(0,0.05*('Med bidragsinkomst'!$B70+'Med bidragsinkomst'!E$3-Deltagandeskatter!$B$12)) -> 21474 | F70: =Deltagandeskatter!$B$2*('Med bidragsinkomst'!$B70+'Med bidragsinkomst'!F$3-GRUNDAVDRAG('Med bidragsinkomst'!$B70+'Med bidragsinkomst'!F$3))-JSA($B70,GRUNDAVDRAG($B70+F$3),Deltagandeskatter!$B$2)+MAX(0,0.2*($B70+F$3-Deltagandeskatter!$B$11))+MAX(0,0.05*('Med bidragsinkomst'!$B70+'Med bidragsinkomst'!F$3-Deltagandeskatter!$B$12)) -> 37534 | G70: =Deltagandeskatter!$B$2*('Med bidragsinkomst'!$B70+'Med bidragsinkomst'!G$3-GRUNDAVDRAG('Med bidragsinkomst'!$B70+'Med bidragsinkomst'!G$3))-JSA($B70,GRUNDAVDRAG($B70+G$3),Deltagandeskatter!$B$2)+MAX(0,0.2*($B70+G$3-Deltagandeskatter!$B$11))+MAX(0,0.05*('Med bidragsinkomst'!$B70+'Med bidragsinkomst'!G$3-Deltagandeskatter!$B$12)) -> 47170 | H70: =Deltagandeskatter!$B$2*('Med bidragsinkomst'!$B70+'Med bidragsinkomst'!H$3-GRUNDAVDRAG('Med bidragsinkomst'!$B70+'Med bidragsinkomst'!H$3))-JSA($B70,GRUNDAVDRAG($B70+H$3),Deltagandeskatter!$B$2)+MAX(0,0.2*($B70+H$3-Deltagandeskatter!$B$11))+MAX(0,0.05*('Med bidragsinkomst'!$B70+'Med bidragsinkomst'!H$3-Deltagandeskatter!$B$12)) -> 53594 | I70: =Deltagandeskatter!$B$2*('Med bidragsinkomst'!$B70+'Med bidragsinkomst'!I$3-GRUNDAVDRAG('Med bidragsinkomst'!$B70+'Med bidragsinkomst'!I$3))-JSA($B70,GRUNDAVDRAG($B70+I$3),Deltagandeskatter!$B$2)+MAX(0,0.2*($B70+I$3-Deltagandeskatter!$B$11))+MAX(0,0.05*('Med bidragsinkomst'!$B70+'Med bidragsinkomst'!I$3-Deltagandeskatter!$B$12)) -> 69654 | K70: =JSA($B70,GRUNDAVDRAG($B70+K$3),Deltagandeskatter!$B$2) -> 8301 | L70: =JSA($B70,GRUNDAVDRAG($B70+L$3),Deltagandeskatter!$B$2) -> 5089 | M70: =JSA($B70,GRUNDAVDRAG($B70+M$3),Deltagandeskatter!$B$2) -> 5539 | N70: =JSA($B70,GRUNDAVDRAG($B70+N$3),Deltagandeskatter!$B$2) -> 6503 | O70: =JSA($B70,GRUNDAVDRAG($B70+O$3),Deltagandeskatter!$B$2) -> 7145 | P70: =JSA($B70,GRUNDAVDRAG($B70+P$3),Deltagandeskatter!$B$2) -> 8751 | R70: 23300 | S70: 33300 | T70: 31900 | U70: 28900 | V70: 26900 | W70: 21900 | Y70: 5414 | Z70: 11870 | AA70: 15082 | AB70: 16495 | AC70: 16174 | AD70: 14568 | AF70: 21% | AG70: 21% | AH70: 21% | AI70: 21% | AJ70: 21% | AK70: 21%
A71: 5583 | B71: 67000 | D71: =Deltagandeskatter!$B$2*('Med bidragsinkomst'!$B71+'Med bidragsinkomst'!D$3-GRUNDAVDRAG('Med bidragsinkomst'!$B71+'Med bidragsinkomst'!D$3))-JSA($B71,GRUNDAVDRAG($B71+D$3),Deltagandeskatter!$B$2)+MAX(0,0.2*($B71+D$3-Deltagandeskatter!$B$11))+MAX(0,0.05*('Med bidragsinkomst'!$B71+'Med bidragsinkomst'!D$3-Deltagandeskatter!$B$12)) -> 5628 | E71: =Deltagandeskatter!$B$2*('Med bidragsinkomst'!$B71+'Med bidragsinkomst'!E$3-GRUNDAVDRAG('Med bidragsinkomst'!$B71+'Med bidragsinkomst'!E$3))-JSA($B71,GRUNDAVDRAG($B71+E$3),Deltagandeskatter!$B$2)+MAX(0,0.2*($B71+E$3-Deltagandeskatter!$B$11))+MAX(0,0.05*('Med bidragsinkomst'!$B71+'Med bidragsinkomst'!E$3-Deltagandeskatter!$B$12)) -> 21688 | F71: =Deltagandeskatter!$B$2*('Med bidragsinkomst'!$B71+'Med bidragsinkomst'!F$3-GRUNDAVDRAG('Med bidragsinkomst'!$B71+'Med bidragsinkomst'!F$3))-JSA($B71,GRUNDAVDRAG($B71+F$3),Deltagandeskatter!$B$2)+MAX(0,0.2*($B71+F$3-Deltagandeskatter!$B$11))+MAX(0,0.05*('Med bidragsinkomst'!$B71+'Med bidragsinkomst'!F$3-Deltagandeskatter!$B$12)) -> 37748 | G71: =Deltagandeskatter!$B$2*('Med bidragsinkomst'!$B71+'Med bidragsinkomst'!G$3-GRUNDAVDRAG('Med bidragsinkomst'!$B71+'Med bidragsinkomst'!G$3))-JSA($B71,GRUNDAVDRAG($B71+G$3),Deltagandeskatter!$B$2)+MAX(0,0.2*($B71+G$3-Deltagandeskatter!$B$11))+MAX(0,0.05*('Med bidragsinkomst'!$B71+'Med bidragsinkomst'!G$3-Deltagandeskatter!$B$12)) -> 47385 | H71: =Deltagandeskatter!$B$2*('Med bidragsinkomst'!$B71+'Med bidragsinkomst'!H$3-GRUNDAVDRAG('Med bidragsinkomst'!$B71+'Med bidragsinkomst'!H$3))-JSA($B71,GRUNDAVDRAG($B71+H$3),Deltagandeskatter!$B$2)+MAX(0,0.2*($B71+H$3-Deltagandeskatter!$B$11))+MAX(0,0.05*('Med bidragsinkomst'!$B71+'Med bidragsinkomst'!H$3-Deltagandeskatter!$B$12)) -> 53808 | I71: =Deltagandeskatter!$B$2*('Med bidragsinkomst'!$B71+'Med bidragsinkomst'!I$3-GRUNDAVDRAG('Med bidragsinkomst'!$B71+'Med bidragsinkomst'!I$3))-JSA($B71,GRUNDAVDRAG($B71+I$3),Deltagandeskatter!$B$2)+MAX(0,0.2*($B71+I$3-Deltagandeskatter!$B$11))+MAX(0,0.05*('Med bidragsinkomst'!$B71+'Med bidragsinkomst'!I$3-Deltagandeskatter!$B$12)) -> 69868 | K71: =JSA($B71,GRUNDAVDRAG($B71+K$3),Deltagandeskatter!$B$2) -> 8344 | L71: =JSA($B71,GRUNDAVDRAG($B71+L$3),Deltagandeskatter!$B$2) -> 5132 | M71: =JSA($B71,GRUNDAVDRAG($B71+M$3),Deltagandeskatter!$B$2) -> 5678 | N71: =JSA($B71,GRUNDAVDRAG($B71+N$3),Deltagandeskatter!$B$2) -> 6641 | O71: =JSA($B71,GRUNDAVDRAG($B71+O$3),Deltagandeskatter!$B$2) -> 7284 | P71: =JSA($B71,GRUNDAVDRAG($B71+P$3),Deltagandeskatter!$B$2) -> 8890 | R71: 23500 | S71: 33500 | T71: 31800 | U71: 28800 | V71: 26800 | W71: 21800 | Y71: 5628 | Z71: 12084 | AA71: 15296 | AB71: 16710 | AC71: 16388 | AD71: 14782 | AF71: 21% | AG71: 21% | AH71: 21% | AI71: 22% | AJ71: 21% | AK71: 21%
A72: 5667 | B72: 68000 | D72: =Deltagandeskatter!$B$2*('Med bidragsinkomst'!$B72+'Med bidragsinkomst'!D$3-GRUNDAVDRAG('Med bidragsinkomst'!$B72+'Med bidragsinkomst'!D$3))-JSA($B72,GRUNDAVDRAG($B72+D$3),Deltagandeskatter!$B$2)+MAX(0,0.2*($B72+D$3-Deltagandeskatter!$B$11))+MAX(0,0.05*('Med bidragsinkomst'!$B72+'Med bidragsinkomst'!D$3-Deltagandeskatter!$B$12)) -> 5843 | E72: =Deltagandeskatter!$B$2*('Med bidragsinkomst'!$B72+'Med bidragsinkomst'!E$3-GRUNDAVDRAG('Med bidragsinkomst'!$B72+'Med bidragsinkomst'!E$3))-JSA($B72,GRUNDAVDRAG($B72+E$3),Deltagandeskatter!$B$2)+MAX(0,0.2*($B72+E$3-Deltagandeskatter!$B$11))+MAX(0,0.05*('Med bidragsinkomst'!$B72+'Med bidragsinkomst'!E$3-Deltagandeskatter!$B$12)) -> 21903 | F72: =Deltagandeskatter!$B$2*('Med bidragsinkomst'!$B72+'Med bidragsinkomst'!F$3-GRUNDAVDRAG('Med bidragsinkomst'!$B72+'Med bidragsinkomst'!F$3))-JSA($B72,GRUNDAVDRAG($B72+F$3),Deltagandeskatter!$B$2)+MAX(0,0.2*($B72+F$3-Deltagandeskatter!$B$11))+MAX(0,0.05*('Med bidragsinkomst'!$B72+'Med bidragsinkomst'!F$3-Deltagandeskatter!$B$12)) -> 37963 | G72: =Deltagandeskatter!$B$2*('Med bidragsinkomst'!$B72+'Med bidragsinkomst'!G$3-GRUNDAVDRAG('Med bidragsinkomst'!$B72+'Med bidragsinkomst'!G$3))-JSA($B72,GRUNDAVDRAG($B72+G$3),Deltagandeskatter!$B$2)+MAX(0,0.2*($B72+G$3-Deltagandeskatter!$B$11))+MAX(0,0.05*('Med bidragsinkomst'!$B72+'Med bidragsinkomst'!G$3-Deltagandeskatter!$B$12)) -> 47599 | H72: =Deltagandeskatter!$B$2*('Med bidragsinkomst'!$B72+'Med bidragsinkomst'!H$3-GRUNDAVDRAG('Med bidragsinkomst'!$B72+'Med bidragsinkomst'!H$3))-JSA($B72,GRUNDAVDRAG($B72+H$3),Deltagandeskatter!$B$2)+MAX(0,0.2*($B72+H$3-Deltagandeskatter!$B$11))+MAX(0,0.05*('Med bidragsinkomst'!$B72+'Med bidragsinkomst'!H$3-Deltagandeskatter!$B$12)) -> 54023 | I72: =Deltagandeskatter!$B$2*('Med bidragsinkomst'!$B72+'Med bidragsinkomst'!I$3-GRUNDAVDRAG('Med bidragsinkomst'!$B72+'Med bidragsinkomst'!I$3))-JSA($B72,GRUNDAVDRAG($B72+I$3),Deltagandeskatter!$B$2)+MAX(0,0.2*($B72+I$3-Deltagandeskatter!$B$11))+MAX(0,0.05*('Med bidragsinkomst'!$B72+'Med bidragsinkomst'!I$3-Deltagandeskatter!$B$12)) -> 70083 | K72: =JSA($B72,GRUNDAVDRAG($B72+K$3),Deltagandeskatter!$B$2) -> 8386 | L72: =JSA($B72,GRUNDAVDRAG($B72+L$3),Deltagandeskatter!$B$2) -> 5174 | M72: =JSA($B72,GRUNDAVDRAG($B72+M$3),Deltagandeskatter!$B$2) -> 5817 | N72: =JSA($B72,GRUNDAVDRAG($B72+N$3),Deltagandeskatter!$B$2) -> 6780 | O72: =JSA($B72,GRUNDAVDRAG($B72+O$3),Deltagandeskatter!$B$2) -> 7423 | P72: =JSA($B72,GRUNDAVDRAG($B72+P$3),Deltagandeskatter!$B$2) -> 9029 | R72: 23700 | S72: 33700 | T72: 31700 | U72: 28700 | V72: 26700 | W72: 21700 | Y72: 5843 | Z72: 12299 | AA72: 15511 | AB72: 16925 | AC72: 16603 | AD72: 14997 | AF72: 21% | AG72: 21% | AH72: 21% | AI72: 21% | AJ72: 21% | AK72: 21%
A73: 5750 | B73: 69000 | D73: =Deltagandeskatter!$B$2*('Med bidragsinkomst'!$B73+'Med bidragsinkomst'!D$3-GRUNDAVDRAG('Med bidragsinkomst'!$B73+'Med bidragsinkomst'!D$3))-JSA($B73,GRUNDAVDRAG($B73+D$3),Deltagandeskatter!$B$2)+MAX(0,0.2*($B73+D$3-Deltagandeskatter!$B$11))+MAX(0,0.05*('Med bidragsinkomst'!$B73+'Med bidragsinkomst'!D$3-Deltagandeskatter!$B$12)) -> 6057 | E73: =Deltagandeskatter!$B$2*('Med bidragsinkomst'!$B73+'Med bidragsinkomst'!E$3-GRUNDAVDRAG('Med bidragsinkomst'!$B73+'Med bidragsinkomst'!E$3))-JSA($B73,GRUNDAVDRAG($B73+E$3),Deltagandeskatter!$B$2)+MAX(0,0.2*($B73+E$3-Deltagandeskatter!$B$11))+MAX(0,0.05*('Med bidragsinkomst'!$B73+'Med bidragsinkomst'!E$3-Deltagandeskatter!$B$12)) -> 22117 | F73: =Deltagandeskatter!$B$2*('Med bidragsinkomst'!$B73+'Med bidragsinkomst'!F$3-GRUNDAVDRAG('Med bidragsinkomst'!$B73+'Med bidragsinkomst'!F$3))-JSA($B73,GRUNDAVDRAG($B73+F$3),Deltagandeskatter!$B$2)+MAX(0,0.2*($B73+F$3-Deltagandeskatter!$B$11))+MAX(0,0.05*('Med bidragsinkomst'!$B73+'Med bidragsinkomst'!F$3-Deltagandeskatter!$B$12)) -> 38178 | G73: =Deltagandeskatter!$B$2*('Med bidragsinkomst'!$B73+'Med bidragsinkomst'!G$3-GRUNDAVDRAG('Med bidragsinkomst'!$B73+'Med bidragsinkomst'!G$3))-JSA($B73,GRUNDAVDRAG($B73+G$3),Deltagandeskatter!$B$2)+MAX(0,0.2*($B73+G$3-Deltagandeskatter!$B$11))+MAX(0,0.05*('Med bidragsinkomst'!$B73+'Med bidragsinkomst'!G$3-Deltagandeskatter!$B$12)) -> 47813 | H73: =Deltagandeskatter!$B$2*('Med bidragsinkomst'!$B73+'Med bidragsinkomst'!H$3-GRUNDAVDRAG('Med bidragsinkomst'!$B73+'Med bidragsinkomst'!H$3))-JSA($B73,GRUNDAVDRAG($B73+H$3),Deltagandeskatter!$B$2)+MAX(0,0.2*($B73+H$3-Deltagandeskatter!$B$11))+MAX(0,0.05*('Med bidragsinkomst'!$B73+'Med bidragsinkomst'!H$3-Deltagandeskatter!$B$12)) -> 54238 | I73: =Deltagandeskatter!$B$2*('Med bidragsinkomst'!$B73+'Med bidragsinkomst'!I$3-GRUNDAVDRAG('Med bidragsinkomst'!$B73+'Med bidragsinkomst'!I$3))-JSA($B73,GRUNDAVDRAG($B73+I$3),Deltagandeskatter!$B$2)+MAX(0,0.2*($B73+I$3-Deltagandeskatter!$B$11))+MAX(0,0.05*('Med bidragsinkomst'!$B73+'Med bidragsinkomst'!I$3-Deltagandeskatter!$B$12)) -> 70298 | K73: =JSA($B73,GRUNDAVDRAG($B73+K$3),Deltagandeskatter!$B$2) -> 8429 | L73: =JSA($B73,GRUNDAVDRAG($B73+L$3),Deltagandeskatter!$B$2) -> 5217 | M73: =JSA($B73,GRUNDAVDRAG($B73+M$3),Deltagandeskatter!$B$2) -> 5955 | N73: =JSA($B73,GRUNDAVDRAG($B73+N$3),Deltagandeskatter!$B$2) -> 6919 | O73: =JSA($B73,GRUNDAVDRAG($B73+O$3),Deltagandeskatter!$B$2) -> 7561 | P73: =JSA($B73,GRUNDAVDRAG($B73+P$3),Deltagandeskatter!$B$2) -> 9167 | R73: 23900 | S73: 33900 | T73: 31600 | U73: 28600 | V73: 26600 | W73: 21600 | Y73: 6057 | Z73: 12513 | AA73: 15726 | AB73: 17139 | AC73: 16818 | AD73: 15212 | AF73: 21% | AG73: 21% | AH73: 22% | AI73: 21% | AJ73: 22% | AK73: 22%
A74: 5833 | B74: 70000 | D74: =Deltagandeskatter!$B$2*('Med bidragsinkomst'!$B74+'Med bidragsinkomst'!D$3-GRUNDAVDRAG('Med bidragsinkomst'!$B74+'Med bidragsinkomst'!D$3))-JSA($B74,GRUNDAVDRAG($B74+D$3),Deltagandeskatter!$B$2)+MAX(0,0.2*($B74+D$3-Deltagandeskatter!$B$11))+MAX(0,0.05*('Med bidragsinkomst'!$B74+'Med bidragsinkomst'!D$3-Deltagandeskatter!$B$12)) -> 6272 | E74: =Deltagandeskatter!$B$2*('Med bidragsinkomst'!$B74+'Med bidragsinkomst'!E$3-GRUNDAVDRAG('Med bidragsinkomst'!$B74+'Med bidragsinkomst'!E$3))-JSA($B74,GRUNDAVDRAG($B74+E$3),Deltagandeskatter!$B$2)+MAX(0,0.2*($B74+E$3-Deltagandeskatter!$B$11))+MAX(0,0.05*('Med bidragsinkomst'!$B74+'Med bidragsinkomst'!E$3-Deltagandeskatter!$B$12)) -> 22332 | F74: =Deltagandeskatter!$B$2*('Med bidragsinkomst'!$B74+'Med bidragsinkomst'!F$3-GRUNDAVDRAG('Med bidragsinkomst'!$B74+'Med bidragsinkomst'!F$3))-JSA($B74,GRUNDAVDRAG($B74+F$3),Deltagandeskatter!$B$2)+MAX(0,0.2*($B74+F$3-Deltagandeskatter!$B$11))+MAX(0,0.05*('Med bidragsinkomst'!$B74+'Med bidragsinkomst'!F$3-Deltagandeskatter!$B$12)) -> 38392 | G74: =Deltagandeskatter!$B$2*('Med bidragsinkomst'!$B74+'Med bidragsinkomst'!G$3-GRUNDAVDRAG('Med bidragsinkomst'!$B74+'Med bidragsinkomst'!G$3))-JSA($B74,GRUNDAVDRAG($B74+G$3),Deltagandeskatter!$B$2)+MAX(0,0.2*($B74+G$3-Deltagandeskatter!$B$11))+MAX(0,0.05*('Med bidragsinkomst'!$B74+'Med bidragsinkomst'!G$3-Deltagandeskatter!$B$12)) -> 48028 | H74: =Deltagandeskatter!$B$2*('Med bidragsinkomst'!$B74+'Med bidragsinkomst'!H$3-GRUNDAVDRAG('Med bidragsinkomst'!$B74+'Med bidragsinkomst'!H$3))-JSA($B74,GRUNDAVDRAG($B74+H$3),Deltagandeskatter!$B$2)+MAX(0,0.2*($B74+H$3-Deltagandeskatter!$B$11))+MAX(0,0.05*('Med bidragsinkomst'!$B74+'Med bidragsinkomst'!H$3-Deltagandeskatter!$B$12)) -> 54452 | I74: =Deltagandeskatter!$B$2*('Med bidragsinkomst'!$B74+'Med bidragsinkomst'!I$3-GRUNDAVDRAG('Med bidragsinkomst'!$B74+'Med bidragsinkomst'!I$3))-JSA($B74,GRUNDAVDRAG($B74+I$3),Deltagandeskatter!$B$2)+MAX(0,0.2*($B74+I$3-Deltagandeskatter!$B$11))+MAX(0,0.05*('Med bidragsinkomst'!$B74+'Med bidragsinkomst'!I$3-Deltagandeskatter!$B$12)) -> 70512 | K74: =JSA($B74,GRUNDAVDRAG($B74+K$3),Deltagandeskatter!$B$2) -> 8471 | L74: =JSA($B74,GRUNDAVDRAG($B74+L$3),Deltagandeskatter!$B$2) -> 5259 | M74: =JSA($B74,GRUNDAVDRAG($B74+M$3),Deltagandeskatter!$B$2) -> 6094 | N74: =JSA($B74,GRUNDAVDRAG($B74+N$3),Deltagandeskatter!$B$2) -> 7058 | O74: =JSA($B74,GRUNDAVDRAG($B74+O$3),Deltagandeskatter!$B$2) -> 7700 | P74: =JSA($B74,GRUNDAVDRAG($B74+P$3),Deltagandeskatter!$B$2) -> 9306 | R74: 24100 | S74: 34100 | T74: 31500 | U74: 28500 | V74: 26500 | W74: 21500 | Y74: 6272 | Z74: 12728 | AA74: 15940 | AB74: 17353 | AC74: 17032 | AD74: 15426 | AF74: 21% | AG74: 21% | AH74: 21% | AI74: 21% | AJ74: 21% | AK74: 21%
A75: 5917 | B75: 71000 | D75: =Deltagandeskatter!$B$2*('Med bidragsinkomst'!$B75+'Med bidragsinkomst'!D$3-GRUNDAVDRAG('Med bidragsinkomst'!$B75+'Med bidragsinkomst'!D$3))-JSA($B75,GRUNDAVDRAG($B75+D$3),Deltagandeskatter!$B$2)+MAX(0,0.2*($B75+D$3-Deltagandeskatter!$B$11))+MAX(0,0.05*('Med bidragsinkomst'!$B75+'Med bidragsinkomst'!D$3-Deltagandeskatter!$B$12)) -> 6487 | E75: =Deltagandeskatter!$B$2*('Med bidragsinkomst'!$B75+'Med bidragsinkomst'!E$3-GRUNDAVDRAG('Med bidragsinkomst'!$B75+'Med bidragsinkomst'!E$3))-JSA($B75,GRUNDAVDRAG($B75+E$3),Deltagandeskatter!$B$2)+MAX(0,0.2*($B75+E$3-Deltagandeskatter!$B$11))+MAX(0,0.05*('Med bidragsinkomst'!$B75+'Med bidragsinkomst'!E$3-Deltagandeskatter!$B$12)) -> 22547 | F75: =Deltagandeskatter!$B$2*('Med bidragsinkomst'!$B75+'Med bidragsinkomst'!F$3-GRUNDAVDRAG('Med bidragsinkomst'!$B75+'Med bidragsinkomst'!F$3))-JSA($B75,GRUNDAVDRAG($B75+F$3),Deltagandeskatter!$B$2)+MAX(0,0.2*($B75+F$3-Deltagandeskatter!$B$11))+MAX(0,0.05*('Med bidragsinkomst'!$B75+'Med bidragsinkomst'!F$3-Deltagandeskatter!$B$12)) -> 38607 | G75: =Deltagandeskatter!$B$2*('Med bidragsinkomst'!$B75+'Med bidragsinkomst'!G$3-GRUNDAVDRAG('Med bidragsinkomst'!$B75+'Med bidragsinkomst'!G$3))-JSA($B75,GRUNDAVDRAG($B75+G$3),Deltagandeskatter!$B$2)+MAX(0,0.2*($B75+G$3-Deltagandeskatter!$B$11))+MAX(0,0.05*('Med bidragsinkomst'!$B75+'Med bidragsinkomst'!G$3-Deltagandeskatter!$B$12)) -> 48243 | H75: =Deltagandeskatter!$B$2*('Med bidragsinkomst'!$B75+'Med bidragsinkomst'!H$3-GRUNDAVDRAG('Med bidragsinkomst'!$B75+'Med bidragsinkomst'!H$3))-JSA($B75,GRUNDAVDRAG($B75+H$3),Deltagandeskatter!$B$2)+MAX(0,0.2*($B75+H$3-Deltagandeskatter!$B$11))+MAX(0,0.05*('Med bidragsinkomst'!$B75+'Med bidragsinkomst'!H$3-Deltagandeskatter!$B$12)) -> 54667 | I75: =Deltagandeskatter!$B$2*('Med bidragsinkomst'!$B75+'Med bidragsinkomst'!I$3-GRUNDAVDRAG('Med bidragsinkomst'!$B75+'Med bidragsinkomst'!I$3))-JSA($B75,GRUNDAVDRAG($B75+I$3),Deltagandeskatter!$B$2)+MAX(0,0.2*($B75+I$3-Deltagandeskatter!$B$11))+MAX(0,0.05*('Med bidragsinkomst'!$B75+'Med bidragsinkomst'!I$3-Deltagandeskatter!$B$12)) -> 70727 | K75: =JSA($B75,GRUNDAVDRAG($B75+K$3),Deltagandeskatter!$B$2) -> 8513 | L75: =JSA($B75,GRUNDAVDRAG($B75+L$3),Deltagandeskatter!$B$2) -> 5301 | M75: =JSA($B75,GRUNDAVDRAG($B75+M$3),Deltagandeskatter!$B$2) -> 6233 | N75: =JSA($B75,GRUNDAVDRAG($B75+N$3),Deltagandeskatter!$B$2) -> 7196 | O75: =JSA($B75,GRUNDAVDRAG($B75+O$3),Deltagandeskatter!$B$2) -> 7839 | P75: =JSA($B75,GRUNDAVDRAG($B75+P$3),Deltagandeskatter!$B$2) -> 9445 | R75: 24300 | S75: 34300 | T75: 31400 | U75: 28400 | V75: 26400 | W75: 21400 | Y75: 6487 | Z75: 12943 | AA75: 16155 | AB75: 17569 | AC75: 17247 | AD75: 15641 | AF75: 21% | AG75: 21% | AH75: 21% | AI75: 22% | AJ75: 21% | AK75: 21%
A76: 6000 | B76: 72000 | D76: =Deltagandeskatter!$B$2*('Med bidragsinkomst'!$B76+'Med bidragsinkomst'!D$3-GRUNDAVDRAG('Med bidragsinkomst'!$B76+'Med bidragsinkomst'!D$3))-JSA($B76,GRUNDAVDRAG($B76+D$3),Deltagandeskatter!$B$2)+MAX(0,0.2*($B76+D$3-Deltagandeskatter!$B$11))+MAX(0,0.05*('Med bidragsinkomst'!$B76+'Med bidragsinkomst'!D$3-Deltagandeskatter!$B$12)) -> 6701 | E76: =Deltagandeskatter!$B$2*('Med bidragsinkomst'!$B76+'Med bidragsinkomst'!E$3-GRUNDAVDRAG('Med bidragsinkomst'!$B76+'Med bidragsinkomst'!E$3))-JSA($B76,GRUNDAVDRAG($B76+E$3),Deltagandeskatter!$B$2)+MAX(0,0.2*($B76+E$3-Deltagandeskatter!$B$11))+MAX(0,0.05*('Med bidragsinkomst'!$B76+'Med bidragsinkomst'!E$3-Deltagandeskatter!$B$12)) -> 22761 | F76: =Deltagandeskatter!$B$2*('Med bidragsinkomst'!$B76+'Med bidragsinkomst'!F$3-GRUNDAVDRAG('Med bidragsinkomst'!$B76+'Med bidragsinkomst'!F$3))-JSA($B76,GRUNDAVDRAG($B76+F$3),Deltagandeskatter!$B$2)+MAX(0,0.2*($B76+F$3-Deltagandeskatter!$B$11))+MAX(0,0.05*('Med bidragsinkomst'!$B76+'Med bidragsinkomst'!F$3-Deltagandeskatter!$B$12)) -> 38821 | G76: =Deltagandeskatter!$B$2*('Med bidragsinkomst'!$B76+'Med bidragsinkomst'!G$3-GRUNDAVDRAG('Med bidragsinkomst'!$B76+'Med bidragsinkomst'!G$3))-JSA($B76,GRUNDAVDRAG($B76+G$3),Deltagandeskatter!$B$2)+MAX(0,0.2*($B76+G$3-Deltagandeskatter!$B$11))+MAX(0,0.05*('Med bidragsinkomst'!$B76+'Med bidragsinkomst'!G$3-Deltagandeskatter!$B$12)) -> 48457 | H76: =Deltagandeskatter!$B$2*('Med bidragsinkomst'!$B76+'Med bidragsinkomst'!H$3-GRUNDAVDRAG('Med bidragsinkomst'!$B76+'Med bidragsinkomst'!H$3))-JSA($B76,GRUNDAVDRAG($B76+H$3),Deltagandeskatter!$B$2)+MAX(0,0.2*($B76+H$3-Deltagandeskatter!$B$11))+MAX(0,0.05*('Med bidragsinkomst'!$B76+'Med bidragsinkomst'!H$3-Deltagandeskatter!$B$12)) -> 54881 | I76: =Deltagandeskatter!$B$2*('Med bidragsinkomst'!$B76+'Med bidragsinkomst'!I$3-GRUNDAVDRAG('Med bidragsinkomst'!$B76+'Med bidragsinkomst'!I$3))-JSA($B76,GRUNDAVDRAG($B76+I$3),Deltagandeskatter!$B$2)+MAX(0,0.2*($B76+I$3-Deltagandeskatter!$B$11))+MAX(0,0.05*('Med bidragsinkomst'!$B76+'Med bidragsinkomst'!I$3-Deltagandeskatter!$B$12)) -> 70941 | K76: =JSA($B76,GRUNDAVDRAG($B76+K$3),Deltagandeskatter!$B$2) -> 8556 | L76: =JSA($B76,GRUNDAVDRAG($B76+L$3),Deltagandeskatter!$B$2) -> 5344 | M76: =JSA($B76,GRUNDAVDRAG($B76+M$3),Deltagandeskatter!$B$2) -> 6372 | N76: =JSA($B76,GRUNDAVDRAG($B76+N$3),Deltagandeskatter!$B$2) -> 7335 | O76: =JSA($B76,GRUNDAVDRAG($B76+O$3),Deltagandeskatter!$B$2) -> 7978 | P76: =JSA($B76,GRUNDAVDRAG($B76+P$3),Deltagandeskatter!$B$2) -> 9584 | R76: 24500 | S76: 34500 | T76: 31300 | U76: 28300 | V76: 26300 | W76: 21300 | Y76: 6701 | Z76: 13157 | AA76: 16369 | AB76: 17783 | AC76: 17461 | AD76: 15855 | AF76: 21% | AG76: 21% | AH76: 21% | AI76: 21% | AJ76: 21% | AK76: 21%
A77: 6083 | B77: 73000 | D77: =Deltagandeskatter!$B$2*('Med bidragsinkomst'!$B77+'Med bidragsinkomst'!D$3-GRUNDAVDRAG('Med bidragsinkomst'!$B77+'Med bidragsinkomst'!D$3))-JSA($B77,GRUNDAVDRAG($B77+D$3),Deltagandeskatter!$B$2)+MAX(0,0.2*($B77+D$3-Deltagandeskatter!$B$11))+MAX(0,0.05*('Med bidragsinkomst'!$B77+'Med bidragsinkomst'!D$3-Deltagandeskatter!$B$12)) -> 6916 | E77: =Deltagandeskatter!$B$2*('Med bidragsinkomst'!$B77+'Med bidragsinkomst'!E$3-GRUNDAVDRAG('Med bidragsinkomst'!$B77+'Med bidragsinkomst'!E$3))-JSA($B77,GRUNDAVDRAG($B77+E$3),Deltagandeskatter!$B$2)+MAX(0,0.2*($B77+E$3-Deltagandeskatter!$B$11))+MAX(0,0.05*('Med bidragsinkomst'!$B77+'Med bidragsinkomst'!E$3-Deltagandeskatter!$B$12)) -> 22976 | F77: =Deltagandeskatter!$B$2*('Med bidragsinkomst'!$B77+'Med bidragsinkomst'!F$3-GRUNDAVDRAG('Med bidragsinkomst'!$B77+'Med bidragsinkomst'!F$3))-JSA($B77,GRUNDAVDRAG($B77+F$3),Deltagandeskatter!$B$2)+MAX(0,0.2*($B77+F$3-Deltagandeskatter!$B$11))+MAX(0,0.05*('Med bidragsinkomst'!$B77+'Med bidragsinkomst'!F$3-Deltagandeskatter!$B$12)) -> 39036 | G77: =Deltagandeskatter!$B$2*('Med bidragsinkomst'!$B77+'Med bidragsinkomst'!G$3-GRUNDAVDRAG('Med bidragsinkomst'!$B77+'Med bidragsinkomst'!G$3))-JSA($B77,GRUNDAVDRAG($B77+G$3),Deltagandeskatter!$B$2)+MAX(0,0.2*($B77+G$3-Deltagandeskatter!$B$11))+MAX(0,0.05*('Med bidragsinkomst'!$B77+'Med bidragsinkomst'!G$3-Deltagandeskatter!$B$12)) -> 48672 | H77: =Deltagandeskatter!$B$2*('Med bidragsinkomst'!$B77+'Med bidragsinkomst'!H$3-GRUNDAVDRAG('Med bidragsinkomst'!$B77+'Med bidragsinkomst'!H$3))-JSA($B77,GRUNDAVDRAG($B77+H$3),Deltagandeskatter!$B$2)+MAX(0,0.2*($B77+H$3-Deltagandeskatter!$B$11))+MAX(0,0.05*('Med bidragsinkomst'!$B77+'Med bidragsinkomst'!H$3-Deltagandeskatter!$B$12)) -> 55096 | I77: =Deltagandeskatter!$B$2*('Med bidragsinkomst'!$B77+'Med bidragsinkomst'!I$3-GRUNDAVDRAG('Med bidragsinkomst'!$B77+'Med bidragsinkomst'!I$3))-JSA($B77,GRUNDAVDRAG($B77+I$3),Deltagandeskatter!$B$2)+MAX(0,0.2*($B77+I$3-Deltagandeskatter!$B$11))+MAX(0,0.05*('Med bidragsinkomst'!$B77+'Med bidragsinkomst'!I$3-Deltagandeskatter!$B$12)) -> 71156 | K77: =JSA($B77,GRUNDAVDRAG($B77+K$3),Deltagandeskatter!$B$2) -> 8598 | L77: =JSA($B77,GRUNDAVDRAG($B77+L$3),Deltagandeskatter!$B$2) -> 5450 | M77: =JSA($B77,GRUNDAVDRAG($B77+M$3),Deltagandeskatter!$B$2) -> 6510 | N77: =JSA($B77,GRUNDAVDRAG($B77+N$3),Deltagandeskatter!$B$2) -> 7474 | O77: =JSA($B77,GRUNDAVDRAG($B77+O$3),Deltagandeskatter!$B$2) -> 8116 | P77: =JSA($B77,GRUNDAVDRAG($B77+P$3),Deltagandeskatter!$B$2) -> 9722 | R77: 24700 | S77: 34500 | T77: 31200 | U77: 28200 | V77: 26200 | W77: 21200 | Y77: 6916 | Z77: 13372 | AA77: 16584 | AB77: 17997 | AC77: 17676 | AD77: 16070 | AF77: 21% | AG77: 22% | AH77: 22% | AI77: 21% | AJ77: 22% | AK77: 22%
A78: 6167 | B78: 74000 | D78: =Deltagandeskatter!$B$2*('Med bidragsinkomst'!$B78+'Med bidragsinkomst'!D$3-GRUNDAVDRAG('Med bidragsinkomst'!$B78+'Med bidragsinkomst'!D$3))-JSA($B78,GRUNDAVDRAG($B78+D$3),Deltagandeskatter!$B$2)+MAX(0,0.2*($B78+D$3-Deltagandeskatter!$B$11))+MAX(0,0.05*('Med bidragsinkomst'!$B78+'Med bidragsinkomst'!D$3-Deltagandeskatter!$B$12)) -> 7130 | E78: =Deltagandeskatter!$B$2*('Med bidragsinkomst'!$B78+'Med bidragsinkomst'!E$3-GRUNDAVDRAG('Med bidragsinkomst'!$B78+'Med bidragsinkomst'!E$3))-JSA($B78,GRUNDAVDRAG($B78+E$3),Deltagandeskatter!$B$2)+MAX(0,0.2*($B78+E$3-Deltagandeskatter!$B$11))+MAX(0,0.05*('Med bidragsinkomst'!$B78+'Med bidragsinkomst'!E$3-Deltagandeskatter!$B$12)) -> 23190 | F78: =Deltagandeskatter!$B$2*('Med bidragsinkomst'!$B78+'Med bidragsinkomst'!F$3-GRUNDAVDRAG('Med bidragsinkomst'!$B78+'Med bidragsinkomst'!F$3))-JSA($B78,GRUNDAVDRAG($B78+F$3),Deltagandeskatter!$B$2)+MAX(0,0.2*($B78+F$3-Deltagandeskatter!$B$11))+MAX(0,0.05*('Med bidragsinkomst'!$B78+'Med bidragsinkomst'!F$3-Deltagandeskatter!$B$12)) -> 39250 | G78: =Deltagandeskatter!$B$2*('Med bidragsinkomst'!$B78+'Med bidragsinkomst'!G$3-GRUNDAVDRAG('Med bidragsinkomst'!$B78+'Med bidragsinkomst'!G$3))-JSA($B78,GRUNDAVDRAG($B78+G$3),Deltagandeskatter!$B$2)+MAX(0,0.2*($B78+G$3-Deltagandeskatter!$B$11))+MAX(0,0.05*('Med bidragsinkomst'!$B78+'Med bidragsinkomst'!G$3-Deltagandeskatter!$B$12)) -> 48886 | H78: =Deltagandeskatter!$B$2*('Med bidragsinkomst'!$B78+'Med bidragsinkomst'!H$3-GRUNDAVDRAG('Med bidragsinkomst'!$B78+'Med bidragsinkomst'!H$3))-JSA($B78,GRUNDAVDRAG($B78+H$3),Deltagandeskatter!$B$2)+MAX(0,0.2*($B78+H$3-Deltagandeskatter!$B$11))+MAX(0,0.05*('Med bidragsinkomst'!$B78+'Med bidragsinkomst'!H$3-Deltagandeskatter!$B$12)) -> 55310 | I78: =Deltagandeskatter!$B$2*('Med bidragsinkomst'!$B78+'Med bidragsinkomst'!I$3-GRUNDAVDRAG('Med bidragsinkomst'!$B78+'Med bidragsinkomst'!I$3))-JSA($B78,GRUNDAVDRAG($B78+I$3),Deltagandeskatter!$B$2)+MAX(0,0.2*($B78+I$3-Deltagandeskatter!$B$11))+MAX(0,0.05*('Med bidragsinkomst'!$B78+'Med bidragsinkomst'!I$3-Deltagandeskatter!$B$12)) -> 71370 | K78: =JSA($B78,GRUNDAVDRAG($B78+K$3),Deltagandeskatter!$B$2) -> 8641 | L78: =JSA($B78,GRUNDAVDRAG($B78+L$3),Deltagandeskatter!$B$2) -> 5557 | M78: =JSA($B78,GRUNDAVDRAG($B78+M$3),Deltagandeskatter!$B$2) -> 6649 | N78: =JSA($B78,GRUNDAVDRAG($B78+N$3),Deltagandeskatter!$B$2) -> 7613 | O78: =JSA($B78,GRUNDAVDRAG($B78+O$3),Deltagandeskatter!$B$2) -> 8255 | P78: =JSA($B78,GRUNDAVDRAG($B78+P$3),Deltagandeskatter!$B$2) -> 9861 | R78: 24900 | S78: 34500 | T78: 31100 | U78: 28100 | V78: 26100 | W78: 21100 | Y78: 7130 | Z78: 13587 | AA78: 16799 | AB78: 18211 | AC78: 17891 | AD78: 16285 | AF78: 21% | AG78: 21% | AH78: 21% | AI78: 21% | AJ78: 21% | AK78: 21%
A79: 6250 | B79: 75000 | D79: =Deltagandeskatter!$B$2*('Med bidragsinkomst'!$B79+'Med bidragsinkomst'!D$3-GRUNDAVDRAG('Med bidragsinkomst'!$B79+'Med bidragsinkomst'!D$3))-JSA($B79,GRUNDAVDRAG($B79+D$3),Deltagandeskatter!$B$2)+MAX(0,0.2*($B79+D$3-Deltagandeskatter!$B$11))+MAX(0,0.05*('Med bidragsinkomst'!$B79+'Med bidragsinkomst'!D$3-Deltagandeskatter!$B$12)) -> 7345 | E79: =Deltagandeskatter!$B$2*('Med bidragsinkomst'!$B79+'Med bidragsinkomst'!E$3-GRUNDAVDRAG('Med bidragsinkomst'!$B79+'Med bidragsinkomst'!E$3))-JSA($B79,GRUNDAVDRAG($B79+E$3),Deltagandeskatter!$B$2)+MAX(0,0.2*($B79+E$3-Deltagandeskatter!$B$11))+MAX(0,0.05*('Med bidragsinkomst'!$B79+'Med bidragsinkomst'!E$3-Deltagandeskatter!$B$12)) -> 23405 | F79: =Deltagandeskatter!$B$2*('Med bidragsinkomst'!$B79+'Med bidragsinkomst'!F$3-GRUNDAVDRAG('Med bidragsinkomst'!$B79+'Med bidragsinkomst'!F$3))-JSA($B79,GRUNDAVDRAG($B79+F$3),Deltagandeskatter!$B$2)+MAX(0,0.2*($B79+F$3-Deltagandeskatter!$B$11))+MAX(0,0.05*('Med bidragsinkomst'!$B79+'Med bidragsinkomst'!F$3-Deltagandeskatter!$B$12)) -> 39465 | G79: =Deltagandeskatter!$B$2*('Med bidragsinkomst'!$B79+'Med bidragsinkomst'!G$3-GRUNDAVDRAG('Med bidragsinkomst'!$B79+'Med bidragsinkomst'!G$3))-JSA($B79,GRUNDAVDRAG($B79+G$3),Deltagandeskatter!$B$2)+MAX(0,0.2*($B79+G$3-Deltagandeskatter!$B$11))+MAX(0,0.05*('Med bidragsinkomst'!$B79+'Med bidragsinkomst'!G$3-Deltagandeskatter!$B$12)) -> 49100 | H79: =Deltagandeskatter!$B$2*('Med bidragsinkomst'!$B79+'Med bidragsinkomst'!H$3-GRUNDAVDRAG('Med bidragsinkomst'!$B79+'Med bidragsinkomst'!H$3))-JSA($B79,GRUNDAVDRAG($B79+H$3),Deltagandeskatter!$B$2)+MAX(0,0.2*($B79+H$3-Deltagandeskatter!$B$11))+MAX(0,0.05*('Med bidragsinkomst'!$B79+'Med bidragsinkomst'!H$3-Deltagandeskatter!$B$12)) -> 55525 | I79: =Deltagandeskatter!$B$2*('Med bidragsinkomst'!$B79+'Med bidragsinkomst'!I$3-GRUNDAVDRAG('Med bidragsinkomst'!$B79+'Med bidragsinkomst'!I$3))-JSA($B79,GRUNDAVDRAG($B79+I$3),Deltagandeskatter!$B$2)+MAX(0,0.2*($B79+I$3-Deltagandeskatter!$B$11))+MAX(0,0.05*('Med bidragsinkomst'!$B79+'Med bidragsinkomst'!I$3-Deltagandeskatter!$B$12)) -> 71585 | K79: =JSA($B79,GRUNDAVDRAG($B79+K$3),Deltagandeskatter!$B$2) -> 8683 | L79: =JSA($B79,GRUNDAVDRAG($B79+L$3),Deltagandeskatter!$B$2) -> 5664 | M79: =JSA($B79,GRUNDAVDRAG($B79+M$3),Deltagandeskatter!$B$2) -> 6788 | N79: =JSA($B79,GRUNDAVDRAG($B79+N$3),Deltagandeskatter!$B$2) -> 7752 | O79: =JSA($B79,GRUNDAVDRAG($B79+O$3),Deltagandeskatter!$B$2) -> 8394 | P79: =JSA($B79,GRUNDAVDRAG($B79+P$3),Deltagandeskatter!$B$2) -> 10000 | R79: 25100 | S79: 34500 | T79: 31000 | U79: 28000 | V79: 26000 | W79: 21000 | Y79: 7345 | Z79: 13801 | AA79: 17013 | AB79: 18426 | AC79: 18105 | AD79: 16499 | AF79: 21% | AG79: 21% | AH79: 21% | AI79: 21% | AJ79: 21% | AK79: 21%
A80: 6333 | B80: 76000 | D80: =Deltagandeskatter!$B$2*('Med bidragsinkomst'!$B80+'Med bidragsinkomst'!D$3-GRUNDAVDRAG('Med bidragsinkomst'!$B80+'Med bidragsinkomst'!D$3))-JSA($B80,GRUNDAVDRAG($B80+D$3),Deltagandeskatter!$B$2)+MAX(0,0.2*($B80+D$3-Deltagandeskatter!$B$11))+MAX(0,0.05*('Med bidragsinkomst'!$B80+'Med bidragsinkomst'!D$3-Deltagandeskatter!$B$12)) -> 7560 | E80: =Deltagandeskatter!$B$2*('Med bidragsinkomst'!$B80+'Med bidragsinkomst'!E$3-GRUNDAVDRAG('Med bidragsinkomst'!$B80+'Med bidragsinkomst'!E$3))-JSA($B80,GRUNDAVDRAG($B80+E$3),Deltagandeskatter!$B$2)+MAX(0,0.2*($B80+E$3-Deltagandeskatter!$B$11))+MAX(0,0.05*('Med bidragsinkomst'!$B80+'Med bidragsinkomst'!E$3-Deltagandeskatter!$B$12)) -> 23620 | F80: =Deltagandeskatter!$B$2*('Med bidragsinkomst'!$B80+'Med bidragsinkomst'!F$3-GRUNDAVDRAG('Med bidragsinkomst'!$B80+'Med bidragsinkomst'!F$3))-JSA($B80,GRUNDAVDRAG($B80+F$3),Deltagandeskatter!$B$2)+MAX(0,0.2*($B80+F$3-Deltagandeskatter!$B$11))+MAX(0,0.05*('Med bidragsinkomst'!$B80+'Med bidragsinkomst'!F$3-Deltagandeskatter!$B$12)) -> 39679 | G80: =Deltagandeskatter!$B$2*('Med bidragsinkomst'!$B80+'Med bidragsinkomst'!G$3-GRUNDAVDRAG('Med bidragsinkomst'!$B80+'Med bidragsinkomst'!G$3))-JSA($B80,GRUNDAVDRAG($B80+G$3),Deltagandeskatter!$B$2)+MAX(0,0.2*($B80+G$3-Deltagandeskatter!$B$11))+MAX(0,0.05*('Med bidragsinkomst'!$B80+'Med bidragsinkomst'!G$3-Deltagandeskatter!$B$12)) -> 49316 | H80: =Deltagandeskatter!$B$2*('Med bidragsinkomst'!$B80+'Med bidragsinkomst'!H$3-GRUNDAVDRAG('Med bidragsinkomst'!$B80+'Med bidragsinkomst'!H$3))-JSA($B80,GRUNDAVDRAG($B80+H$3),Deltagandeskatter!$B$2)+MAX(0,0.2*($B80+H$3-Deltagandeskatter!$B$11))+MAX(0,0.05*('Med bidragsinkomst'!$B80+'Med bidragsinkomst'!H$3-Deltagandeskatter!$B$12)) -> 55739 | I80: =Deltagandeskatter!$B$2*('Med bidragsinkomst'!$B80+'Med bidragsinkomst'!I$3-GRUNDAVDRAG('Med bidragsinkomst'!$B80+'Med bidragsinkomst'!I$3))-JSA($B80,GRUNDAVDRAG($B80+I$3),Deltagandeskatter!$B$2)+MAX(0,0.2*($B80+I$3-Deltagandeskatter!$B$11))+MAX(0,0.05*('Med bidragsinkomst'!$B80+'Med bidragsinkomst'!I$3-Deltagandeskatter!$B$12)) -> 71799 | K80: =JSA($B80,GRUNDAVDRAG($B80+K$3),Deltagandeskatter!$B$2) -> 8725 | L80: =JSA($B80,GRUNDAVDRAG($B80+L$3),Deltagandeskatter!$B$2) -> 5770 | M80: =JSA($B80,GRUNDAVDRAG($B80+M$3),Deltagandeskatter!$B$2) -> 6927 | N80: =JSA($B80,GRUNDAVDRAG($B80+N$3),Deltagandeskatter!$B$2) -> 7890 | O80: =JSA($B80,GRUNDAVDRAG($B80+O$3),Deltagandeskatter!$B$2) -> 8533 | P80: =JSA($B80,GRUNDAVDRAG($B80+P$3),Deltagandeskatter!$B$2) -> 10139 | R80: 25300 | S80: 34500 | T80: 30900 | U80: 27900 | V80: 25900 | W80: 20900 | Y80: 7560 | Z80: 14016 | AA80: 17227 | AB80: 18641 | AC80: 18319 | AD80: 16713 | AF80: 21% | AG80: 22% | AH80: 21% | AI80: 22% | AJ80: 21% | AK80: 21%
A81: 6417 | B81: 77000 | D81: =Deltagandeskatter!$B$2*('Med bidragsinkomst'!$B81+'Med bidragsinkomst'!D$3-GRUNDAVDRAG('Med bidragsinkomst'!$B81+'Med bidragsinkomst'!D$3))-JSA($B81,GRUNDAVDRAG($B81+D$3),Deltagandeskatter!$B$2)+MAX(0,0.2*($B81+D$3-Deltagandeskatter!$B$11))+MAX(0,0.05*('Med bidragsinkomst'!$B81+'Med bidragsinkomst'!D$3-Deltagandeskatter!$B$12)) -> 7774 | E81: =Deltagandeskatter!$B$2*('Med bidragsinkomst'!$B81+'Med bidragsinkomst'!E$3-GRUNDAVDRAG('Med bidragsinkomst'!$B81+'Med bidragsinkomst'!E$3))-JSA($B81,GRUNDAVDRAG($B81+E$3),Deltagandeskatter!$B$2)+MAX(0,0.2*($B81+E$3-Deltagandeskatter!$B$11))+MAX(0,0.05*('Med bidragsinkomst'!$B81+'Med bidragsinkomst'!E$3-Deltagandeskatter!$B$12)) -> 23834 | F81: =Deltagandeskatter!$B$2*('Med bidragsinkomst'!$B81+'Med bidragsinkomst'!F$3-GRUNDAVDRAG('Med bidragsinkomst'!$B81+'Med bidragsinkomst'!F$3))-JSA($B81,GRUNDAVDRAG($B81+F$3),Deltagandeskatter!$B$2)+MAX(0,0.2*($B81+F$3-Deltagandeskatter!$B$11))+MAX(0,0.05*('Med bidragsinkomst'!$B81+'Med bidragsinkomst'!F$3-Deltagandeskatter!$B$12)) -> 39894 | G81: =Deltagandeskatter!$B$2*('Med bidragsinkomst'!$B81+'Med bidragsinkomst'!G$3-GRUNDAVDRAG('Med bidragsinkomst'!$B81+'Med bidragsinkomst'!G$3))-JSA($B81,GRUNDAVDRAG($B81+G$3),Deltagandeskatter!$B$2)+MAX(0,0.2*($B81+G$3-Deltagandeskatter!$B$11))+MAX(0,0.05*('Med bidragsinkomst'!$B81+'Med bidragsinkomst'!G$3-Deltagandeskatter!$B$12)) -> 49530 | H81: =Deltagandeskatter!$B$2*('Med bidragsinkomst'!$B81+'Med bidragsinkomst'!H$3-GRUNDAVDRAG('Med bidragsinkomst'!$B81+'Med bidragsinkomst'!H$3))-JSA($B81,GRUNDAVDRAG($B81+H$3),Deltagandeskatter!$B$2)+MAX(0,0.2*($B81+H$3-Deltagandeskatter!$B$11))+MAX(0,0.05*('Med bidragsinkomst'!$B81+'Med bidragsinkomst'!H$3-Deltagandeskatter!$B$12)) -> 55954 | I81: =Deltagandeskatter!$B$2*('Med bidragsinkomst'!$B81+'Med bidragsinkomst'!I$3-GRUNDAVDRAG('Med bidragsinkomst'!$B81+'Med bidragsinkomst'!I$3))-JSA($B81,GRUNDAVDRAG($B81+I$3),Deltagandeskatter!$B$2)+MAX(0,0.2*($B81+I$3-Deltagandeskatter!$B$11))+MAX(0,0.05*('Med bidragsinkomst'!$B81+'Med bidragsinkomst'!I$3-Deltagandeskatter!$B$12)) -> 72014 | K81: =JSA($B81,GRUNDAVDRAG($B81+K$3),Deltagandeskatter!$B$2) -> 8768 | L81: =JSA($B81,GRUNDAVDRAG($B81+L$3),Deltagandeskatter!$B$2) -> 5877 | M81: =JSA($B81,GRUNDAVDRAG($B81+M$3),Deltagandeskatter!$B$2) -> 7065 | N81: =JSA($B81,GRUNDAVDRAG($B81+N$3),Deltagandeskatter!$B$2) -> 8029 | O81: =JSA($B81,GRUNDAVDRAG($B81+O$3),Deltagandeskatter!$B$2) -> 8671 | P81: =JSA($B81,GRUNDAVDRAG($B81+P$3),Deltagandeskatter!$B$2) -> 10277 | R81: 25500 | S81: 34500 | T81: 30800 | U81: 27800 | V81: 25800 | W81: 20800 | Y81: 7774 | Z81: 14230 | AA81: 17443 | AB81: 18855 | AC81: 18535 | AD81: 16929 | AF81: 21% | AG81: 21% | AH81: 22% | AI81: 21% | AJ81: 22% | AK81: 22%
A82: 6500 | B82: 78000 | D82: =Deltagandeskatter!$B$2*('Med bidragsinkomst'!$B82+'Med bidragsinkomst'!D$3-GRUNDAVDRAG('Med bidragsinkomst'!$B82+'Med bidragsinkomst'!D$3))-JSA($B82,GRUNDAVDRAG($B82+D$3),Deltagandeskatter!$B$2)+MAX(0,0.2*($B82+D$3-Deltagandeskatter!$B$11))+MAX(0,0.05*('Med bidragsinkomst'!$B82+'Med bidragsinkomst'!D$3-Deltagandeskatter!$B$12)) -> 7989 | E82: =Deltagandeskatter!$B$2*('Med bidragsinkomst'!$B82+'Med bidragsinkomst'!E$3-GRUNDAVDRAG('Med bidragsinkomst'!$B82+'Med bidragsinkomst'!E$3))-JSA($B82,GRUNDAVDRAG($B82+E$3),Deltagandeskatter!$B$2)+MAX(0,0.2*($B82+E$3-Deltagandeskatter!$B$11))+MAX(0,0.05*('Med bidragsinkomst'!$B82+'Med bidragsinkomst'!E$3-Deltagandeskatter!$B$12)) -> 24048 | F82: =Deltagandeskatter!$B$2*('Med bidragsinkomst'!$B82+'Med bidragsinkomst'!F$3-GRUNDAVDRAG('Med bidragsinkomst'!$B82+'Med bidragsinkomst'!F$3))-JSA($B82,GRUNDAVDRAG($B82+F$3),Deltagandeskatter!$B$2)+MAX(0,0.2*($B82+F$3-Deltagandeskatter!$B$11))+MAX(0,0.05*('Med bidragsinkomst'!$B82+'Med bidragsinkomst'!F$3-Deltagandeskatter!$B$12)) -> 40109 | G82: =Deltagandeskatter!$B$2*('Med bidragsinkomst'!$B82+'Med bidragsinkomst'!G$3-GRUNDAVDRAG('Med bidragsinkomst'!$B82+'Med bidragsinkomst'!G$3))-JSA($B82,GRUNDAVDRAG($B82+G$3),Deltagandeskatter!$B$2)+MAX(0,0.2*($B82+G$3-Deltagandeskatter!$B$11))+MAX(0,0.05*('Med bidragsinkomst'!$B82+'Med bidragsinkomst'!G$3-Deltagandeskatter!$B$12)) -> 49744 | H82: =Deltagandeskatter!$B$2*('Med bidragsinkomst'!$B82+'Med bidragsinkomst'!H$3-GRUNDAVDRAG('Med bidragsinkomst'!$B82+'Med bidragsinkomst'!H$3))-JSA($B82,GRUNDAVDRAG($B82+H$3),Deltagandeskatter!$B$2)+MAX(0,0.2*($B82+H$3-Deltagandeskatter!$B$11))+MAX(0,0.05*('Med bidragsinkomst'!$B82+'Med bidragsinkomst'!H$3-Deltagandeskatter!$B$12)) -> 56169 | I82: =Deltagandeskatter!$B$2*('Med bidragsinkomst'!$B82+'Med bidragsinkomst'!I$3-GRUNDAVDRAG('Med bidragsinkomst'!$B82+'Med bidragsinkomst'!I$3))-JSA($B82,GRUNDAVDRAG($B82+I$3),Deltagandeskatter!$B$2)+MAX(0,0.2*($B82+I$3-Deltagandeskatter!$B$11))+MAX(0,0.05*('Med bidragsinkomst'!$B82+'Med bidragsinkomst'!I$3-Deltagandeskatter!$B$12)) -> 72229 | K82: =JSA($B82,GRUNDAVDRAG($B82+K$3),Deltagandeskatter!$B$2) -> 8810 | L82: =JSA($B82,GRUNDAVDRAG($B82+L$3),Deltagandeskatter!$B$2) -> 5984 | M82: =JSA($B82,GRUNDAVDRAG($B82+M$3),Deltagandeskatter!$B$2) -> 7204 | N82: =JSA($B82,GRUNDAVDRAG($B82+N$3),Deltagandeskatter!$B$2) -> 8168 | O82: =JSA($B82,GRUNDAVDRAG($B82+O$3),Deltagandeskatter!$B$2) -> 8810 | P82: =JSA($B82,GRUNDAVDRAG($B82+P$3),Deltagandeskatter!$B$2) -> 10416 | R82: 25700 | S82: 34500 | T82: 30700 | U82: 27700 | V82: 25700 | W82: 20700 | Y82: 7989 | Z82: 14444 | AA82: 17657 | AB82: 19070 | AC82: 18749 | AD82: 17143 | AF82: 21% | AG82: 21% | AH82: 21% | AI82: 21% | AJ82: 21% | AK82: 21%
A83: 6583 | B83: 79000 | D83: =Deltagandeskatter!$B$2*('Med bidragsinkomst'!$B83+'Med bidragsinkomst'!D$3-GRUNDAVDRAG('Med bidragsinkomst'!$B83+'Med bidragsinkomst'!D$3))-JSA($B83,GRUNDAVDRAG($B83+D$3),Deltagandeskatter!$B$2)+MAX(0,0.2*($B83+D$3-Deltagandeskatter!$B$11))+MAX(0,0.05*('Med bidragsinkomst'!$B83+'Med bidragsinkomst'!D$3-Deltagandeskatter!$B$12)) -> 8203 | E83: =Deltagandeskatter!$B$2*('Med bidragsinkomst'!$B83+'Med bidragsinkomst'!E$3-GRUNDAVDRAG('Med bidragsinkomst'!$B83+'Med bidragsinkomst'!E$3))-JSA($B83,GRUNDAVDRAG($B83+E$3),Deltagandeskatter!$B$2)+MAX(0,0.2*($B83+E$3-Deltagandeskatter!$B$11))+MAX(0,0.05*('Med bidragsinkomst'!$B83+'Med bidragsinkomst'!E$3-Deltagandeskatter!$B$12)) -> 24263 | F83: =Deltagandeskatter!$B$2*('Med bidragsinkomst'!$B83+'Med bidragsinkomst'!F$3-GRUNDAVDRAG('Med bidragsinkomst'!$B83+'Med bidragsinkomst'!F$3))-JSA($B83,GRUNDAVDRAG($B83+F$3),Deltagandeskatter!$B$2)+MAX(0,0.2*($B83+F$3-Deltagandeskatter!$B$11))+MAX(0,0.05*('Med bidragsinkomst'!$B83+'Med bidragsinkomst'!F$3-Deltagandeskatter!$B$12)) -> 40323 | G83: =Deltagandeskatter!$B$2*('Med bidragsinkomst'!$B83+'Med bidragsinkomst'!G$3-GRUNDAVDRAG('Med bidragsinkomst'!$B83+'Med bidragsinkomst'!G$3))-JSA($B83,GRUNDAVDRAG($B83+G$3),Deltagandeskatter!$B$2)+MAX(0,0.2*($B83+G$3-Deltagandeskatter!$B$11))+MAX(0,0.05*('Med bidragsinkomst'!$B83+'Med bidragsinkomst'!G$3-Deltagandeskatter!$B$12)) -> 49959 | H83: =Deltagandeskatter!$B$2*('Med bidragsinkomst'!$B83+'Med bidragsinkomst'!H$3-GRUNDAVDRAG('Med bidragsinkomst'!$B83+'Med bidragsinkomst'!H$3))-JSA($B83,GRUNDAVDRAG($B83+H$3),Deltagandeskatter!$B$2)+MAX(0,0.2*($B83+H$3-Deltagandeskatter!$B$11))+MAX(0,0.05*('Med bidragsinkomst'!$B83+'Med bidragsinkomst'!H$3-Deltagandeskatter!$B$12)) -> 56383 | I83: =Deltagandeskatter!$B$2*('Med bidragsinkomst'!$B83+'Med bidragsinkomst'!I$3-GRUNDAVDRAG('Med bidragsinkomst'!$B83+'Med bidragsinkomst'!I$3))-JSA($B83,GRUNDAVDRAG($B83+I$3),Deltagandeskatter!$B$2)+MAX(0,0.2*($B83+I$3-Deltagandeskatter!$B$11))+MAX(0,0.05*('Med bidragsinkomst'!$B83+'Med bidragsinkomst'!I$3-Deltagandeskatter!$B$12)) -> 72443 | K83: =JSA($B83,GRUNDAVDRAG($B83+K$3),Deltagandeskatter!$B$2) -> 8853 | L83: =JSA($B83,GRUNDAVDRAG($B83+L$3),Deltagandeskatter!$B$2) -> 6090 | M83: =JSA($B83,GRUNDAVDRAG($B83+M$3),Deltagandeskatter!$B$2) -> 7343 | N83: =JSA($B83,GRUNDAVDRAG($B83+N$3),Deltagandeskatter!$B$2) -> 8307 | O83: =JSA($B83,GRUNDAVDRAG($B83+O$3),Deltagandeskatter!$B$2) -> 8949 | P83: =JSA($B83,GRUNDAVDRAG($B83+P$3),Deltagandeskatter!$B$2) -> 10555 | R83: 25900 | S83: 34500 | T83: 30600 | U83: 27600 | V83: 25600 | W83: 20600 | Y83: 8203 | Z83: 14660 | AA83: 17871 | AB83: 19284 | AC83: 18963 | AD83: 17357 | AF83: 21% | AG83: 22% | AH83: 21% | AI83: 21% | AJ83: 21% | AK83: 21%
A84: 6667 | B84: 80000 | D84: =Deltagandeskatter!$B$2*('Med bidragsinkomst'!$B84+'Med bidragsinkomst'!D$3-GRUNDAVDRAG('Med bidragsinkomst'!$B84+'Med bidragsinkomst'!D$3))-JSA($B84,GRUNDAVDRAG($B84+D$3),Deltagandeskatter!$B$2)+MAX(0,0.2*($B84+D$3-Deltagandeskatter!$B$11))+MAX(0,0.05*('Med bidragsinkomst'!$B84+'Med bidragsinkomst'!D$3-Deltagandeskatter!$B$12)) -> 8418 | E84: =Deltagandeskatter!$B$2*('Med bidragsinkomst'!$B84+'Med bidragsinkomst'!E$3-GRUNDAVDRAG('Med bidragsinkomst'!$B84+'Med bidragsinkomst'!E$3))-JSA($B84,GRUNDAVDRAG($B84+E$3),Deltagandeskatter!$B$2)+MAX(0,0.2*($B84+E$3-Deltagandeskatter!$B$11))+MAX(0,0.05*('Med bidragsinkomst'!$B84+'Med bidragsinkomst'!E$3-Deltagandeskatter!$B$12)) -> 24478 | F84: =Deltagandeskatter!$B$2*('Med bidragsinkomst'!$B84+'Med bidragsinkomst'!F$3-GRUNDAVDRAG('Med bidragsinkomst'!$B84+'Med bidragsinkomst'!F$3))-JSA($B84,GRUNDAVDRAG($B84+F$3),Deltagandeskatter!$B$2)+MAX(0,0.2*($B84+F$3-Deltagandeskatter!$B$11))+MAX(0,0.05*('Med bidragsinkomst'!$B84+'Med bidragsinkomst'!F$3-Deltagandeskatter!$B$12)) -> 40537 | G84: =Deltagandeskatter!$B$2*('Med bidragsinkomst'!$B84+'Med bidragsinkomst'!G$3-GRUNDAVDRAG('Med bidragsinkomst'!$B84+'Med bidragsinkomst'!G$3))-JSA($B84,GRUNDAVDRAG($B84+G$3),Deltagandeskatter!$B$2)+MAX(0,0.2*($B84+G$3-Deltagandeskatter!$B$11))+MAX(0,0.05*('Med bidragsinkomst'!$B84+'Med bidragsinkomst'!G$3-Deltagandeskatter!$B$12)) -> 50174 | H84: =Deltagandeskatter!$B$2*('Med bidragsinkomst'!$B84+'Med bidragsinkomst'!H$3-GRUNDAVDRAG('Med bidragsinkomst'!$B84+'Med bidragsinkomst'!H$3))-JSA($B84,GRUNDAVDRAG($B84+H$3),Deltagandeskatter!$B$2)+MAX(0,0.2*($B84+H$3-Deltagandeskatter!$B$11))+MAX(0,0.05*('Med bidragsinkomst'!$B84+'Med bidragsinkomst'!H$3-Deltagandeskatter!$B$12)) -> 56597 | I84: =Deltagandeskatter!$B$2*('Med bidragsinkomst'!$B84+'Med bidragsinkomst'!I$3-GRUNDAVDRAG('Med bidragsinkomst'!$B84+'Med bidragsinkomst'!I$3))-JSA($B84,GRUNDAVDRAG($B84+I$3),Deltagandeskatter!$B$2)+MAX(0,0.2*($B84+I$3-Deltagandeskatter!$B$11))+MAX(0,0.05*('Med bidragsinkomst'!$B84+'Med bidragsinkomst'!I$3-Deltagandeskatter!$B$12)) -> 72657 | K84: =JSA($B84,GRUNDAVDRAG($B84+K$3),Deltagandeskatter!$B$2) -> 8895 | L84: =JSA($B84,GRUNDAVDRAG($B84+L$3),Deltagandeskatter!$B$2) -> 6197 | M84: =JSA($B84,GRUNDAVDRAG($B84+M$3),Deltagandeskatter!$B$2) -> 7482 | N84: =JSA($B84,GRUNDAVDRAG($B84+N$3),Deltagandeskatter!$B$2) -> 8445 | O84: =JSA($B84,GRUNDAVDRAG($B84+O$3),Deltagandeskatter!$B$2) -> 9088 | P84: =JSA($B84,GRUNDAVDRAG($B84+P$3),Deltagandeskatter!$B$2) -> 10694 | R84: 26100 | S84: 34500 | T84: 30500 | U84: 27500 | V84: 25500 | W84: 20500 | Y84: 8418 | Z84: 14874 | AA84: 18086 | AB84: 19499 | AC84: 19178 | AD84: 17572 | AF84: 21% | AG84: 21% | AH84: 21% | AI84: 22% | AJ84: 21% | AK84: 21%
A85: 6750 | B85: 81000 | D85: =Deltagandeskatter!$B$2*('Med bidragsinkomst'!$B85+'Med bidragsinkomst'!D$3-GRUNDAVDRAG('Med bidragsinkomst'!$B85+'Med bidragsinkomst'!D$3))-JSA($B85,GRUNDAVDRAG($B85+D$3),Deltagandeskatter!$B$2)+MAX(0,0.2*($B85+D$3-Deltagandeskatter!$B$11))+MAX(0,0.05*('Med bidragsinkomst'!$B85+'Med bidragsinkomst'!D$3-Deltagandeskatter!$B$12)) -> 8633 | E85: =Deltagandeskatter!$B$2*('Med bidragsinkomst'!$B85+'Med bidragsinkomst'!E$3-GRUNDAVDRAG('Med bidragsinkomst'!$B85+'Med bidragsinkomst'!E$3))-JSA($B85,GRUNDAVDRAG($B85+E$3),Deltagandeskatter!$B$2)+MAX(0,0.2*($B85+E$3-Deltagandeskatter!$B$11))+MAX(0,0.05*('Med bidragsinkomst'!$B85+'Med bidragsinkomst'!E$3-Deltagandeskatter!$B$12)) -> 24692 | F85: =Deltagandeskatter!$B$2*('Med bidragsinkomst'!$B85+'Med bidragsinkomst'!F$3-GRUNDAVDRAG('Med bidragsinkomst'!$B85+'Med bidragsinkomst'!F$3))-JSA($B85,GRUNDAVDRAG($B85+F$3),Deltagandeskatter!$B$2)+MAX(0,0.2*($B85+F$3-Deltagandeskatter!$B$11))+MAX(0,0.05*('Med bidragsinkomst'!$B85+'Med bidragsinkomst'!F$3-Deltagandeskatter!$B$12)) -> 40753 | G85: =Deltagandeskatter!$B$2*('Med bidragsinkomst'!$B85+'Med bidragsinkomst'!G$3-GRUNDAVDRAG('Med bidragsinkomst'!$B85+'Med bidragsinkomst'!G$3))-JSA($B85,GRUNDAVDRAG($B85+G$3),Deltagandeskatter!$B$2)+MAX(0,0.2*($B85+G$3-Deltagandeskatter!$B$11))+MAX(0,0.05*('Med bidragsinkomst'!$B85+'Med bidragsinkomst'!G$3-Deltagandeskatter!$B$12)) -> 50388 | H85: =Deltagandeskatter!$B$2*('Med bidragsinkomst'!$B85+'Med bidragsinkomst'!H$3-GRUNDAVDRAG('Med bidragsinkomst'!$B85+'Med bidragsinkomst'!H$3))-JSA($B85,GRUNDAVDRAG($B85+H$3),Deltagandeskatter!$B$2)+MAX(0,0.2*($B85+H$3-Deltagandeskatter!$B$11))+MAX(0,0.05*('Med bidragsinkomst'!$B85+'Med bidragsinkomst'!H$3-Deltagandeskatter!$B$12)) -> 56813 | I85: =Deltagandeskatter!$B$2*('Med bidragsinkomst'!$B85+'Med bidragsinkomst'!I$3-GRUNDAVDRAG('Med bidragsinkomst'!$B85+'Med bidragsinkomst'!I$3))-JSA($B85,GRUNDAVDRAG($B85+I$3),Deltagandeskatter!$B$2)+MAX(0,0.2*($B85+I$3-Deltagandeskatter!$B$11))+MAX(0,0.05*('Med bidragsinkomst'!$B85+'Med bidragsinkomst'!I$3-Deltagandeskatter!$B$12)) -> 72873 | K85: =JSA($B85,GRUNDAVDRAG($B85+K$3),Deltagandeskatter!$B$2) -> 8937 | L85: =JSA($B85,GRUNDAVDRAG($B85+L$3),Deltagandeskatter!$B$2) -> 6304 | M85: =JSA($B85,GRUNDAVDRAG($B85+M$3),Deltagandeskatter!$B$2) -> 7620 | N85: =JSA($B85,GRUNDAVDRAG($B85+N$3),Deltagandeskatter!$B$2) -> 8584 | O85: =JSA($B85,GRUNDAVDRAG($B85+O$3),Deltagandeskatter!$B$2) -> 9226 | P85: =JSA($B85,GRUNDAVDRAG($B85+P$3),Deltagandeskatter!$B$2) -> 10832 | R85: 26300 | S85: 34500 | T85: 30400 | U85: 27400 | V85: 25400 | W85: 20400 | Y85: 8633 | Z85: 15088 | AA85: 18301 | AB85: 19714 | AC85: 19393 | AD85: 17787 | AF85: 21% | AG85: 21% | AH85: 22% | AI85: 21% | AJ85: 22% | AK85: 22%
A86: 6833 | B86: 82000 | D86: =Deltagandeskatter!$B$2*('Med bidragsinkomst'!$B86+'Med bidragsinkomst'!D$3-GRUNDAVDRAG('Med bidragsinkomst'!$B86+'Med bidragsinkomst'!D$3))-JSA($B86,GRUNDAVDRAG($B86+D$3),Deltagandeskatter!$B$2)+MAX(0,0.2*($B86+D$3-Deltagandeskatter!$B$11))+MAX(0,0.05*('Med bidragsinkomst'!$B86+'Med bidragsinkomst'!D$3-Deltagandeskatter!$B$12)) -> 8847 | E86: =Deltagandeskatter!$B$2*('Med bidragsinkomst'!$B86+'Med bidragsinkomst'!E$3-GRUNDAVDRAG('Med bidragsinkomst'!$B86+'Med bidragsinkomst'!E$3))-JSA($B86,GRUNDAVDRAG($B86+E$3),Deltagandeskatter!$B$2)+MAX(0,0.2*($B86+E$3-Deltagandeskatter!$B$11))+MAX(0,0.05*('Med bidragsinkomst'!$B86+'Med bidragsinkomst'!E$3-Deltagandeskatter!$B$12)) -> 24907 | F86: =Deltagandeskatter!$B$2*('Med bidragsinkomst'!$B86+'Med bidragsinkomst'!F$3-GRUNDAVDRAG('Med bidragsinkomst'!$B86+'Med bidragsinkomst'!F$3))-JSA($B86,GRUNDAVDRAG($B86+F$3),Deltagandeskatter!$B$2)+MAX(0,0.2*($B86+F$3-Deltagandeskatter!$B$11))+MAX(0,0.05*('Med bidragsinkomst'!$B86+'Med bidragsinkomst'!F$3-Deltagandeskatter!$B$12)) -> 40967 | G86: =Deltagandeskatter!$B$2*('Med bidragsinkomst'!$B86+'Med bidragsinkomst'!G$3-GRUNDAVDRAG('Med bidragsinkomst'!$B86+'Med bidragsinkomst'!G$3))-JSA($B86,GRUNDAVDRAG($B86+G$3),Deltagandeskatter!$B$2)+MAX(0,0.2*($B86+G$3-Deltagandeskatter!$B$11))+MAX(0,0.05*('Med bidragsinkomst'!$B86+'Med bidragsinkomst'!G$3-Deltagandeskatter!$B$12)) -> 50603 | H86: =Deltagandeskatter!$B$2*('Med bidragsinkomst'!$B86+'Med bidragsinkomst'!H$3-GRUNDAVDRAG('Med bidragsinkomst'!$B86+'Med bidragsinkomst'!H$3))-JSA($B86,GRUNDAVDRAG($B86+H$3),Deltagandeskatter!$B$2)+MAX(0,0.2*($B86+H$3-Deltagandeskatter!$B$11))+MAX(0,0.05*('Med bidragsinkomst'!$B86+'Med bidragsinkomst'!H$3-Deltagandeskatter!$B$12)) -> 57027 | I86: =Deltagandeskatter!$B$2*('Med bidragsinkomst'!$B86+'Med bidragsinkomst'!I$3-GRUNDAVDRAG('Med bidragsinkomst'!$B86+'Med bidragsinkomst'!I$3))-JSA($B86,GRUNDAVDRAG($B86+I$3),Deltagandeskatter!$B$2)+MAX(0,0.2*($B86+I$3-Deltagandeskatter!$B$11))+MAX(0,0.05*('Med bidragsinkomst'!$B86+'Med bidragsinkomst'!I$3-Deltagandeskatter!$B$12)) -> 73087 | K86: =JSA($B86,GRUNDAVDRAG($B86+K$3),Deltagandeskatter!$B$2) -> 8980 | L86: =JSA($B86,GRUNDAVDRAG($B86+L$3),Deltagandeskatter!$B$2) -> 6410 | M86: =JSA($B86,GRUNDAVDRAG($B86+M$3),Deltagandeskatter!$B$2) -> 7759 | N86: =JSA($B86,GRUNDAVDRAG($B86+N$3),Deltagandeskatter!$B$2) -> 8723 | O86: =JSA($B86,GRUNDAVDRAG($B86+O$3),Deltagandeskatter!$B$2) -> 9365 | P86: =JSA($B86,GRUNDAVDRAG($B86+P$3),Deltagandeskatter!$B$2) -> 10971 | R86: 26500 | S86: 34500 | T86: 30300 | U86: 27300 | V86: 25300 | W86: 20300 | Y86: 8847 | Z86: 15303 | AA86: 18515 | AB86: 19928 | AC86: 19607 | AD86: 18001 | AF86: 21% | AG86: 22% | AH86: 21% | AI86: 21% | AJ86: 21% | AK86: 21%
A87: 6917 | B87: 83000 | D87: =Deltagandeskatter!$B$2*('Med bidragsinkomst'!$B87+'Med bidragsinkomst'!D$3-GRUNDAVDRAG('Med bidragsinkomst'!$B87+'Med bidragsinkomst'!D$3))-JSA($B87,GRUNDAVDRAG($B87+D$3),Deltagandeskatter!$B$2)+MAX(0,0.2*($B87+D$3-Deltagandeskatter!$B$11))+MAX(0,0.05*('Med bidragsinkomst'!$B87+'Med bidragsinkomst'!D$3-Deltagandeskatter!$B$12)) -> 9062 | E87: =Deltagandeskatter!$B$2*('Med bidragsinkomst'!$B87+'Med bidragsinkomst'!E$3-GRUNDAVDRAG('Med bidragsinkomst'!$B87+'Med bidragsinkomst'!E$3))-JSA($B87,GRUNDAVDRAG($B87+E$3),Deltagandeskatter!$B$2)+MAX(0,0.2*($B87+E$3-Deltagandeskatter!$B$11))+MAX(0,0.05*('Med bidragsinkomst'!$B87+'Med bidragsinkomst'!E$3-Deltagandeskatter!$B$12)) -> 25121 | F87: =Deltagandeskatter!$B$2*('Med bidragsinkomst'!$B87+'Med bidragsinkomst'!F$3-GRUNDAVDRAG('Med bidragsinkomst'!$B87+'Med bidragsinkomst'!F$3))-JSA($B87,GRUNDAVDRAG($B87+F$3),Deltagandeskatter!$B$2)+MAX(0,0.2*($B87+F$3-Deltagandeskatter!$B$11))+MAX(0,0.05*('Med bidragsinkomst'!$B87+'Med bidragsinkomst'!F$3-Deltagandeskatter!$B$12)) -> 41181 | G87: =Deltagandeskatter!$B$2*('Med bidragsinkomst'!$B87+'Med bidragsinkomst'!G$3-GRUNDAVDRAG('Med bidragsinkomst'!$B87+'Med bidragsinkomst'!G$3))-JSA($B87,GRUNDAVDRAG($B87+G$3),Deltagandeskatter!$B$2)+MAX(0,0.2*($B87+G$3-Deltagandeskatter!$B$11))+MAX(0,0.05*('Med bidragsinkomst'!$B87+'Med bidragsinkomst'!G$3-Deltagandeskatter!$B$12)) -> 50817 | H87: =Deltagandeskatter!$B$2*('Med bidragsinkomst'!$B87+'Med bidragsinkomst'!H$3-GRUNDAVDRAG('Med bidragsinkomst'!$B87+'Med bidragsinkomst'!H$3))-JSA($B87,GRUNDAVDRAG($B87+H$3),Deltagandeskatter!$B$2)+MAX(0,0.2*($B87+H$3-Deltagandeskatter!$B$11))+MAX(0,0.05*('Med bidragsinkomst'!$B87+'Med bidragsinkomst'!H$3-Deltagandeskatter!$B$12)) -> 57241 | I87: =Deltagandeskatter!$B$2*('Med bidragsinkomst'!$B87+'Med bidragsinkomst'!I$3-GRUNDAVDRAG('Med bidragsinkomst'!$B87+'Med bidragsinkomst'!I$3))-JSA($B87,GRUNDAVDRAG($B87+I$3),Deltagandeskatter!$B$2)+MAX(0,0.2*($B87+I$3-Deltagandeskatter!$B$11))+MAX(0,0.05*('Med bidragsinkomst'!$B87+'Med bidragsinkomst'!I$3-Deltagandeskatter!$B$12)) -> 73301 | K87: =JSA($B87,GRUNDAVDRAG($B87+K$3),Deltagandeskatter!$B$2) -> 9022 | L87: =JSA($B87,GRUNDAVDRAG($B87+L$3),Deltagandeskatter!$B$2) -> 6517 | M87: =JSA($B87,GRUNDAVDRAG($B87+M$3),Deltagandeskatter!$B$2) -> 7898 | N87: =JSA($B87,GRUNDAVDRAG($B87+N$3),Deltagandeskatter!$B$2) -> 8862 | O87: =JSA($B87,GRUNDAVDRAG($B87+O$3),Deltagandeskatter!$B$2) -> 9504 | P87: =JSA($B87,GRUNDAVDRAG($B87+P$3),Deltagandeskatter!$B$2) -> 11110 | R87: 26700 | S87: 34500 | T87: 30200 | U87: 27200 | V87: 25200 | W87: 20200 | Y87: 9062 | Z87: 15517 | AA87: 18729 | AB87: 20142 | AC87: 19822 | AD87: 18216 | AF87: 21% | AG87: 21% | AH87: 21% | AI87: 21% | AJ87: 21% | AK87: 21%
A88: 7000 | B88: 84000 | D88: =Deltagandeskatter!$B$2*('Med bidragsinkomst'!$B88+'Med bidragsinkomst'!D$3-GRUNDAVDRAG('Med bidragsinkomst'!$B88+'Med bidragsinkomst'!D$3))-JSA($B88,GRUNDAVDRAG($B88+D$3),Deltagandeskatter!$B$2)+MAX(0,0.2*($B88+D$3-Deltagandeskatter!$B$11))+MAX(0,0.05*('Med bidragsinkomst'!$B88+'Med bidragsinkomst'!D$3-Deltagandeskatter!$B$12)) -> 9276 | E88: =Deltagandeskatter!$B$2*('Med bidragsinkomst'!$B88+'Med bidragsinkomst'!E$3-GRUNDAVDRAG('Med bidragsinkomst'!$B88+'Med bidragsinkomst'!E$3))-JSA($B88,GRUNDAVDRAG($B88+E$3),Deltagandeskatter!$B$2)+MAX(0,0.2*($B88+E$3-Deltagandeskatter!$B$11))+MAX(0,0.05*('Med bidragsinkomst'!$B88+'Med bidragsinkomst'!E$3-Deltagandeskatter!$B$12)) -> 25336 | F88: =Deltagandeskatter!$B$2*('Med bidragsinkomst'!$B88+'Med bidragsinkomst'!F$3-GRUNDAVDRAG('Med bidragsinkomst'!$B88+'Med bidragsinkomst'!F$3))-JSA($B88,GRUNDAVDRAG($B88+F$3),Deltagandeskatter!$B$2)+MAX(0,0.2*($B88+F$3-Deltagandeskatter!$B$11))+MAX(0,0.05*('Med bidragsinkomst'!$B88+'Med bidragsinkomst'!F$3-Deltagandeskatter!$B$12)) -> 41396 | G88: =Deltagandeskatter!$B$2*('Med bidragsinkomst'!$B88+'Med bidragsinkomst'!G$3-GRUNDAVDRAG('Med bidragsinkomst'!$B88+'Med bidragsinkomst'!G$3))-JSA($B88,GRUNDAVDRAG($B88+G$3),Deltagandeskatter!$B$2)+MAX(0,0.2*($B88+G$3-Deltagandeskatter!$B$11))+MAX(0,0.05*('Med bidragsinkomst'!$B88+'Med bidragsinkomst'!G$3-Deltagandeskatter!$B$12)) -> 51032 | H88: =Deltagandeskatter!$B$2*('Med bidragsinkomst'!$B88+'Med bidragsinkomst'!H$3-GRUNDAVDRAG('Med bidragsinkomst'!$B88+'Med bidragsinkomst'!H$3))-JSA($B88,GRUNDAVDRAG($B88+H$3),Deltagandeskatter!$B$2)+MAX(0,0.2*($B88+H$3-Deltagandeskatter!$B$11))+MAX(0,0.05*('Med bidragsinkomst'!$B88+'Med bidragsinkomst'!H$3-Deltagandeskatter!$B$12)) -> 57456 | I88: =Deltagandeskatter!$B$2*('Med bidragsinkomst'!$B88+'Med bidragsinkomst'!I$3-GRUNDAVDRAG('Med bidragsinkomst'!$B88+'Med bidragsinkomst'!I$3))-JSA($B88,GRUNDAVDRAG($B88+I$3),Deltagandeskatter!$B$2)+MAX(0,0.2*($B88+I$3-Deltagandeskatter!$B$11))+MAX(0,0.05*('Med bidragsinkomst'!$B88+'Med bidragsinkomst'!I$3-Deltagandeskatter!$B$12)) -> 73516 | K88: =JSA($B88,GRUNDAVDRAG($B88+K$3),Deltagandeskatter!$B$2) -> 9065 | L88: =JSA($B88,GRUNDAVDRAG($B88+L$3),Deltagandeskatter!$B$2) -> 6623 | M88: =JSA($B88,GRUNDAVDRAG($B88+M$3),Deltagandeskatter!$B$2) -> 8037 | N88: =JSA($B88,GRUNDAVDRAG($B88+N$3),Deltagandeskatter!$B$2) -> 9000 | O88: =JSA($B88,GRUNDAVDRAG($B88+O$3),Deltagandeskatter!$B$2) -> 9643 | P88: =JSA($B88,GRUNDAVDRAG($B88+P$3),Deltagandeskatter!$B$2) -> 11249 | R88: 26900 | S88: 34500 | T88: 30100 | U88: 27100 | V88: 25100 | W88: 20100 | Y88: 9276 | Z88: 15733 | AA88: 18944 | AB88: 20358 | AC88: 20036 | AD88: 18430 | AF88: 21% | AG88: 22% | AH88: 21% | AI88: 22% | AJ88: 21% | AK88: 21%
A89: 7083 | B89: 85000 | D89: =Deltagandeskatter!$B$2*('Med bidragsinkomst'!$B89+'Med bidragsinkomst'!D$3-GRUNDAVDRAG('Med bidragsinkomst'!$B89+'Med bidragsinkomst'!D$3))-JSA($B89,GRUNDAVDRAG($B89+D$3),Deltagandeskatter!$B$2)+MAX(0,0.2*($B89+D$3-Deltagandeskatter!$B$11))+MAX(0,0.05*('Med bidragsinkomst'!$B89+'Med bidragsinkomst'!D$3-Deltagandeskatter!$B$12)) -> 9490 | E89: =Deltagandeskatter!$B$2*('Med bidragsinkomst'!$B89+'Med bidragsinkomst'!E$3-GRUNDAVDRAG('Med bidragsinkomst'!$B89+'Med bidragsinkomst'!E$3))-JSA($B89,GRUNDAVDRAG($B89+E$3),Deltagandeskatter!$B$2)+MAX(0,0.2*($B89+E$3-Deltagandeskatter!$B$11))+MAX(0,0.05*('Med bidragsinkomst'!$B89+'Med bidragsinkomst'!E$3-Deltagandeskatter!$B$12)) -> 25551 | F89: =Deltagandeskatter!$B$2*('Med bidragsinkomst'!$B89+'Med bidragsinkomst'!F$3-GRUNDAVDRAG('Med bidragsinkomst'!$B89+'Med bidragsinkomst'!F$3))-JSA($B89,GRUNDAVDRAG($B89+F$3),Deltagandeskatter!$B$2)+MAX(0,0.2*($B89+F$3-Deltagandeskatter!$B$11))+MAX(0,0.05*('Med bidragsinkomst'!$B89+'Med bidragsinkomst'!F$3-Deltagandeskatter!$B$12)) -> 41610 | G89: =Deltagandeskatter!$B$2*('Med bidragsinkomst'!$B89+'Med bidragsinkomst'!G$3-GRUNDAVDRAG('Med bidragsinkomst'!$B89+'Med bidragsinkomst'!G$3))-JSA($B89,GRUNDAVDRAG($B89+G$3),Deltagandeskatter!$B$2)+MAX(0,0.2*($B89+G$3-Deltagandeskatter!$B$11))+MAX(0,0.05*('Med bidragsinkomst'!$B89+'Med bidragsinkomst'!G$3-Deltagandeskatter!$B$12)) -> 51247 | H89: =Deltagandeskatter!$B$2*('Med bidragsinkomst'!$B89+'Med bidragsinkomst'!H$3-GRUNDAVDRAG('Med bidragsinkomst'!$B89+'Med bidragsinkomst'!H$3))-JSA($B89,GRUNDAVDRAG($B89+H$3),Deltagandeskatter!$B$2)+MAX(0,0.2*($B89+H$3-Deltagandeskatter!$B$11))+MAX(0,0.05*('Med bidragsinkomst'!$B89+'Med bidragsinkomst'!H$3-Deltagandeskatter!$B$12)) -> 57670 | I89: =Deltagandeskatter!$B$2*('Med bidragsinkomst'!$B89+'Med bidragsinkomst'!I$3-GRUNDAVDRAG('Med bidragsinkomst'!$B89+'Med bidragsinkomst'!I$3))-JSA($B89,GRUNDAVDRAG($B89+I$3),Deltagandeskatter!$B$2)+MAX(0,0.2*($B89+I$3-Deltagandeskatter!$B$11))+MAX(0,0.05*('Med bidragsinkomst'!$B89+'Med bidragsinkomst'!I$3-Deltagandeskatter!$B$12)) -> 73730 | K89: =JSA($B89,GRUNDAVDRAG($B89+K$3),Deltagandeskatter!$B$2) -> 9107 | L89: =JSA($B89,GRUNDAVDRAG($B89+L$3),Deltagandeskatter!$B$2) -> 6730 | M89: =JSA($B89,GRUNDAVDRAG($B89+M$3),Deltagandeskatter!$B$2) -> 8176 | N89: =JSA($B89,GRUNDAVDRAG($B89+N$3),Deltagandeskatter!$B$2) -> 9139 | O89: =JSA($B89,GRUNDAVDRAG($B89+O$3),Deltagandeskatter!$B$2) -> 9782 | P89: =JSA($B89,GRUNDAVDRAG($B89+P$3),Deltagandeskatter!$B$2) -> 11388 | R89: 27100 | S89: 34500 | T89: 30000 | U89: 27000 | V89: 25000 | W89: 20000 | Y89: 9490 | Z89: 15947 | AA89: 19158 | AB89: 20572 | AC89: 20250 | AD89: 18644 | AF89: 21% | AG89: 21% | AH89: 21% | AI89: 21% | AJ89: 21% | AK89: 21%
A90: 7167 | B90: 86000 | D90: =Deltagandeskatter!$B$2*('Med bidragsinkomst'!$B90+'Med bidragsinkomst'!D$3-GRUNDAVDRAG('Med bidragsinkomst'!$B90+'Med bidragsinkomst'!D$3))-JSA($B90,GRUNDAVDRAG($B90+D$3),Deltagandeskatter!$B$2)+MAX(0,0.2*($B90+D$3-Deltagandeskatter!$B$11))+MAX(0,0.05*('Med bidragsinkomst'!$B90+'Med bidragsinkomst'!D$3-Deltagandeskatter!$B$12)) -> 9705 | E90: =Deltagandeskatter!$B$2*('Med bidragsinkomst'!$B90+'Med bidragsinkomst'!E$3-GRUNDAVDRAG('Med bidragsinkomst'!$B90+'Med bidragsinkomst'!E$3))-JSA($B90,GRUNDAVDRAG($B90+E$3),Deltagandeskatter!$B$2)+MAX(0,0.2*($B90+E$3-Deltagandeskatter!$B$11))+MAX(0,0.05*('Med bidragsinkomst'!$B90+'Med bidragsinkomst'!E$3-Deltagandeskatter!$B$12)) -> 25765 | F90: =Deltagandeskatter!$B$2*('Med bidragsinkomst'!$B90+'Med bidragsinkomst'!F$3-GRUNDAVDRAG('Med bidragsinkomst'!$B90+'Med bidragsinkomst'!F$3))-JSA($B90,GRUNDAVDRAG($B90+F$3),Deltagandeskatter!$B$2)+MAX(0,0.2*($B90+F$3-Deltagandeskatter!$B$11))+MAX(0,0.05*('Med bidragsinkomst'!$B90+'Med bidragsinkomst'!F$3-Deltagandeskatter!$B$12)) -> 41825 | G90: =Deltagandeskatter!$B$2*('Med bidragsinkomst'!$B90+'Med bidragsinkomst'!G$3-GRUNDAVDRAG('Med bidragsinkomst'!$B90+'Med bidragsinkomst'!G$3))-JSA($B90,GRUNDAVDRAG($B90+G$3),Deltagandeskatter!$B$2)+MAX(0,0.2*($B90+G$3-Deltagandeskatter!$B$11))+MAX(0,0.05*('Med bidragsinkomst'!$B90+'Med bidragsinkomst'!G$3-Deltagandeskatter!$B$12)) -> 51461 | H90: =Deltagandeskatter!$B$2*('Med bidragsinkomst'!$B90+'Med bidragsinkomst'!H$3-GRUNDAVDRAG('Med bidragsinkomst'!$B90+'Med bidragsinkomst'!H$3))-JSA($B90,GRUNDAVDRAG($B90+H$3),Deltagandeskatter!$B$2)+MAX(0,0.2*($B90+H$3-Deltagandeskatter!$B$11))+MAX(0,0.05*('Med bidragsinkomst'!$B90+'Med bidragsinkomst'!H$3-Deltagandeskatter!$B$12)) -> 57885 | I90: =Deltagandeskatter!$B$2*('Med bidragsinkomst'!$B90+'Med bidragsinkomst'!I$3-GRUNDAVDRAG('Med bidragsinkomst'!$B90+'Med bidragsinkomst'!I$3))-JSA($B90,GRUNDAVDRAG($B90+I$3),Deltagandeskatter!$B$2)+MAX(0,0.2*($B90+I$3-Deltagandeskatter!$B$11))+MAX(0,0.05*('Med bidragsinkomst'!$B90+'Med bidragsinkomst'!I$3-Deltagandeskatter!$B$12)) -> 73945 | K90: =JSA($B90,GRUNDAVDRAG($B90+K$3),Deltagandeskatter!$B$2) -> 9149 | L90: =JSA($B90,GRUNDAVDRAG($B90+L$3),Deltagandeskatter!$B$2) -> 6837 | M90: =JSA($B90,GRUNDAVDRAG($B90+M$3),Deltagandeskatter!$B$2) -> 8314 | N90: =JSA($B90,GRUNDAVDRAG($B90+N$3),Deltagandeskatter!$B$2) -> 9278 | O90: =JSA($B90,GRUNDAVDRAG($B90+O$3),Deltagandeskatter!$B$2) -> 9920 | P90: =JSA($B90,GRUNDAVDRAG($B90+P$3),Deltagandeskatter!$B$2) -> 11526 | R90: 27300 | S90: 34500 | T90: 29900 | U90: 26900 | V90: 24900 | W90: 19900 | Y90: 9705 | Z90: 16161 | AA90: 19373 | AB90: 20786 | AC90: 20466 | AD90: 18860 | AF90: 21% | AG90: 21% | AH90: 22% | AI90: 21% | AJ90: 22% | AK90: 22%
A91: 7250 | B91: 87000 | D91: =Deltagandeskatter!$B$2*('Med bidragsinkomst'!$B91+'Med bidragsinkomst'!D$3-GRUNDAVDRAG('Med bidragsinkomst'!$B91+'Med bidragsinkomst'!D$3))-JSA($B91,GRUNDAVDRAG($B91+D$3),Deltagandeskatter!$B$2)+MAX(0,0.2*($B91+D$3-Deltagandeskatter!$B$11))+MAX(0,0.05*('Med bidragsinkomst'!$B91+'Med bidragsinkomst'!D$3-Deltagandeskatter!$B$12)) -> 9919 | E91: =Deltagandeskatter!$B$2*('Med bidragsinkomst'!$B91+'Med bidragsinkomst'!E$3-GRUNDAVDRAG('Med bidragsinkomst'!$B91+'Med bidragsinkomst'!E$3))-JSA($B91,GRUNDAVDRAG($B91+E$3),Deltagandeskatter!$B$2)+MAX(0,0.2*($B91+E$3-Deltagandeskatter!$B$11))+MAX(0,0.05*('Med bidragsinkomst'!$B91+'Med bidragsinkomst'!E$3-Deltagandeskatter!$B$12)) -> 25980 | F91: =Deltagandeskatter!$B$2*('Med bidragsinkomst'!$B91+'Med bidragsinkomst'!F$3-GRUNDAVDRAG('Med bidragsinkomst'!$B91+'Med bidragsinkomst'!F$3))-JSA($B91,GRUNDAVDRAG($B91+F$3),Deltagandeskatter!$B$2)+MAX(0,0.2*($B91+F$3-Deltagandeskatter!$B$11))+MAX(0,0.05*('Med bidragsinkomst'!$B91+'Med bidragsinkomst'!F$3-Deltagandeskatter!$B$12)) -> 42040 | G91: =Deltagandeskatter!$B$2*('Med bidragsinkomst'!$B91+'Med bidragsinkomst'!G$3-GRUNDAVDRAG('Med bidragsinkomst'!$B91+'Med bidragsinkomst'!G$3))-JSA($B91,GRUNDAVDRAG($B91+G$3),Deltagandeskatter!$B$2)+MAX(0,0.2*($B91+G$3-Deltagandeskatter!$B$11))+MAX(0,0.05*('Med bidragsinkomst'!$B91+'Med bidragsinkomst'!G$3-Deltagandeskatter!$B$12)) -> 51675 | H91: =Deltagandeskatter!$B$2*('Med bidragsinkomst'!$B91+'Med bidragsinkomst'!H$3-GRUNDAVDRAG('Med bidragsinkomst'!$B91+'Med bidragsinkomst'!H$3))-JSA($B91,GRUNDAVDRAG($B91+H$3),Deltagandeskatter!$B$2)+MAX(0,0.2*($B91+H$3-Deltagandeskatter!$B$11))+MAX(0,0.05*('Med bidragsinkomst'!$B91+'Med bidragsinkomst'!H$3-Deltagandeskatter!$B$12)) -> 58100 | I91: =Deltagandeskatter!$B$2*('Med bidragsinkomst'!$B91+'Med bidragsinkomst'!I$3-GRUNDAVDRAG('Med bidragsinkomst'!$B91+'Med bidragsinkomst'!I$3))-JSA($B91,GRUNDAVDRAG($B91+I$3),Deltagandeskatter!$B$2)+MAX(0,0.2*($B91+I$3-Deltagandeskatter!$B$11))+MAX(0,0.05*('Med bidragsinkomst'!$B91+'Med bidragsinkomst'!I$3-Deltagandeskatter!$B$12)) -> 74160 | K91: =JSA($B91,GRUNDAVDRAG($B91+K$3),Deltagandeskatter!$B$2) -> 9192 | L91: =JSA($B91,GRUNDAVDRAG($B91+L$3),Deltagandeskatter!$B$2) -> 6943 | M91: =JSA($B91,GRUNDAVDRAG($B91+M$3),Deltagandeskatter!$B$2) -> 8453 | N91: =JSA($B91,GRUNDAVDRAG($B91+N$3),Deltagandeskatter!$B$2) -> 9417 | O91: =JSA($B91,GRUNDAVDRAG($B91+O$3),Deltagandeskatter!$B$2) -> 10059 | P91: =JSA($B91,GRUNDAVDRAG($B91+P$3),Deltagandeskatter!$B$2) -> 11665 | R91: 27500 | S91: 34500 | T91: 29800 | U91: 26800 | V91: 24800 | W91: 19800 | Y91: 9919 | Z91: 16376 | AA91: 19588 | AB91: 21001 | AC91: 20680 | AD91: 19074 | AF91: 21% | AG91: 22% | AH91: 21% | AI91: 21% | AJ91: 21% | AK91: 21%
A92: 7333 | B92: 88000 | D92: =Deltagandeskatter!$B$2*('Med bidragsinkomst'!$B92+'Med bidragsinkomst'!D$3-GRUNDAVDRAG('Med bidragsinkomst'!$B92+'Med bidragsinkomst'!D$3))-JSA($B92,GRUNDAVDRAG($B92+D$3),Deltagandeskatter!$B$2)+MAX(0,0.2*($B92+D$3-Deltagandeskatter!$B$11))+MAX(0,0.05*('Med bidragsinkomst'!$B92+'Med bidragsinkomst'!D$3-Deltagandeskatter!$B$12)) -> 10134 | E92: =Deltagandeskatter!$B$2*('Med bidragsinkomst'!$B92+'Med bidragsinkomst'!E$3-GRUNDAVDRAG('Med bidragsinkomst'!$B92+'Med bidragsinkomst'!E$3))-JSA($B92,GRUNDAVDRAG($B92+E$3),Deltagandeskatter!$B$2)+MAX(0,0.2*($B92+E$3-Deltagandeskatter!$B$11))+MAX(0,0.05*('Med bidragsinkomst'!$B92+'Med bidragsinkomst'!E$3-Deltagandeskatter!$B$12)) -> 26194 | F92: =Deltagandeskatter!$B$2*('Med bidragsinkomst'!$B92+'Med bidragsinkomst'!F$3-GRUNDAVDRAG('Med bidragsinkomst'!$B92+'Med bidragsinkomst'!F$3))-JSA($B92,GRUNDAVDRAG($B92+F$3),Deltagandeskatter!$B$2)+MAX(0,0.2*($B92+F$3-Deltagandeskatter!$B$11))+MAX(0,0.05*('Med bidragsinkomst'!$B92+'Med bidragsinkomst'!F$3-Deltagandeskatter!$B$12)) -> 42254 | G92: =Deltagandeskatter!$B$2*('Med bidragsinkomst'!$B92+'Med bidragsinkomst'!G$3-GRUNDAVDRAG('Med bidragsinkomst'!$B92+'Med bidragsinkomst'!G$3))-JSA($B92,GRUNDAVDRAG($B92+G$3),Deltagandeskatter!$B$2)+MAX(0,0.2*($B92+G$3-Deltagandeskatter!$B$11))+MAX(0,0.05*('Med bidragsinkomst'!$B92+'Med bidragsinkomst'!G$3-Deltagandeskatter!$B$12)) -> 51891 | H92: =Deltagandeskatter!$B$2*('Med bidragsinkomst'!$B92+'Med bidragsinkomst'!H$3-GRUNDAVDRAG('Med bidragsinkomst'!$B92+'Med bidragsinkomst'!H$3))-JSA($B92,GRUNDAVDRAG($B92+H$3),Deltagandeskatter!$B$2)+MAX(0,0.2*($B92+H$3-Deltagandeskatter!$B$11))+MAX(0,0.05*('Med bidragsinkomst'!$B92+'Med bidragsinkomst'!H$3-Deltagandeskatter!$B$12)) -> 58314 | I92: =Deltagandeskatter!$B$2*('Med bidragsinkomst'!$B92+'Med bidragsinkomst'!I$3-GRUNDAVDRAG('Med bidragsinkomst'!$B92+'Med bidragsinkomst'!I$3))-JSA($B92,GRUNDAVDRAG($B92+I$3),Deltagandeskatter!$B$2)+MAX(0,0.2*($B92+I$3-Deltagandeskatter!$B$11))+MAX(0,0.05*('Med bidragsinkomst'!$B92+'Med bidragsinkomst'!I$3-Deltagandeskatter!$B$12)) -> 74374 | K92: =JSA($B92,GRUNDAVDRAG($B92+K$3),Deltagandeskatter!$B$2) -> 9234 | L92: =JSA($B92,GRUNDAVDRAG($B92+L$3),Deltagandeskatter!$B$2) -> 7050 | M92: =JSA($B92,GRUNDAVDRAG($B92+M$3),Deltagandeskatter!$B$2) -> 8592 | N92: =JSA($B92,GRUNDAVDRAG($B92+N$3),Deltagandeskatter!$B$2) -> 9555 | O92: =JSA($B92,GRUNDAVDRAG($B92+O$3),Deltagandeskatter!$B$2) -> 10198 | P92: =JSA($B92,GRUNDAVDRAG($B92+P$3),Deltagandeskatter!$B$2) -> 11804 | R92: 27700 | S92: 34500 | T92: 29700 | U92: 26700 | V92: 24700 | W92: 19700 | Y92: 10134 | Z92: 16590 | AA92: 19802 | AB92: 21216 | AC92: 20894 | AD92: 19288 | AF92: 21% | AG92: 21% | AH92: 21% | AI92: 22% | AJ92: 21% | AK92: 21%
A93: 7417 | B93: 89000 | D93: =Deltagandeskatter!$B$2*('Med bidragsinkomst'!$B93+'Med bidragsinkomst'!D$3-GRUNDAVDRAG('Med bidragsinkomst'!$B93+'Med bidragsinkomst'!D$3))-JSA($B93,GRUNDAVDRAG($B93+D$3),Deltagandeskatter!$B$2)+MAX(0,0.2*($B93+D$3-Deltagandeskatter!$B$11))+MAX(0,0.05*('Med bidragsinkomst'!$B93+'Med bidragsinkomst'!D$3-Deltagandeskatter!$B$12)) -> 10348 | E93: =Deltagandeskatter!$B$2*('Med bidragsinkomst'!$B93+'Med bidragsinkomst'!E$3-GRUNDAVDRAG('Med bidragsinkomst'!$B93+'Med bidragsinkomst'!E$3))-JSA($B93,GRUNDAVDRAG($B93+E$3),Deltagandeskatter!$B$2)+MAX(0,0.2*($B93+E$3-Deltagandeskatter!$B$11))+MAX(0,0.05*('Med bidragsinkomst'!$B93+'Med bidragsinkomst'!E$3-Deltagandeskatter!$B$12)) -> 26408 | F93: =Deltagandeskatter!$B$2*('Med bidragsinkomst'!$B93+'Med bidragsinkomst'!F$3-GRUNDAVDRAG('Med bidragsinkomst'!$B93+'Med bidragsinkomst'!F$3))-JSA($B93,GRUNDAVDRAG($B93+F$3),Deltagandeskatter!$B$2)+MAX(0,0.2*($B93+F$3-Deltagandeskatter!$B$11))+MAX(0,0.05*('Med bidragsinkomst'!$B93+'Med bidragsinkomst'!F$3-Deltagandeskatter!$B$12)) -> 42468 | G93: =Deltagandeskatter!$B$2*('Med bidragsinkomst'!$B93+'Med bidragsinkomst'!G$3-GRUNDAVDRAG('Med bidragsinkomst'!$B93+'Med bidragsinkomst'!G$3))-JSA($B93,GRUNDAVDRAG($B93+G$3),Deltagandeskatter!$B$2)+MAX(0,0.2*($B93+G$3-Deltagandeskatter!$B$11))+MAX(0,0.05*('Med bidragsinkomst'!$B93+'Med bidragsinkomst'!G$3-Deltagandeskatter!$B$12)) -> 52105 | H93: =Deltagandeskatter!$B$2*('Med bidragsinkomst'!$B93+'Med bidragsinkomst'!H$3-GRUNDAVDRAG('Med bidragsinkomst'!$B93+'Med bidragsinkomst'!H$3))-JSA($B93,GRUNDAVDRAG($B93+H$3),Deltagandeskatter!$B$2)+MAX(0,0.2*($B93+H$3-Deltagandeskatter!$B$11))+MAX(0,0.05*('Med bidragsinkomst'!$B93+'Med bidragsinkomst'!H$3-Deltagandeskatter!$B$12)) -> 58528 | I93: =Deltagandeskatter!$B$2*('Med bidragsinkomst'!$B93+'Med bidragsinkomst'!I$3-GRUNDAVDRAG('Med bidragsinkomst'!$B93+'Med bidragsinkomst'!I$3))-JSA($B93,GRUNDAVDRAG($B93+I$3),Deltagandeskatter!$B$2)+MAX(0,0.2*($B93+I$3-Deltagandeskatter!$B$11))+MAX(0,0.05*('Med bidragsinkomst'!$B93+'Med bidragsinkomst'!I$3-Deltagandeskatter!$B$12)) -> 74588 | K93: =JSA($B93,GRUNDAVDRAG($B93+K$3),Deltagandeskatter!$B$2) -> 9277 | L93: =JSA($B93,GRUNDAVDRAG($B93+L$3),Deltagandeskatter!$B$2) -> 7157 | M93: =JSA($B93,GRUNDAVDRAG($B93+M$3),Deltagandeskatter!$B$2) -> 8731 | N93: =JSA($B93,GRUNDAVDRAG($B93+N$3),Deltagandeskatter!$B$2) -> 9694 | O93: =JSA($B93,GRUNDAVDRAG($B93+O$3),Deltagandeskatter!$B$2) -> 10337 | P93: =JSA($B93,GRUNDAVDRAG($B93+P$3),Deltagandeskatter!$B$2) -> 11943 | R93: 27900 | S93: 34500 | T93: 29600 | U93: 26600 | V93: 24600 | W93: 19600 | Y93: 10348 | Z93: 16805 | AA93: 20016 | AB93: 21430 | AC93: 21108 | AD93: 19502 | AF93: 21% | AG93: 21% | AH93: 21% | AI93: 21% | AJ93: 21% | AK93: 21%
A94: 7500 | B94: 90000 | D94: =Deltagandeskatter!$B$2*('Med bidragsinkomst'!$B94+'Med bidragsinkomst'!D$3-GRUNDAVDRAG('Med bidragsinkomst'!$B94+'Med bidragsinkomst'!D$3))-JSA($B94,GRUNDAVDRAG($B94+D$3),Deltagandeskatter!$B$2)+MAX(0,0.2*($B94+D$3-Deltagandeskatter!$B$11))+MAX(0,0.05*('Med bidragsinkomst'!$B94+'Med bidragsinkomst'!D$3-Deltagandeskatter!$B$12)) -> 10563 | E94: =Deltagandeskatter!$B$2*('Med bidragsinkomst'!$B94+'Med bidragsinkomst'!E$3-GRUNDAVDRAG('Med bidragsinkomst'!$B94+'Med bidragsinkomst'!E$3))-JSA($B94,GRUNDAVDRAG($B94+E$3),Deltagandeskatter!$B$2)+MAX(0,0.2*($B94+E$3-Deltagandeskatter!$B$11))+MAX(0,0.05*('Med bidragsinkomst'!$B94+'Med bidragsinkomst'!E$3-Deltagandeskatter!$B$12)) -> 26624 | F94: =Deltagandeskatter!$B$2*('Med bidragsinkomst'!$B94+'Med bidragsinkomst'!F$3-GRUNDAVDRAG('Med bidragsinkomst'!$B94+'Med bidragsinkomst'!F$3))-JSA($B94,GRUNDAVDRAG($B94+F$3),Deltagandeskatter!$B$2)+MAX(0,0.2*($B94+F$3-Deltagandeskatter!$B$11))+MAX(0,0.05*('Med bidragsinkomst'!$B94+'Med bidragsinkomst'!F$3-Deltagandeskatter!$B$12)) -> 42684 | G94: =Deltagandeskatter!$B$2*('Med bidragsinkomst'!$B94+'Med bidragsinkomst'!G$3-GRUNDAVDRAG('Med bidragsinkomst'!$B94+'Med bidragsinkomst'!G$3))-JSA($B94,GRUNDAVDRAG($B94+G$3),Deltagandeskatter!$B$2)+MAX(0,0.2*($B94+G$3-Deltagandeskatter!$B$11))+MAX(0,0.05*('Med bidragsinkomst'!$B94+'Med bidragsinkomst'!G$3-Deltagandeskatter!$B$12)) -> 52319 | H94: =Deltagandeskatter!$B$2*('Med bidragsinkomst'!$B94+'Med bidragsinkomst'!H$3-GRUNDAVDRAG('Med bidragsinkomst'!$B94+'Med bidragsinkomst'!H$3))-JSA($B94,GRUNDAVDRAG($B94+H$3),Deltagandeskatter!$B$2)+MAX(0,0.2*($B94+H$3-Deltagandeskatter!$B$11))+MAX(0,0.05*('Med bidragsinkomst'!$B94+'Med bidragsinkomst'!H$3-Deltagandeskatter!$B$12)) -> 58744 | I94: =Deltagandeskatter!$B$2*('Med bidragsinkomst'!$B94+'Med bidragsinkomst'!I$3-GRUNDAVDRAG('Med bidragsinkomst'!$B94+'Med bidragsinkomst'!I$3))-JSA($B94,GRUNDAVDRAG($B94+I$3),Deltagandeskatter!$B$2)+MAX(0,0.2*($B94+I$3-Deltagandeskatter!$B$11))+MAX(0,0.05*('Med bidragsinkomst'!$B94+'Med bidragsinkomst'!I$3-Deltagandeskatter!$B$12)) -> 74804 | K94: =JSA($B94,GRUNDAVDRAG($B94+K$3),Deltagandeskatter!$B$2) -> 9319 | L94: =JSA($B94,GRUNDAVDRAG($B94+L$3),Deltagandeskatter!$B$2) -> 7263 | M94: =JSA($B94,GRUNDAVDRAG($B94+M$3),Deltagandeskatter!$B$2) -> 8869 | N94: =JSA($B94,GRUNDAVDRAG($B94+N$3),Deltagandeskatter!$B$2) -> 9833 | O94: =JSA($B94,GRUNDAVDRAG($B94+O$3),Deltagandeskatter!$B$2) -> 10475 | P94: =JSA($B94,GRUNDAVDRAG($B94+P$3),Deltagandeskatter!$B$2) -> 12081 | R94: 28100 | S94: 34500 | T94: 29500 | U94: 26500 | V94: 24500 | W94: 19500 | Y94: 10563 | Z94: 17020 | AA94: 20232 | AB94: 21645 | AC94: 21324 | AD94: 19718 | AF94: 21% | AG94: 22% | AH94: 22% | AI94: 21% | AJ94: 22% | AK94: 22%
